Workbook

Sheet Start
C2: ='Deckblatt|Cover'!$M$7 -> Deutsch | CV2: Deutsch | CW2: Hinweise zum Gebrauch der Tabellen | CX2: Instruction for Using the Spreadsheets
CV3: English | CW3: Sprache auswählen Select language | CX3: Select language Sprache auswählen
C4: =IF(C2="English",CX2,CW2) -> Hinweise zum Gebrauch der Tabellen
B6: =IF(C2="English",CX6,CW6) -> Die Tabellen werden mit Hilfe von Makros und Programmen gesteuert und sind untereinander verknüpft! | CW6: Die Tabellen werden mit Hilfe von Makros und Programmen gesteuert und sind untereinander verknüpft! | CX6: The Spreadsheets are under Control of Macros and Programs and are linked together
B7: =IF($C$2="English",CX7,CW7) -> Sie müssen deshalb unmittelbar nach dem Herunterladen der Finanzplanungstabellen die Makros aktivieren | CW7: Sie müssen deshalb unmittelbar nach dem Herunterladen der Finanzplanungstabellen die Makros aktivieren | CX7: Therfore directly activate the Macroinstructions
C9: =IF($C$2="English",CX9,CW9) -> Je nach Systemumgebung erfordert dies unterschiedliche Wege | CW9: Je nach Systemumgebung erfordert dies unterschiedliche Wege | CX9: Depending on your system enviroment exists different ways
CW10: Fall 2 | CX10: Case 2
CW11: Das Fenster "Sicherheitshinweis für Microsoft Excel" erscheint | CX11: The Window "Sicherheitshinweis für Microsoft Excel" appears
B12: =IF($C$2="English",CX12,CW12) -> Fall 1 | D12: =IF($C$2="English",CX10,CW10) -> Fall 2 | CW12: Fall 1 | CX12: Case 1
B13: =IF($C$2="English",CX13,CW13) -> In einer Leiste oberhalb der Tabellen wird | D13: =IF($C$2="English",CX11,CW11) -> Das Fenster "Sicherheitshinweis für Microsoft Excel" erscheint | CW13: In einer Leiste oberhalb der Tabellen wird | CX13: In the bar above the sheet you recognize the
B14: =IF($C$2="English",CX14,CW14) -> der untenstehende Hinweis angezeigt | CW14: der untenstehende Hinweis angezeigt | CX14: following hint
CW15: Hier finden Sie die | CX15: Here you find the Manual for the Finance Planning Spreadsheets (in German)
CW16: Bedienungsanleitung-zur-Finanzplanung | CX16: Bedienungsanleitung-zur-Finanzplanung
CW21: Klicken Sie auf die Schaltfläche "Optionen..." | CX21: Click the Button "Option.."
CW22: und danach auf "Inhalt aktivieren" | CX22: and thereafter "Inhalt aktivieren"
CW24: Danach erscheint das Fenster "Microsoft Office-Sicherheitsoptionen" | CX24: Therafter appears the Window "Microsoft Office-Sicherheitsoptionen"
B26: =IF($C$2="English",CX21,CW21) -> Klicken Sie auf die Schaltfläche "Optionen..."
B27: =IF($C$2="English",CX22,CW22) -> und danach auf "Inhalt aktivieren" | D27: =IF($C$2="English",CX31,CW31) -> Hier muss auf die Schaltfläche "Makros aktivieren" geklickt werden
D30: =IF($C$2="English",CX15,CW15) -> Hier finden Sie die | E30: =IF($C$2="English",CX16,CW16) -> Bedienungsanleitung-zur-Finanzplanung
CW31: Hier muss auf die Schaltfläche "Makros aktivieren" geklickt werden | CX31: Click the button "Makros aktivieren"
CW37: 2. Markieren Sie | CX37: 2. Select
CW38: "Diesen Inhalt aktivieren" | CX38: "Diesen Inhalt aktivieren"
CW44: 3. Mit "OK" bestätigen | CX44: 3. Confirm with "OK"

Sheet Deckblatt|Cover (hidden)
AK1: Deutsch
C2: {2016@Erlewein} | AK2: English
C6: =IF($M$7="English",CW6,CV6) -> NEU MIT GRAPHISCHER DARSTELLUNG DER ERGEBNISSE | M6: Sprache /Language | CV6: NEU MIT GRAPHISCHER DARSTELLUNG DER ERGEBNISSE | CW6: NEW WITH GRAFIC REPRESENTAION OF RESULTS
M7: Deutsch
C9: =IF($M$7="English",CW9,CV9) -> Finanzplanung für GründerInnen leicht gemacht | CV9: Finanzplanung für GründerInnen leicht gemacht | CW9: Financial Planning for Founders/Foundresses easy to work with
C10: Für Freiberufler, Einzelunternehmen, Einzelhandel, Personen-und Kapitalgesellschaften | CV10: Für Freiberufler, Einzelunternehmen, Einzelhandel, Personen-und Kapitalgesellschaften | CW10: For Professionals, Individual Enterprises, Partnerships, Retail, Capital Companies
C13: In Tabellen-Schritten | CV13: In Tabellen-Schritten | CW13: Step by step through spreadsheets
C14: von der Umsatzprognose | CV14: von der Umsatzprognose | CW14: with sales forecast
C16: zum Liquiditätsplan | CV16: zum Liquiditätsplan | CW16: to cash budget
C17: bis zur Finanzierung | CV17: bis zur Finanzierung | CW17: and financing
C19: Vielfach bewährt für Tragfähigkeitsbescheinigungen | CV19: Vielfach bewährt für Tragfähigkeitsbescheinigungen | CW19: Approved in many cases for "Tragfaehigkeitsbescheinigung"
C20: 0
G25: Beispiel Ausgabe 3V9

Sheet Vorwort|Preface (hidden)
B3: ='Deckblatt Gruender|Data Founder'!D8 -> Deutsch
B4: =IF($B$3="English",IF(CW4="","",CW4),IF(CV4="","",CV4)) -> Finanzplanung für Gründer und Gründerinnen leicht gemacht! | CV4: Finanzplanung für Gründer und Gründerinnen leicht gemacht! | CW4: Finance planning for business founders made easy!
B5: =IF($B$3="English",IF(CW5="","",CW5),IF(CV5="","",CV5)) -> 
B6: Vorwort | CV6: Vorwort | CW6: Preface
B8: Finanzplanungstabellen sind für Freiberufler, Einzelunternehmer, umsatzsteuerpflichtigen Unternehmen, wie Personengesellschaften (z.B. GbR, KG), | CV8: Finanzplanungstabellen sind für Freiberufler, Einzelunternehmer, umsatzsteuerpflichtigen Unternehmen, wie Personengesellschaften (z.B. GbR, KG), | CW8: This finance planning spreadsheet is useful for freelancers, sole proprietors or VAT-liable companies such as private companies
B9: Einzelhandel und Kapitalgesellschaften (wie GmbH) verwendbar. | CV9: Einzelhandel und Kapitalgesellschaften (wie GmbH) verwendbar. | CW9: (e.g. GbR=civil law association, KG=limited partnership), retrail sale, partnerships or corporations.
B11: Vor der Finanzplanung haben Existenzgründer und Existenzgründerinnen in der Regel eine große Scheu. Für Viele ist die Finanzplanung ein Buch | CV11: Vor der Finanzplanung haben Existenzgründer und Existenzgründerinnen in der Regel eine große Scheu. Für Viele ist die Finanzplanung ein Buch | CW11: Many business founders and foundresses have an aversion to financial planning. For them the finance planning is a closed book, an unknown terrain.
B12: mit sieben Siegeln,ein bisher unbekanntes Terrain. Aber zu jeder Existenzgründung und zu jedem Business-Plan gehört nun einmal auch eine grobe | CV12: mit sieben Siegeln,ein bisher unbekanntes Terrain. Aber zu jeder Existenzgründung und zu jedem Business-Plan gehört nun einmal auch eine grobe | CW12: Nevertheless every business startup and every business plan must include a rough finance planning with sales projection, profitability calculation and
B13: Finanzplanung mit Umsatzvorausschau, Rentabilitätsberechnung und Liquiditätsbetrachtung. Erst diese Daten – auch wenn es nur Prognosewerte sind - | CV13: Finanzplanung mit Umsatzvorausschau, Rentabilitätsberechnung und Liquiditätsbetrachtung. Erst diese Daten – auch wenn es nur Prognosewerte sind - | CW13: liquidity assessment. These data show– even if there are only forecast values - , whether your planned project will produce a profit and will succeed
B14: zeigen, ob das geplante Unternehmen voraussichtlich auch Gewinn abwirft und sich in den nächsten Jahren auch auf dem Markt durchsetzen kann. | CV14: zeigen, ob das geplante Unternehmen voraussichtlich auch Gewinn abwirft und sich in den nächsten Jahren auch auf dem Markt durchsetzen kann. | CW14: in the market.
B16: Ohne eine Darstellung der voraussichtlichen Finanzverhältnisse wird keine Bank dem Existenzgründer oder der Gründerin ein Darlehen geben oder einen | CV16: Ohne eine Darstellung der voraussichtlichen Finanzverhältnisse wird keine Bank dem Existenzgründer oder der Gründerin ein Darlehen geben oder einen | CW16: No bank will grant a loan for a startup without a description of the expected financial circumstances. Also for the Agency of Employment
B17: Kredit einräumen. Auch zur Erstellung der Tragfähigkeitsbescheinigung für die Agentur für Arbeit oder das Jobcenter ist eine Finanzplanung Voraussetzung. | CV17: Kredit einräumen. Auch zur Erstellung der Tragfähigkeitsbescheinigung für die Agentur für Arbeit oder das Jobcenter ist eine Finanzplanung Voraussetzung. | CW17: or for the JobCenter a financial plan is required to prove the business concept.
B19: Die Tabellen sollen dem Gründer/der Gründerin die Finanzplanung erleichtern. Es wird empfohlen, die Tabellen, eine nach der anderen, auszufüllen. | CV19: Die Tabellen sollen dem Gründer/der Gründerin die Finanzplanung erleichtern. Es wird empfohlen, die Tabellen, eine nach der anderen, auszufüllen. | CW19: This excel sheet facilitates the finance planning for the business founder. It is recommended to fill in the sheets one after the other.
B20: Tabellen sind miteinander verknüpft, so dass jederzeit die Auswirkung einer Planänderung auf das Ergebnis erkennbar ist. Außerdem wird jetzt sofort | CV20: Tabellen sind miteinander verknüpft, so dass jederzeit die Auswirkung einer Planänderung auf das Ergebnis erkennbar ist. Außerdem wird jetzt sofort | CW20: The sheets are linked so that each plan amendment is visible in the result. In addition a graphic is generated from the entered data. Furthermore
B21: aus den eingebenen Zahlen eine anschauliche Grafik über den jeweiligen Zeithorizont erzeugt. Zusätzlich sind dann alle Grafiken nochmals zusammen | CV21: aus den eingebenen Zahlen eine anschauliche Grafik über den jeweiligen Zeithorizont erzeugt. Zusätzlich sind dann alle Grafiken nochmals zusammen | CW21: all graphics are shown in the sheet “Cockpit Chart”. Open tasks for each table can be written in the provided field "Tasks or Comments".
B22: =IF($B$3="English",IF(CW23="","",CW23),IF(CV22="","",CV22)) -> im Blatt "Cockpit-Chart" zu sehen. Noch zu erledigende Arbeiten können in jeder Tabelle in die dafür vorgesehenen Kommentarzeilen geschrieben werden. | CV22: im Blatt "Cockpit-Chart" zu sehen. Noch zu erledigende Arbeiten können in jeder Tabelle in die dafür vorgesehenen Kommentarzeilen geschrieben werden.
B23: =IF($B$3="English",IF(CW24="","",CW24),IF(CV23="","",CV23)) -> Ein Klick auf "To Do Liste" in der Tabelle "CockpitChart" erzeugt eine ausdruckbare Zusammenfassung aller offenen Aufgaben. | CV23: Ein Klick auf "To Do Liste" in der Tabelle "CockpitChart" erzeugt eine ausdruckbare Zusammenfassung aller offenen Aufgaben. | CW23: A Click on the button “Create ToDo List” in the "Cockpit Chart" will create a printable list of all open tasks.
B24: =IF($B$3="English",IF(CW25="","",CW25),IF(CV24="","",CV24)) -> 
B25: =IF($B$3="English",IF(CW26="","",CW26),IF(CV25="","",CV25)) -> Probieren Sie es! Mit den Tabellen ist die Finanzplanung für Ihr Unternehmen relativ einfach. | CV25: Probieren Sie es! Mit den Tabellen ist die Finanzplanung für Ihr Unternehmen relativ einfach. | CW25: Try it out! With this excel sheet the financial planning for your business is quite simple
B27: Eine Bedienungsanleitung mit Tipps zum Ausfüllen der Tabellen kann aus dem Internet (www.kindermanns.de) unter Downloads heruntergeladen werden. | CV27: Eine Bedienungsanleitung mit Tipps zum Ausfüllen der Tabellen kann aus dem Internet (www.kindermanns.de) unter Downloads heruntergeladen werden. | CW27: A User Guide (inGerman) with tips for filling in the sheets can be downloaded from the internet (www.kindermanns.de).
B29: Wir hoffen, dass die überarbeiten Tabellen die Finanzplanung erleichtern. Anregungen und Verbesserungsvorschläge sind herzlich willkommen. | CV29: Wir hoffen, dass die überarbeiten Tabellen die Finanzplanung erleichtern. Anregungen und Verbesserungsvorschläge sind herzlich willkommen. | CW29: We hope, the revised tables will facilitate your finance planning. Feedback and suggestions are always welcome.
B31: Jürgen Erlewein | E31: =IF($B$3="English",IF($CW$31="","",$CW$31),IF($CV$31="","",$CV$31)) -> und | G31: Peter Kindermann | CV31: und | CW31: and
B33: juergen.erlewein@senioren-der-wirtschaft.de | G33: peter.kindermann@senioren-der-wirtschaft.de | CV33: Jegliche Haftung für die Richtigkeit der berechneten Werte ist ausgeschlossen. | CW33: Any liability for the correctness of the calculated results is excluded.
B36: =IF($B$3="English",IF(CW33="","",CW33),IF(CV33="","",CV33)) -> Jegliche Haftung für die Richtigkeit der berechneten Werte ist ausgeschlossen.

Sheet Deckblatt Gruender|Data Founder (hidden)
A1: 19% | C1: =IF($D$8="English",CO1,CN1) -> FreiberuflerIn | E1: =IF(ISNA(VLOOKUP(D13,C1:C5,1,FALSE)),1,VLOOKUP(D13,C1:C5,1,FALSE)) -> Personengesellschaft | G1: =IF($D$8="English",CS1,CR1) -> Kleinunternehmerregelung | H1: =IF(ISNA(VLOOKUP(I13,G1:G2,1,FALSE)),1,VLOOKUP(I13,G1:G2,1,FALSE)) -> umsatzsteuerpflichtig | J1: =IF(OR(I13=G1,D13=C4),"mit MwSt","ohne MwSt") -> ohne MwSt | K1: =IF(OR(I13=G1,D13=C4),"incl. VAT","w/o VAT") -> w/o VAT | L1: =YEAR(TODAY()) -> 2016 | M1: =IF(AND(D13="",I13=""),0,IF(AND(OR(D13=C1,D13=C2,D13=C3),I13=G2),0,IF(AND(OR(D13=C1,D13=C2,D13=C3),I13=G1),1,IF(D13=C4,2,3)))) -> 0 | N1: M1=0:=Einzelunternehmer etc Umsatzsateuer | S1: January | T1: Januar | V1: =IF($D$8="English",S1,T1) -> Januar | W1: 1 | X1: =IF(F15="",1,VLOOKUP(F15,V1:W14,2,FALSE)) -> 2 | CN1: FreiberuflerIn | CO1: Professional Person | CR1: Kleinunternehmerregelung | CS1: Smal business regulation
A2: 7% | C2: =IF($D$8="English",CO2,CN2) -> Einzelunternehmen | G2: =IF($D$8="English",CS2,CR2) -> umsatzsteuerpflichtig | J2: =IF(J1="ohne MwSt","mit MwSt", "ohne MwSt") -> mit MwSt | K2: =IF(K1="w/o VAT","incl VAT", "w/o VAT") -> incl VAT | L2: =L1+1 -> 2017 | N2: M1=1:=Kleinunternehmerregelung | S2: Ferbruary | T2: Februar | V2: Februar | W2: 2 | CN2: Einzelunternehmen | CO2: Individual enterprise | CR2: umsatzsteuerpflichtig | CS2: liable to tax on sales
C3: =IF($D$8="English",CO4,CN4) -> Personengesellschaft | L3: =L2+1 -> 2018 | N3: M1=2:=Einzelhandel | S3: March | T3: März | V3: März | W3: 3 | CN3: Einzelhandel | CO3: Retail | CR3: Kleinunternehmerregelung | CS3: Smal business regulation
A4: 2 | C4: =IF($D$8="English",CO3,CN3) -> Einzelhandel | L4: =L3+1 -> 2019 | N4: M1=3:=Kapitalgesellschaften | S4: April | T4: April | V4: April | W4: 4 | CN4: Personengesellschaft | CO4: Partnership
C5: =IF($D$8="English",CO7,CN7) -> Kapitalgesellschaft | S5: May | T5: Mai | V5: Mai | W5: 5
S6: June | T6: Juni | V6: Juni | W6: 6
D7: =IF($D$8="English",CP7,CO8) -> Finanzplan zum Businessplan | S7: July | T7: Juli | V7: Juli | W7: 7 | CK7: mit Monatsplanung im 1. Planjahr | CL7: with monthly scedule for the 1st. year | CN7: Kapitalgesellschaft | CO7: Capital company | CP7: Financial plan to the businessplan
D8: ='Deckblatt|Cover'!$M$7 -> Deutsch | E8: Deutsch | F8: =IF(OR($A$4=24,$A$4=2),IF($D$8="English",$CL$8,$CK$8),"") -> mit Monatsplanung für die ersten beiden Planjahre | S8: August | T8: August | V8: August | W8: 8 | CK8: mit Monatsplanung für die ersten beiden Planjahre | CL8: with monthly scedule for the first two years | CM8: Sprache auswählen: | CN8: Select your language: | CO8: Finanzplan zum Businessplan
F9: =IF(OR($A$4=12,$A$4=2),IF($D$8="English",$CL$7,$CK$7),"") -> mit Monatsplanung im 1. Planjahr | S9: Sepember | T9: September | V9: September | W9: 9
S10: October | T10: Oktober | V10: Oktober | W10: 10
A11: =IF($D$8="English",CN11,CM11) -> Unternehmensname*): | D11: Sonnenschein | L11: =IF($D$8="English",CX11,CW11) -> Grün hinterlegte Felder bitte ausfüllen | S11: November | T11: November | V11: November | W11: 11 | CM11: Unternehmensname*): | CN11: Name of enterprise *): | CT11: =IF(AND(OR(CO13=CN1,CO13=CN2),CT12=""),"bitte Besteuerungsart auswählen",IF(AND(CO13=CN4,CT12=CR1),"Geht nicht! Bitte löschen","")) ->  | CW11: Grün hinterlegte Felder bitte ausfüllen | CX11: please fill in the green fields
D12: =IF(AND($I$13="",$D$13<>""),"",IF(AND($D$13="",$I$13=""),"",IF(OR($E$1=1,$H$1=1),"Neu auswählen/Select new",""))) ->  | I12: =IF(AND($D$13="",$I$13=""),"",IF(OR($E$1=1,$H$1=1),"Neu auswählen/Select new",IF(AND(OR($M$1=2,$M$1=3),OR($I$13="Kleinunternehmerregelung",$I$13="Smal business regulation")),"Neu auswählen/Select new",""))) ->  | S12: December | T12: Dezember | V12: Dezember | W12: 12
A13: =IF($D$8="English",CN13,CM13) -> Unternehmensform*): | D13: Personengesellschaft | H13: =IF($D$8="English",CT13,CS13) -> Steuerpflicht*): | I13: umsatzsteuerpflichtig | L13: =IF($D$8="English",CX13,CW13) -> Voreingestellter Inhalt der roten Felder | CM13: Unternehmensform*): | CN13: Form of enterprise*): | CS13: Steuerpflicht*): | CT13: Tax liability*): | CW13: Voreingestellter Inhalt der roten Felder | CX13: Default content of the red fields
L14: =IF($D$8="English",CX14,CW14) -> Unternehmensform: | O14: =IF($D$8="English",CN14,CM14) -> Keine Kapitalgesellschaft | CM14: Keine Kapitalgesellschaft | CN14: Not an Incorporated Enterprise | CW14: Unternehmensform: | CX14: Type of enterprise: | CZ14: Keine Kapitalgesellschaft | DA14: No incorporated enterprise
A15: =IF($D$8="English",CN15,CM15) -> Gründungsjahr*): | D15: 2016 | E15: =IF($D$8="English",CQ15,CP15) -> Gründungsmonat: | F15: Februar | H15: =IF($D$8="English",CT15,CS15) -> Rechtsform**): | L15: =IF($D$8="English",CX15,CW15) -> Steuerpflicht: | O15: =IF($D$8="English",DA15,CZ15) -> umsatzsteuerpflichtig | CM15: Gründungsjahr*): | CN15: Founding year*): | CP15: Gründungsmonat: | CQ15: Founding month: | CS15: Rechtsform**): | CT15: Legal form**): | CW15: Steuerpflicht: | CX15: Tax liability: | CZ15: umsatzsteuerpflichtig | DA15: liable to tax on sales
L16: =IF($D$8="English",CX16,CW16) -> Gründungsjahr: | O16: =IF($D$8="English",DA16,CZ16) -> aktuelles Jahr | CW16: Gründungsjahr: | CX16: Founding year: | CZ16: aktuelles Jahr | DA16: current year
A17: =IF($D$8="English",CN17,CM17) -> Namen GründerIn(nen)*): | D17: Edit Musterfrau | L17: =IF($D$8="English",CX17,CW17) -> Gründungsmonat: | O17: =IF($D$8="English",DA17,CZ17) -> Januar | CM17: Namen GründerIn(nen)*): | CN17: Name(s) of founder*): | CW17: Gründungsmonat: | CX17: Founding month: | CZ17: Januar | DA17: january
A19: =IF($D$8="English",CN19,CM19) -> Adresse*): | L19: =IF($D$8="English",CX19,CW19) -> Um die Tabellen zu erhalten müssen Sie | CM19: Adresse*): | CN19: Adress*): | CW19: Um die Tabellen zu erhalten müssen Sie | CX19: To open the spreadsheets select
L20: =IF($D$8="English",CX20,CW20) -> die Anzahl der Jahre mit monatlichen Planung | CW20: die Anzahl der Jahre mit monatlichen Planung | CX20: the number of years with monthly sceduling
L21: =IF($D$8="English",CX21,CW21) -> durch Klick in den entsprechenden Kreis | CW21: durch Klick in den entsprechenden Kreis | CX21: by click in the appropriate circle
A22: =IF($D$8="English",CN23,CM23) -> Telefon: | H22: =IF($D$8="English",CT23,CS23) -> Mobil: | L22: =IF($D$8="English",CX22,CW22) -> auswählen | CW22: auswählen
L23: =IF($D$8="English",CX23,CW23) -> Danach auf Schaltfläche "Weiter/Go" klicken | CM23: Telefon: | CN23: Phon: | CS23: Mobil: | CT23: Mobil: | CW23: Danach auf Schaltfläche "Weiter/Go" klicken | CX23: Thereafter click the button "Weiter/Go"
A24: =IF($D$8="English",CN25,CM25) -> Mail: | H24: =IF($D$8="English",CT25,CS25) -> Abgabedatum*): | I24: 2016-08-31
CM25: Mail: | CN25: Mail: | CS25: Abgabedatum*): | CT25: Date of issue:
C27: =IF($D$8="English",CO27,CN27) -> *) Pflichtfelder sind Mindestangaben für einen Businessplan | CN27: *) Pflichtfelder sind Mindestangaben für einen Businessplan | CO27: *) Mandatory fields are minimum specifications for a business plan
C28: =IF($D$8="English",CO28,CN28) -> **) Erläuterung zu Rechtsformen siehe z.B. | F28: Wikipedia | CN28: **) Erläuterung zu Rechtsformen siehe z.B. | CO28: **) Explanation to legal forms see f.e.

Sheet 1 Pers.Ausgaben|Pers Expenses (hidden)
B2: ='Deckblatt Gruender|Data Founder'!$D$8 -> Deutsch | C2: =YEAR(TODAY()) -> 2016 | T2: Aufgaben und/oder Kommentar | CZ2: Jan. | DA2: Febr. | DB2: März | DC2: April | DD2: Mai | DE2: Juni | DF2: Juli | DG2: Aug. | DH2: Sept. | DI2: Okt. | DJ2: Nov. | DK2: Dez. | DL2: ="Jahr "&'1 Pers.Ausgaben|Pers Expenses'!C4 -> Jahr 2016
B3: =IF(B2="English",CW3,CV3)&$C$4 -> 1a Persönliche Ausgaben in EUR für die Monate des Jahres 2016 | T3: To Do list / Comments | CV3: ="1a Persönliche Ausgaben in EUR für die Monate des Jahres " -> 1a Persönliche Ausgaben in EUR für die Monate des Jahres | CW3: ="1a Personal Expenses in EUR for the Months of the Year " -> 1a Personal Expenses in EUR for the Months of the Year | CZ3: Jan | DA3: Feb | DB3: Mar | DC3: Apr | DD3: May | DE3: June | DF3: July | DG3: Aug | DH3: Sept | DI3: Oct | DJ3: Nov | DK3: Dec | DL3: ="Year "&'1 Pers.Ausgaben|Pers Expenses'!C4 -> Year 2016
C4: =IF('Deckblatt Gruender|Data Founder'!D15<>"",'Deckblatt Gruender|Data Founder'!D15,'1 Pers.Ausgaben|Pers Expenses'!C2) -> 2016
B5: No. | C5: =IF($B$2="English", CW5,CV5) -> Kostenart | D5: =IF($B$2="English", CZ3,CZ2) -> Jan. | E5: =IF($B$2="English", DA3,DA2) -> Febr. | F5: März | G5: April | H5: Mai | I5: Juni | J5: Juli | K5: Aug. | L5: Sept. | M5: Okt. | N5: Nov. | O5: Dez. | P5: =IF(B2="English","Year ","Jahr ")&C4 -> Jahr 2016 | S5: =IF(B2="English",T3,T2) -> Aufgaben und/oder Kommentar | CV5: Kostenart | CW5: Cost Category
B6: 1 | C6: =IF($B$2="English", CW6,CV6) -> Wohnen | CV6: Wohnen | CW6: Accomodation expenses
C7: =IF($B$2="English", CW7,CV7) -> Miete (oder vergleichbare Belastung) | F7: 400.0 | G7: 400.0 | H7: 400.0 | I7: 400.0 | J7: 400.0 | K7: 400.0 | L7: 400.0 | M7: 400.0 | N7: 400.0 | O7: 400.0 | P7: =SUM(D7:O7) -> 4,000.0 | CV7: Miete (oder vergleichbare Belastung) | CW7: Rent (or comparable expenses
C8: Heizung, Schornsteinfeger, Emission | F8: 60.0 | G8: 60.0 | H8: 60.0 | I8: 60.0 | J8: 60.0 | K8: 60.0 | L8: 60.0 | M8: 60.0 | N8: 60.0 | O8: 60.0 | P8: =SUM(D8:O8) -> 600.0 | CV8: Heizung, Schornsteinfeger, Emission | CW8: Heating, chimny, sweep, emission
C9: Strom, Wasser, Abwasser, Müll | F9: 30.0 | G9: 30.0 | H9: 30.0 | I9: 30.0 | J9: 30.0 | K9: 30.0 | L9: 30.0 | M9: 30.0 | N9: 30.0 | O9: 30.0 | P9: 300.0 | CV9: Strom, Wasser, Abwasser, Müll | CW9: Electricity, water, waste water, garbage
C10: Telefon, Mobil, Fax, Internet | F10: 50.0 | G10: 50.0 | H10: 50.0 | I10: 50.0 | J10: 50.0 | K10: 50.0 | L10: 50.0 | M10: 50.0 | N10: 50.0 | O10: 50.0 | P10: 500.0 | CV10: Telefon, Mobil, Fax, Internet | CW10: Phone, mobil, fax, internet, postage
C11: Rundfunk / Fernsehen usw. | P11: 0.0 | CV11: Rundfunk / Fernsehen usw. | CW11: Radio, TV etc.
C12: Kredit (Zins u. Tilgung) | P12: 0.0 | CV12: Kredit (Zins u. Tilgung) | CW12: Credit (interest & repayment)
C13: Wohnungsreparaturen | F13: 30.0 | G13: 30.0 | H13: 30.0 | I13: 30.0 | J13: 30.0 | K13: 30.0 | L13: 30.0 | M13: 30.0 | N13: 30.0 | O13: 30.0 | P13: 300.0 | CV13: Wohnungsreparaturen | CW13: Apartement repairs
C14: Sonstiges (z.B. Grundsteuern) | F14: 100.0 | G14: 100.0 | H14: 100.0 | I14: 100.0 | J14: 100.0 | K14: 100.0 | L14: 100.0 | M14: 100.0 | N14: 100.0 | O14: 100.0 | P14: 1,000.0 | CV14: Sonstiges (z.B. Grundsteuern) | CW14: Miscellaneous (f.e. property tax)
C15: =IF('Deckblatt Gruender|Data Founder'!$D$8="Deutsch",CV15,CW15) -> Summe | D15: =SUM(D7:D14) -> 0.0 | E15: =SUM(E7:E14) -> 0.0 | F15: 670.0 | G15: 670.0 | H15: 670.0 | I15: 670.0 | J15: 670.0 | K15: 670.0 | L15: 670.0 | M15: 670.0 | N15: 670.0 | O15: 670.0 | P15: =SUM(P7:P14) -> 6,700.0 | CV15: Summe | CW15: Sum
B16: 2 | C16: =IF($B$2="English", CW16,CV16) -> Lebensunterhalt / Haushaltsgeld | CV16: Lebensunterhalt / Haushaltsgeld | CW16: Living- and housekeeping expenses
C17: =IF($B$2="English", CW17,CV17) -> Lebensmittel , auswärts Essen | F17: 300.0 | G17: 300.0 | H17: 300.0 | I17: 300.0 | J17: 300.0 | K17: 300.0 | L17: 300.0 | M17: 300.0 | N17: 300.0 | O17: 300.0 | P17: =SUM(D17:O17) -> 3,000.0 | CV17: Lebensmittel , auswärts Essen | CW17: Food, eating out
C18: =IF($B$2="English", CW18,CV18) -> Kleidung, kosmetika, Sonstiges | F18: 100.0 | G18: 100.0 | H18: 100.0 | I18: 100.0 | J18: 100.0 | K18: 100.0 | L18: 100.0 | M18: 100.0 | N18: 100.0 | O18: 100.0 | P18: =SUM(D18:O18) -> 1,000.0 | CV18: Kleidung, kosmetika, Sonstiges | CW18: Clothing, cosmetics, miscellaneous
C19: =IF('Deckblatt Gruender|Data Founder'!$D$8="Deutsch",CV19,CW19) -> Summe | D19: =SUM(D17:D18) -> 0.0 | E19: =SUM(E17:E18) -> 0.0 | F19: 400.0 | G19: 400.0 | H19: 400.0 | I19: 400.0 | J19: 400.0 | K19: 400.0 | L19: 400.0 | M19: 400.0 | N19: 400.0 | O19: 400.0 | P19: =SUM(P17:P18) -> 4,000.0 | CV19: Summe | CW19: Sum
B20: 3 | C20: =IF($B$2="English", CW20,CV20) -> PKW | CV20: PKW | CW20: Passenger car
C21: =IF($B$2="English", CW21,CV21) -> Kredit (Zins u. Tilgung) / Leasing | P21: =SUM(D21:O21) -> 0.0 | CV21: Kredit (Zins u. Tilgung) / Leasing | CW21: Credit (interest & repayment) / leasing
C22: =IF($B$2="English", CW22,CV22) -> Versicherung, Steuern, Reparaturen | F22: 20.0 | G22: 20.0 | H22: 20.0 | I22: 20.0 | J22: 20.0 | K22: 20.0 | L22: 20.0 | M22: 20.0 | N22: 20.0 | O22: 20.0 | P22: =SUM(D22:O22) -> 200.0 | CV22: Versicherung, Steuern, Reparaturen | CW22: Insurances, taxes, repairs
C23: =IF($B$2="English", CW23,CV23) -> Benzin / Diesel / Reparaturen | F23: 30.0 | G23: 30.0 | H23: 30.0 | I23: 30.0 | J23: 30.0 | K23: 30.0 | L23: 30.0 | M23: 30.0 | N23: 30.0 | O23: 30.0 | P23: =SUM(D23:O23) -> 300.0 | CV23: Benzin / Diesel / Reparaturen | CW23: Fuel, repairs
C24: =IF('Deckblatt Gruender|Data Founder'!$D$8="Deutsch",CV24,CW24) -> Summe | D24: =SUM(D21:D23) -> 0.0 | E24: =SUM(E21:E23) -> 0.0 | F24: 50.0 | G24: 50.0 | H24: 50.0 | I24: 50.0 | J24: 50.0 | K24: 50.0 | L24: 50.0 | M24: 50.0 | N24: 50.0 | O24: 50.0 | P24: =SUM(P21:P23) -> 500.0 | CV24: Summe | CW24: Sum
B25: 4 | C25: =IF($B$2="English", CW25,CV25) -> Versicherungen | CV25: Versicherungen | CW25: Insurances
C26: Rentenversicherung, freiw. Versicher. 1) | F26: 100.0 | G26: 100.0 | H26: 100.0 | I26: 100.0 | J26: 100.0 | K26: 100.0 | L26: 100.0 | M26: 100.0 | N26: 100.0 | O26: 100.0 | P26: =SUM(D26:O26) -> 1,000.0 | CV26: Rentenversicherung, freiw. Versicher. 1) | CW26: Pension insurance, voluntary insurance 1)
C27: Krankenversicherung u Medikamente 2) | F27: 300.0 | G27: 300.0 | H27: 300.0 | I27: 300.0 | J27: 300.0 | K27: 300.0 | L27: 300.0 | M27: 300.0 | N27: 300.0 | O27: 300.0 | P27: =SUM(D27:O27) -> 3,000.0 | CV27: Krankenversicherung u Medikamente 2) | CW27: Health insurance and medication 2)
C28: Unfallversicherung, Berufsunfähigkeit | P28: =SUM(D28:O28) -> 0.0 | CV28: Unfallversicherung, Berufsunfähigkeit | CW28: Accident insurance, incapacity to work
C29: Hausratsversicherung, Haftpflicht | P29: =SUM(D29:O29) -> 0.0 | CV29: Hausratsversicherung, Haftpflicht | CW29: Insurance of contents
C30: Sonstige.Versicherungen. | P30: =SUM(D30:O30) -> 0.0 | CV30: Sonstige.Versicherungen. | CW30: Other insurances
C31: Summe | D31: =SUM(D26:D30) -> 0.0 | E31: =SUM(E26:E30) -> 0.0 | F31: 400.0 | G31: 400.0 | H31: 400.0 | I31: 400.0 | J31: 400.0 | K31: 400.0 | L31: 400.0 | M31: 400.0 | N31: 400.0 | O31: 400.0 | P31: =SUM(P26:P30) -> 4,000.0 | CV31: Summe | CW31: Sum
B32: 5 | C32: Freizeit / Unterhaltung | CV32: Freizeit / Unterhaltung | CW32: Leisure, entertainement
C33: Hobby, Bücher, Geschenke | F33: 10.0 | G33: 10.0 | H33: 10.0 | I33: 10.0 | J33: 10.0 | K33: 10.0 | L33: 10.0 | M33: 10.0 | N33: 10.0 | O33: 10.0 | P33: =SUM(D33:O33) -> 100.0 | CV33: Hobby, Bücher, Geschenke | CW33: Hobby, books, gifts
C34: Urlaub, Reisen, Sonstiges | K34: 1,500.0 | P34: =SUM(D34:O34) -> 1,500.0 | CV34: Urlaub, Reisen, Sonstiges | CW34: Holiday, travel, miscellaneous
C35: =IF('Deckblatt Gruender|Data Founder'!$D$8="Deutsch",CV35,CW35) -> Summe | D35: =SUM(D33:D34) -> 0.0 | E35: =SUM(E33:E34) -> 0.0 | F35: 10.0 | G35: 10.0 | H35: 10.0 | I35: 10.0 | J35: 10.0 | K35: 1,510.0 | L35: 10.0 | M35: 10.0 | N35: 10.0 | O35: 10.0 | P35: =SUM(P33:P34) -> 1,600.0 | CV35: Summe | CW35: Sum
B36: 6 | C36: =IF($B$2="English", CW36,CV36) -> Zahlungsverpflichtungen | CV36: Zahlungsverpflichtungen | CW36: Payment obligations
C37: =IF($B$2="English", CW37,CV37) -> Unterhalt, Kredittilgung, Weiterbildung | P37: =SUM(D37:O37) -> 0.0 | CV37: Unterhalt, Kredittilgung, Weiterbildung | CW37: Livelihood, credit repayment, education
C38: =IF($B$2="English", CW38,CV38) -> Sonstige private Kredite (Zins + Tilg.) | P38: =SUM(D38:O38) -> 0.0 | CV38: Sonstige private Kredite (Zins + Tilg.) | CW38: Other private credits (interest + anortization)
C39: =IF('Deckblatt Gruender|Data Founder'!$D$8="Deutsch",CV39,CW39) -> Summe | D39: =SUM(D37:D38) -> 0.0 | E39: =SUM(E37:E38) -> 0.0 | F39: 0.0 | G39: 0.0 | H39: 0.0 | I39: 0.0 | J39: 0.0 | K39: 0.0 | L39: 0.0 | M39: 0.0 | N39: 0.0 | O39: 0.0 | P39: =SUM(P37:P38) -> 0.0 | CV39: Summe | CW39: Sum
B40: 7 | C40: =IF($B$2="English", CW40,CV40) -> Verschiedenes | CV40: Verschiedenes | CW40: Miscellaneous
C41: =IF($B$2="English", CW41,CV41) -> Vereinsbeiträge, Spenden, Bausparen | P41: =SUM(D41:O41) -> 0.0 | CV41: Vereinsbeiträge, Spenden, Bausparen | CW41: Association contributions, donations, building-savings
C42: =IF($B$2="English", CW43,CV43) -> Beratung (Steuer, Recht usw.) | I42: 300.0 | P42: =SUM(D42:O42) -> 300.0
C43: Sonstiges | P43: =SUM(D43:O43) -> 0.0 | CV43: Beratung (Steuer, Recht usw.) | CW43: Consulting services (taxes, law etc.)
C44: =IF('Deckblatt Gruender|Data Founder'!$D$8="Deutsch",CV44,CW44) -> Summe | D44: =SUM(D41:D43) -> 0.0 | E44: 0.0 | F44: 0.0 | G44: 0.0 | H44: 0.0 | I44: 300.0 | J44: 0.0 | K44: 0.0 | L44: 0.0 | M44: 0.0 | N44: 0.0 | O44: 0.0 | P44: 300.0 | CV44: Summe | CW44: Sum
C45: =IF($B$2="English", CW45,CV45) -> Gesamtausgaben o. Einkommensteuer | D45: =SUM(D6:D44)/2 -> 0.0 | E45: 0.0 | F45: 1,530.0 | G45: 1,530.0 | H45: 1,530.0 | I45: 1,830.0 | J45: 1,530.0 | K45: 3,030.0 | L45: 1,530.0 | M45: 1,530.0 | N45: 1,530.0 | O45: 1,530.0 | P45: =SUM(P7:P44)/2 -> 17,100.0 | CV45: Gesamtausgaben o. Einkommensteuer | CW45: Total expenses w/o income tax
D46: =IF(D45=0,0,1) -> 0 | E46: =IF(E45=0,0,1) -> 0 | F46: 1 | G46: 1 | H46: 1 | I46: 1 | J46: 1 | K46: 1 | L46: 1 | M46: 1 | N46: 1 | O46: 1 | P46: =SUM(D46:O46) -> 10
B48: =IF(B2="English",CW48,CV48)&$C$4&" - "&$C$4+4 -> 1b Persönliche Ausgaben in EUR für die Jahre 2016 - 2020 | M48: =IF(B2="English","Personal Drawings (EUR)","Privatentnahmen (EUR)") -> Privatentnahmen (EUR) | CV48: ="1b Persönliche Ausgaben in EUR für die Jahre " -> 1b Persönliche Ausgaben in EUR für die Jahre | CW48: ="1b Personal Expenses in EUR for the Years " -> 1b Personal Expenses in EUR for the Years
B50: =B5 -> No. | C50: =C5 -> Kostenart | D50: =C4 -> 2016 | E50: =D50+1 -> 2017 | F50: =E50+1 -> 2018 | G50: =F50+1 -> 2019 | H50: =G50+1 -> 2020 | CV50: =CV5 -> Kostenart
B51: 1 | C51: =C6 -> Wohnen | CV51: Wohnen
C52: Miete (oder vergleichbare Belastung) | D52: =P7 -> 4,000.0 | E52: 720.0 | F52: 720.0 | G52: 720.0 | H52: 720.0 | CV52: Miete (oder vergleichbare Belastung)
C53: Heizung, Schornsteinfeger, Emission | D53: 600.0 | E53: 360.0 | F53: 360.0 | G53: 360.0 | H53: 360.0 | CV53: Heizung, Schornsteinfeger, Emission
C54: Strom, Wasser, Abwasser, Müll | D54: 300.0 | E54: 600.0 | F54: 600.0 | G54: 600.0 | H54: 600.0 | CV54: Strom, Wasser, Abwasser, Müll
C55: Telefon, Mobil, Fax, Internet | D55: 500.0 | E55: 0.0 | F55: 0.0 | G55: 0.0 | H55: 0.0 | CV55: Telefon, Mobil, Fax, Internet
C56: Rundfunk / Fernsehen usw. | D56: 0.0 | E56: 0.0 | F56: 0.0 | G56: 0.0 | H56: 0.0 | CV56: Rundfunk / Fernsehen usw.
C57: Kredit (Zins u. Tilgung) | D57: 0.0 | E57: 360.0 | F57: 360.0 | G57: 360.0 | H57: 360.0 | CV57: Kredit (Zins u. Tilgung)
C58: Wohnungsreparaturen | D58: 300.0 | E58: 1,200.0 | F58: 1,200.0 | G58: 1,200.0 | H58: 1,200.0 | CV58: Wohnungsreparaturen
C59: Sonstiges (z.B. Grundsteuern) | D59: 1,000.0 | CV59: Sonstiges (z.B. Grundsteuern)
C60: Summe | D60: 6,700.0 | E60: =SUM(E52:E59) -> 3,240.0 | F60: =SUM(F52:F59) -> 3,240.0 | G60: =SUM(G52:G59) -> 3,240.0 | H60: =SUM(H52:H59) -> 3,240.0 | CV60: Summe
B61: 2 | C61: Lebensunterhalt / Haushaltsgeld | D61: 0.0 | CV61: Lebensunterhalt / Haushaltsgeld
C62: Lebensmittel , auswärts Essen | D62: 3,000.0 | E62: 1,200.0 | F62: 1,200.0 | G62: 1,200.0 | H62: 1,200.0 | CV62: Lebensmittel , auswärts Essen
C63: Kleidung, kosmetika, Sonstiges | D63: 1,000.0 | CV63: Kleidung, kosmetika, Sonstiges
C64: Summe | D64: 4,000.0 | E64: =SUM(E62:E63) -> 1,200.0 | F64: =SUM(F62:F63) -> 1,200.0 | G64: =SUM(G62:G63) -> 1,200.0 | H64: =SUM(H62:H63) -> 1,200.0 | CV64: Summe
B65: 3 | C65: PKW | CV65: PKW
C66: Kredit (Zins u. Tilgung) / Leasing | D66: =P21 -> 0.0 | E66: 240.0 | F66: 240.0 | G66: 240.0 | H66: 240.0 | CV66: Kredit (Zins u. Tilgung) / Leasing
C67: Versicherung, Steuern, Reparaturen | D67: =P22 -> 200.0 | E67: 360.0 | F67: 360.0 | G67: 360.0 | H67: 360.0 | CV67: Versicherung, Steuern, Reparaturen
C68: Benzin / Diesel / Reparaturen | D68: =P23 -> 300.0 | CV68: Benzin / Diesel / Reparaturen
C69: Summe | D69: =P24 -> 500.0 | E69: =SUM(E66:E68) -> 600.0 | F69: =SUM(F66:F68) -> 600.0 | G69: =SUM(G66:G68) -> 600.0 | H69: =SUM(H66:H68) -> 600.0 | CV69: Summe
B70: 4 | C70: Versicherungen | CV70: Versicherungen
C71: Rentenversicherung, freiw. Versicher. 1) | D71: =P26 -> 1,000.0 | E71: 3,600.0 | F71: 3,600.0 | G71: 3,600.0 | H71: 3,600.0 | CV71: Rentenversicherung, freiw. Versicher. 1)
C72: Krankenversicherung u Medikamente 2) | D72: 3,000.0 | E72: 0.0 | F72: 0.0 | G72: 0.0 | H72: 0.0 | CV72: Krankenversicherung u Medikamente 2)
C73: Unfallversicherung, Berufsunfähigkeit | D73: 0.0 | E73: 0.0 | F73: 0.0 | G73: 0.0 | H73: 0.0 | CV73: Unfallversicherung, Berufsunfähigkeit
C74: Hausratsversicherung, Haftpflicht | D74: 0.0 | E74: 0.0 | F74: 0.0 | G74: 0.0 | H74: 0.0 | CV74: Hausratsversicherung, Haftpflicht
C75: Sonstige.Versicherungen. | D75: 0.0 | CV75: Sonstige.Versicherungen.
C76: Summe | D76: 4,000.0 | E76: =SUM(E71:E75) -> 3,600.0 | F76: =SUM(F71:F75) -> 3,600.0 | G76: =SUM(G71:G75) -> 3,600.0 | H76: =SUM(H71:H75) -> 3,600.0 | CV76: Summe
B77: 5 | C77: Freizeit / Unterhaltung | CV77: Freizeit / Unterhaltung
C78: Hobby, Bücher, Geschenke | D78: =P33 -> 100.0 | E78: 1,500.0 | F78: 1,500.0 | G78: 1,500.0 | H78: 1,500.0 | CV78: Hobby, Bücher, Geschenke
C79: Urlaub, Reisen, Sonstiges | D79: =P34 -> 1,500.0 | CV79: Urlaub, Reisen, Sonstiges
C80: Summe | D80: =P35 -> 1,600.0 | E80: =SUM(E78:E79) -> 1,500.0 | F80: =SUM(F78:F79) -> 1,500.0 | G80: =SUM(G78:G79) -> 1,500.0 | H80: =SUM(H78:H79) -> 1,500.0 | CV80: Summe
B81: 6 | C81: Zahlungsverpflichtungen | CV81: Zahlungsverpflichtungen
C82: Unterhalt, Kredittilgung, Weiterbildung | D82: =P37 -> 0.0 | E82: 0.0 | F82: 0.0 | G82: 0.0 | H82: 0.0 | CV82: Unterhalt, Kredittilgung, Weiterbildung
C83: Sonstige private Kredite (Zins + Tilg.) | D83: =P38 -> 0.0 | CV83: Sonstige private Kredite (Zins + Tilg.)
C84: Summe | D84: =P39 -> 0.0 | E84: =SUM(E82:E83) -> 0.0 | F84: =SUM(F82:F83) -> 0.0 | G84: =SUM(G82:G83) -> 0.0 | H84: =SUM(H82:H83) -> 0.0 | CV84: Summe
B85: 7 | C85: Verschiedenes | CV85: Verschiedenes
C86: Vereinsbeiträge, Spenden, Bausparen | D86: =P41 -> 0.0 | E86: 1,500.0 | F86: 1,500.0 | G86: 1,500.0 | H86: 1,500.0 | CV86: Vereinsbeiträge, Spenden, Bausparen
C87: Beratung (Steuer, Recht usw.) | D87: =P42 -> 300.0
C88: Sonstiges | D88: =P43 -> 0.0 | CV88: =CV43 -> Beratung (Steuer, Recht usw.)
C89: =C44 -> Summe | D89: =P44 -> 300.0 | E89: =SUM(E86:E88) -> 1,500.0 | F89: =SUM(F86:F88) -> 1,500.0 | G89: =SUM(G86:G88) -> 1,500.0 | H89: =SUM(H86:H88) -> 1,500.0 | CV89: =CV44 -> Summe
C90: =C45 -> Gesamtausgaben o. Einkommensteuer | D90: =P45 -> 17,100.0 | E90: =SUM(E51:E89)/2 -> 11,640.0 | F90: =SUM(F51:F89)/2 -> 11,640.0 | G90: =SUM(G51:G89)/2 -> 11,640.0 | H90: =SUM(H51:H89)/2 -> 11,640.0 | CV90: Gesamtausgaben ohne Einkommensteuer 1)
B96: =IF($B$2="English",CW96,CV96)&$C$4&" - "&$C$4+4 -> 1c Privatentnahmen (in EUR) der aufgeführten GründerInnen für die Jahre 2016 - 2020 | CV96: 1c Privatentnahmen (in EUR) der aufgeführten GründerInnen für die Jahre | CW96: 1c Personal Drawings (in EUR) of the Founders for the Years
B97: =B50 -> No. | C97: =IF($B$2="English",CW97,CV97) -> Namen der GründerInnen | D97: =C4 -> 2016 | E97: =D97+1 -> 2017 | F97: =E97+1 -> 2018 | G97: 2019 | H97: 2020 | CV97: Namen der GründerInnen | CW97: Names of the Founder/s
B98: 1. | CV98: Gründer | CW98: Founder/s
B99: 2.
B100: 3.
B101: 4.
B102: 5.
B103: 6.
C104: =IF($B$2="English",CW104,CV104) -> Gesamtentnahmen aller GründerInnen | D104: =SUM(D98:D103) -> 0 | E104: =SUM(E98:E103) -> 0 | F104: 0 | G104: 0 | H104: 0 | CV104: Gesamtentnahmen aller GründerInnen | CW104: Total Drawings of all Founders
B105: =IF($B$2="English",CW105,CV105) -> 3) bei EinzelunternehmerInnen werden üblicherweise die pers. Ausgaben als Entnahme aus dem Unternehmergewinn die Liquiditätsberechnung einbezogen. | CV105: 3) bei EinzelunternehmerInnen werden üblicherweise die pers. Ausgaben als Entnahme aus dem Unternehmergewinn die Liquiditätsberechnung einbezogen. | CW105: 3) The founder of an Individual Enterprise can inscribe his planned personal drawings in table 1c. How much it should be is shown in line 88.
B106: =IF($B$2="English",CW106,CV106) -> Dazu müssen Sie die in Zeile 88 stehenden Werte in die Tabelle 1c händisch übertragen. In die Liquiditätstabelle wird der Wert aus Zeile 101 übernommen. | CV106: Dazu müssen Sie die in Zeile 88 stehenden Werte in die Tabelle 1c händisch übertragen. In die Liquiditätstabelle wird der Wert aus Zeile 101 übernommen. | CW106: These data will be transferred automatically to the table "6 Liquidität|Liquidity".
B107: - Bei mehreren Gründern kann über Tabelle 1c eine Gesamtschau entwickelt und daraus eine "Aufteilung der Privatentnahmen" erzeugt werden | CV107: - Bei mehreren Gründern kann über Tabelle 1c eine Gesamtschau entwickelt und daraus eine "Aufteilung der Privatentnahmen" erzeugt werden | CW107: - If there are several founders they can also inscribe there planned individual personal drawings in table 1c.
B108: Auch bei mehreren GründerInnen werden die Werte aus Zeile 101 in die Tab. "6 Liquidität| Liquidity" übenrnommen. | CV108: Auch bei mehreren GründerInnen werden die Werte aus Zeile 101 in die Tab. "6 Liquidität| Liquidity" übenrnommen. | CW108: The sum of all these data will be transferred automatically to the table "6 Liquidität|Liquidity".
B110: =IF($B$2="English",CW110,CV110) -> Anhang zu Tab 1b | CV110: Anhang zu Tab 1b | CW110: Annex to Tab 1b
C111: =IF($B$2="English",CW111,CV111) -> Abschätzung der Einkommensteuer 4) | D111: =C4 -> 2016 | E111: =D111+1 -> 2017 | F111: =E111+1 -> 2018 | G111: =F111+1 -> 2019 | H111: =G111+1 -> 2020 | CV111: Abschätzung der Einkommensteuer 4) | CW111: Estimation of Income Tax 4)
C112: =IF($B$2="English",CW112,CV112) -> Grundlage dafür sind Gesamtausgaben | CV112: Grundlage dafür sind Gesamtausgaben | CW112: Basis therefor are Total Expenses
B113: =IF($B$2="English",CW113,CV113) -> 4) Die EkSt. im Angestelltenverhältnis erhöht die Privatausgaben | S113: Ende | CV113: 4) Die EkSt. im Angestelltenverhältnis erhöht die Privatausgaben | CW113: 4) Income tax for emploies will increase the personal expenses
B114: =IF($B$2="English",CW114,CV114) -> EkSt. auf die Privatentnahmen wird bei Unternehmensformen die keine Kapitalgesellschaft sind aus dem Gesamtgewinn ermittelt und in der Liquiditätsberechnung berücksichtigt. | CV114: EkSt. auf die Privatentnahmen wird bei Unternehmensformen die keine Kapitalgesellschaft sind aus dem Gesamtgewinn ermittelt und in der Liquiditätsberechnung berücksichtigt. | CW114: Income tax on personal expenses for noncapital companies is calculated out of the profit. The amount is considered in the calculation of cash flow.
B115: *) & **) AOK-Gehaltsrechner | AOK salary-calculation | CV115: *) und **) AOK-Gehaltsrechner | CW115: *) and **) see AOK-salary calulator
E117: 50% | F117: 60%

Sheet 2 Umsatz|Sales (hidden)
B2: ='Deckblatt Gruender|Data Founder'!D8 -> Deutsch | D2: =IF(OR('Deckblatt Gruender|Data Founder'!M1=1,'Deckblatt Gruender|Data Founder'!M1=2),"mit MwSt","ohne MwSt") -> ohne MwSt | E2: 0% | F2: 7% | G2: 19% | T2: Aufgaben und/oder Kommentar | U2: =IF($B$2="English",CW2,CV2) -> Nebenrechnung Umsätze/sonstige Einnahmen 2016 | CV2: ="Nebenrechnung Umsätze/sonstige Einnahmen "&'1 Pers.Ausgaben|Pers Expenses'!$C$4 -> Nebenrechnung Umsätze/sonstige Einnahmen 2016 | CW2: ="Ancillary account for sales/other Income "&'1 Pers.Ausgaben|Pers Expenses'!$C$4 -> Ancillary account for sales/other Income 2016 | CZ2: Jan. | DA2: Febr. | DB2: März | DC2: April | DD2: Mai | DE2: Juni | DF2: Juli | DG2: Aug. | DH2: Sept. | DI2: Okt. | DJ2: Nov. | DK2: Dez. | DL2: ="Jahr "&'1 Pers.Ausgaben|Pers Expenses'!C4 -> Jahr 2016
B3: =IF($C$4="English",CW3,CV3) -> 2a-1 Umsätze, Honorare, Sonstige Einnahmen (ohne MwSt) für die Monate des Jahres 2016 | T3: To Do list / Comments | CV3: ="2a-1 Umsätze, Honorare, Sonstige Einnahmen (" & 'Deckblatt Gruender|Data Founder'!$J$1 & ") für die Monate des Jahres " & '1 Pers.Ausgaben|Pers Expenses'!$C$4 -> 2a-1 Umsätze, Honorare, Sonstige Einnahmen (ohne MwSt) für die Monate des Jahres 2016 | CW3: ="2a-1 Sales, Fees, other Income (" & 'Deckblatt Gruender|Data Founder'!$K$1 & ") for the Months of the Year " & '1 Pers.Ausgaben|Pers Expenses'!$C$4 -> 2a-1 Sales, Fees, other Income (w/o VAT) for the Months of the Year 2016 | CZ3: Jan | DA3: Feb | DB3: Mar | DC3: Apr | DD3: May | DE3: June | DF3: July | DG3: Aug | DH3: Sept | DI3: Oct | DJ3: Nov | DK3: Dec | DL3: ="Year "&'1 Pers.Ausgaben|Pers Expenses'!C4 -> Year 2016
C4: ='Deckblatt Gruender|Data Founder'!$D$8 -> Deutsch | U4: No. | V4: =C5 -> Einnahmeart | W4: =IF($C$4="English","VAT","MwSt") -> MwSt | X4: =F5 -> Febr. | Y4: März | Z4: April | AA4: Mai | AB4: Juni | AC4: Juli | AD4: Aug. | AE4: Sept. | AF4: Okt. | AG4: Nov. | AH4: Dez. | AI4: Jahr 2016 | CV4: Bitte die Zusammensetzung der Umsätze in der Nebenrechnung (ab Spalte U) angeben | CW4: Please show the structure of sales in auxiliary calculation (Choose column "U")
B5: No. | C5: =IF(C4="English","Type of Income","Einnahmeart") -> Einnahmeart | D5: =IF($C$4="English","VAT","MwSt") -> MwSt | E5: =IF($C$4="English",CZ3,CZ2) -> Jan. | F5: =IF($C$4="English",DA3,DA2) -> Febr. | G5: März | H5: April | I5: Mai | J5: Juni | K5: Juli | L5: Aug. | M5: Sept. | N5: Okt. | O5: Nov. | P5: Dez. | Q5: =IF($C$4="English",DL3,DL2) -> Jahr 2016 | S5: =IF(C4="English",T3,T2) -> Aufgaben und/oder Kommentar | U5: 1.6 | W5: =D6 -> 19% | CV5: Einnahmeart | CW5: Type of Income
B6: 1 | C6: Umsatz Produktgruppe 1 | D6: 19% | U6: 1.6.1 | AJ6: =SUM(X6:AI6) -> 0 | CV6: Auswahl | CW6: Choise
B7: 1.1 | C7: Modul 1 | D7: ↑ | G7: 1,600 | H7: 1,800 | I7: 2,000 | J7: 2,200 | K7: 2,400 | L7: 2,600 | M7: 7,000 | N7: 3,000 | O7: 3,200 | P7: 3,400 | Q7: =SUM(E7:P7) -> 29,200 | U7: 1.6.2 | AJ7: 0 | CV7: Umsatz Produktgruppe 1 | CW7: Sales Product Line 1
B8: 1.2 | D8: =IF($C$4="English",CW6,CV6) -> Auswahl | Q8: =SUM(E8:P8) -> 0 | U8: 1.6.3 | AJ8: 0 | CV8: Umsätze aus Nebenrechnung Gruppe 1 | CW8: Sales out of Ancillary Account Line 1
B9: 1.3 | Q9: =SUM(E9:P9) -> 0 | U9: 1.6.4 | AJ9: 0 | CV9: Umsätze aus Nebenrechnung Gruppe 2 | CW9: Sales out of Ancillary Account Line 2
B10: 1.4 | Q10: =SUM(E10:P10) -> 0 | U10: 1.6.5 | AJ10: 0 | CV10: Summe | CW10: Sum
B11: 1.6 | C11: =IF($B$2="English",CW8,CV8) -> Umsätze aus Nebenrechnung Gruppe 1 | E11: =X11 ->  | Q11: =SUM(E11:P11) -> 0 | V11: =IF($B$2="English",CW31,CV31) -> Summe Nebenrechnung Gruppe1 | X11: =IF(SUM(X6:X10)=0,"",SUM(X6:X10)) ->  | Y11: =IF(SUM(Y6:Y10)=0,"",SUM(Y6:Y10)) ->  | AJ11: 0
C12: =IF($B$2="English",CW12,CV12) -> nicht im Umsatz enthaltene MwSt | E12: =IF(OR(SUM(E7:E11)=0,'Deckblatt Gruender|Data Founder'!$M$1=1),"",IF('Deckblatt Gruender|Data Founder'!$M$1=2,SUM(E7:E11)-SUM(E7:E11)/(1+$D6),SUM(E7:E11)*($D6))) ->  | F12: =IF(OR(SUM(F7:F11)=0,'Deckblatt Gruender|Data Founder'!$M$1=1),"",IF('Deckblatt Gruender|Data Founder'!$M$1=2,SUM(F7:F11)-SUM(F7:F11)/(1+$D6),SUM(F7:F11)*($D6))) ->  | G12: =IF(OR(SUM(G7:G11)=0,'Deckblatt Gruender|Data Founder'!$M$1=1),"",IF('Deckblatt Gruender|Data Founder'!$M$1=2,SUM(G7:G11)-SUM(G7:G11)/(1+$D6),SUM(G7:G11)*($D6))) -> 304.0 | H12: =IF(OR(SUM(H7:H11)=0,'Deckblatt Gruender|Data Founder'!$M$1=1),"",IF('Deckblatt Gruender|Data Founder'!$M$1=2,SUM(H7:H11)-SUM(H7:H11)/(1+$D6),SUM(H7:H11)*($D6))) -> 342.0 | I12: =IF(OR(SUM(I7:I11)=0,'Deckblatt Gruender|Data Founder'!$M$1=1),"",IF('Deckblatt Gruender|Data Founder'!$M$1=2,SUM(I7:I11)-SUM(I7:I11)/(1+$D6),SUM(I7:I11)*($D6))) -> 380.0 | J12: =IF(OR(SUM(J7:J11)=0,'Deckblatt Gruender|Data Founder'!$M$1=1),"",IF('Deckblatt Gruender|Data Founder'!$M$1=2,SUM(J7:J11)-SUM(J7:J11)/(1+$D6),SUM(J7:J11)*($D6))) -> 418.0 | K12: =IF(OR(SUM(K7:K11)=0,'Deckblatt Gruender|Data Founder'!$M$1=1),"",IF('Deckblatt Gruender|Data Founder'!$M$1=2,SUM(K7:K11)-SUM(K7:K11)/(1+$D6),SUM(K7:K11)*($D6))) -> 456.0 | L12: =IF(OR(SUM(L7:L11)=0,'Deckblatt Gruender|Data Founder'!$M$1=1),"",IF('Deckblatt Gruender|Data Founder'!$M$1=2,SUM(L7:L11)-SUM(L7:L11)/(1+$D6),SUM(L7:L11)*($D6))) -> 494.0 | M12: =IF(OR(SUM(M7:M11)=0,'Deckblatt Gruender|Data Founder'!$M$1=1),"",IF('Deckblatt Gruender|Data Founder'!$M$1=2,SUM(M7:M11)-SUM(M7:M11)/(1+$D6),SUM(M7:M11)*($D6))) -> 1,330.0 | N12: =IF(OR(SUM(N7:N11)=0,'Deckblatt Gruender|Data Founder'!$M$1=1),"",IF('Deckblatt Gruender|Data Founder'!$M$1=2,SUM(N7:N11)-SUM(N7:N11)/(1+$D6),SUM(N7:N11)*($D6))) -> 570.0 | O12: =IF(OR(SUM(O7:O11)=0,'Deckblatt Gruender|Data Founder'!$M$1=1),"",IF('Deckblatt Gruender|Data Founder'!$M$1=2,SUM(O7:O11)-SUM(O7:O11)/(1+$D6),SUM(O7:O11)*($D6))) -> 608.0 | P12: =IF(OR(SUM(P7:P11)=0,'Deckblatt Gruender|Data Founder'!$M$1=1),"",IF('Deckblatt Gruender|Data Founder'!$M$1=2,SUM(P7:P11)-SUM(P7:P11)/(1+$D6),SUM(P7:P11)*($D6))) -> 646.0 | Q12: =IF(SUM(E12:P12)=0,"",SUM(E12:P12)) -> 5,548 | CV12: =IF('Deckblatt Gruender|Data Founder'!M1=1,"",IF('Deckblatt Gruender|Data Founder'!M1=2,"im Umsatz enthaltene MwSt", "nicht im Umsatz enthaltene MwSt")) -> nicht im Umsatz enthaltene MwSt | CW12: =IF('Deckblatt Gruender|Data Founder'!M1=1,"",IF('Deckblatt Gruender|Data Founder'!M1=2,"VAT amount included in sales","VAT amount not included in sales")) -> VAT amount not included in sales
C13: =IF($B$2="English",CW10,CV10)&" "&C6 -> Summe Umsatz Produktgruppe 1 | E13: =SUM(E7:E11) -> 0 | F13: 0 | G13: 1,600 | H13: 1,800 | I13: 2,000 | J13: 2,200 | K13: 2,400 | L13: 2,600 | M13: 7,000 | N13: 3,000 | O13: 3,200 | P13: 3,400 | Q13: 29,200 | U13: 2.6 | W13: =D14 -> 19%
B14: 2 | C14: Umsatz Produktgruppe 2 | D14: 19% | U14: 2.6.1 | AJ14: =SUM(X14:AI14) -> 0 | CV14: Umsatz Produktgruppe 2 | CW14: Sales Product Line 2
B15: 2.1 | D15: ↑ | G15: 400 | H15: 500 | I15: 600 | J15: 700 | K15: 800 | L15: 900 | M15: 1,000 | N15: 1,100 | O15: 1,200 | P15: 1,300 | Q15: =SUM(E15:P15) -> 8,500 | U15: 2.6.2 | AJ15: 0 | CV15: Summe | CW15: Sum
B16: 2.2 | D16: =D8 -> Auswahl | Q16: =SUM(E16:P16) -> 0 | U16: 2.6.3 | AJ16: 0
B17: 2.3 | Q17: =SUM(E17:P17) -> 0 | U17: 2.6.4 | AJ17: 0
B18: 2.4 | Q18: =SUM(E18:P18) -> 0 | U18: 2.6.5 | AJ18: 0
B19: 2.6 | C19: =IF($B$2="English",CW9,CV9) -> Umsätze aus Nebenrechnung Gruppe 2 | E19: =X19 ->  | Q19: =SUM(E19:P19) -> 0 | V19: =IF($B$2="English",CW30,CV30) -> Summe Nebenrechnung Gruppe2 | X19: =IF(SUM(X14:X18)=0,"",SUM(X14:X18)) ->  | AJ19: 0
C20: =C12 -> nicht im Umsatz enthaltene MwSt | E20: =IF(OR(SUM(E15:E19)=0,'Deckblatt Gruender|Data Founder'!$M$1=1),"",IF('Deckblatt Gruender|Data Founder'!$M$1=2,SUM(E15:E19)-SUM(E15:E19)/(1+$D14),SUM(E15:E19)*($D14))) ->  | F20: =IF(OR(SUM(F15:F19)=0,'Deckblatt Gruender|Data Founder'!$M$1=1),"",IF('Deckblatt Gruender|Data Founder'!$M$1=2,SUM(F15:F19)-SUM(F15:F19)/(1+$D14),SUM(F15:F19)*($D14))) ->  | G20: =IF(OR(SUM(G15:G19)=0,'Deckblatt Gruender|Data Founder'!$M$1=1),"",IF('Deckblatt Gruender|Data Founder'!$M$1=2,SUM(G15:G19)-SUM(G15:G19)/(1+$D14),SUM(G15:G19)*($D14))) -> 76.0 | H20: =IF(OR(SUM(H15:H19)=0,'Deckblatt Gruender|Data Founder'!$M$1=1),"",IF('Deckblatt Gruender|Data Founder'!$M$1=2,SUM(H15:H19)-SUM(H15:H19)/(1+$D14),SUM(H15:H19)*($D14))) -> 95.0 | I20: =IF(OR(SUM(I15:I19)=0,'Deckblatt Gruender|Data Founder'!$M$1=1),"",IF('Deckblatt Gruender|Data Founder'!$M$1=2,SUM(I15:I19)-SUM(I15:I19)/(1+$D14),SUM(I15:I19)*($D14))) -> 114.0 | J20: =IF(OR(SUM(J15:J19)=0,'Deckblatt Gruender|Data Founder'!$M$1=1),"",IF('Deckblatt Gruender|Data Founder'!$M$1=2,SUM(J15:J19)-SUM(J15:J19)/(1+$D14),SUM(J15:J19)*($D14))) -> 133.0 | K20: =IF(OR(SUM(K15:K19)=0,'Deckblatt Gruender|Data Founder'!$M$1=1),"",IF('Deckblatt Gruender|Data Founder'!$M$1=2,SUM(K15:K19)-SUM(K15:K19)/(1+$D14),SUM(K15:K19)*($D14))) -> 152.0 | L20: =IF(OR(SUM(L15:L19)=0,'Deckblatt Gruender|Data Founder'!$M$1=1),"",IF('Deckblatt Gruender|Data Founder'!$M$1=2,SUM(L15:L19)-SUM(L15:L19)/(1+$D14),SUM(L15:L19)*($D14))) -> 171.0 | M20: =IF(OR(SUM(M15:M19)=0,'Deckblatt Gruender|Data Founder'!$M$1=1),"",IF('Deckblatt Gruender|Data Founder'!$M$1=2,SUM(M15:M19)-SUM(M15:M19)/(1+$D14),SUM(M15:M19)*($D14))) -> 190.0 | N20: =IF(OR(SUM(N15:N19)=0,'Deckblatt Gruender|Data Founder'!$M$1=1),"",IF('Deckblatt Gruender|Data Founder'!$M$1=2,SUM(N15:N19)-SUM(N15:N19)/(1+$D14),SUM(N15:N19)*($D14))) -> 209.0 | O20: =IF(OR(SUM(O15:O19)=0,'Deckblatt Gruender|Data Founder'!$M$1=1),"",IF('Deckblatt Gruender|Data Founder'!$M$1=2,SUM(O15:O19)-SUM(O15:O19)/(1+$D14),SUM(O15:O19)*($D14))) -> 228.0 | P20: =IF(OR(SUM(P15:P19)=0,'Deckblatt Gruender|Data Founder'!$M$1=1),"",IF('Deckblatt Gruender|Data Founder'!$M$1=2,SUM(P15:P19)-SUM(P15:P19)/(1+$D14),SUM(P15:P19)*($D14))) -> 247.0 | Q20: =IF(SUM(E20:P20)=0,"",SUM(E20:P20)) -> 1,615 | CV20: Summe Honorareinnahmen | CW20: Sum Income Consulting Services
C21: =IF($B$2="English",CW15,CV15)&" "&C14 -> Summe Umsatz Produktgruppe 2 | E21: =SUM(E15:E19) -> 0 | F21: 0 | G21: 400 | H21: 500 | I21: 600 | J21: 700 | K21: 800 | L21: 900 | M21: 1,000 | N21: 1,100 | O21: 1,200 | P21: 1,300 | Q21: 8,500
B22: 3 | C22: Honorareinnahmen | D22: 7% | CV22: Honorareinnahmen | CW22: Income Consulting Services
B23: 3.1 | D23: ↑ | G23: 500 | H23: 500 | I23: 500 | J23: 500 | K23: 500 | L23: 500 | M23: 500 | N23: 500 | O23: 500 | P23: 500 | Q23: =SUM(E23:P23) -> 5,000 | CV23: Summe | CW23: Sum
B24: 3.2 | D24: =D8 -> Auswahl | Q24: =SUM(E24:P24) -> 0
C25: =C20 -> nicht im Umsatz enthaltene MwSt | E25: =IF(OR(SUM(E23:E24)=0,'Deckblatt Gruender|Data Founder'!$M$1=1),"",IF('Deckblatt Gruender|Data Founder'!$M$1=2,SUM(E23:E24)-SUM(E23:E24)/(1+$D22),SUM(E23:E24)*($D22))) ->  | F25: =IF(OR(SUM(F23:F24)=0,'Deckblatt Gruender|Data Founder'!$M$1=1),"",IF('Deckblatt Gruender|Data Founder'!$M$1=2,SUM(F23:F24)-SUM(F23:F24)/(1+$D22),SUM(F23:F24)*($D22))) ->  | G25: =IF(OR(SUM(G23:G24)=0,'Deckblatt Gruender|Data Founder'!$M$1=1),"",IF('Deckblatt Gruender|Data Founder'!$M$1=2,SUM(G23:G24)-SUM(G23:G24)/(1+$D22),SUM(G23:G24)*($D22))) -> 35.0 | H25: =IF(OR(SUM(H23:H24)=0,'Deckblatt Gruender|Data Founder'!$M$1=1),"",IF('Deckblatt Gruender|Data Founder'!$M$1=2,SUM(H23:H24)-SUM(H23:H24)/(1+$D22),SUM(H23:H24)*($D22))) -> 35.0 | I25: =IF(OR(SUM(I23:I24)=0,'Deckblatt Gruender|Data Founder'!$M$1=1),"",IF('Deckblatt Gruender|Data Founder'!$M$1=2,SUM(I23:I24)-SUM(I23:I24)/(1+$D22),SUM(I23:I24)*($D22))) -> 35.0 | J25: =IF(OR(SUM(J23:J24)=0,'Deckblatt Gruender|Data Founder'!$M$1=1),"",IF('Deckblatt Gruender|Data Founder'!$M$1=2,SUM(J23:J24)-SUM(J23:J24)/(1+$D22),SUM(J23:J24)*($D22))) -> 35.0 | K25: =IF(OR(SUM(K23:K24)=0,'Deckblatt Gruender|Data Founder'!$M$1=1),"",IF('Deckblatt Gruender|Data Founder'!$M$1=2,SUM(K23:K24)-SUM(K23:K24)/(1+$D22),SUM(K23:K24)*($D22))) -> 35.0 | L25: =IF(OR(SUM(L23:L24)=0,'Deckblatt Gruender|Data Founder'!$M$1=1),"",IF('Deckblatt Gruender|Data Founder'!$M$1=2,SUM(L23:L24)-SUM(L23:L24)/(1+$D22),SUM(L23:L24)*($D22))) -> 35.0 | M25: =IF(OR(SUM(M23:M24)=0,'Deckblatt Gruender|Data Founder'!$M$1=1),"",IF('Deckblatt Gruender|Data Founder'!$M$1=2,SUM(M23:M24)-SUM(M23:M24)/(1+$D22),SUM(M23:M24)*($D22))) -> 35.0 | N25: =IF(OR(SUM(N23:N24)=0,'Deckblatt Gruender|Data Founder'!$M$1=1),"",IF('Deckblatt Gruender|Data Founder'!$M$1=2,SUM(N23:N24)-SUM(N23:N24)/(1+$D22),SUM(N23:N24)*($D22))) -> 35.0 | O25: =IF(OR(SUM(O23:O24)=0,'Deckblatt Gruender|Data Founder'!$M$1=1),"",IF('Deckblatt Gruender|Data Founder'!$M$1=2,SUM(O23:O24)-SUM(O23:O24)/(1+$D22),SUM(O23:O24)*($D22))) -> 35.0 | P25: =IF(OR(SUM(P23:P24)=0,'Deckblatt Gruender|Data Founder'!$M$1=1),"",IF('Deckblatt Gruender|Data Founder'!$M$1=2,SUM(P23:P24)-SUM(P23:P24)/(1+$D22),SUM(P23:P24)*($D22))) -> 35.0 | Q25: =IF(SUM(E25:P25)=0,"",SUM(E25:P25)) -> 350 | CV25: Summe Sonstige Einnahmen | CW25: Sum Other Income
C26: =IF($B$2="English",CW23,CV23)&" "&C22 -> Summe Honorareinnahmen | E26: =SUM(E23:E24) -> 0 | F26: =SUM(F23:F24) -> 0 | G26: 500 | H26: 500 | I26: 500 | J26: 500 | K26: 500 | L26: 500 | M26: 500 | N26: 500 | O26: 500 | P26: 500 | Q26: =SUM(E26:P26) -> 5,000
B27: 4 | C27: Sonstige Einnahmen | D27: 7% | CV27: Sonstige Einnahmen | CW27: Other Income
B28: 4.1 | D28: ↑ | G28: 1,000 | H28: 1,000 | I28: 1,000 | J28: 1,000 | K28: 1,000 | L28: 1,000 | Q28: =SUM(E28:P28) -> 6,000 | CV28: Summe | CW28: Sum
B29: 4.2 | C29: =IF($B$2="English",CW28,CV28)&" "&C27 -> Summe Sonstige Einnahmen | D29: =D8 -> Auswahl | Q29: =SUM(E29:P29) -> 0 | CV29: ="Nebenrechnung Umsätze/sonstige Einnahmen "&'1 Pers.Ausgaben|Pers Expenses'!$C$4+1 -> Nebenrechnung Umsätze/sonstige Einnahmen 2017 | CW29: ="Ancillary account for sales/other Income "&'1 Pers.Ausgaben|Pers Expenses'!$C$4+1 -> Ancillary account for sales/other Income 2017
C30: =C25 -> nicht im Umsatz enthaltene MwSt | E30: =IF(OR(SUM(E28:E29)=0,'Deckblatt Gruender|Data Founder'!$M$1=1),"",IF('Deckblatt Gruender|Data Founder'!$M$1=2,SUM(E28:E29)-SUM(E28:E29)/(1+$D27),SUM(E28:E29)*($D27))) ->  | F30: =IF(OR(SUM(F28:F29)=0,'Deckblatt Gruender|Data Founder'!$M$1=1),"",IF('Deckblatt Gruender|Data Founder'!$M$1=2,SUM(F28:F29)-SUM(F28:F29)/(1+$D27),SUM(F28:F29)*($D27))) ->  | G30: =IF(OR(SUM(G28:G29)=0,'Deckblatt Gruender|Data Founder'!$M$1=1),"",IF('Deckblatt Gruender|Data Founder'!$M$1=2,SUM(G28:G29)-SUM(G28:G29)/(1+$D27),SUM(G28:G29)*($D27))) -> 70.0 | H30: =IF(OR(SUM(H28:H29)=0,'Deckblatt Gruender|Data Founder'!$M$1=1),"",IF('Deckblatt Gruender|Data Founder'!$M$1=2,SUM(H28:H29)-SUM(H28:H29)/(1+$D27),SUM(H28:H29)*($D27))) -> 70.0 | I30: =IF(OR(SUM(I28:I29)=0,'Deckblatt Gruender|Data Founder'!$M$1=1),"",IF('Deckblatt Gruender|Data Founder'!$M$1=2,SUM(I28:I29)-SUM(I28:I29)/(1+$D27),SUM(I28:I29)*($D27))) -> 70.0 | J30: =IF(OR(SUM(J28:J29)=0,'Deckblatt Gruender|Data Founder'!$M$1=1),"",IF('Deckblatt Gruender|Data Founder'!$M$1=2,SUM(J28:J29)-SUM(J28:J29)/(1+$D27),SUM(J28:J29)*($D27))) -> 70.0 | K30: =IF(OR(SUM(K28:K29)=0,'Deckblatt Gruender|Data Founder'!$M$1=1),"",IF('Deckblatt Gruender|Data Founder'!$M$1=2,SUM(K28:K29)-SUM(K28:K29)/(1+$D27),SUM(K28:K29)*($D27))) -> 70.0 | L30: =IF(OR(SUM(L28:L29)=0,'Deckblatt Gruender|Data Founder'!$M$1=1),"",IF('Deckblatt Gruender|Data Founder'!$M$1=2,SUM(L28:L29)-SUM(L28:L29)/(1+$D27),SUM(L28:L29)*($D27))) -> 70.0 | M30: =IF(OR(SUM(M28:M29)=0,'Deckblatt Gruender|Data Founder'!$M$1=1),"",IF('Deckblatt Gruender|Data Founder'!$M$1=2,SUM(M28:M29)-SUM(M28:M29)/(1+$D27),SUM(M28:M29)*($D27))) ->  | N30: =IF(OR(SUM(N28:N29)=0,'Deckblatt Gruender|Data Founder'!$M$1=1),"",IF('Deckblatt Gruender|Data Founder'!$M$1=2,SUM(N28:N29)-SUM(N28:N29)/(1+$D27),SUM(N28:N29)*($D27))) ->  | O30: =IF(OR(SUM(O28:O29)=0,'Deckblatt Gruender|Data Founder'!$M$1=1),"",IF('Deckblatt Gruender|Data Founder'!$M$1=2,SUM(O28:O29)-SUM(O28:O29)/(1+$D27),SUM(O28:O29)*($D27))) ->  | P30: =IF(OR(SUM(P28:P29)=0,'Deckblatt Gruender|Data Founder'!$M$1=1),"",IF('Deckblatt Gruender|Data Founder'!$M$1=2,SUM(P28:P29)-SUM(P28:P29)/(1+$D27),SUM(P28:P29)*($D27))) ->  | Q30: =IF(SUM(E30:P30)=0,"",SUM(E30:P30)) -> 420 | CV30: Summe Nebenrechnung Gruppe2 | CW30: Sum Ancillary Account Line2
C31: =IF($B$2="English",CW25,CV25) -> Summe Sonstige Einnahmen | E31: =SUM(E28:E29) -> 0 | F31: =SUM(F28:F29) -> 0 | G31: 1,000 | H31: 1,000 | I31: 1,000 | J31: 1,000 | K31: 1,000 | L31: 1,000 | M31: 0 | N31: 0 | O31: 0 | P31: 0 | Q31: =SUM(E31:P31) -> 6,000 | CV31: Summe Nebenrechnung Gruppe1 | CW31: Sum Ancillary Account Line1
C32: =C12 -> nicht im Umsatz enthaltene MwSt | D32: =IF(C32="","",7%) -> 7% | E32: =IF('Deckblatt Gruender|Data Founder'!$M$1=1,"",IF(E12="",0,E12*IF($D6=$F$2,1,0))+IF(E20="",0,E20*IF($D14=$F$2,1,0))+IF(E25="",0,E25*IF($D22=$F$2,1,0))+IF(E30="",0,E30*IF($D27=$F$2,1,0))) -> 0.0 | F32: =IF('Deckblatt Gruender|Data Founder'!$M$1=1,"",IF(F12="",0,F12*IF($D6=$F$2,1,0))+IF(F20="",0,F20*IF($D14=$F$2,1,0))+IF(F25="",0,F25*IF($D22=$F$2,1,0))+IF(F30="",0,F30*IF($D27=$F$2,1,0))) -> 0.0 | G32: =IF('Deckblatt Gruender|Data Founder'!$M$1=1,"",IF(G12="",0,G12*IF($D6=$F$2,1,0))+IF(G20="",0,G20*IF($D14=$F$2,1,0))+IF(G25="",0,G25*IF($D22=$F$2,1,0))+IF(G30="",0,G30*IF($D27=$F$2,1,0))) -> 105.0 | H32: =IF('Deckblatt Gruender|Data Founder'!$M$1=1,"",IF(H12="",0,H12*IF($D6=$F$2,1,0))+IF(H20="",0,H20*IF($D14=$F$2,1,0))+IF(H25="",0,H25*IF($D22=$F$2,1,0))+IF(H30="",0,H30*IF($D27=$F$2,1,0))) -> 105.0 | I32: =IF('Deckblatt Gruender|Data Founder'!$M$1=1,"",IF(I12="",0,I12*IF($D6=$F$2,1,0))+IF(I20="",0,I20*IF($D14=$F$2,1,0))+IF(I25="",0,I25*IF($D22=$F$2,1,0))+IF(I30="",0,I30*IF($D27=$F$2,1,0))) -> 105.0 | J32: =IF('Deckblatt Gruender|Data Founder'!$M$1=1,"",IF(J12="",0,J12*IF($D6=$F$2,1,0))+IF(J20="",0,J20*IF($D14=$F$2,1,0))+IF(J25="",0,J25*IF($D22=$F$2,1,0))+IF(J30="",0,J30*IF($D27=$F$2,1,0))) -> 105.0 | K32: =IF('Deckblatt Gruender|Data Founder'!$M$1=1,"",IF(K12="",0,K12*IF($D6=$F$2,1,0))+IF(K20="",0,K20*IF($D14=$F$2,1,0))+IF(K25="",0,K25*IF($D22=$F$2,1,0))+IF(K30="",0,K30*IF($D27=$F$2,1,0))) -> 105.0 | L32: =IF('Deckblatt Gruender|Data Founder'!$M$1=1,"",IF(L12="",0,L12*IF($D6=$F$2,1,0))+IF(L20="",0,L20*IF($D14=$F$2,1,0))+IF(L25="",0,L25*IF($D22=$F$2,1,0))+IF(L30="",0,L30*IF($D27=$F$2,1,0))) -> 105.0 | M32: =IF('Deckblatt Gruender|Data Founder'!$M$1=1,"",IF(M12="",0,M12*IF($D6=$F$2,1,0))+IF(M20="",0,M20*IF($D14=$F$2,1,0))+IF(M25="",0,M25*IF($D22=$F$2,1,0))+IF(M30="",0,M30*IF($D27=$F$2,1,0))) -> 35.0 | N32: =IF('Deckblatt Gruender|Data Founder'!$M$1=1,"",IF(N12="",0,N12*IF($D6=$F$2,1,0))+IF(N20="",0,N20*IF($D14=$F$2,1,0))+IF(N25="",0,N25*IF($D22=$F$2,1,0))+IF(N30="",0,N30*IF($D27=$F$2,1,0))) -> 35.0 | O32: =IF('Deckblatt Gruender|Data Founder'!$M$1=1,"",IF(O12="",0,O12*IF($D6=$F$2,1,0))+IF(O20="",0,O20*IF($D14=$F$2,1,0))+IF(O25="",0,O25*IF($D22=$F$2,1,0))+IF(O30="",0,O30*IF($D27=$F$2,1,0))) -> 35.0 | P32: =IF('Deckblatt Gruender|Data Founder'!$M$1=1,"",IF(P12="",0,P12*IF($D6=$F$2,1,0))+IF(P20="",0,P20*IF($D14=$F$2,1,0))+IF(P25="",0,P25*IF($D22=$F$2,1,0))+IF(P30="",0,P30*IF($D27=$F$2,1,0))) -> 35.0 | Q32: =IF('Deckblatt Gruender|Data Founder'!$M$1=1,"",SUM(E32:P32)) -> 770 | CV32: =IF($D$2="mit MwSt","enthaltener MwSt ","nicht im Umsatz enthaltener MwSt-Betrag ") & $F$2*100 & "%" -> nicht im Umsatz enthaltener MwSt-Betrag 7% | CW32: =IF($D$2="included VAT","applied VAT ","Not in Sales included VAT ") & $F$2*100 & "%" -> Not in Sales included VAT 7%
C33: =C12 -> nicht im Umsatz enthaltene MwSt | D33: =IF(C33="","",19%) -> 19% | E33: =IF('Deckblatt Gruender|Data Founder'!$M$1=1,"",IF(E12="",0,E12*IF($D6=$G$2,1,0))+IF(E20="",0,E20*IF($D14=$G$2,1,0))+IF(E25="",0,E25*IF($D22=$G$2,1,0))+IF(E30="",0,E30*IF($D27=$G$2,1,0))) -> 0.0 | F33: =IF('Deckblatt Gruender|Data Founder'!$M$1=1,"",IF(F12="",0,F12*IF($D6=$G$2,1,0))+IF(F20="",0,F20*IF($D14=$G$2,1,0))+IF(F25="",0,F25*IF($D22=$G$2,1,0))+IF(F30="",0,F30*IF($D27=$G$2,1,0))) -> 0.0 | G33: =IF('Deckblatt Gruender|Data Founder'!$M$1=1,"",IF(G12="",0,G12*IF($D6=$G$2,1,0))+IF(G20="",0,G20*IF($D14=$G$2,1,0))+IF(G25="",0,G25*IF($D22=$G$2,1,0))+IF(G30="",0,G30*IF($D27=$G$2,1,0))) -> 380.0 | H33: =IF('Deckblatt Gruender|Data Founder'!$M$1=1,"",IF(H12="",0,H12*IF($D6=$G$2,1,0))+IF(H20="",0,H20*IF($D14=$G$2,1,0))+IF(H25="",0,H25*IF($D22=$G$2,1,0))+IF(H30="",0,H30*IF($D27=$G$2,1,0))) -> 437.0 | I33: =IF('Deckblatt Gruender|Data Founder'!$M$1=1,"",IF(I12="",0,I12*IF($D6=$G$2,1,0))+IF(I20="",0,I20*IF($D14=$G$2,1,0))+IF(I25="",0,I25*IF($D22=$G$2,1,0))+IF(I30="",0,I30*IF($D27=$G$2,1,0))) -> 494.0 | J33: =IF('Deckblatt Gruender|Data Founder'!$M$1=1,"",IF(J12="",0,J12*IF($D6=$G$2,1,0))+IF(J20="",0,J20*IF($D14=$G$2,1,0))+IF(J25="",0,J25*IF($D22=$G$2,1,0))+IF(J30="",0,J30*IF($D27=$G$2,1,0))) -> 551.0 | K33: =IF('Deckblatt Gruender|Data Founder'!$M$1=1,"",IF(K12="",0,K12*IF($D6=$G$2,1,0))+IF(K20="",0,K20*IF($D14=$G$2,1,0))+IF(K25="",0,K25*IF($D22=$G$2,1,0))+IF(K30="",0,K30*IF($D27=$G$2,1,0))) -> 608.0 | L33: =IF('Deckblatt Gruender|Data Founder'!$M$1=1,"",IF(L12="",0,L12*IF($D6=$G$2,1,0))+IF(L20="",0,L20*IF($D14=$G$2,1,0))+IF(L25="",0,L25*IF($D22=$G$2,1,0))+IF(L30="",0,L30*IF($D27=$G$2,1,0))) -> 665.0 | M33: =IF('Deckblatt Gruender|Data Founder'!$M$1=1,"",IF(M12="",0,M12*IF($D6=$G$2,1,0))+IF(M20="",0,M20*IF($D14=$G$2,1,0))+IF(M25="",0,M25*IF($D22=$G$2,1,0))+IF(M30="",0,M30*IF($D27=$G$2,1,0))) -> 1,520.0 | N33: =IF('Deckblatt Gruender|Data Founder'!$M$1=1,"",IF(N12="",0,N12*IF($D6=$G$2,1,0))+IF(N20="",0,N20*IF($D14=$G$2,1,0))+IF(N25="",0,N25*IF($D22=$G$2,1,0))+IF(N30="",0,N30*IF($D27=$G$2,1,0))) -> 779.0 | O33: =IF('Deckblatt Gruender|Data Founder'!$M$1=1,"",IF(O12="",0,O12*IF($D6=$G$2,1,0))+IF(O20="",0,O20*IF($D14=$G$2,1,0))+IF(O25="",0,O25*IF($D22=$G$2,1,0))+IF(O30="",0,O30*IF($D27=$G$2,1,0))) -> 836.0 | P33: =IF('Deckblatt Gruender|Data Founder'!$M$1=1,"",IF(P12="",0,P12*IF($D6=$G$2,1,0))+IF(P20="",0,P20*IF($D14=$G$2,1,0))+IF(P25="",0,P25*IF($D22=$G$2,1,0))+IF(P30="",0,P30*IF($D27=$G$2,1,0))) -> 893.0 | Q33: =IF('Deckblatt Gruender|Data Founder'!$M$1=1,"",SUM(E33:P33)) -> 7,163 | CV33: =IF($D$2="mit MwSt","enthaltener MwSt ","nicht im Umsatz enthaltener MwSt-Betrag ") & $G$2*100 & "%" -> nicht im Umsatz enthaltener MwSt-Betrag 19% | CW33: =IF($D$2="included VAT","applied VAT ","Not in Sales included VAT ")& $G$2*100 & "%" -> Not in Sales included VAT 19%
C34: =IF($B$2="English",CW34,CV34) -> Gesamtumsätze | E34: =E13+E21+E26+E31 -> 0 | F34: 0 | G34: 3,500 | H34: 3,800 | I34: 4,100 | J34: 4,400 | K34: 4,700 | L34: 5,000 | M34: 8,500 | N34: 4,600 | O34: 4,900 | P34: 5,200 | Q34: =SUM(E34:P34) -> 48,700 | CV34: Gesamtumsätze | CW34: Total Sales
C35: =IF($B$2="English",CW35,CV35) -> Gesamtumsätze akkumuliert | E35: =E34 -> 0 | F35: =E35+F34 -> 0 | G35: =F35+G34 -> 3,500 | H35: 7,300 | I35: 11,400 | J35: 15,800 | K35: 20,500 | L35: 25,500 | M35: 34,000 | N35: 38,600 | O35: 43,500 | P35: 48,700 | CV35: Gesamtumsätze akkumuliert | CW35: Total Sales accumulated
B37: =IF($C$4="English",CW37,CV37) -> 2b Umsätze, Honorare, Sonstige Einnahmen (ohne MwSt) für die Jahre 2016-2020 in EURO | N37: =IF($C$4="English",CW70,CV70) -> Umsätze, Honorare, sonst. Einnahmen (ohne MwSt) 2016-2020 | U37: No. | V37: =C39 -> Einnahmeart | W37: =IF($C$4="English","VAT","MwSt") -> MwSt | X37: =E39+1 -> 2017 | Y37: =F39+1 -> 2018 | Z37: =G39+1 -> 2019 | AA37: =H39+1 -> 2020 | CV37: ="2b Umsätze, Honorare, Sonstige Einnahmen (" & 'Deckblatt Gruender|Data Founder'!J$1& ") für die Jahre " & '1 Pers.Ausgaben|Pers Expenses'!$C$4 & "-" & '1 Pers.Ausgaben|Pers Expenses'!$C$4+4&" in EURO" -> 2b Umsätze, Honorare, Sonstige Einnahmen (ohne MwSt) für die Jahre 2016-2020 in EURO | CW37: ="2b Sales, Fees, other Income (" & 'Deckblatt Gruender|Data Founder'!$K$1& ") for the years " & '1 Pers.Ausgaben|Pers Expenses'!$C$4 & " - " & '1 Pers.Ausgaben|Pers Expenses'!$C$4+4&" in EURO" -> 2b Sales, Fees, other Income (w/o VAT) for the years 2016 - 2020 in EURO
U38: 1.6 | W38: =D46 -> 19%
B39: =B5 -> No. | C39: Einnahmeart | D39: MwSt | E39: ='1 Pers.Ausgaben|Pers Expenses'!C4 -> 2016 | F39: =E39+1 -> 2017 | G39: =F39+1 -> 2018 | H39: =G39+1 -> 2019 | I39: =H39+1 -> 2020 | U39: 1.6.1
B40: 1 | C40: Umsatz Produktgruppe 1 | D40: 19% | U40: 1.6.2
B41: =B7 -> 1.1 | C41: =IF(C7="","",C7) -> Modul 1 | E41: =Q7 -> 29,200 | F41: 32,000 | G41: 40,000 | H41: 60,000 | I41: 90,000 | U41: 1.6.3
B42: =B8 -> 1.2 | C42: =IF(C8="","",C8) ->  | E42: 0 | U42: 1.6.4
B43: =B9 -> 1.3 | C43: =IF(C9="","",C9) ->  | E43: 0 | U43: 1.6.5
B44: =B10 -> 1.4 | C44: =IF(C10="","",C10) ->  | E44: 0 | V44: =V11 -> Summe Nebenrechnung Gruppe1 | X44: =IF(SUM(X39:X43)=0,"",SUM(X39:X43)) ->  | Y44: =IF(SUM(Y39:Y43)=0,"",SUM(Y39:Y43)) ->  | Z44: =IF(SUM(Z39:Z43)=0,"",SUM(Z39:Z43)) ->  | AA44: =IF(SUM(AA39:AA43)=0,"",SUM(AA39:AA43)) -> 
B45: =B11 -> 1.6 | C45: =IF(C11="","",C11) -> Umsätze aus Nebenrechnung Gruppe 1 | E45: 0 | F45: =X44 ->  | G45: =X44 ->  | H45: =Y44 ->  | I45: =Z44 -> 
C46: =C12 -> nicht im Umsatz enthaltene MwSt | D46: =D6 -> 19% | E46: 5,548 | F46: =IF(OR(SUM(F41:F45)=0,'Deckblatt Gruender|Data Founder'!$M$1=1),"",IF('Deckblatt Gruender|Data Founder'!$M$1=2,SUM(F41:F45)-SUM(F41:F45)/(1+$D46),SUM(F41:F45)*($D46))) -> 6,080.0 | G46: =IF(OR(SUM(G41:G45)=0,'Deckblatt Gruender|Data Founder'!$M$1=1),"",IF('Deckblatt Gruender|Data Founder'!$M$1=2,SUM(G41:G45)-SUM(G41:G45)/(1+$D46),SUM(G41:G45)*($D46))) -> 7,600.0 | H46: =IF(OR(SUM(H41:H45)=0,'Deckblatt Gruender|Data Founder'!$M$1=1),"",IF('Deckblatt Gruender|Data Founder'!$M$1=2,SUM(H41:H45)-SUM(H41:H45)/(1+$D46),SUM(H41:H45)*($D46))) -> 11,400.0 | I46: =IF(OR(SUM(I41:I45)=0,'Deckblatt Gruender|Data Founder'!$M$1=1),"",IF('Deckblatt Gruender|Data Founder'!$M$1=2,SUM(I41:I45)-SUM(I41:I45)/(1+$D46),SUM(I41:I45)*($D46))) -> 17,100.0 | U46: 2.6 | V46: =C53 -> Umsätze aus Nebenrechnung Gruppe 2 | W46: =D54 -> 19%
C47: =C13 -> Summe Umsatz Produktgruppe 1 | E47: 29,200 | F47: =SUM(F41:F45) -> 32,000 | G47: =SUM(G41:G45) -> 40,000 | H47: =SUM(H41:H45) -> 60,000 | I47: =SUM(I41:I45) -> 90,000 | U47: 2.6.1
B48: =B14 -> 2 | C48: =C14 -> Umsatz Produktgruppe 2 | D48: =D14 -> 19% | U48: 2.6.2
B49: 2.1 | C49: =IF(C15="","",C15) ->  | E49: =Q15 -> 8,500 | F49: 10,000 | G49: 11,000 | H49: 12,000 | I49: 13,000 | U49: 2.6.3
B50: 2.2 | C50: =IF(C16="","",C16) ->  | E50: 0 | U50: 2.6.4
B51: 2.3 | C51: =IF(C17="","",C17) ->  | E51: 0 | U51: 2.6.5
B52: 2.4 | C52: =IF(C18="","",C18) ->  | E52: 0
B53: 2.6 | C53: =IF(C19="","",C19) -> Umsätze aus Nebenrechnung Gruppe 2 | E53: 0 | F53: =X52 -> 0 | G53: =X52 -> 0 | H53: =Y52 -> 0 | I53: =Z52 -> 0
C54: =C20 -> nicht im Umsatz enthaltene MwSt | D54: =D14 -> 19% | E54: 1,615 | F54: =IF(OR(SUM(F49:F53)=0,'Deckblatt Gruender|Data Founder'!$M$1=1),"",IF('Deckblatt Gruender|Data Founder'!$M$1=2,SUM(F49:F53)-SUM(F49:F53)/(1+$D54),SUM(F49:F53)*($D54))) -> 1,900.0 | G54: =IF(OR(SUM(G49:G53)=0,'Deckblatt Gruender|Data Founder'!$M$1=1),"",IF('Deckblatt Gruender|Data Founder'!$M$1=2,SUM(G49:G53)-SUM(G49:G53)/(1+$D54),SUM(G49:G53)*($D54))) -> 2,090.0 | H54: =IF(OR(SUM(H49:H53)=0,'Deckblatt Gruender|Data Founder'!$M$1=1),"",IF('Deckblatt Gruender|Data Founder'!$M$1=2,SUM(H49:H53)-SUM(H49:H53)/(1+$D54),SUM(H49:H53)*($D54))) -> 2,280.0 | I54: =IF(OR(SUM(I49:I53)=0,'Deckblatt Gruender|Data Founder'!$M$1=1),"",IF('Deckblatt Gruender|Data Founder'!$M$1=2,SUM(I49:I53)-SUM(I49:I53)/(1+$D54),SUM(I49:I53)*($D54))) -> 2,470.0
C55: =C21 -> Summe Umsatz Produktgruppe 2 | E55: 8,500 | F55: =SUM(F49:F53) -> 10,000 | G55: =SUM(G49:G53) -> 11,000 | H55: =SUM(H49:H53) -> 12,000 | I55: =SUM(I49:I53) -> 13,000
B56: 3 | C56: =C22 -> Honorareinnahmen | D56: =D22 -> 7%
B57: 3.1 | C57: =IF(C23="","",C23) ->  | E57: =Q23 -> 5,000 | F57: 6,500 | G57: 7,000 | H57: 7,500 | I57: 8,000
B58: 3.2 | C58: =IF(C24="","",C24) ->  | E58: =Q24 -> 0
C59: =C25 -> nicht im Umsatz enthaltene MwSt | D59: =D22 -> 7% | E59: =Q25 -> 350
C60: =C26 -> Summe Honorareinnahmen | E60: =Q26 -> 5,000
B61: =B27 -> 4 | C61: =C27 -> Sonstige Einnahmen | D61: =D27 -> 7%
B62: =B28 -> 4.1 | C62: =IF(C28="","",C28) ->  | E62: =Q28 -> 6,000 | F62: 6,000 | G62: 5,000 | H62: 2,000 | I62: 0
B63: =B29 -> 4.2 | C63: =IF(C29="","",C29) -> Summe Sonstige Einnahmen | E63: 0
C64: =C30 -> nicht im Umsatz enthaltene MwSt | D64: =D27 -> 7% | E64: 420 | F64: =IF(OR(SUM(F62:F63)=0,'Deckblatt Gruender|Data Founder'!$M$1=1),"",IF('Deckblatt Gruender|Data Founder'!$M$1=2,SUM(F62:F63)-SUM(F62:F63)/(1+$D64),SUM(F62:F63)*($D64))) -> 420.0 | G64: =IF(OR(SUM(G62:G63)=0,'Deckblatt Gruender|Data Founder'!$M$1=1),"",IF('Deckblatt Gruender|Data Founder'!$M$1=2,SUM(G62:G63)-SUM(G62:G63)/(1+$D64),SUM(G62:G63)*($D64))) -> 350.0 | H64: =IF(OR(SUM(H62:H63)=0,'Deckblatt Gruender|Data Founder'!$M$1=1),"",IF('Deckblatt Gruender|Data Founder'!$M$1=2,SUM(H62:H63)-SUM(H62:H63)/(1+$D64),SUM(H62:H63)*($D64))) -> 140.0 | I64: =IF(OR(SUM(I62:I63)=0,'Deckblatt Gruender|Data Founder'!$M$1=1),"",IF('Deckblatt Gruender|Data Founder'!$M$1=2,SUM(I62:I63)-SUM(I62:I63)/(1+$D64),SUM(I62:I63)*($D64))) -> 
C65: =C31 -> Summe Sonstige Einnahmen | E65: 6,000 | F65: =SUM(F62:F63) -> 6,000 | G65: =SUM(G62:G63) -> 5,000 | H65: =SUM(H62:H63) -> 2,000 | I65: =SUM(I62:I63) -> 0 | S65: Ende
C66: =C32 -> nicht im Umsatz enthaltene MwSt | D66: =IF('Deckblatt Gruender|Data Founder'!$I$13='Deckblatt Gruender|Data Founder'!$G$1,"",$F$2) -> 7% | E66: 770 | F66: =IF('Deckblatt Gruender|Data Founder'!$M$1=1,"",IF(F46="",0,F46*IF($D46=$F$2,1,0))+IF(F54="",0,F54*IF($D54=$F$2,1,0))+IF(F59="",0,F59*IF($D59=$F$2,1,0))+IF(F64="",0,F64*IF($D64=$F$2,1,0))) -> 420 | G66: =IF('Deckblatt Gruender|Data Founder'!$M$1=1,"",IF(G46="",0,G46*IF($D46=$F$2,1,0))+IF(G54="",0,G54*IF($D54=$F$2,1,0))+IF(G59="",0,G59*IF($D59=$F$2,1,0))+IF(G64="",0,G64*IF($D64=$F$2,1,0))) -> 350 | H66: =IF('Deckblatt Gruender|Data Founder'!$M$1=1,"",IF(H46="",0,H46*IF($D46=$F$2,1,0))+IF(H54="",0,H54*IF($D54=$F$2,1,0))+IF(H59="",0,H59*IF($D59=$F$2,1,0))+IF(H64="",0,H64*IF($D64=$F$2,1,0))) -> 140 | I66: =IF('Deckblatt Gruender|Data Founder'!$M$1=1,"",IF(I46="",0,I46*IF($D46=$F$2,1,0))+IF(I54="",0,I54*IF($D54=$F$2,1,0))+IF(I59="",0,I59*IF($D59=$F$2,1,0))+IF(I64="",0,I64*IF($D64=$F$2,1,0))) -> 0
C67: =C33 -> nicht im Umsatz enthaltene MwSt | D67: =IF('Deckblatt Gruender|Data Founder'!$I$13='Deckblatt Gruender|Data Founder'!$G$1,"",$G$2) -> 19% | E67: 7,163 | F67: =IF('Deckblatt Gruender|Data Founder'!$M$1=1,"",IF(F46="",0,F46*IF($D46=$G$2,1,0))+IF(F54="",0,F54*IF($D54=$G$2,1,0))+IF(F59="",0,F59*IF($D59=$G$2,1,0))+IF(F64="",0,F64*IF($D64=$G$2,1,0))) -> 7,980 | G67: =IF('Deckblatt Gruender|Data Founder'!$M$1=1,"",IF(G46="",0,G46*IF($D46=$G$2,1,0))+IF(G54="",0,G54*IF($D54=$G$2,1,0))+IF(G59="",0,G59*IF($D59=$G$2,1,0))+IF(G64="",0,G64*IF($D64=$G$2,1,0))) -> 9,690 | H67: =IF('Deckblatt Gruender|Data Founder'!$M$1=1,"",IF(H46="",0,H46*IF($D46=$G$2,1,0))+IF(H54="",0,H54*IF($D54=$G$2,1,0))+IF(H59="",0,H59*IF($D59=$G$2,1,0))+IF(H64="",0,H64*IF($D64=$G$2,1,0))) -> 13,680 | I67: =IF('Deckblatt Gruender|Data Founder'!$M$1=1,"",IF(I46="",0,I46*IF($D46=$G$2,1,0))+IF(I54="",0,I54*IF($D54=$G$2,1,0))+IF(I59="",0,I59*IF($D59=$G$2,1,0))+IF(I64="",0,I64*IF($D64=$G$2,1,0))) -> 19,570
C68: =C34 -> Gesamtumsätze | E68: =E47+E55+E60+E65 -> 48,700 | F68: =F47+F55+F60+F65 -> 48,000 | G68: =G47+G55+G60+G65 -> 56,000 | H68: =H47+H55+H60+H65 -> 74,000 | I68: =I47+I55+I60+I65 -> 103,000
C69: =C35 -> Gesamtumsätze akkumuliert | E69: =E68 -> 48,700 | F69: =E69+F68 -> 96,700 | G69: =F69+G68 -> 152,700 | H69: =G69+H68 -> 226,700 | I69: =H69+I68 -> 329,700
CV70: ="Umsätze, Honorare, sonst. Einnahmen (" & 'Deckblatt Gruender|Data Founder'!$J$1 & ") " & '1 Pers.Ausgaben|Pers Expenses'!$C$4 &"-"& '1 Pers.Ausgaben|Pers Expenses'!$C$4 +4 -> Umsätze, Honorare, sonst. Einnahmen (ohne MwSt) 2016-2020 | CW70: ="Sales, Fees other Income (" & 'Deckblatt Gruender|Data Founder'!$K$1 & ") " & '1 Pers.Ausgaben|Pers Expenses'!$C$4&"-"& '1 Pers.Ausgaben|Pers Expenses'!$C$4+4 -> Sales, Fees other Income (w/o VAT) 2016-2020
B71: =IF($C$4="English",CW71,CV71) -> Umsätze, Honorare, Sonstige Einnahmen (ohne MwSt) für Jahr 2016 (EUR) | I71: =B71 -> Umsätze, Honorare, Sonstige Einnahmen (ohne MwSt) für Jahr 2016 (EUR) | CV71: ="Umsätze, Honorare, Sonstige Einnahmen (" & 'Deckblatt Gruender|Data Founder'!$J$1 & ") für Jahr " & '1 Pers.Ausgaben|Pers Expenses'!$C$4&" (EUR)" -> Umsätze, Honorare, Sonstige Einnahmen (ohne MwSt) für Jahr 2016 (EUR) | CW71: ="Sales, Fees, other Income (" & 'Deckblatt Gruender|Data Founder'!$K$1 & ") for Year " & '1 Pers.Ausgaben|Pers Expenses'!$C$4&" (EUR)" -> Sales, Fees, other Income (w/o VAT) for Year 2016 (EUR)
U170: ="Mai "&'1 Pers.Ausgaben|Pers Expenses'!$C$4+1 -> Mai 2017 | V170: ="Juni "&'1 Pers.Ausgaben|Pers Expenses'!$C$4+1 -> Juni 2017 | W170: ="Juli "&'1 Pers.Ausgaben|Pers Expenses'!$C$4+1 -> Juli 2017 | X170: ="Aug. "&'1 Pers.Ausgaben|Pers Expenses'!$C$4+1 -> Aug. 2017 | Y170: ="Sept. "&'1 Pers.Ausgaben|Pers Expenses'!$C$4+1 -> Sept. 2017 | Z170: ="Okt. "&'1 Pers.Ausgaben|Pers Expenses'!$C$4+1 -> Okt. 2017 | AA170: ="Nov. "&'1 Pers.Ausgaben|Pers Expenses'!$C$4+1 -> Nov. 2017 | AB170: ="Dez. "&'1 Pers.Ausgaben|Pers Expenses'!$C$4+1 -> Dez. 2017
U171: =I47 -> 90,000 | V171: 0 | W171: 0 | X171: 0 | Y171: 0 | Z171: 0 | AA171: 0 | AB171: 0
U172: =I55 -> 13,000 | V172: 0 | W172: 0 | X172: 0 | Y172: 0 | Z172: 0 | AA172: 0 | AB172: 0
U173: =I60 -> 0 | V173: 0 | W173: 0 | X173: 0 | Y173: 0 | Z173: 0 | AA173: 0 | AB173: 0
U174: =I65 -> 0 | V174: 0 | W174: 0 | X174: 0 | Y174: 0 | Z174: 0 | AA174: 0 | AB174: 0

Sheet 2 Umsatz|Sales (hidden)
B2: ='Deckblatt Gruender|Data Founder'!D8 -> Deutsch | D2: =IF(OR('Deckblatt Gruender|Data Founder'!M1=1,'Deckblatt Gruender|Data Founder'!M1=2),"mit MwSt","ohne MwSt") -> ohne MwSt | E2: 0% | F2: 7% | G2: 19% | T2: Aufgaben und/oder Kommentar | U2: =IF($B$2="English",CW2,CV2) -> Nebenrechnung Umsätze/sonstige Einnahmen 2016 | CV2: ="Nebenrechnung Umsätze/sonstige Einnahmen "&'1 Pers.Ausgaben|Pers Expenses'!$C$4 -> Nebenrechnung Umsätze/sonstige Einnahmen 2016 | CW2: ="Ancillary account for sales/other Income "&'1 Pers.Ausgaben|Pers Expenses'!$C$4 -> Ancillary account for sales/other Income 2016 | CY2: Jan. | CZ2: Febr. | DA2: März | DB2: April | DC2: Mai | DD2: Juni | DE2: Juli | DF2: Aug. | DG2: Sept. | DH2: Okt. | DI2: Nov. | DJ2: Dez. | DK2: ="Jahr "&'1 Pers.Ausgaben|Pers Expenses'!C4 -> Jahr 2016 | DL2: ="Jahr "&'1 Pers.Ausgaben|Pers Expenses'!C4+1 -> Jahr 2017
B3: =IF($C$4="English",CW3,CV3) -> 2a-1 Umsätze, Honorare, Sonstige Einnahmen (ohne MwSt) für die Monate des Jahres 2016 | T3: To Do list / Comments | CV3: ="2a-1 Umsätze, Honorare, Sonstige Einnahmen (" & 'Deckblatt Gruender|Data Founder'!$J$1 & ") für die Monate des Jahres " & '1 Pers.Ausgaben|Pers Expenses'!$C$4 -> 2a-1 Umsätze, Honorare, Sonstige Einnahmen (ohne MwSt) für die Monate des Jahres 2016 | CW3: ="2a-1 Sales, Fees, other Income (" & 'Deckblatt Gruender|Data Founder'!$K$1 & ") for the Months of the Year " & '1 Pers.Ausgaben|Pers Expenses'!$C$4 -> 2a-1 Sales, Fees, other Income (w/o VAT) for the Months of the Year 2016 | CY3: Jan | CZ3: Feb | DA3: Mar | DB3: Apr | DC3: May | DD3: June | DE3: July | DF3: Aug | DG3: Sept | DH3: Oct | DI3: Nov | DJ3: Dec | DK3: ="Year "&'1 Pers.Ausgaben|Pers Expenses'!C4 -> Year 2016 | DL3: ="Year "&'1 Pers.Ausgaben|Pers Expenses'!C4+1 -> Year 2017
C4: ='Deckblatt Gruender|Data Founder'!$D$8 -> Deutsch | U4: No. | V4: =C5 -> Einnahmeart | W4: =IF($C$4="English","VAT","MwSt") -> MwSt | X4: =E5 -> Jan. | Y4: Febr. | Z4: März | AA4: April | AB4: Mai | AC4: Juni | AD4: Juli | AE4: Aug. | AF4: Sept. | AG4: Okt. | AH4: Nov. | AI4: Dez. | AJ4: Jahr 2016 | CV4: Bitte die Zusammensetzung der Umsätze in der Nebenrechnung (ab Spalte U) angeben | CW4: Please show the structure of sales in auxiliary calculation (Choose column "U")
B5: No. | C5: =IF(C4="English","Type of Income","Einnahmeart") -> Einnahmeart | D5: =IF($C$4="English","VAT","MwSt") -> MwSt | E5: =IF($C$4="English",CY3,CY2) -> Jan. | F5: =IF($C$4="English",CZ3,CZ2) -> Febr. | G5: März | H5: April | I5: Mai | J5: Juni | K5: Juli | L5: Aug. | M5: Sept. | N5: Okt. | O5: Nov. | P5: Dez. | Q5: Jahr 2016 | S5: =IF(C4="English",T3,T2) -> Aufgaben und/oder Kommentar | U5: 1.6 | V5: =C11 -> Umsätze aus Nebenrechnung Gruppe 1 | W5: =D6 -> 19% | CV5: Einnahmeart | CW5: Type of Income
B6: 1 | C6: Umsatz Produktgruppe 1 | D6: 19% | U6: 1.6.1 | AJ6: =SUM(X6:AI6) -> 0 | CV6: Auswahl | CW6: Choise
B7: 1.1 | D7: ↑ | E7: 100 | F7: 200 | G7: 300 | H7: 400 | I7: 500 | J7: 600 | K7: 700 | L7: 800 | M7: 900 | N7: 1,000 | O7: 1,100 | P7: 1,200 | Q7: =SUM(E7:P7) -> 7,800 | U7: 1.6.2 | AJ7: 0 | CV7: Umsatz Produktgruppe 1 | CW7: Sales Product Line 1
B8: 1.2 | D8: =IF($C$4="English",CW6,CV6) -> Auswahl | Q8: =SUM(E8:P8) -> 0 | U8: 1.6.3 | AJ8: 0 | CV8: Umsätze aus Nebenrechnung Gruppe 1 | CW8: Sales out of Ancillary Account Line 1
B9: 1.3 | Q9: =SUM(E9:P9) -> 0 | U9: 1.6.4 | AJ9: 0 | CV9: Umsätze aus Nebenrechnung Gruppe 2 | CW9: Sales out of Ancillary Account Line 2
B10: 1.4 | Q10: =SUM(E10:P10) -> 0 | U10: 1.6.5 | AJ10: 0
B11: 1.6 | C11: =IF($B$2="English",CW8,CV8) -> Umsätze aus Nebenrechnung Gruppe 1 | E11: =X11 ->  | Q11: =SUM(E11:P11) -> 0 | V11: =IF($B$2="English",CW31,CV31) -> Summe Nebenrechnung Gruppe1 | X11: =IF(SUM(X6:X10)=0,"",SUM(X6:X10)) ->  | AJ11: 0
C12: =IF($B$2="English",CW12,CV12) -> auf Rechnung ausgewiesener MwSt-Betrag | E12: =IF(OR(SUM(E7:E11)=0,'Deckblatt Gruender|Data Founder'!$M$1=1),"",IF('Deckblatt Gruender|Data Founder'!$M$1=2,SUM(E7:E11)-SUM(E7:E11)/(1+$D6),SUM(E7:E11)*($D6))) -> 19.0 | F12: =IF(OR(SUM(F7:F11)=0,'Deckblatt Gruender|Data Founder'!$M$1=1),"",IF('Deckblatt Gruender|Data Founder'!$M$1=2,SUM(F7:F11)-SUM(F7:F11)/(1+$D6),SUM(F7:F11)*($D6))) -> 38.0 | G12: =IF(OR(SUM(G7:G11)=0,'Deckblatt Gruender|Data Founder'!$M$1=1),"",IF('Deckblatt Gruender|Data Founder'!$M$1=2,SUM(G7:G11)-SUM(G7:G11)/(1+$D6),SUM(G7:G11)*($D6))) -> 57.0 | H12: =IF(OR(SUM(H7:H11)=0,'Deckblatt Gruender|Data Founder'!$M$1=1),"",IF('Deckblatt Gruender|Data Founder'!$M$1=2,SUM(H7:H11)-SUM(H7:H11)/(1+$D6),SUM(H7:H11)*($D6))) -> 76.0 | I12: =IF(OR(SUM(I7:I11)=0,'Deckblatt Gruender|Data Founder'!$M$1=1),"",IF('Deckblatt Gruender|Data Founder'!$M$1=2,SUM(I7:I11)-SUM(I7:I11)/(1+$D6),SUM(I7:I11)*($D6))) -> 95.0 | J12: =IF(OR(SUM(J7:J11)=0,'Deckblatt Gruender|Data Founder'!$M$1=1),"",IF('Deckblatt Gruender|Data Founder'!$M$1=2,SUM(J7:J11)-SUM(J7:J11)/(1+$D6),SUM(J7:J11)*($D6))) -> 114.0 | K12: =IF(OR(SUM(K7:K11)=0,'Deckblatt Gruender|Data Founder'!$M$1=1),"",IF('Deckblatt Gruender|Data Founder'!$M$1=2,SUM(K7:K11)-SUM(K7:K11)/(1+$D6),SUM(K7:K11)*($D6))) -> 133.0 | L12: =IF(OR(SUM(L7:L11)=0,'Deckblatt Gruender|Data Founder'!$M$1=1),"",IF('Deckblatt Gruender|Data Founder'!$M$1=2,SUM(L7:L11)-SUM(L7:L11)/(1+$D6),SUM(L7:L11)*($D6))) -> 152.0 | M12: =IF(OR(SUM(M7:M11)=0,'Deckblatt Gruender|Data Founder'!$M$1=1),"",IF('Deckblatt Gruender|Data Founder'!$M$1=2,SUM(M7:M11)-SUM(M7:M11)/(1+$D6),SUM(M7:M11)*($D6))) -> 171.0 | N12: =IF(OR(SUM(N7:N11)=0,'Deckblatt Gruender|Data Founder'!$M$1=1),"",IF('Deckblatt Gruender|Data Founder'!$M$1=2,SUM(N7:N11)-SUM(N7:N11)/(1+$D6),SUM(N7:N11)*($D6))) -> 190.0 | O12: =IF(OR(SUM(O7:O11)=0,'Deckblatt Gruender|Data Founder'!$M$1=1),"",IF('Deckblatt Gruender|Data Founder'!$M$1=2,SUM(O7:O11)-SUM(O7:O11)/(1+$D6),SUM(O7:O11)*($D6))) -> 209.0 | P12: =IF(OR(SUM(P7:P11)=0,'Deckblatt Gruender|Data Founder'!$M$1=1),"",IF('Deckblatt Gruender|Data Founder'!$M$1=2,SUM(P7:P11)-SUM(P7:P11)/(1+$D6),SUM(P7:P11)*($D6))) -> 228.0 | Q12: =IF(SUM(E12:P12)=0,"",SUM(E12:P12)) -> 1,482 | CV12: =IF($D$2="mit MwSt","im Umsatz enthaltener MwSt-Betrag", "auf Rechnung ausgewiesener MwSt-Betrag") -> auf Rechnung ausgewiesener MwSt-Betrag | CW12: =IF($D$2="mit MwSt","VAT amount included in sales","VAT amount denoted on bill") -> VAT amount denoted on bill
C13: =IF($B$2="English",CW15,CV15)&" "&C6 -> Summe Umsatz Produktgruppe 1 | E13: =SUM(E7:E11) -> 100 | F13: 200 | G13: 300 | H13: 400 | I13: 500 | J13: 600 | K13: 700 | L13: 800 | M13: 900 | N13: 1,000 | O13: 1,100 | P13: 1,200 | Q13: 7,800 | U13: 2.6 | V13: =C19 -> Umsätze aus Nebenrechnung Gruppe 2 | W13: =D14 -> 19%
B14: 2 | C14: Umsatz Produktgruppe 2 | D14: 19% | U14: 2.6.1 | AJ14: =SUM(X14:AI14) -> 0 | CV14: Umsatz Produktgruppe 2 | CW14: Sales Product Line 2
B15: 2.1 | D15: ↑ | G15: 100 | H15: 200 | I15: 300 | J15: 400 | K15: 500 | L15: 600 | M15: 700 | N15: 800 | O15: 900 | P15: 1,000 | Q15: =SUM(E15:P15) -> 5,500 | U15: 2.6.2 | AJ15: 0 | CV15: Summe | CW15: Sum
B16: 2.2 | D16: =D8 -> Auswahl | Q16: =SUM(E16:P16) -> 0 | U16: 2.6.3 | AJ16: 0
B17: 2.3 | Q17: =SUM(E17:P17) -> 0 | U17: 2.6.4 | AJ17: 0
B18: 2.4 | Q18: =SUM(E18:P18) -> 0 | U18: 2.6.5 | AJ18: 0
B19: 2.6 | C19: =IF($B$2="English",CW9,CV9) -> Umsätze aus Nebenrechnung Gruppe 2 | E19: =X19 ->  | F19: =Y19 ->  | Q19: =SUM(E19:P19) -> 0 | V19: =IF($B$2="English",CW30,CV30) -> Summe Nebenrechnung Gruppe2 | X19: =IF(SUM(X14:X18)=0,"",SUM(X14:X18)) ->  | Y19: =IF(SUM(Y14:Y18)=0,"",SUM(Y14:Y18)) ->  | AJ19: 0
C20: =C12 -> auf Rechnung ausgewiesener MwSt-Betrag | E20: =IF(OR(SUM(E15:E19)=0,'Deckblatt Gruender|Data Founder'!$M$1=1),"",IF('Deckblatt Gruender|Data Founder'!$M$1=2,SUM(E15:E19)-SUM(E15:E19)/(1+$D14),SUM(E15:E19)*($D14))) ->  | F20: =IF(OR(SUM(F15:F19)=0,'Deckblatt Gruender|Data Founder'!$M$1=1),"",IF('Deckblatt Gruender|Data Founder'!$M$1=2,SUM(F15:F19)-SUM(F15:F19)/(1+$D14),SUM(F15:F19)*($D14))) ->  | G20: =IF(OR(SUM(G15:G19)=0,'Deckblatt Gruender|Data Founder'!$M$1=1),"",IF('Deckblatt Gruender|Data Founder'!$M$1=2,SUM(G15:G19)-SUM(G15:G19)/(1+$D14),SUM(G15:G19)*($D14))) -> 19.0 | H20: =IF(OR(SUM(H15:H19)=0,'Deckblatt Gruender|Data Founder'!$M$1=1),"",IF('Deckblatt Gruender|Data Founder'!$M$1=2,SUM(H15:H19)-SUM(H15:H19)/(1+$D14),SUM(H15:H19)*($D14))) -> 38.0 | I20: =IF(OR(SUM(I15:I19)=0,'Deckblatt Gruender|Data Founder'!$M$1=1),"",IF('Deckblatt Gruender|Data Founder'!$M$1=2,SUM(I15:I19)-SUM(I15:I19)/(1+$D14),SUM(I15:I19)*($D14))) -> 57.0 | J20: =IF(OR(SUM(J15:J19)=0,'Deckblatt Gruender|Data Founder'!$M$1=1),"",IF('Deckblatt Gruender|Data Founder'!$M$1=2,SUM(J15:J19)-SUM(J15:J19)/(1+$D14),SUM(J15:J19)*($D14))) -> 76.0 | K20: =IF(OR(SUM(K15:K19)=0,'Deckblatt Gruender|Data Founder'!$M$1=1),"",IF('Deckblatt Gruender|Data Founder'!$M$1=2,SUM(K15:K19)-SUM(K15:K19)/(1+$D14),SUM(K15:K19)*($D14))) -> 95.0 | L20: =IF(OR(SUM(L15:L19)=0,'Deckblatt Gruender|Data Founder'!$M$1=1),"",IF('Deckblatt Gruender|Data Founder'!$M$1=2,SUM(L15:L19)-SUM(L15:L19)/(1+$D14),SUM(L15:L19)*($D14))) -> 114.0 | M20: =IF(OR(SUM(M15:M19)=0,'Deckblatt Gruender|Data Founder'!$M$1=1),"",IF('Deckblatt Gruender|Data Founder'!$M$1=2,SUM(M15:M19)-SUM(M15:M19)/(1+$D14),SUM(M15:M19)*($D14))) -> 133.0 | N20: =IF(OR(SUM(N15:N19)=0,'Deckblatt Gruender|Data Founder'!$M$1=1),"",IF('Deckblatt Gruender|Data Founder'!$M$1=2,SUM(N15:N19)-SUM(N15:N19)/(1+$D14),SUM(N15:N19)*($D14))) -> 152.0 | O20: =IF(OR(SUM(O15:O19)=0,'Deckblatt Gruender|Data Founder'!$M$1=1),"",IF('Deckblatt Gruender|Data Founder'!$M$1=2,SUM(O15:O19)-SUM(O15:O19)/(1+$D14),SUM(O15:O19)*($D14))) -> 171.0 | P20: =IF(OR(SUM(P15:P19)=0,'Deckblatt Gruender|Data Founder'!$M$1=1),"",IF('Deckblatt Gruender|Data Founder'!$M$1=2,SUM(P15:P19)-SUM(P15:P19)/(1+$D14),SUM(P15:P19)*($D14))) -> 190.0 | Q20: =IF(SUM(E20:P20)=0,"",SUM(E20:P20)) -> 1,045 | CV20: Summe Honorareinnahmen | CW20: Sum Income Consulting Services
C21: =IF($B$2="English",CW15,CV15)&" "&C14 -> Summe Umsatz Produktgruppe 2 | E21: =SUM(E15:E19) -> 0 | F21: 0 | G21: 100 | H21: 200 | I21: 300 | J21: 400 | K21: 500 | L21: 600 | M21: 700 | N21: 800 | O21: 900 | P21: 1,000 | Q21: 5,500
B22: 3 | C22: Honorareinnahmen | D22: 7% | CV22: Honorareinnahmen | CW22: Income Consulting Services
B23: 3.1 | D23: ↑ | E23: 500 | F23: 500 | G23: 500 | H23: 500 | I23: 500 | J23: 500 | K23: 500 | L23: 500 | M23: 500 | N23: 500 | O23: 500 | P23: 500 | Q23: =SUM(E23:P23) -> 6,000
B24: 3.2 | D24: =D8 -> Auswahl | Q24: =SUM(E24:P24) -> 0
C25: =C20 -> auf Rechnung ausgewiesener MwSt-Betrag | E25: =IF(OR(SUM(E23:E24)=0,'Deckblatt Gruender|Data Founder'!$M$1=1),"",IF('Deckblatt Gruender|Data Founder'!$M$1=2,SUM(E23:E24)-SUM(E23:E24)/(1+$D22),SUM(E23:E24)*($D22))) -> 35.0 | F25: =IF(OR(SUM(F23:F24)=0,'Deckblatt Gruender|Data Founder'!$M$1=1),"",IF('Deckblatt Gruender|Data Founder'!$M$1=2,SUM(F23:F24)-SUM(F23:F24)/(1+$D22),SUM(F23:F24)*($D22))) -> 35.0 | G25: =IF(OR(SUM(G23:G24)=0,'Deckblatt Gruender|Data Founder'!$M$1=1),"",IF('Deckblatt Gruender|Data Founder'!$M$1=2,SUM(G23:G24)-SUM(G23:G24)/(1+$D22),SUM(G23:G24)*($D22))) -> 35.0 | H25: =IF(OR(SUM(H23:H24)=0,'Deckblatt Gruender|Data Founder'!$M$1=1),"",IF('Deckblatt Gruender|Data Founder'!$M$1=2,SUM(H23:H24)-SUM(H23:H24)/(1+$D22),SUM(H23:H24)*($D22))) -> 35.0 | I25: =IF(OR(SUM(I23:I24)=0,'Deckblatt Gruender|Data Founder'!$M$1=1),"",IF('Deckblatt Gruender|Data Founder'!$M$1=2,SUM(I23:I24)-SUM(I23:I24)/(1+$D22),SUM(I23:I24)*($D22))) -> 35.0 | J25: =IF(OR(SUM(J23:J24)=0,'Deckblatt Gruender|Data Founder'!$M$1=1),"",IF('Deckblatt Gruender|Data Founder'!$M$1=2,SUM(J23:J24)-SUM(J23:J24)/(1+$D22),SUM(J23:J24)*($D22))) -> 35.0 | K25: =IF(OR(SUM(K23:K24)=0,'Deckblatt Gruender|Data Founder'!$M$1=1),"",IF('Deckblatt Gruender|Data Founder'!$M$1=2,SUM(K23:K24)-SUM(K23:K24)/(1+$D22),SUM(K23:K24)*($D22))) -> 35.0 | L25: =IF(OR(SUM(L23:L24)=0,'Deckblatt Gruender|Data Founder'!$M$1=1),"",IF('Deckblatt Gruender|Data Founder'!$M$1=2,SUM(L23:L24)-SUM(L23:L24)/(1+$D22),SUM(L23:L24)*($D22))) -> 35.0 | M25: =IF(OR(SUM(M23:M24)=0,'Deckblatt Gruender|Data Founder'!$M$1=1),"",IF('Deckblatt Gruender|Data Founder'!$M$1=2,SUM(M23:M24)-SUM(M23:M24)/(1+$D22),SUM(M23:M24)*($D22))) -> 35.0 | N25: =IF(OR(SUM(N23:N24)=0,'Deckblatt Gruender|Data Founder'!$M$1=1),"",IF('Deckblatt Gruender|Data Founder'!$M$1=2,SUM(N23:N24)-SUM(N23:N24)/(1+$D22),SUM(N23:N24)*($D22))) -> 35.0 | O25: =IF(OR(SUM(O23:O24)=0,'Deckblatt Gruender|Data Founder'!$M$1=1),"",IF('Deckblatt Gruender|Data Founder'!$M$1=2,SUM(O23:O24)-SUM(O23:O24)/(1+$D22),SUM(O23:O24)*($D22))) -> 35.0 | P25: =IF(OR(SUM(P23:P24)=0,'Deckblatt Gruender|Data Founder'!$M$1=1),"",IF('Deckblatt Gruender|Data Founder'!$M$1=2,SUM(P23:P24)-SUM(P23:P24)/(1+$D22),SUM(P23:P24)*($D22))) -> 35.0 | Q25: =IF(SUM(E25:P25)=0,"",SUM(E25:P25)) -> 420 | CV25: Summe Sonstige Einnahmen | CW25: Sum Other Income
C26: =IF($B$2="English",CW15,CV15)&" "&C22 -> Summe Honorareinnahmen | E26: =SUM(E23:E24) -> 500 | F26: =SUM(F23:F24) -> 500 | G26: 500 | H26: 500 | I26: 500 | J26: 500 | K26: 500 | L26: 500 | M26: 500 | N26: 500 | O26: 500 | P26: 500 | Q26: =SUM(E26:P26) -> 6,000
B27: 4 | C27: Sonstige Einnahmen | D27: 7% | CV27: Sonstige Einnahmen | CW27: Other Income
B28: 4.1 | D28: ↑ | E28: 1,250 | F28: 1,250 | G28: 1,250 | H28: 1,250 | I28: 1,250 | J28: 1,250 | Q28: =SUM(E28:P28) -> 7,500
B29: 4.2 | D29: =D8 -> Auswahl | E29: 0 | F29: 0 | G29: 0 | H29: 0 | I29: 0 | J29: 0 | K29: 0 | L29: 0 | M29: 0 | N29: 0 | O29: 0 | P29: 0 | Q29: =SUM(E29:P29) -> 0 | CV29: ="Nebenrechnung Umsätze/sonstige Einnahmen "&'1 Pers.Ausgaben|Pers Expenses'!$C$4+1 -> Nebenrechnung Umsätze/sonstige Einnahmen 2017 | CW29: ="Ancillary account for sales/other Income "&'1 Pers.Ausgaben|Pers Expenses'!$C$4+1 -> Ancillary account for sales/other Income 2017
C30: =C25 -> auf Rechnung ausgewiesener MwSt-Betrag | E30: =IF(OR(SUM(E28:E29)=0,'Deckblatt Gruender|Data Founder'!$M$1=1),"",IF('Deckblatt Gruender|Data Founder'!$M$1=2,SUM(E28:E29)-SUM(E28:E29)/(1+$D27),SUM(E28:E29)*($D27))) -> 87.5 | F30: =IF(OR(SUM(F28:F29)=0,'Deckblatt Gruender|Data Founder'!$M$1=1),"",IF('Deckblatt Gruender|Data Founder'!$M$1=2,SUM(F28:F29)-SUM(F28:F29)/(1+$D27),SUM(F28:F29)*($D27))) -> 87.5 | G30: =IF(OR(SUM(G28:G29)=0,'Deckblatt Gruender|Data Founder'!$M$1=1),"",IF('Deckblatt Gruender|Data Founder'!$M$1=2,SUM(G28:G29)-SUM(G28:G29)/(1+$D27),SUM(G28:G29)*($D27))) -> 87.5 | H30: =IF(OR(SUM(H28:H29)=0,'Deckblatt Gruender|Data Founder'!$M$1=1),"",IF('Deckblatt Gruender|Data Founder'!$M$1=2,SUM(H28:H29)-SUM(H28:H29)/(1+$D27),SUM(H28:H29)*($D27))) -> 87.5 | I30: =IF(OR(SUM(I28:I29)=0,'Deckblatt Gruender|Data Founder'!$M$1=1),"",IF('Deckblatt Gruender|Data Founder'!$M$1=2,SUM(I28:I29)-SUM(I28:I29)/(1+$D27),SUM(I28:I29)*($D27))) -> 87.5 | J30: =IF(OR(SUM(J28:J29)=0,'Deckblatt Gruender|Data Founder'!$M$1=1),"",IF('Deckblatt Gruender|Data Founder'!$M$1=2,SUM(J28:J29)-SUM(J28:J29)/(1+$D27),SUM(J28:J29)*($D27))) -> 87.5 | K30: =IF(OR(SUM(K28:K29)=0,'Deckblatt Gruender|Data Founder'!$M$1=1),"",IF('Deckblatt Gruender|Data Founder'!$M$1=2,SUM(K28:K29)-SUM(K28:K29)/(1+$D27),SUM(K28:K29)*($D27))) ->  | L30: =IF(OR(SUM(L28:L29)=0,'Deckblatt Gruender|Data Founder'!$M$1=1),"",IF('Deckblatt Gruender|Data Founder'!$M$1=2,SUM(L28:L29)-SUM(L28:L29)/(1+$D27),SUM(L28:L29)*($D27))) ->  | M30: =IF(OR(SUM(M28:M29)=0,'Deckblatt Gruender|Data Founder'!$M$1=1),"",IF('Deckblatt Gruender|Data Founder'!$M$1=2,SUM(M28:M29)-SUM(M28:M29)/(1+$D27),SUM(M28:M29)*($D27))) ->  | N30: =IF(OR(SUM(N28:N29)=0,'Deckblatt Gruender|Data Founder'!$M$1=1),"",IF('Deckblatt Gruender|Data Founder'!$M$1=2,SUM(N28:N29)-SUM(N28:N29)/(1+$D27),SUM(N28:N29)*($D27))) ->  | O30: =IF(OR(SUM(O28:O29)=0,'Deckblatt Gruender|Data Founder'!$M$1=1),"",IF('Deckblatt Gruender|Data Founder'!$M$1=2,SUM(O28:O29)-SUM(O28:O29)/(1+$D27),SUM(O28:O29)*($D27))) ->  | P30: =IF(OR(SUM(P28:P29)=0,'Deckblatt Gruender|Data Founder'!$M$1=1),"",IF('Deckblatt Gruender|Data Founder'!$M$1=2,SUM(P28:P29)-SUM(P28:P29)/(1+$D27),SUM(P28:P29)*($D27))) ->  | Q30: =IF(SUM(E30:P30)=0,"",SUM(E30:P30)) -> 525 | CV30: Summe Nebenrechnung Gruppe2 | CW30: Sum Ancillary Account Line2
C31: =IF($B$2="English",CW15,CV15)&" "&C27 -> Summe Sonstige Einnahmen | E31: =SUM(E28:E29) -> 1,250 | F31: =SUM(F28:F29) -> 1,250 | G31: 1,250 | H31: 1,250 | I31: 1,250 | J31: 1,250 | K31: 0 | L31: 0 | M31: 0 | N31: 0 | O31: 0 | P31: 0 | Q31: =SUM(E31:P31) -> 7,500 | CV31: Summe Nebenrechnung Gruppe1 | CW31: Sum Ancillary Account Line1
C32: =IF('Deckblatt Gruender|Data Founder'!M1=1,"",C12) -> auf Rechnung ausgewiesener MwSt-Betrag | D32: =IF(C32="","",7%) -> 7% | E32: =IF('Deckblatt Gruender|Data Founder'!$M$1=1,"",IF(E12="",0,E12*IF($D6=$F$2,1,0))+IF(E20="",0,E20*IF($D14=$F$2,1,0))+IF(E25="",0,E25*IF($D22=$F$2,1,0))+IF(E30="",0,E30*IF($D27=$F$2,1,0))) -> 122.5 | F32: =IF('Deckblatt Gruender|Data Founder'!$M$1=1,"",IF(F12="",0,F12*IF($D6=$F$2,1,0))+IF(F20="",0,F20*IF($D14=$F$2,1,0))+IF(F25="",0,F25*IF($D22=$F$2,1,0))+IF(F30="",0,F30*IF($D27=$F$2,1,0))) -> 122.5 | G32: =IF('Deckblatt Gruender|Data Founder'!$M$1=1,"",IF(G12="",0,G12*IF($D6=$F$2,1,0))+IF(G20="",0,G20*IF($D14=$F$2,1,0))+IF(G25="",0,G25*IF($D22=$F$2,1,0))+IF(G30="",0,G30*IF($D27=$F$2,1,0))) -> 122.5 | H32: =IF('Deckblatt Gruender|Data Founder'!$M$1=1,"",IF(H12="",0,H12*IF($D6=$F$2,1,0))+IF(H20="",0,H20*IF($D14=$F$2,1,0))+IF(H25="",0,H25*IF($D22=$F$2,1,0))+IF(H30="",0,H30*IF($D27=$F$2,1,0))) -> 122.5 | I32: =IF('Deckblatt Gruender|Data Founder'!$M$1=1,"",IF(I12="",0,I12*IF($D6=$F$2,1,0))+IF(I20="",0,I20*IF($D14=$F$2,1,0))+IF(I25="",0,I25*IF($D22=$F$2,1,0))+IF(I30="",0,I30*IF($D27=$F$2,1,0))) -> 122.5 | J32: =IF('Deckblatt Gruender|Data Founder'!$M$1=1,"",IF(J12="",0,J12*IF($D6=$F$2,1,0))+IF(J20="",0,J20*IF($D14=$F$2,1,0))+IF(J25="",0,J25*IF($D22=$F$2,1,0))+IF(J30="",0,J30*IF($D27=$F$2,1,0))) -> 122.5 | K32: =IF('Deckblatt Gruender|Data Founder'!$M$1=1,"",IF(K12="",0,K12*IF($D6=$F$2,1,0))+IF(K20="",0,K20*IF($D14=$F$2,1,0))+IF(K25="",0,K25*IF($D22=$F$2,1,0))+IF(K30="",0,K30*IF($D27=$F$2,1,0))) -> 35.0 | L32: =IF('Deckblatt Gruender|Data Founder'!$M$1=1,"",IF(L12="",0,L12*IF($D6=$F$2,1,0))+IF(L20="",0,L20*IF($D14=$F$2,1,0))+IF(L25="",0,L25*IF($D22=$F$2,1,0))+IF(L30="",0,L30*IF($D27=$F$2,1,0))) -> 35.0 | M32: =IF('Deckblatt Gruender|Data Founder'!$M$1=1,"",IF(M12="",0,M12*IF($D6=$F$2,1,0))+IF(M20="",0,M20*IF($D14=$F$2,1,0))+IF(M25="",0,M25*IF($D22=$F$2,1,0))+IF(M30="",0,M30*IF($D27=$F$2,1,0))) -> 35.0 | N32: =IF('Deckblatt Gruender|Data Founder'!$M$1=1,"",IF(N12="",0,N12*IF($D6=$F$2,1,0))+IF(N20="",0,N20*IF($D14=$F$2,1,0))+IF(N25="",0,N25*IF($D22=$F$2,1,0))+IF(N30="",0,N30*IF($D27=$F$2,1,0))) -> 35.0 | O32: =IF('Deckblatt Gruender|Data Founder'!$M$1=1,"",IF(O12="",0,O12*IF($D6=$F$2,1,0))+IF(O20="",0,O20*IF($D14=$F$2,1,0))+IF(O25="",0,O25*IF($D22=$F$2,1,0))+IF(O30="",0,O30*IF($D27=$F$2,1,0))) -> 35.0 | P32: =IF('Deckblatt Gruender|Data Founder'!$M$1=1,"",IF(P12="",0,P12*IF($D6=$F$2,1,0))+IF(P20="",0,P20*IF($D14=$F$2,1,0))+IF(P25="",0,P25*IF($D22=$F$2,1,0))+IF(P30="",0,P30*IF($D27=$F$2,1,0))) -> 35.0 | Q32: =IF('Deckblatt Gruender|Data Founder'!$M$1=1,"",SUM(E32:P32)) -> 945 | CV32: =IF($D$2="mit MwSt","im Umsatz enthaltene MwSt ","nicht im Umsatz enthaltene MwSt ") &"( "& $F$2*100 & "%)" -> nicht im Umsatz enthaltene MwSt ( 7%) | CW32: =IF($D$2="included VAT","applied VAT ","not in Sales included VAT ") & "( "&$F$2*100 & "%)" -> not in Sales included VAT ( 7%)
C33: =IF('Deckblatt Gruender|Data Founder'!M1=1,"",C12) -> auf Rechnung ausgewiesener MwSt-Betrag | D33: =IF(C33="","",19%) -> 19% | E33: =IF('Deckblatt Gruender|Data Founder'!$M$1=1,"",IF(E12="",0,E12*IF($D6=$G$2,1,0))+IF(E20="",0,E20*IF($D14=$G$2,1,0))+IF(E25="",0,E25*IF($D22=$G$2,1,0))+IF(E30="",0,E30*IF($D27=$G$2,1,0))) -> 19.0 | F33: =IF('Deckblatt Gruender|Data Founder'!$M$1=1,"",IF(F12="",0,F12*IF($D6=$G$2,1,0))+IF(F20="",0,F20*IF($D14=$G$2,1,0))+IF(F25="",0,F25*IF($D22=$G$2,1,0))+IF(F30="",0,F30*IF($D27=$G$2,1,0))) -> 38.0 | G33: =IF('Deckblatt Gruender|Data Founder'!$M$1=1,"",IF(G12="",0,G12*IF($D6=$G$2,1,0))+IF(G20="",0,G20*IF($D14=$G$2,1,0))+IF(G25="",0,G25*IF($D22=$G$2,1,0))+IF(G30="",0,G30*IF($D27=$G$2,1,0))) -> 76.0 | H33: =IF('Deckblatt Gruender|Data Founder'!$M$1=1,"",IF(H12="",0,H12*IF($D6=$G$2,1,0))+IF(H20="",0,H20*IF($D14=$G$2,1,0))+IF(H25="",0,H25*IF($D22=$G$2,1,0))+IF(H30="",0,H30*IF($D27=$G$2,1,0))) -> 114.0 | I33: =IF('Deckblatt Gruender|Data Founder'!$M$1=1,"",IF(I12="",0,I12*IF($D6=$G$2,1,0))+IF(I20="",0,I20*IF($D14=$G$2,1,0))+IF(I25="",0,I25*IF($D22=$G$2,1,0))+IF(I30="",0,I30*IF($D27=$G$2,1,0))) -> 152.0 | J33: =IF('Deckblatt Gruender|Data Founder'!$M$1=1,"",IF(J12="",0,J12*IF($D6=$G$2,1,0))+IF(J20="",0,J20*IF($D14=$G$2,1,0))+IF(J25="",0,J25*IF($D22=$G$2,1,0))+IF(J30="",0,J30*IF($D27=$G$2,1,0))) -> 190.0 | K33: =IF('Deckblatt Gruender|Data Founder'!$M$1=1,"",IF(K12="",0,K12*IF($D6=$G$2,1,0))+IF(K20="",0,K20*IF($D14=$G$2,1,0))+IF(K25="",0,K25*IF($D22=$G$2,1,0))+IF(K30="",0,K30*IF($D27=$G$2,1,0))) -> 228.0 | L33: =IF('Deckblatt Gruender|Data Founder'!$M$1=1,"",IF(L12="",0,L12*IF($D6=$G$2,1,0))+IF(L20="",0,L20*IF($D14=$G$2,1,0))+IF(L25="",0,L25*IF($D22=$G$2,1,0))+IF(L30="",0,L30*IF($D27=$G$2,1,0))) -> 266.0 | M33: =IF('Deckblatt Gruender|Data Founder'!$M$1=1,"",IF(M12="",0,M12*IF($D6=$G$2,1,0))+IF(M20="",0,M20*IF($D14=$G$2,1,0))+IF(M25="",0,M25*IF($D22=$G$2,1,0))+IF(M30="",0,M30*IF($D27=$G$2,1,0))) -> 304.0 | N33: =IF('Deckblatt Gruender|Data Founder'!$M$1=1,"",IF(N12="",0,N12*IF($D6=$G$2,1,0))+IF(N20="",0,N20*IF($D14=$G$2,1,0))+IF(N25="",0,N25*IF($D22=$G$2,1,0))+IF(N30="",0,N30*IF($D27=$G$2,1,0))) -> 342.0 | O33: =IF('Deckblatt Gruender|Data Founder'!$M$1=1,"",IF(O12="",0,O12*IF($D6=$G$2,1,0))+IF(O20="",0,O20*IF($D14=$G$2,1,0))+IF(O25="",0,O25*IF($D22=$G$2,1,0))+IF(O30="",0,O30*IF($D27=$G$2,1,0))) -> 380.0 | P33: =IF('Deckblatt Gruender|Data Founder'!$M$1=1,"",IF(P12="",0,P12*IF($D6=$G$2,1,0))+IF(P20="",0,P20*IF($D14=$G$2,1,0))+IF(P25="",0,P25*IF($D22=$G$2,1,0))+IF(P30="",0,P30*IF($D27=$G$2,1,0))) -> 418.0 | Q33: =IF('Deckblatt Gruender|Data Founder'!$M$1=1,"",SUM(E33:P33)) -> 2,527 | CV33: =IF($D$2="mit MwSt","im Umsatz enthaltene MwSt ","nicht im Umsatz enthaltene MwSt ") & "("&$G$2*100 & "%)" -> nicht im Umsatz enthaltene MwSt (19%) | CW33: =IF($D$2="included VAT","applied VAT ","not in Sales included VAT ")&"("& $G$2*100 & "%)" -> not in Sales included VAT (19%)
C34: =IF($B$2="English",CW34,CV34) -> Gesamtumsätze | E34: =E13+E21+E26+E31 -> 1,850 | F34: 1,950 | G34: 2,150 | H34: 2,350 | I34: 2,550 | J34: 2,750 | K34: 1,700 | L34: 1,900 | M34: 2,100 | N34: 2,300 | O34: 2,500 | P34: 2,700 | Q34: =SUM(E34:P34) -> 26,800 | CV34: Gesamtumsätze | CW34: Total Sales
C35: =IF($B$2="English",CW35,CV35) -> Gesamtumsätze akkumuliert | E35: =E34 -> 1,850 | F35: =E35+F34 -> 3,800 | G35: =F35+G34 -> 5,950 | H35: 8,300 | I35: 10,850 | J35: 13,600 | K35: 15,300 | L35: 17,200 | M35: 19,300 | N35: 21,600 | O35: 24,100 | P35: 26,800 | CV35: Gesamtumsätze akkumuliert | CW35: Total Sales accumulated
U36: =IF($B$2="English",CW29,CV29) -> Nebenrechnung Umsätze/sonstige Einnahmen 2017 | CV36: ="Summe "&CV7 -> Summe Umsatz Produktgruppe 1 | CW36: ="Sum "&CW7 -> Sum Sales Product Line 1
B37: =IF($C$4="English",CW37,CV37) -> 2a-2 Umsätze, Honorare, Sonstige Einnahmen (ohne MwSt) für die Monate des Jahres 2017 | CV37: ="2a-2 Umsätze, Honorare, Sonstige Einnahmen (" & 'Deckblatt Gruender|Data Founder'!$J$1 & ") für die Monate des Jahres " & '1 Pers.Ausgaben|Pers Expenses'!$C$4+1 -> 2a-2 Umsätze, Honorare, Sonstige Einnahmen (ohne MwSt) für die Monate des Jahres 2017 | CW37: ="2a-2 Sales, Fees, other Income (" & 'Deckblatt Gruender|Data Founder'!$K$1 & ") for the Months of the Year " & '1 Pers.Ausgaben|Pers Expenses'!$C$4+1 -> 2a-2 Sales, Fees, other Income (w/o VAT) for the Months of the Year 2017
U38: No. | V38: =C39 -> Einnahmeart | W38: =W4 -> MwSt | X38: =E39 -> Jan. | Y38: Febr. | Z38: März | AA38: April | AB38: Mai | AC38: Juni | AD38: Juli | AE38: Aug. | AF38: Sept. | AG38: Okt. | AH38: Nov. | AI38: Dez. | AJ38: Jahr 2017
B39: No. | C39: =IF(C38="English","Type of Income","Einnahmeart") -> Einnahmeart | D39: =D5 -> MwSt | E39: =E5 -> Jan. | F39: =F5 -> Febr. | G39: März | H39: April | I39: Mai | J39: Juni | K39: Juli | L39: Aug. | M39: Sept. | N39: Okt. | O39: Nov. | P39: Dez. | Q39: =IF($C$4="English",DL3,DL2) -> Jahr 2017 | U39: 1.6 | V39: =C45 -> Umsätze aus Nebenrechnung Gruppe 1 | W39: =D46 -> 19% | CV39: Einnahmeart | CW39: Type of Income
B40: 1 | C40: =C6 -> Umsatz Produktgruppe 1 | D40: =D6 -> 19% | U40: 1.6.1 | AJ40: =SUM(X40:AI40) -> 0 | CV40: Auswahl | CW40: Selection
B41: 1.1 | C41: =IF(C7="","",C7) ->  | E41: 2,000 | F41: 2,200 | G41: 2,400 | H41: 2,600 | I41: 2,800 | J41: 3,000 | K41: 3,200 | L41: 3,400 | M41: 3,600 | N41: 3,800 | O41: 4,000 | P41: 4,200 | Q41: =SUM(E41:P41) -> 37,200 | U41: 1.6.2 | AJ41: 0 | CV41: Umsatz Produktgruppe 1 | CW41: Sales Product Line 1
B42: 1.2 | C42: =IF(C8="","",C8) ->  | Q42: =SUM(E42:P42) -> 0 | U42: 1.6.3 | AJ42: 0 | CV42: Umsätze aus Nebenrechnung Gruppe 1 | CW42: Sales out of Ancillary Account Line 1
B43: 1.3 | C43: =IF(C9="","",C9) ->  | Q43: =SUM(E43:P43) -> 0 | U43: 1.6.4 | AJ43: 0 | CV43: Umsätze aus Nebenrechnung Gruppe 2 | CW43: Sales out of Ancillary Account Line 2
B44: 1.4 | C44: =IF(C10="","",C10) ->  | Q44: =SUM(E44:P44) -> 0 | U44: 1.6.5 | AJ44: 0
B45: 1.6 | C45: =C11 -> Umsätze aus Nebenrechnung Gruppe 1 | E45: =X45 ->  | Q45: =SUM(E45:P45) -> 0 | V45: =IF($B$2="English",CW65,CV65) -> Summe Nebenrechnung Gruppe1 | X45: =IF(SUM(X40:X44)=0,"",SUM(X40:X44)) ->  | AJ45: 0
C46: =C12 -> auf Rechnung ausgewiesener MwSt-Betrag | D46: =D6 -> 19% | E46: =IF(OR(SUM(E41:E45)=0,'Deckblatt Gruender|Data Founder'!$M$1=1),"",IF('Deckblatt Gruender|Data Founder'!$M$1=2,SUM(E41:E45)-SUM(E41:E45)/(1+$D46),SUM(E41:E45)*($D46))) -> 380.0 | F46: =IF(OR(SUM(F41:F45)=0,'Deckblatt Gruender|Data Founder'!$M$1=1),"",IF('Deckblatt Gruender|Data Founder'!$M$1=2,SUM(F41:F45)-SUM(F41:F45)/(1+$D46),SUM(F41:F45)*($D46))) -> 418.0 | G46: =IF(OR(SUM(G41:G45)=0,'Deckblatt Gruender|Data Founder'!$M$1=1),"",IF('Deckblatt Gruender|Data Founder'!$M$1=2,SUM(G41:G45)-SUM(G41:G45)/(1+$D46),SUM(G41:G45)*($D46))) -> 456.0 | H46: =IF(OR(SUM(H41:H45)=0,'Deckblatt Gruender|Data Founder'!$M$1=1),"",IF('Deckblatt Gruender|Data Founder'!$M$1=2,SUM(H41:H45)-SUM(H41:H45)/(1+$D46),SUM(H41:H45)*($D46))) -> 494.0 | I46: =IF(OR(SUM(I41:I45)=0,'Deckblatt Gruender|Data Founder'!$M$1=1),"",IF('Deckblatt Gruender|Data Founder'!$M$1=2,SUM(I41:I45)-SUM(I41:I45)/(1+$D46),SUM(I41:I45)*($D46))) -> 532.0 | J46: =IF(OR(SUM(J41:J45)=0,'Deckblatt Gruender|Data Founder'!$M$1=1),"",IF('Deckblatt Gruender|Data Founder'!$M$1=2,SUM(J41:J45)-SUM(J41:J45)/(1+$D46),SUM(J41:J45)*($D46))) -> 570.0 | K46: =IF(OR(SUM(K41:K45)=0,'Deckblatt Gruender|Data Founder'!$M$1=1),"",IF('Deckblatt Gruender|Data Founder'!$M$1=2,SUM(K41:K45)-SUM(K41:K45)/(1+$D46),SUM(K41:K45)*($D46))) -> 608.0 | L46: =IF(OR(SUM(L41:L45)=0,'Deckblatt Gruender|Data Founder'!$M$1=1),"",IF('Deckblatt Gruender|Data Founder'!$M$1=2,SUM(L41:L45)-SUM(L41:L45)/(1+$D46),SUM(L41:L45)*($D46))) -> 646.0 | M46: =IF(OR(SUM(M41:M45)=0,'Deckblatt Gruender|Data Founder'!$M$1=1),"",IF('Deckblatt Gruender|Data Founder'!$M$1=2,SUM(M41:M45)-SUM(M41:M45)/(1+$D46),SUM(M41:M45)*($D46))) -> 684.0 | N46: =IF(OR(SUM(N41:N45)=0,'Deckblatt Gruender|Data Founder'!$M$1=1),"",IF('Deckblatt Gruender|Data Founder'!$M$1=2,SUM(N41:N45)-SUM(N41:N45)/(1+$D46),SUM(N41:N45)*($D46))) -> 722.0 | O46: =IF(OR(SUM(O41:O45)=0,'Deckblatt Gruender|Data Founder'!$M$1=1),"",IF('Deckblatt Gruender|Data Founder'!$M$1=2,SUM(O41:O45)-SUM(O41:O45)/(1+$D46),SUM(O41:O45)*($D46))) -> 760.0 | P46: =IF(OR(SUM(P41:P45)=0,'Deckblatt Gruender|Data Founder'!$M$1=1),"",IF('Deckblatt Gruender|Data Founder'!$M$1=2,SUM(P41:P45)-SUM(P41:P45)/(1+$D46),SUM(P41:P45)*($D46))) -> 798.0 | Q46: =IF(SUM(E46:P46)=0,"",SUM(E46:P46)) -> 7,068
C47: =C13 -> Summe Umsatz Produktgruppe 1 | E47: =SUM(E41:E45) -> 2,000 | F47: 2,200 | G47: 2,400 | H47: 2,600 | I47: 2,800 | J47: 3,000 | K47: 3,200 | L47: 3,400 | M47: 3,600 | N47: 3,800 | O47: 4,000 | P47: 4,200 | Q47: 37,200 | U47: 2.6 | V47: =C53 -> Umsätze aus Nebenrechnung Gruppe 2 | W47: =D54 -> 19%
B48: 2 | C48: =C14 -> Umsatz Produktgruppe 2 | D48: =D14 -> 19% | U48: 2.6.1 | AJ48: =SUM(X48:AI48) -> 0 | CV48: Umsatz Produktgruppe 2 | CW48: Sales Product Line 2
B49: 2.1 | C49: =IF(C15="","",C15) ->  | E49: 1,200 | F49: 1,400 | G49: 1,600 | H49: 1,800 | I49: 2,000 | J49: 2,200 | K49: 2,400 | L49: 2,600 | M49: 2,800 | N49: 3,000 | O49: 3,200 | P49: 3,400 | Q49: =SUM(E49:P49) -> 27,600 | U49: 2.6.2 | AJ49: 0 | CV49: Summe Umsatz Produktgrppe 2 | CW49: Sum Sales Product Line 2
B50: 2.2 | Q50: =SUM(E50:P50) -> 0 | U50: 2.6.3 | AJ50: 0
B51: 2.3 | C51: =IF(C17="","",C17) ->  | Q51: =SUM(E51:P51) -> 0 | U51: 2.6.4 | AJ51: 0
B52: 2.4 | C52: =IF(C18="","",C18) ->  | Q52: =SUM(E52:P52) -> 0 | U52: 2.6.5 | AJ52: 0
B53: 2.6 | C53: =C19 -> Umsätze aus Nebenrechnung Gruppe 2 | E53: =X53 ->  | Q53: =SUM(E53:P53) -> 0 | V53: =IF($B$2="English",CW64,CV64) -> Summe Nebenrechnung Gruppe2 | X53: =IF(SUM(X48:X52)=0,"",SUM(X48:X52)) ->  | AJ53: 0
C54: =C20 -> auf Rechnung ausgewiesener MwSt-Betrag | D54: =D14 -> 19% | E54: =IF(OR(SUM(E49:E53)=0,'Deckblatt Gruender|Data Founder'!$M$1=1),"",IF('Deckblatt Gruender|Data Founder'!$M$1=2,SUM(E49:E53)-SUM(E49:E53)/(1+$D54),SUM(E49:E53)*($D54))) -> 228.0 | F54: =IF(OR(SUM(F49:F53)=0,'Deckblatt Gruender|Data Founder'!$M$1=1),"",IF('Deckblatt Gruender|Data Founder'!$M$1=2,SUM(F49:F53)-SUM(F49:F53)/(1+$D54),SUM(F49:F53)*($D54))) -> 266.0 | G54: =IF(OR(SUM(G49:G53)=0,'Deckblatt Gruender|Data Founder'!$M$1=1),"",IF('Deckblatt Gruender|Data Founder'!$M$1=2,SUM(G49:G53)-SUM(G49:G53)/(1+$D54),SUM(G49:G53)*($D54))) -> 304.0 | H54: =IF(OR(SUM(H49:H53)=0,'Deckblatt Gruender|Data Founder'!$M$1=1),"",IF('Deckblatt Gruender|Data Founder'!$M$1=2,SUM(H49:H53)-SUM(H49:H53)/(1+$D54),SUM(H49:H53)*($D54))) -> 342.0 | I54: =IF(OR(SUM(I49:I53)=0,'Deckblatt Gruender|Data Founder'!$M$1=1),"",IF('Deckblatt Gruender|Data Founder'!$M$1=2,SUM(I49:I53)-SUM(I49:I53)/(1+$D54),SUM(I49:I53)*($D54))) -> 380.0 | J54: =IF(OR(SUM(J49:J53)=0,'Deckblatt Gruender|Data Founder'!$M$1=1),"",IF('Deckblatt Gruender|Data Founder'!$M$1=2,SUM(J49:J53)-SUM(J49:J53)/(1+$D54),SUM(J49:J53)*($D54))) -> 418.0 | K54: =IF(OR(SUM(K49:K53)=0,'Deckblatt Gruender|Data Founder'!$M$1=1),"",IF('Deckblatt Gruender|Data Founder'!$M$1=2,SUM(K49:K53)-SUM(K49:K53)/(1+$D54),SUM(K49:K53)*($D54))) -> 456.0 | L54: =IF(OR(SUM(L49:L53)=0,'Deckblatt Gruender|Data Founder'!$M$1=1),"",IF('Deckblatt Gruender|Data Founder'!$M$1=2,SUM(L49:L53)-SUM(L49:L53)/(1+$D54),SUM(L49:L53)*($D54))) -> 494.0 | M54: =IF(OR(SUM(M49:M53)=0,'Deckblatt Gruender|Data Founder'!$M$1=1),"",IF('Deckblatt Gruender|Data Founder'!$M$1=2,SUM(M49:M53)-SUM(M49:M53)/(1+$D54),SUM(M49:M53)*($D54))) -> 532.0 | N54: =IF(OR(SUM(N49:N53)=0,'Deckblatt Gruender|Data Founder'!$M$1=1),"",IF('Deckblatt Gruender|Data Founder'!$M$1=2,SUM(N49:N53)-SUM(N49:N53)/(1+$D54),SUM(N49:N53)*($D54))) -> 570.0 | O54: =IF(OR(SUM(O49:O53)=0,'Deckblatt Gruender|Data Founder'!$M$1=1),"",IF('Deckblatt Gruender|Data Founder'!$M$1=2,SUM(O49:O53)-SUM(O49:O53)/(1+$D54),SUM(O49:O53)*($D54))) -> 608.0 | P54: =IF(OR(SUM(P49:P53)=0,'Deckblatt Gruender|Data Founder'!$M$1=1),"",IF('Deckblatt Gruender|Data Founder'!$M$1=2,SUM(P49:P53)-SUM(P49:P53)/(1+$D54),SUM(P49:P53)*($D54))) -> 646.0 | Q54: =IF(SUM(E54:P54)=0,"",SUM(E54:P54)) -> 5,244 | CV54: Summe Honorareinnahmen | CW54: Sum Income Consulting Services
C55: =C21 -> Summe Umsatz Produktgruppe 2 | E55: =SUM(E49:E53) -> 1,200 | F55: 1,400 | G55: 1,600 | H55: 1,800 | I55: 2,000 | J55: 2,200 | K55: 2,400 | L55: 2,600 | M55: 2,800 | N55: 3,000 | O55: 3,200 | P55: 3,400 | Q55: 27,600
B56: 3 | C56: =C22 -> Honorareinnahmen | D56: =D22 -> 7% | CV56: Honorareinnahmen | CW56: Income Consulting Services
B57: 3.1 | C57: =IF(C23="","",C23) ->  | E57: 1,000 | F57: 1,000 | G57: 1,000 | H57: 1,000 | I57: 1,000 | J57: 1,000 | K57: 1,000 | L57: 1,000 | M57: 1,000 | N57: 1,000 | O57: 1,000 | P57: 1,000 | Q57: =SUM(E57:P57) -> 12,000
B58: 3.2 | Q58: =SUM(E58:P58) -> 0
C59: =C25 -> auf Rechnung ausgewiesener MwSt-Betrag | D59: =D22 -> 7% | E59: =IF(OR(SUM(E57:E58)=0,'Deckblatt Gruender|Data Founder'!$M$1=1),"",IF('Deckblatt Gruender|Data Founder'!$M$1=2,SUM(E57:E58)-SUM(E57:E58)/(1+$D59),SUM(E57:E58)*($D59))) -> 70.0 | F59: =IF(OR(SUM(F57:F58)=0,'Deckblatt Gruender|Data Founder'!$M$1=1),"",IF('Deckblatt Gruender|Data Founder'!$M$1=2,SUM(F57:F58)-SUM(F57:F58)/(1+$D59),SUM(F57:F58)*($D59))) -> 70.0 | G59: =IF(OR(SUM(G57:G58)=0,'Deckblatt Gruender|Data Founder'!$M$1=1),"",IF('Deckblatt Gruender|Data Founder'!$M$1=2,SUM(G57:G58)-SUM(G57:G58)/(1+$D59),SUM(G57:G58)*($D59))) -> 70.0 | H59: =IF(OR(SUM(H57:H58)=0,'Deckblatt Gruender|Data Founder'!$M$1=1),"",IF('Deckblatt Gruender|Data Founder'!$M$1=2,SUM(H57:H58)-SUM(H57:H58)/(1+$D59),SUM(H57:H58)*($D59))) -> 70.0 | I59: =IF(OR(SUM(I57:I58)=0,'Deckblatt Gruender|Data Founder'!$M$1=1),"",IF('Deckblatt Gruender|Data Founder'!$M$1=2,SUM(I57:I58)-SUM(I57:I58)/(1+$D59),SUM(I57:I58)*($D59))) -> 70.0 | J59: =IF(OR(SUM(J57:J58)=0,'Deckblatt Gruender|Data Founder'!$M$1=1),"",IF('Deckblatt Gruender|Data Founder'!$M$1=2,SUM(J57:J58)-SUM(J57:J58)/(1+$D59),SUM(J57:J58)*($D59))) -> 70.0 | K59: =IF(OR(SUM(K57:K58)=0,'Deckblatt Gruender|Data Founder'!$M$1=1),"",IF('Deckblatt Gruender|Data Founder'!$M$1=2,SUM(K57:K58)-SUM(K57:K58)/(1+$D59),SUM(K57:K58)*($D59))) -> 70.0 | L59: =IF(OR(SUM(L57:L58)=0,'Deckblatt Gruender|Data Founder'!$M$1=1),"",IF('Deckblatt Gruender|Data Founder'!$M$1=2,SUM(L57:L58)-SUM(L57:L58)/(1+$D59),SUM(L57:L58)*($D59))) -> 70.0 | M59: =IF(OR(SUM(M57:M58)=0,'Deckblatt Gruender|Data Founder'!$M$1=1),"",IF('Deckblatt Gruender|Data Founder'!$M$1=2,SUM(M57:M58)-SUM(M57:M58)/(1+$D59),SUM(M57:M58)*($D59))) -> 70.0 | N59: =IF(OR(SUM(N57:N58)=0,'Deckblatt Gruender|Data Founder'!$M$1=1),"",IF('Deckblatt Gruender|Data Founder'!$M$1=2,SUM(N57:N58)-SUM(N57:N58)/(1+$D59),SUM(N57:N58)*($D59))) -> 70.0 | O59: =IF(OR(SUM(O57:O58)=0,'Deckblatt Gruender|Data Founder'!$M$1=1),"",IF('Deckblatt Gruender|Data Founder'!$M$1=2,SUM(O57:O58)-SUM(O57:O58)/(1+$D59),SUM(O57:O58)*($D59))) -> 70.0 | P59: =IF(OR(SUM(P57:P58)=0,'Deckblatt Gruender|Data Founder'!$M$1=1),"",IF('Deckblatt Gruender|Data Founder'!$M$1=2,SUM(P57:P58)-SUM(P57:P58)/(1+$D59),SUM(P57:P58)*($D59))) -> 70.0 | Q59: =IF(SUM(E59:P59)=0,"",SUM(E59:P59)) -> 840 | CV59: Summe Sonstige Einnehmen | CW59: Sum Other Income
C60: =C26 -> Summe Honorareinnahmen | E60: =SUM(E57:E58) -> 1,000 | F60: =SUM(F57:F58) -> 1,000 | G60: 1,000 | H60: 1,000 | I60: 1,000 | J60: 1,000 | K60: 1,000 | L60: 1,000 | M60: 1,000 | N60: 1,000 | O60: 1,000 | P60: 1,000 | Q60: =SUM(E60:P60) -> 12,000
B61: 4 | C61: =C27 -> Sonstige Einnahmen | D61: =D27 -> 7% | CV61: Sonstige Einnahmen | CW61: Other Income
B62: 4.1 | C62: =IF(C28="","",C28) ->  | Q62: =SUM(E62:P62) -> 0
B63: 4.2 | C63: =IF(C29="","",C29) ->  | Q63: =SUM(E63:P63) -> 0
C64: =C30 -> auf Rechnung ausgewiesener MwSt-Betrag | D64: =D27 -> 7% | E64: =IF(OR(SUM(E62:E63)=0,'Deckblatt Gruender|Data Founder'!$M$1=1),"",IF('Deckblatt Gruender|Data Founder'!$M$1=2,SUM(E62:E63)-SUM(E62:E63)/(1+$D64),SUM(E62:E63)*($D64))) ->  | F64: =IF(OR(SUM(F62:F63)=0,'Deckblatt Gruender|Data Founder'!$M$1=1),"",IF('Deckblatt Gruender|Data Founder'!$M$1=2,SUM(F62:F63)-SUM(F62:F63)/(1+$D64),SUM(F62:F63)*($D64))) ->  | G64: =IF(OR(SUM(G62:G63)=0,'Deckblatt Gruender|Data Founder'!$M$1=1),"",IF('Deckblatt Gruender|Data Founder'!$M$1=2,SUM(G62:G63)-SUM(G62:G63)/(1+$D64),SUM(G62:G63)*($D64))) ->  | H64: =IF(OR(SUM(H62:H63)=0,'Deckblatt Gruender|Data Founder'!$M$1=1),"",IF('Deckblatt Gruender|Data Founder'!$M$1=2,SUM(H62:H63)-SUM(H62:H63)/(1+$D64),SUM(H62:H63)*($D64))) ->  | I64: =IF(OR(SUM(I62:I63)=0,'Deckblatt Gruender|Data Founder'!$M$1=1),"",IF('Deckblatt Gruender|Data Founder'!$M$1=2,SUM(I62:I63)-SUM(I62:I63)/(1+$D64),SUM(I62:I63)*($D64))) ->  | J64: =IF(OR(SUM(J62:J63)=0,'Deckblatt Gruender|Data Founder'!$M$1=1),"",IF('Deckblatt Gruender|Data Founder'!$M$1=2,SUM(J62:J63)-SUM(J62:J63)/(1+$D64),SUM(J62:J63)*($D64))) ->  | K64: =IF(OR(SUM(K62:K63)=0,'Deckblatt Gruender|Data Founder'!$M$1=1),"",IF('Deckblatt Gruender|Data Founder'!$M$1=2,SUM(K62:K63)-SUM(K62:K63)/(1+$D64),SUM(K62:K63)*($D64))) ->  | L64: =IF(OR(SUM(L62:L63)=0,'Deckblatt Gruender|Data Founder'!$M$1=1),"",IF('Deckblatt Gruender|Data Founder'!$M$1=2,SUM(L62:L63)-SUM(L62:L63)/(1+$D64),SUM(L62:L63)*($D64))) ->  | M64: =IF(OR(SUM(M62:M63)=0,'Deckblatt Gruender|Data Founder'!$M$1=1),"",IF('Deckblatt Gruender|Data Founder'!$M$1=2,SUM(M62:M63)-SUM(M62:M63)/(1+$D64),SUM(M62:M63)*($D64))) ->  | N64: =IF(OR(SUM(N62:N63)=0,'Deckblatt Gruender|Data Founder'!$M$1=1),"",IF('Deckblatt Gruender|Data Founder'!$M$1=2,SUM(N62:N63)-SUM(N62:N63)/(1+$D64),SUM(N62:N63)*($D64))) ->  | O64: =IF(OR(SUM(O62:O63)=0,'Deckblatt Gruender|Data Founder'!$M$1=1),"",IF('Deckblatt Gruender|Data Founder'!$M$1=2,SUM(O62:O63)-SUM(O62:O63)/(1+$D64),SUM(O62:O63)*($D64))) ->  | P64: =IF(OR(SUM(P62:P63)=0,'Deckblatt Gruender|Data Founder'!$M$1=1),"",IF('Deckblatt Gruender|Data Founder'!$M$1=2,SUM(P62:P63)-SUM(P62:P63)/(1+$D64),SUM(P62:P63)*($D64))) ->  | Q64: =IF(SUM(E64:P64)=0,"",SUM(E64:P64)) ->  | CV64: Summe Nebenrechnung Gruppe2 | CW64: Sum Ancillary Account Line2
C65: Summe Sonstige Einnahmen | E65: =SUM(E62:E63) -> 0 | F65: =SUM(F62:F63) -> 0 | G65: 0 | H65: 0 | I65: 0 | J65: 0 | K65: 0 | L65: 0 | M65: 0 | N65: 0 | O65: 0 | P65: 0 | Q65: =SUM(E65:P65) -> 0 | CV65: Summe Nebenrechnung Gruppe1 | CW65: Sum Ancillary Account Line1
C66: auf Rechnung ausgewiesener MwSt-Betrag | D66: =D32 -> 7% | E66: =IF('Deckblatt Gruender|Data Founder'!$M$1=1,"",IF(E46="",0,E46*IF($D46=$F$2,1,0))+IF(E54="",0,E54*IF($D54=$F$2,1,0))+IF(E59="",0,E59*IF($D59=$F$2,1,0))+IF(E64="",0,E64*IF($D64=$F$2,1,0))) -> 70 | F66: =IF('Deckblatt Gruender|Data Founder'!$M$1=1,"",IF(F46="",0,F46*IF($D46=$F$2,1,0))+IF(F54="",0,F54*IF($D54=$F$2,1,0))+IF(F59="",0,F59*IF($D59=$F$2,1,0))+IF(F64="",0,F64*IF($D64=$F$2,1,0))) -> 70 | G66: =IF('Deckblatt Gruender|Data Founder'!$M$1=1,"",IF(G46="",0,G46*IF($D46=$F$2,1,0))+IF(G54="",0,G54*IF($D54=$F$2,1,0))+IF(G59="",0,G59*IF($D59=$F$2,1,0))+IF(G64="",0,G64*IF($D64=$F$2,1,0))) -> 70 | H66: =IF('Deckblatt Gruender|Data Founder'!$M$1=1,"",IF(H46="",0,H46*IF($D46=$F$2,1,0))+IF(H54="",0,H54*IF($D54=$F$2,1,0))+IF(H59="",0,H59*IF($D59=$F$2,1,0))+IF(H64="",0,H64*IF($D64=$F$2,1,0))) -> 70 | I66: =IF('Deckblatt Gruender|Data Founder'!$M$1=1,"",IF(I46="",0,I46*IF($D46=$F$2,1,0))+IF(I54="",0,I54*IF($D54=$F$2,1,0))+IF(I59="",0,I59*IF($D59=$F$2,1,0))+IF(I64="",0,I64*IF($D64=$F$2,1,0))) -> 70 | J66: =IF('Deckblatt Gruender|Data Founder'!$M$1=1,"",IF(J46="",0,J46*IF($D46=$F$2,1,0))+IF(J54="",0,J54*IF($D54=$F$2,1,0))+IF(J59="",0,J59*IF($D59=$F$2,1,0))+IF(J64="",0,J64*IF($D64=$F$2,1,0))) -> 70 | K66: =IF('Deckblatt Gruender|Data Founder'!$M$1=1,"",IF(K46="",0,K46*IF($D46=$F$2,1,0))+IF(K54="",0,K54*IF($D54=$F$2,1,0))+IF(K59="",0,K59*IF($D59=$F$2,1,0))+IF(K64="",0,K64*IF($D64=$F$2,1,0))) -> 70 | L66: =IF('Deckblatt Gruender|Data Founder'!$M$1=1,"",IF(L46="",0,L46*IF($D46=$F$2,1,0))+IF(L54="",0,L54*IF($D54=$F$2,1,0))+IF(L59="",0,L59*IF($D59=$F$2,1,0))+IF(L64="",0,L64*IF($D64=$F$2,1,0))) -> 70 | M66: =IF('Deckblatt Gruender|Data Founder'!$M$1=1,"",IF(M46="",0,M46*IF($D46=$F$2,1,0))+IF(M54="",0,M54*IF($D54=$F$2,1,0))+IF(M59="",0,M59*IF($D59=$F$2,1,0))+IF(M64="",0,M64*IF($D64=$F$2,1,0))) -> 70 | N66: =IF('Deckblatt Gruender|Data Founder'!$M$1=1,"",IF(N46="",0,N46*IF($D46=$F$2,1,0))+IF(N54="",0,N54*IF($D54=$F$2,1,0))+IF(N59="",0,N59*IF($D59=$F$2,1,0))+IF(N64="",0,N64*IF($D64=$F$2,1,0))) -> 70 | O66: =IF('Deckblatt Gruender|Data Founder'!$M$1=1,"",IF(O46="",0,O46*IF($D46=$F$2,1,0))+IF(O54="",0,O54*IF($D54=$F$2,1,0))+IF(O59="",0,O59*IF($D59=$F$2,1,0))+IF(O64="",0,O64*IF($D64=$F$2,1,0))) -> 70 | P66: =IF('Deckblatt Gruender|Data Founder'!$M$1=1,"",IF(P46="",0,P46*IF($D46=$F$2,1,0))+IF(P54="",0,P54*IF($D54=$F$2,1,0))+IF(P59="",0,P59*IF($D59=$F$2,1,0))+IF(P64="",0,P64*IF($D64=$F$2,1,0))) -> 70 | Q66: =IF('Deckblatt Gruender|Data Founder'!$M$1=1,"",SUM(E66:P66)) -> 840 | CV66: ="Summe "& IF($D$2="mit MwSt","im Umsatz enthaltene MwSt ","im Umsatz nicht enthaltene MwSt ") & "( "&$F$2*100 & "%)" -> Summe im Umsatz nicht enthaltene MwSt ( 7%) | CW66: ="Sum of "&IF($D$2="mit MwSt","applied VAT ","included VAT ") & "( "&$F$2*100 & "%)" -> Sum of included VAT ( 7%)
C67: auf Rechnung ausgewiesener MwSt-Betrag | D67: =D33 -> 19% | E67: =IF('Deckblatt Gruender|Data Founder'!$M$1=1,"",IF(E46="",0,E46*IF($D46=$G$2,1,0))+IF(E54="",0,E54*IF($D54=$G$2,1,0))+IF(E59="",0,E59*IF($D59=$G$2,1,0))+IF(E64="",0,E64*IF($D64=$G$2,1,0))) -> 608 | F67: =IF('Deckblatt Gruender|Data Founder'!$M$1=1,"",IF(F46="",0,F46*IF($D46=$G$2,1,0))+IF(F54="",0,F54*IF($D54=$G$2,1,0))+IF(F59="",0,F59*IF($D59=$G$2,1,0))+IF(F64="",0,F64*IF($D64=$G$2,1,0))) -> 684 | G67: =IF('Deckblatt Gruender|Data Founder'!$M$1=1,"",IF(G46="",0,G46*IF($D46=$G$2,1,0))+IF(G54="",0,G54*IF($D54=$G$2,1,0))+IF(G59="",0,G59*IF($D59=$G$2,1,0))+IF(G64="",0,G64*IF($D64=$G$2,1,0))) -> 760 | H67: =IF('Deckblatt Gruender|Data Founder'!$M$1=1,"",IF(H46="",0,H46*IF($D46=$G$2,1,0))+IF(H54="",0,H54*IF($D54=$G$2,1,0))+IF(H59="",0,H59*IF($D59=$G$2,1,0))+IF(H64="",0,H64*IF($D64=$G$2,1,0))) -> 836 | I67: =IF('Deckblatt Gruender|Data Founder'!$M$1=1,"",IF(I46="",0,I46*IF($D46=$G$2,1,0))+IF(I54="",0,I54*IF($D54=$G$2,1,0))+IF(I59="",0,I59*IF($D59=$G$2,1,0))+IF(I64="",0,I64*IF($D64=$G$2,1,0))) -> 912 | J67: =IF('Deckblatt Gruender|Data Founder'!$M$1=1,"",IF(J46="",0,J46*IF($D46=$G$2,1,0))+IF(J54="",0,J54*IF($D54=$G$2,1,0))+IF(J59="",0,J59*IF($D59=$G$2,1,0))+IF(J64="",0,J64*IF($D64=$G$2,1,0))) -> 988 | K67: =IF('Deckblatt Gruender|Data Founder'!$M$1=1,"",IF(K46="",0,K46*IF($D46=$G$2,1,0))+IF(K54="",0,K54*IF($D54=$G$2,1,0))+IF(K59="",0,K59*IF($D59=$G$2,1,0))+IF(K64="",0,K64*IF($D64=$G$2,1,0))) -> 1,064 | L67: =IF('Deckblatt Gruender|Data Founder'!$M$1=1,"",IF(L46="",0,L46*IF($D46=$G$2,1,0))+IF(L54="",0,L54*IF($D54=$G$2,1,0))+IF(L59="",0,L59*IF($D59=$G$2,1,0))+IF(L64="",0,L64*IF($D64=$G$2,1,0))) -> 1,140 | M67: =IF('Deckblatt Gruender|Data Founder'!$M$1=1,"",IF(M46="",0,M46*IF($D46=$G$2,1,0))+IF(M54="",0,M54*IF($D54=$G$2,1,0))+IF(M59="",0,M59*IF($D59=$G$2,1,0))+IF(M64="",0,M64*IF($D64=$G$2,1,0))) -> 1,216 | N67: =IF('Deckblatt Gruender|Data Founder'!$M$1=1,"",IF(N46="",0,N46*IF($D46=$G$2,1,0))+IF(N54="",0,N54*IF($D54=$G$2,1,0))+IF(N59="",0,N59*IF($D59=$G$2,1,0))+IF(N64="",0,N64*IF($D64=$G$2,1,0))) -> 1,292 | O67: =IF('Deckblatt Gruender|Data Founder'!$M$1=1,"",IF(O46="",0,O46*IF($D46=$G$2,1,0))+IF(O54="",0,O54*IF($D54=$G$2,1,0))+IF(O59="",0,O59*IF($D59=$G$2,1,0))+IF(O64="",0,O64*IF($D64=$G$2,1,0))) -> 1,368 | P67: =IF('Deckblatt Gruender|Data Founder'!$M$1=1,"",IF(P46="",0,P46*IF($D46=$G$2,1,0))+IF(P54="",0,P54*IF($D54=$G$2,1,0))+IF(P59="",0,P59*IF($D59=$G$2,1,0))+IF(P64="",0,P64*IF($D64=$G$2,1,0))) -> 1,444 | Q67: =IF('Deckblatt Gruender|Data Founder'!$M$1=1,"",SUM(E67:P67)) -> 12,312 | CV67: ="Summe "& IF($D$2="mit MwSt","im Umsatz enthaltene MwSt ","nicht im Umsatz enthaltene MwSt ") & "("&$G$2*100 & "% )" -> Summe nicht im Umsatz enthaltene MwSt (19% ) | CW67: ="Sum of "&IF($D$2="mit MwSt","additional VAT ","included VAT ")& "("&$G$2*100 & "%)" -> Sum of included VAT (19%)
C68: Gesamtumsätze | E68: =E47+E55+E60+E65 -> 4,200 | F68: 4,600 | G68: 5,000 | H68: 5,400 | I68: 5,800 | J68: 6,200 | K68: 6,600 | L68: 7,000 | M68: 7,400 | N68: 7,800 | O68: 8,200 | P68: 8,600 | Q68: =SUM(E68:P68) -> 76,800 | CV68: Gesamtumsätze | CW68: Total Sales
C69: Gesamtumsätze akkumuliert | E69: =E68 -> 4,200 | F69: =E69+F68 -> 8,800 | G69: 13,800 | H69: 19,200 | I69: 25,000 | J69: 31,200 | K69: 37,800 | L69: 44,800 | M69: 52,200 | N69: 60,000 | O69: 68,200 | P69: 76,800 | CV69: Gesamtumsätze akkumuliert | CW69: Total Sales accumulated
CV70: ="Umsätze, Honorare, sonst.Einnahmen (" & 'Deckblatt Gruender|Data Founder'!$J$1 & ") für " & '1 Pers.Ausgaben|Pers Expenses'!$C$4 &"-"& '1 Pers.Ausgaben|Pers Expenses'!$C$4+4 -> Umsätze, Honorare, sonst.Einnahmen (ohne MwSt) für 2016-2020 | CW70: ="Sales, Fees, other Income for " & '1 Pers.Ausgaben|Pers Expenses'!$C$4& "-"& '1 Pers.Ausgaben|Pers Expenses'!$C$4+4 -> Sales, Fees, other Income for 2016-2020
B71: =IF($C$4="English",CW71,CV71) -> 2b Umsätze, Honorare, sonst. Einnahmen (ohne MwSt) für die Jahre 2016 - 2020 | N71: =IF(C4="English",CW70,CV70) -> Umsätze, Honorare, sonst.Einnahmen (ohne MwSt) für 2016-2020 | CV71: ="2b Umsätze, Honorare, sonst. Einnahmen (" & 'Deckblatt Gruender|Data Founder'!$J$1& ") für die Jahre " & '1 Pers.Ausgaben|Pers Expenses'!$C$4 & " - " & '1 Pers.Ausgaben|Pers Expenses'!$C$4+4 -> 2b Umsätze, Honorare, sonst. Einnahmen (ohne MwSt) für die Jahre 2016 - 2020 | CW71: ="2b Sales, Fees, other Income (" & 'Deckblatt Gruender|Data Founder'!$K$1& ") for the Years " & '1 Pers.Ausgaben|Pers Expenses'!$C$4 & " - " & '1 Pers.Ausgaben|Pers Expenses'!$C$4+4 -> 2b Sales, Fees, other Income (w/o VAT) for the Years 2016 - 2020
U72: No. | V72: =C73 -> Einnahmeart | W72: =IF($C$4="English","VAT", "MwSt") -> MwSt | X72: =E73+2 -> 2018 | Y72: =X72+1 -> 2019 | Z72: =Y72+1 -> 2020
B73: =B5 -> No. | C73: =C5 -> Einnahmeart | D73: =D5 -> MwSt | E73: ='1 Pers.Ausgaben|Pers Expenses'!C4 -> 2016 | F73: =E73+1 -> 2017 | G73: =F73+1 -> 2018 | H73: =G73+1 -> 2019 | I73: =H73+1 -> 2020 | U73: 1.6 | V73: =C79 -> Umsätze aus Nebenrechnung Gruppe 1 | W73: =D80 -> 19%
B74: 1 | C74: =C6 -> Umsatz Produktgruppe 1 | D74: =D40 -> 19% | U74: 1.6.1 | CV74: ="Umsätze und Einnahmen (" & 'Deckblatt Gruender|Data Founder'!$J$1 & ") für die Jahre " & '1 Pers.Ausgaben|Pers Expenses'!$C$4 &" und "& '1 Pers.Ausgaben|Pers Expenses'!$C$4+1&" (EUR)" -> Umsätze und Einnahmen (ohne MwSt) für die Jahre 2016 und 2017 (EUR) | CW74: ="Sales and Income (" & 'Deckblatt Gruender|Data Founder'!$K$1& ") for the Years " & '1 Pers.Ausgaben|Pers Expenses'!$C$4& " and "& '1 Pers.Ausgaben|Pers Expenses'!$C$4+1&" (EUR)" -> Sales and Income (w/o VAT) for the Years 2016 and 2017 (EUR)
B75: 1.1 | C75: =IF(C41="","",C41) ->  | E75: =Q7 -> 7,800 | F75: =Q41 -> 37,200 | G75: 50,000 | H75: 80,000 | I75: 125,000 | U75: 1.6.2
B76: 1.2 | C76: =IF(C42="","",C42) ->  | E76: =Q8 -> 0 | F76: 0 | U76: 1.6.3
B77: 1.3 | C77: =IF(C43="","",C43) ->  | E77: 0 | F77: 0 | U77: 1.6.4
B78: 1.4 | C78: =IF(C44="","",C44) ->  | E78: 0 | F78: 0 | U78: 1.6.5
B79: 1.6 | C79: =C11 -> Umsätze aus Nebenrechnung Gruppe 1 | E79: 0 | F79: 0 | G79: =X79 ->  | H79: =Y79 ->  | I79: =Z79 ->  | V79: =V45 -> Summe Nebenrechnung Gruppe1 | X79: =IF(SUM(X74:X78)=0,"",SUM(X74:X78)) ->  | Y79: =IF(SUM(Y74:Y78)=0,"",SUM(Y74:Y78)) ->  | Z79: =IF(SUM(Z74:Z78)=0,"",SUM(Z74:Z78)) -> 
C80: =C12 -> auf Rechnung ausgewiesener MwSt-Betrag | D80: =D6 -> 19% | E80: 1,482 | F80: 7,068 | G80: =IF(OR(SUM(G75:G79)=0,'Deckblatt Gruender|Data Founder'!$M$1=1),"",IF('Deckblatt Gruender|Data Founder'!$M$1=2,SUM(G75:G79)-SUM(G75:G79)/(1+$D80),SUM(G75:G79)*($D80))) -> 9,500.0 | H80: =IF(OR(SUM(H75:H79)=0,'Deckblatt Gruender|Data Founder'!$M$1=1),"",IF('Deckblatt Gruender|Data Founder'!$M$1=2,SUM(H75:H79)-SUM(H75:H79)/(1+$D80),SUM(H75:H79)*($D80))) -> 15,200.0 | I80: =IF(OR(SUM(I75:I79)=0,'Deckblatt Gruender|Data Founder'!$M$1=1),"",IF('Deckblatt Gruender|Data Founder'!$M$1=2,SUM(I75:I79)-SUM(I75:I79)/(1+$D80),SUM(I75:I79)*($D80))) -> 23,750.0
C81: =C13 -> Summe Umsatz Produktgruppe 1 | E81: =Q13 -> 7,800 | F81: =Q47 -> 37,200 | G81: =SUM(G75:G79) -> 50,000 | H81: =SUM(H75:H79) -> 80,000 | I81: =SUM(I75:I79) -> 125,000 | U81: 2.6 | V81: =C87 -> Umsätze aus Nebenrechnung Gruppe 2 | W81: =D88 -> 19%
B82: 2 | C82: =C14 -> Umsatz Produktgruppe 2 | D82: =D48 -> 19% | U82: 2.6.1
B83: 2.1 | C83: =IF(C49="","",C49) ->  | E83: =Q15 -> 5,500 | F83: =Q49 -> 27,600 | G83: 35,000 | H83: 50,000 | I83: 75,000 | U83: 2.6.2
B84: 2.2 | C84: =IF(C50="","",C50) ->  | E84: 0 | F84: 0 | U84: 2.6.3
B85: 2.3 | C85: =IF(C51="","",C51) ->  | E85: 0 | F85: 0 | U85: 2.6.4
B86: 2.4 | C86: =IF(C52="","",C52) ->  | E86: 0 | F86: 0 | U86: 2.6.5
B87: 2.6 | C87: =C19 -> Umsätze aus Nebenrechnung Gruppe 2 | E87: 0 | F87: 0 | G87: =X87 ->  | H87: =Y87 ->  | I87: =Z87 ->  | V87: =V53 -> Summe Nebenrechnung Gruppe2 | X87: =IF(SUM(X82:X86)=0,"",SUM(X82:X86)) ->  | Y87: =IF(SUM(Y82:Y86)=0,"",SUM(Y82:Y86)) ->  | Z87: =IF(SUM(Z82:Z86)=0,"",SUM(Z82:Z86)) -> 
C88: =C20 -> auf Rechnung ausgewiesener MwSt-Betrag | D88: =D14 -> 19% | E88: 1,045 | F88: 5,244 | G88: =IF(OR(SUM(G83:G87)=0,'Deckblatt Gruender|Data Founder'!$M$1=1),"",IF('Deckblatt Gruender|Data Founder'!$M$1=2,SUM(G83:G87)-SUM(G83:G87)/(1+$D88),SUM(G83:G87)*($D88))) -> 6,650.0 | H88: =IF(OR(SUM(H83:H87)=0,'Deckblatt Gruender|Data Founder'!$M$1=1),"",IF('Deckblatt Gruender|Data Founder'!$M$1=2,SUM(H83:H87)-SUM(H83:H87)/(1+$D88),SUM(H83:H87)*($D88))) -> 9,500.0 | I88: =IF(OR(SUM(I83:I87)=0,'Deckblatt Gruender|Data Founder'!$M$1=1),"",IF('Deckblatt Gruender|Data Founder'!$M$1=2,SUM(I83:I87)-SUM(I83:I87)/(1+$D88),SUM(I83:I87)*($D88))) -> 14,250.0
C89: =C21 -> Summe Umsatz Produktgruppe 2 | E89: 5,500 | F89: 27,600 | G89: =SUM(G83:G87) -> 35,000 | H89: =SUM(H83:H87) -> 50,000 | I89: =SUM(I83:I87) -> 75,000
B90: 3 | C90: =C22 -> Honorareinnahmen | D90: =D56 -> 7%
B91: 3.1 | C91: =IF(C57="","",C57) ->  | E91: =Q23 -> 6,000 | F91: =Q57 -> 12,000 | G91: 14,000 | H91: 16,000 | I91: 18,000
B92: 3.2 | C92: =IF(C58="","",C58) ->  | E92: =Q24 -> 0 | F92: =Q58 -> 0
C93: =C25 -> auf Rechnung ausgewiesener MwSt-Betrag | D93: =D22 -> 7% | E93: =Q25 -> 420 | F93: =Q59 -> 840 | G93: =IF(OR(SUM(G91:G92)=0,'Deckblatt Gruender|Data Founder'!$M$1=1),"",IF('Deckblatt Gruender|Data Founder'!$M$1=2,SUM(G91:G92)-SUM(G91:G92)/(1+$D93),SUM(G91:G92)*($D93))) -> 980.0 | H93: =IF(OR(SUM(H91:H92)=0,'Deckblatt Gruender|Data Founder'!$M$1=1),"",IF('Deckblatt Gruender|Data Founder'!$M$1=2,SUM(H91:H92)-SUM(H91:H92)/(1+$D93),SUM(H91:H92)*($D93))) -> 1,120.0 | I93: =IF(OR(SUM(I91:I92)=0,'Deckblatt Gruender|Data Founder'!$M$1=1),"",IF('Deckblatt Gruender|Data Founder'!$M$1=2,SUM(I91:I92)-SUM(I91:I92)/(1+$D93),SUM(I91:I92)*($D93))) -> 1,260.0
C94: =C26 -> Summe Honorareinnahmen | E94: =Q26 -> 6,000 | F94: =Q60 -> 12,000 | G94: =SUM(G91:G92) -> 14,000 | H94: =SUM(H91:H92) -> 16,000 | I94: =SUM(I91:I92) -> 18,000
B95: 4 | C95: =C27 -> Sonstige Einnahmen | D95: =D61 -> 7%
B96: 4.1 | C96: =IF(C62="","",C62) ->  | E96: =Q28 -> 7,500 | F96: =Q62 -> 0
B97: 4.2 | C97: =IF(C63="","",C63) ->  | E97: 0 | F97: 0
C98: =C30 -> auf Rechnung ausgewiesener MwSt-Betrag | D98: =D27 -> 7% | E98: 525 | G98: =IF(OR(SUM(G96:G97)=0,'Deckblatt Gruender|Data Founder'!$M$1=1),"",IF('Deckblatt Gruender|Data Founder'!$M$1=2,SUM(G96:G97)-SUM(G96:G97)/(1+$D98),SUM(G96:G97)*($D98))) ->  | H98: =IF(OR(SUM(H96:H97)=0,'Deckblatt Gruender|Data Founder'!$M$1=1),"",IF('Deckblatt Gruender|Data Founder'!$M$1=2,SUM(H96:H97)-SUM(H96:H97)/(1+$D98),SUM(H96:H97)*($D98))) ->  | I98: =IF(OR(SUM(I96:I97)=0,'Deckblatt Gruender|Data Founder'!$M$1=1),"",IF('Deckblatt Gruender|Data Founder'!$M$1=2,SUM(I96:I97)-SUM(I96:I97)/(1+$D98),SUM(I96:I97)*($D98))) -> 
C99: Summe Sonstige Einnahmen | E99: 7,500 | F99: 0 | G99: =SUM(G96:G97) -> 0 | H99: =SUM(H96:H97) -> 0 | I99: =SUM(I96:I97) -> 0 | S99: Ende
C100: auf Rechnung ausgewiesener MwSt-Betrag | D100: =D32 -> 7% | E100: 945 | F100: 840 | G100: =IF('Deckblatt Gruender|Data Founder'!$M$1=1,"",IF(G80="",0,G80*IF($D80=$F$2,1,0))+IF(G88="",0,G88*IF($D88=$F$2,1,0))+IF(G93="",0,G93*IF($D93=$F$2,1,0))+IF(G98="",0,G98*IF($D98=$F$2,1,0))) -> 980 | H100: =IF('Deckblatt Gruender|Data Founder'!$M$1=1,"",IF(H80="",0,H80*IF($D80=$F$2,1,0))+IF(H88="",0,H88*IF($D88=$F$2,1,0))+IF(H93="",0,H93*IF($D93=$F$2,1,0))+IF(H98="",0,H98*IF($D98=$F$2,1,0))) -> 1,120 | I100: =IF('Deckblatt Gruender|Data Founder'!$M$1=1,"",IF(I80="",0,I80*IF($D80=$F$2,1,0))+IF(I88="",0,I88*IF($D88=$F$2,1,0))+IF(I93="",0,I93*IF($D93=$F$2,1,0))+IF(I98="",0,I98*IF($D98=$F$2,1,0))) -> 1,260
C101: auf Rechnung ausgewiesener MwSt-Betrag | D101: =D33 -> 19% | E101: 2,527 | F101: 12,312 | G101: =IF('Deckblatt Gruender|Data Founder'!$M$1=1,"",IF(G80="",0,G80*IF($D80=$G$2,1,0))+IF(G88="",0,G88*IF($D88=$G$2,1,0))+IF(G93="",0,G93*IF($D93=$G$2,1,0))+IF(G98="",0,G98*IF($D98=$G$2,1,0))) -> 16,150 | H101: =IF('Deckblatt Gruender|Data Founder'!$M$1=1,"",IF(H80="",0,H80*IF($D80=$G$2,1,0))+IF(H88="",0,H88*IF($D88=$G$2,1,0))+IF(H93="",0,H93*IF($D93=$G$2,1,0))+IF(H98="",0,H98*IF($D98=$G$2,1,0))) -> 24,700 | I101: =IF('Deckblatt Gruender|Data Founder'!$M$1=1,"",IF(I80="",0,I80*IF($D80=$G$2,1,0))+IF(I88="",0,I88*IF($D88=$G$2,1,0))+IF(I93="",0,I93*IF($D93=$G$2,1,0))+IF(I98="",0,I98*IF($D98=$G$2,1,0))) -> 38,000
C102: Gesamtumsätze | E102: =E81+E89+E94+E99 -> 26,800 | F102: =F81+F89+F94+F99 -> 76,800 | G102: =G81+G89+G94+G99 -> 99,000 | H102: =H81+H89+H94+H99 -> 146,000 | I102: =I81+I89+I94+I99 -> 218,000
C103: Gesamtumsätze akkumuliert | E103: =E102 -> 26,800 | F103: =F102 -> 76,800 | G103: =F103+G102 -> 175,800 | H103: =G103+H102 -> 321,800 | I103: =H103+I102 -> 539,800
I109: =IF($C$4="English",CW74,CV74) -> Umsätze und Einnahmen (ohne MwSt) für die Jahre 2016 und 2017 (EUR)
E175: ="Jan. "&'1 Pers.Ausgaben|Pers Expenses'!$C$4 -> Jan. 2016 | F175: ="Feb. "&'1 Pers.Ausgaben|Pers Expenses'!$C$4 -> Feb. 2016 | G175: ="März"&'1 Pers.Ausgaben|Pers Expenses'!$C$4 -> März2016 | H175: ="April "&'1 Pers.Ausgaben|Pers Expenses'!$C$4 -> April 2016 | I175: ="Mai "&'1 Pers.Ausgaben|Pers Expenses'!$C$4 -> Mai 2016 | J175: ="Juni "&'1 Pers.Ausgaben|Pers Expenses'!$C$4 -> Juni 2016 | K175: ="Juli "&'1 Pers.Ausgaben|Pers Expenses'!$C$4 -> Juli 2016 | L175: ="Aug. "&'1 Pers.Ausgaben|Pers Expenses'!$C$4 -> Aug. 2016 | M175: ="Sept. "&'1 Pers.Ausgaben|Pers Expenses'!$C$4 -> Sept. 2016 | N175: ="Okt. "&'1 Pers.Ausgaben|Pers Expenses'!$C$4 -> Okt. 2016 | O175: ="Nov. "&'1 Pers.Ausgaben|Pers Expenses'!$C$4 -> Nov. 2016 | P175: ="Dez. "&'1 Pers.Ausgaben|Pers Expenses'!$C$4 -> Dez. 2016 | Q175: ="Jan. "&'1 Pers.Ausgaben|Pers Expenses'!$C$4+1 -> Jan. 2017 | R175: ="Feb. "&'1 Pers.Ausgaben|Pers Expenses'!$C$4+1 -> Feb. 2017 | S175: ="März "&'1 Pers.Ausgaben|Pers Expenses'!$C$4+1 -> März 2017 | T175: ="April "&'1 Pers.Ausgaben|Pers Expenses'!$C$4+1 -> April 2017 | U175: ="Mai "&'1 Pers.Ausgaben|Pers Expenses'!$C$4+1 -> Mai 2017 | V175: ="Juni "&'1 Pers.Ausgaben|Pers Expenses'!$C$4+1 -> Juni 2017 | W175: ="Juli "&'1 Pers.Ausgaben|Pers Expenses'!$C$4+1 -> Juli 2017 | X175: ="Aug. "&'1 Pers.Ausgaben|Pers Expenses'!$C$4+1 -> Aug. 2017 | Y175: ="Sept. "&'1 Pers.Ausgaben|Pers Expenses'!$C$4+1 -> Sept. 2017 | Z175: ="Okt. "&'1 Pers.Ausgaben|Pers Expenses'!$C$4+1 -> Okt. 2017 | AA175: ="Nov. "&'1 Pers.Ausgaben|Pers Expenses'!$C$4+1 -> Nov. 2017 | AB175: ="Dez. "&'1 Pers.Ausgaben|Pers Expenses'!$C$4+1 -> Dez. 2017
E176: =E13 -> 100 | F176: =F13 -> 200 | G176: 300 | H176: 400 | I176: 500 | J176: 600 | K176: 700 | L176: 800 | M176: 900 | N176: 1,000 | O176: 1,100 | P176: 1,200 | Q176: =E47 -> 2,000 | R176: =F47 -> 2,200 | S176: =G47 -> 2,400 | T176: =H47 -> 2,600 | U176: 2,800 | V176: 3,000 | W176: 3,200 | X176: 3,400 | Y176: 3,600 | Z176: 3,800 | AA176: 4,000 | AB176: 4,200
E177: =E21 -> 0 | F177: =F21 -> 0 | G177: 100 | H177: 200 | I177: 300 | J177: 400 | K177: 500 | L177: 600 | M177: 700 | N177: 800 | O177: 900 | P177: 1,000 | Q177: =E55 -> 1,200 | R177: =F55 -> 1,400 | S177: =G55 -> 1,600 | T177: =H55 -> 1,800 | U177: 2,000 | V177: 2,200 | W177: 2,400 | X177: 2,600 | Y177: 2,800 | Z177: 3,000 | AA177: 3,200 | AB177: 3,400
E178: =E26 -> 500 | F178: =F26 -> 500 | G178: 500 | H178: 500 | I178: 500 | J178: 500 | K178: 500 | L178: 500 | M178: 500 | N178: 500 | O178: 500 | P178: 500 | Q178: =E60 -> 1,000 | R178: =F60 -> 1,000 | S178: =G60 -> 1,000 | T178: =H60 -> 1,000 | U178: 1,000 | V178: 1,000 | W178: 1,000 | X178: 1,000 | Y178: 1,000 | Z178: 1,000 | AA178: 1,000 | AB178: 1,000
E179: =E31 -> 1,250 | F179: =F31 -> 1,250 | G179: 1,250 | H179: 1,250 | I179: 1,250 | J179: 1,250 | K179: 0 | L179: 0 | M179: 0 | N179: 0 | O179: 0 | P179: 0 | Q179: =E65 -> 0 | R179: =F65 -> 0 | S179: =G65 -> 0 | T179: =H65 -> 0 | U179: 0 | V179: 0 | W179: 0 | X179: 0 | Y179: 0 | Z179: 0 | AA179: 0 | AB179: 0

Sheet 3 Anschaffungen|Investment (hidden)
R1: x
C2: ='Deckblatt Gruender|Data Founder'!$D$8 -> Deutsch | R2: 2 | T2: Aufgaben und/oder Kommentar | CV2: Deutsch | CW2: English | CY2: Jan. | CZ2: Febr. | DA2: März | DB2: April | DC2: Mai | DD2: Juni | DE2: Juli | DF2: Aug. | DG2: Sept. | DH2: Okt. | DI2: Nov. | DJ2: Dez. | DK2: ="Jahr "&'1 Pers.Ausgaben|Pers Expenses'!C4 -> Jahr 2016
B3: =IF($C$2="English",CW3,CV3) -> 3a Geplante Anschaffungen (ohne MwSt) und deren Abschreibungen 2016 - 2020 in EURO | R3: 3 | T3: To Do list / Comments | CV3: ="3a Geplante Anschaffungen (" & IF($C$4<>1,"ohne MwSt)","mit MwSt)") &" und deren Abschreibungen "& '1 Pers.Ausgaben|Pers Expenses'!$C$4 &" - "& '1 Pers.Ausgaben|Pers Expenses'!$C$4+4 & " in EURO" -> 3a Geplante Anschaffungen (ohne MwSt) und deren Abschreibungen 2016 - 2020 in EURO | CW3: ="3a Planned Capital Expenditures (" & IF($C$4<>1,"w/o VAT)","incl. VAT)") &" and depreciation "& '1 Pers.Ausgaben|Pers Expenses'!$C$4 &" - "& '1 Pers.Ausgaben|Pers Expenses'!$C$4+4 & " in EURO" -> 3a Planned Capital Expenditures (w/o VAT) and depreciation 2016 - 2020 in EURO | CY3: Jan | CZ3: Feb | DA3: Mar | DB3: Apr | DC3: May | DD3: June | DE3: July | DF3: Aug | DG3: Sept | DH3: Oct | DI3: Nov | DJ3: Dec | DK3: ="Year "&'1 Pers.Ausgaben|Pers Expenses'!C4 -> Year 2016
C4: ='Deckblatt Gruender|Data Founder'!M1 -> 0 | R4: 4 | CV4: Investmonat | CW4: Month of Investment
B5: No. | C5: =IF($C$2="English",CW5,CV5) -> Anschaffungen | E5: =IF($C$2="English","Value ","Betrag ")&'1 Pers.Ausgaben|Pers Expenses'!$C$4 -> Betrag 2016 | F5: =IF($C$2="English",CW4,CV4) -> Investmonat | G5: =IF($C$2="English","Value ","Betrag ")&'1 Pers.Ausgaben|Pers Expenses'!$C$4+1 -> Betrag 2017 | H5: =F5 -> Investmonat | I5: =IF($C$2="English","Value ","Betrag ")&'1 Pers.Ausgaben|Pers Expenses'!$C$4+2 -> Betrag 2018 | J5: =F5 -> Investmonat | K5: =IF($C$2="English","Value ","Betrag ")&'1 Pers.Ausgaben|Pers Expenses'!$C$4+3 -> Betrag 2019 | L5: =F5 -> Investmonat | M5: =IF($C$2="English","Value ","Betrag ")&'1 Pers.Ausgaben|Pers Expenses'!$C$4+4 -> Betrag 2020 | N5: =F5 -> Investmonat | P5: =IF($C$2="English",CW15,CV15) -> Jahre der Abschreibung | Q5: 1) | R5: 5 | S5: =IF(C2="English",T3,T2) -> Aufgaben und/oder Kommentar | CV5: Anschaffungen | CW5: Investment
B6: 1 | C6: Equipements | G6: 40,000 | H6: 4 | P6: 5 | R6: 6 | CV6: Investitionsgut 1 | CW6: Investment 1
B7: 2 | C7: Investitionsgut 2 | R7: 7 | CV7: Investitionsgut 2 | CW7: Investment 2
B8: 3 | C8: Investitionsgut 3 | R8: 8 | CV8: Investitionsgut 3 | CW8: Investment 3
B9: 4 | C9: Investitionsgut 4 | R9: 9 | CV9: Investitionsgut 4 | CW9: Investment 4
B10: 5 | C10: Investitionsgut 5 | R10: 10 | CV10: Investitionsgut 5 | CW10: Investment 5
B11: 6 | C11: Investitionsgut 6 | R11: 12 | CV11: Investitionsgut 6 | CW11: Investment 6
B12: 7 | C12: Investitionsgut 7 | R12: 15 | CV12: Investitionsgut 7 | CW12: Investment 7
B13: 8 | C13: =IF($C$2="English",CW13,CV13) -> Summe Sammelposten | E13: =IF(E27=0,"",E27) -> 1,200 | F13: 1 | H13: 1 | I13: =IF(K27=0,"",K27) ->  | J13: 1 | K13: =IF(N27=0,"",N27) ->  | L13: 1 | N13: 1 | P13: 5 | R13: 20 | CV13: Summe Sammelposten | CW13: Sum compound items
C14: =IF($C$2="English",CW14,CV14) -> Summe Anschaffungen | E14: =SUM(E6:E13) -> 1,200 | G14: =SUM(G6:G13) -> 40,000 | I14: =SUM(I6:I13) -> 0 | K14: =SUM(K6:K13) -> 0 | M14: =SUM(M6:M13) -> 0 | R14: 25 | CV14: Summe Anschaffungen | CW14: Sum Investment
CV15: Jahre der Abschreibung | CW15: Asset depreciation range (years)
B16: =IF($C$2="English",CW16,CV16) -> 3b Poolabschreibung / Sammelposten(ohne MwSt) | I16: b) | CV16: ="3b Poolabschreibung / Sammelposten(" & IF($C$4<>1,"ohne MwSt)","mit MwSt) ") -> 3b Poolabschreibung / Sammelposten(ohne MwSt) | CW16: ="3b Investment of Compound Items ) (" & IF($C$4<>1,"w/o VAT)","incl. VAT)") -> 3b Investment of Compound Items ) (w/o VAT)
CV17: Wert | CW17: Value
B18: =B5 -> No. | C18: =IF($C$2="English",$CW$18,$CV$18)& '1 Pers.Ausgaben|Pers Expenses'!$C$4 -> Sammelposten 2016 | F18: =IF($C$2="English",$CW$18,$CV$18)& '1 Pers.Ausgaben|Pers Expenses'!$C$4+1 -> Sammelposten 2017 | I18: =IF($C$2="English",$CW$18,$CV$18)& '1 Pers.Ausgaben|Pers Expenses'!$C$4+2 -> Sammelposten 2018 | L18: =IF($C$2="English",$CW$18,$CV$18)& '1 Pers.Ausgaben|Pers Expenses'!$C$4+3 -> Sammelposten 2019 | CV18: ="Sammelposten " -> Sammelposten | CW18: ="Compound items " -> Compound items
B19: 8.1 | C19: Sammelposten 1 | E19: 400 | F19: Sammelposten 1 | I19: Sammelposten 1 | L19: Sammelposten 1 | CV19: Sammelposten 1 | CW19: Compound item 1
B20: 8.2 | C20: Sammelposten 2 | E20: 200 | F20: Sammelposten 2 | I20: Sammelposten 2 | L20: Sammelposten 2 | CV20: Sammelposten 2 | CW20: Compound item 2
B21: 8.3 | C21: Sammelposten 3 | E21: 200 | F21: Sammelposten 3 | I21: Sammelposten 3 | L21: Sammelposten 3 | CV21: Sammelposten 3 | CW21: Compound item 3
B22: 8.4 | C22: Sammelposten 4 | E22: 400 | F22: Sammelposten 4 | I22: Sammelposten 4 | L22: Sammelposten 4 | CV22: Sammelposten 4 | CW22: Compound item 4
B23: 8.5 | C23: Sammelposten 5 | F23: Sammelposten 5 | I23: Sammelposten 5 | L23: Sammelposten 5 | CV23: Sammelposten 5 | CW23: Compound item 5
B24: 8.6 | C24: Sammelposten 6 | F24: Sammelposten 6 | I24: Sammelposten 6 | L24: Sammelposten 6 | CV24: Sammelposten 6 | CW24: Compound item 6
B25: 8.7 | C25: Sammelposten 7 | F25: Sammelposten 7 | I25: Sammelposten 7 | L25: Sammelposten 7 | CV25: Sammelposten 7 | CW25: Compound item 7
B26: 8.8 | C26: Sammelposten 8 | F26: Sammelposten 8 | I26: Sammelposten 8 | L26: Sammelposten 8 | CV26: Sammelposten 8 | CW26: Compound item 8
C27: =IF($C$2="English",CW27,CV27) -> Summe Sammelposten | E27: =SUM(E19:E26) -> 1,200 | H27: =SUM(H19:H26) -> 0 | K27: =SUM(K19:K26) -> 0 | N27: =SUM(N19:N26) -> 0 | CV27: Summe Sammelposten | CW27: Sum compound items
B29: =IF($C$2="English",CW29,CV29) -> 3c-1 Monatliche Abschreibungen (ohne MwSt) für das Jahr 2016 in EURO | CV29: ="3c-1 Monatliche Abschreibungen (" & IF($C$4<>1,"ohne MwSt)","mit MwSt) ")&" für das Jahr "&'1 Pers.Ausgaben|Pers Expenses'!$C$4&" in EURO" -> 3c-1 Monatliche Abschreibungen (ohne MwSt) für das Jahr 2016 in EURO | CW29: ="3c-1 Monthly depreciation ("&IF($C$4<>1,"w/o VAT)","incl VAT)")&" for the year "&'1 Pers.Ausgaben|Pers Expenses'!$C$4&" in EURO" -> 3c-1 Monthly depreciation (w/o VAT) for the year 2016 in EURO
CV30: Wert | CW30: Amount
B31: =IF($C$2="English",CW31,CV31) -> Monate | E31: =IF($C$2="English",CY3,CY2) -> Jan. | F31: Febr. | G31: März | H31: April | I31: Mai | J31: Juni | K31: Juli | L31: Aug. | M31: Sept. | N31: Okt. | O31: Nov. | P31: Dez. | CV31: Monate | CW31: Months
B32: =IF($C$2="English",CW32,CV32) -> monatl. Abschreibungen | E32: =D92 -> 20 | F32: =E92 -> 20 | G32: 20 | H32: 20 | I32: 20 | J32: 20 | K32: 20 | L32: 20 | M32: 20 | N32: 20 | O32: 20 | P32: 20 | CV32: monatl. Abschreibungen | CW32: Depreciation per month
O33: =IF($C$2="English",CW33,CV33) -> Summe 2016 | P33: =SUM(E32:P32) -> 240 | CV33: ="Summe " & '1 Pers.Ausgaben|Pers Expenses'!$C$4 -> Summe 2016 | CW33: ="Sum " & '1 Pers.Ausgaben|Pers Expenses'!$C$4 -> Sum 2016
B34: =IF($C$2="English",CW34,CV34) -> 3c-2 Monatliche Abschreibungen (ohne MwSt) für das Jahr 2017 in EURO | CV34: ="3c-2 Monatliche Abschreibungen (" & IF($C$4<>1,"ohne MwSt)","mit MwSt) ")&" für das Jahr "&'1 Pers.Ausgaben|Pers Expenses'!$C$4+1&" in EURO" -> 3c-2 Monatliche Abschreibungen (ohne MwSt) für das Jahr 2017 in EURO | CW34: ="3c-2 Depreciation per month ("&IF($C$4<>1,"w/o VAT)","incl VAT)")&" for the year "&'1 Pers.Ausgaben|Pers Expenses'!$C$4+1&" in EURO" -> 3c-2 Depreciation per month (w/o VAT) for the year 2017 in EURO
B36: =B31 -> Monate | E36: =E31 -> Jan. | F36: Febr. | G36: März | H36: April | I36: Mai | J36: Juni | K36: Juli | L36: Aug. | M36: Sept. | N36: Okt. | O36: Nov. | P36: Dez. | CV36: Monate | CW36: Months
B37: =B32 -> monatl. Abschreibungen | E37: =D118 -> 20 | F37: =E118 -> 20 | G37: 20 | H37: 687 | I37: 687 | J37: 687 | K37: 687 | L37: 687 | M37: 687 | N37: 687 | O37: 687 | P37: 687 | CV37: monatl. Abschreibungen | CW37: monthly write offs
O38: =IF($C$2="English",CW38,CV38) -> Summe 2017 | P38: =SUM(E37:P37) -> 6,240 | CV38: ="Summe " & '1 Pers.Ausgaben|Pers Expenses'!$C$4+1 -> Summe 2017 | CW38: ="Sum " & '1 Pers.Ausgaben|Pers Expenses'!$C$4+1 -> Sum 2017
B40: =IF($C$2="English",CW40,CV40) -> 3d Jährliche Abschreibungen (ohne MwSt) für die Jahre 2016-2020 in EURO | M40: =IF($C$2="English","Investment","Investitionen") -> Investitionen | CV40: ="3d Jährliche Abschreibungen ("& IF($C$4<>1,"ohne MwSt)","mit MwSt")&" für die Jahre "&'1 Pers.Ausgaben|Pers Expenses'!$C$4&"-"&'1 Pers.Ausgaben|Pers Expenses'!$C$4+4&" in EURO" -> 3d Jährliche Abschreibungen (ohne MwSt) für die Jahre 2016-2020 in EURO | CW40: ="3d Anual depreciacion ("&IF($C$4<>1,"w/o VAT)","incl VAT)")&" for the Years "&'1 Pers.Ausgaben|Pers Expenses'!$C$4&"-"&'1 Pers.Ausgaben|Pers Expenses'!$C$4+4&" in EURO" -> 3d Anual depreciacion (w/o VAT) for the Years 2016-2020 in EURO
B42: =IF($C$2="English",CW42,CV42) -> Investitionen | E42: ='1 Pers.Ausgaben|Pers Expenses'!C4 -> 2016 | F42: =E42+1 -> 2017 | G42: =F42+1 -> 2018 | H42: =G42+1 -> 2019 | I42: =H42+1 -> 2020 | CV42: Investitionen | CW42: Capital Expenditures
B43: 1 | C43: =C6 -> Equipements | E43: =P83 -> 0 | F43: =P109 -> 6,000 | G43: =P135 -> 8,000 | H43: =P161 -> 8,000 | I43: =P187 -> 8,000
B44: 2 | C44: Investitionsgut 2 | E44: =P84 -> 0 | F44: =P110 -> 0 | G44: =P136 -> 0 | H44: =P162 -> 0 | I44: =P188 -> 0
B45: 3 | C45: Investitionsgut 3 | E45: 0 | F45: 0 | G45: 0 | H45: 0 | I45: 0
B46: 4 | C46: Investitionsgut 4 | E46: 0 | F46: 0 | G46: 0 | H46: 0 | I46: 0
B47: 5 | C47: Investitionsgut 5 | E47: 0 | F47: 0 | G47: 0 | H47: 0 | I47: 0
B48: 6 | C48: Investitionsgut 6 | E48: 0 | F48: 0 | G48: 0 | H48: 0 | I48: 0
B49: 7 | C49: Investitionsgut 7 | E49: =P89 -> 0 | F49: 0 | G49: 0 | H49: 0 | I49: 0
B50: 8 | C50: =C18 -> Sammelposten 2016 | E50: =P90 -> 240 | F50: =E50 -> 240 | G50: =F50 -> 240 | H50: 240 | I50: 240
B51: 8 | C51: =F18 -> Sammelposten 2017 | F51: =IF($O398=1,K398,"") ->  | G51: =F51 ->  | H51: =G51 -> 
B52: 8 | C52: =I18 -> Sammelposten 2018 | G52: =P142 -> 0 | H52: =G52 -> 0 | I52: =H52 -> 0
B53: 8 | C53: =L18 -> Sammelposten 2019 | H53: =P168 -> 0 | I53: =H53 -> 0
B54: 9 | C54: =IF($C$2="English",CW54,CV54) -> Sonderabschreibungen | CV54: Sonderabschreibungen | CW54: Special depreciation
B55: =IF($C$2="English",CW55,CV55) -> Abschreibungen | E55: =SUM(E43:E54) -> 240 | F55: =SUM(F43:F54) -> 6,240 | G55: =SUM(G43:G54) -> 8,240 | H55: =SUM(H43:H54) -> 8,240 | I55: =SUM(I43:I54) -> 8,240 | CV55: Abschreibungen | CW55: Depreciation
B57: Erläuterung zu Abschreibung | Annotation for Depreciation | CW57: Weitergehende Erläuterung zu Abschreibung
B58: =IF($C$2="English",CW58,CV58) -> 1) Anschaffungen mit einem Wert größer 400 EUR müssen entsprechend ihrer Nutzungsdauer abgeschriebenwerden. Diese Anschaffungen sind in Tabelle 3a "Geplante Anschaffungen" aufzuführen. | S58: Ende | CV58: 1) Anschaffungen mit einem Wert größer 400 EUR müssen entsprechend ihrer Nutzungsdauer abgeschriebenwerden. Diese Anschaffungen sind in Tabelle 3a "Geplante Anschaffungen" aufzuführen. | CW58: 1) Assets with value more than 410 EUR have to be depreciated according to their usefull life. The planned investements
B59: =IF($C$2="English",CW59,CV59) -> Dabei sind sind Anschaffungsbetrag, Anschaffungsmonat und die Nutzungsdauer anzugeben. In jede Zeile darf nur e i n e Investition eingetragen werden. | CV59: Dabei sind sind Anschaffungsbetrag, Anschaffungsmonat und die Nutzungsdauer anzugeben. In jede Zeile darf nur e i n e Investition eingetragen werden. | CW59: have to be added to tab 3a "planed capital expenditures" together with their acquisition value, purchase month and depreciation period. Per line only one investment-item is allowed!
B61: Seit 1.1.2010 gibt es für die Abschreibung von geringwertigen Wirtschaftsgütern ein Wahlrecht ( zwei Alternativen) | CV61: Seit 1.1.2010 gibt es für die Abschreibung von geringwertigen Wirtschaftsgütern ein Wahlrecht ( zwei Alternativen) | CW61: Since 2010-1-1: 2 choises exist for depreciation of so-called "low value assets"
B62: a) Geringwertige Wirtschaftsgüter (GwG) mit einem Anschaffungswert kleiner als 410 EURO können sofort abgeschrieben werden; sie sind in Tab. 4 "Betriebskosten" aufzuführen. | CV62: a) Geringwertige Wirtschaftsgüter (GwG) mit einem Anschaffungswert kleiner als 410 EURO können sofort abgeschrieben werden; sie sind in Tab. 4 "Betriebskosten" aufzuführen. | CW62: a) Assets with value below 410 EUR can be depreciated in the year of purchasing. They have to be listed in tab.4 operation ex(penses).
B63: b) Mehrere Anschaffungen mit einem Wert größer als 150 EUR und kleiner als 1.000 EUR können in der sog. Poolabschreibung als Sammelposten zusammengefaßt werden. | CV63: b) Mehrere Anschaffungen mit einem Wert größer als 150 EUR und kleiner als 1.000 EUR können in der sog. Poolabschreibung als Sammelposten zusammengefaßt werden. | CW63: b) Several assets with value more than 150 EUR and less than 1.000 EUR can be summerized as compound items.
B64: Diese Sammelposten werden in Tabelle 3b eingetragen und werden generell über 5 Jahre abgeschrieben. | CV64: Diese Sammelposten werden in Tabelle 3b eingetragen und werden generell über 5 Jahre abgeschrieben. | CW64: These items are listed in tab 3b "investment of compound items". The depreciation period for them is fixed to 5 years.
B65: Erläuterungen zu geringwertige Wirtschaftsgüter/Sammelposten | Annotation low-value Assets/Compound Item
B70: =C5 -> Anschaffungen | D70: =IF($C$2="English","Value ","Betrag ") -> Betrag | E70: Investmonat | F70: =F5&" "&B82 -> Investmonat 2016 | G70: =P5 -> Jahre der Abschreibung | H70: monatliche Abschreibung | I70: Ende Abschreibung | J70: Anschaffungen / Lageraufbau
B71: =C6 -> Equipements | D71: =E6 -> 0 | E71: =F71 -> 0 | F71: =F6 -> 0 | G71: 5 | H71: =IF(G71="x",0,IF(OR(G71=0,G71=""),0,D71/(G71*12))) -> 0 | I71: =IF(G71="x",0,IF(D71>0,E71+G71*12-1,0)) -> 0 | J71: =IF(G71="x",IF(D71>0,D71,0),0) -> 0
B72: =C7 -> Investitionsgut 2 | D72: 0 | E72: =F72 -> 0 | F72: 0 | G72: 0 | H72: =IF(G72="x",0,IF(OR(G72=0,G72=""),0,D72/(G72*12))) -> 0 | I72: =IF(G72="x",0,IF(D72>0,E72+G72*12-1,0)) -> 0 | J72: =IF(G72="x",IF(D72>0,D72,0),0) -> 0
B73: =C8 -> Investitionsgut 3 | D73: 0 | E73: 0 | F73: 0 | G73: 0 | H73: 0 | I73: 0 | J73: 0
B74: Investitionsgut 4 | D74: 0 | E74: 0 | F74: 0 | G74: 0 | H74: 0 | I74: 0 | J74: 0
B75: Investitionsgut 5 | D75: 0 | E75: 0 | F75: 0 | G75: 0 | H75: 0 | I75: 0 | J75: 0
B76: Investitionsgut 6 | D76: 0 | E76: 0 | F76: 0 | G76: 0 | H76: 0 | I76: 0 | J76: 0
B77: Investitionsgut 7 | D77: 0 | E77: 0 | F77: 0 | G77: 0 | H77: 0 | I77: 0 | J77: 0
B78: Sammelposten | D78: =E27 -> 1200 | E78: =F78 -> 1 | F78: =F13 -> 1 | G78: 5 | H78: =D78/60 -> 20 | I78: =IF(D78>0,F78+G78*12-1,"") -> 60
B79: Summe Anschaffungen | D79: =SUM(D71:D78)-J79 -> 1,200 | H79: =SUM(H71:H78) -> 20 | J79: =SUM(J71:J78) -> 0
B81: laufender Monat | D81: 1 | E81: =D81+1 -> 2 | F81: =E81+1 -> 3 | G81: 4 | H81: 5 | I81: 6 | J81: 7 | K81: 8 | L81: 9 | M81: 10 | N81: 11 | O81: 12
B82: ='1 Pers.Ausgaben|Pers Expenses'!C4 -> 2016 | D82: Jan. | E82: Febr. | F82: März | G82: April | H82: Mai | I82: Juni | J82: Juli | K82: Aug. | L82: Sept. | M82: Okt. | N82: Nov. | O82: Dez. | P82: Jahr
B83: =B71 -> Equipements | D83: =IF($G71="x",0,IF($E71<=D$81,$H71,IF($I71>D$81,"",""))) -> 0 | E83: =IF($G71="x",0,IF($E71<=E$81,$H71,IF($I71>E$81,"",""))) -> 0 | F83: 0 | G83: 0 | H83: 0 | I83: 0 | J83: 0 | K83: 0 | L83: 0 | M83: 0 | N83: 0 | O83: 0 | P83: =SUM(D83:O83) -> 0
B84: Investitionsgut 2 | D84: =IF($G72="x",0,IF($E72<=D$81,$H72,IF($I72>D$81,"",""))) -> 0 | E84: 0 | F84: 0 | G84: 0 | H84: 0 | I84: 0 | J84: 0 | K84: 0 | L84: 0 | M84: 0 | N84: 0 | O84: 0 | P84: =SUM(D84:O84) -> 0
B85: Investitionsgut 3 | D85: =IF($G73="x",0,IF($E73<=D$81,$H73,IF($I73>D$81,"",""))) -> 0 | E85: 0 | F85: 0 | G85: 0 | H85: 0 | I85: 0 | J85: 0 | K85: 0 | L85: 0 | M85: 0 | N85: 0 | O85: 0 | P85: 0
B86: Investitionsgut 4 | D86: =IF($G74="x",0,IF($E74<=D$81,$H74,IF($I74>D$81,"",""))) -> 0 | E86: 0 | F86: 0 | G86: 0 | H86: 0 | I86: 0 | J86: 0 | K86: 0 | L86: 0 | M86: 0 | N86: 0 | O86: 0 | P86: 0
B87: Investitionsgut 5 | D87: =IF($G75="x",0,IF($E75<=D$81,$H75,IF($I75>D$81,"",""))) -> 0 | E87: 0 | F87: 0 | G87: 0 | H87: 0 | I87: 0 | J87: 0 | K87: 0 | L87: 0 | M87: 0 | N87: 0 | O87: 0 | P87: 0
B88: Investitionsgut 6 | D88: =IF($G76="x",0,IF($E76<=D$81,$H76,IF($I76>D$81,"",""))) -> 0 | E88: 0 | F88: 0 | G88: 0 | H88: 0 | I88: 0 | J88: 0 | K88: 0 | L88: 0 | M88: 0 | N88: 0 | O88: 0 | P88: 0
B89: Investitionsgut 7 | D89: =IF($G77="x",0,IF($E77<=D$81,$H77,IF($I77>D$81,"",""))) -> 0 | E89: 0 | F89: 0 | G89: 0 | H89: 0 | I89: 0 | J89: 0 | K89: 0 | L89: 0 | M89: 0 | N89: 0 | O89: 0 | P89: 0
B90: Sammelposten | D90: =IF($F78<=D$81,$H78,0) -> 20 | E90: 20 | F90: 20 | G90: 20 | H90: 20 | I90: 20 | J90: 20 | K90: 20 | L90: 20 | M90: 20 | N90: 20 | O90: 20 | P90: 240
B91: ="Summe" &" "&B90 -> Summe Sammelposten | D91: =D90 -> 20 | E91: =E90 -> 20 | F91: =F90 -> 20 | G91: 20 | H91: 20 | I91: 20 | J91: 20 | K91: 20 | L91: 20 | M91: 20 | N91: 20 | O91: 20 | P91: =SUM(D91:O91) -> 240
B92: Summe Abschreibungen | D92: =SUM(D83:D89)+D91 -> 20 | E92: =SUM(E83:E89)+E91 -> 20 | F92: 20 | G92: 20 | H92: 20 | I92: 20 | J92: 20 | K92: 20 | L92: 20 | M92: 20 | N92: 20 | O92: 20 | P92: =SUM(D92:O92) -> 240
B96: =B70 -> Anschaffungen | D96: =IF($C$2="English","Value ","Betrag ")&'1 Pers.Ausgaben|Pers Expenses'!$C$4+1 -> Betrag 2017 | E96: =E70 -> Investmonat | F96: =$E$70&" "&B108 -> Investmonat 2017 | G96: =P5 -> Jahre der Abschreibung | H96: monatliche Abschreibung | I96: Ende Abschreibung | J96: Anschaffungen / Lageraufbau
B97: Equipements | D97: =G6 -> 40,000 | E97: =E71+F97 -> 16 | F97: =IF(D97>0,H6+($B$108-$B$82)*12,0) -> 16 | G97: 5 | H97: =IF(G97="x",0,IF(D97>0,D97/(12*G97),IF(E97>0,H71,0))) -> 667 | I97: =IF(G97="x",0,IF(D97>0,E97+G97*12-1,IF(E97>0,I71,0))) -> 75 | J97: =IF(G97="x",IF(D97>0,D97,0),0) -> 0
B98: Investitionsgut 2 | D98: 0 | E98: =E72+F98 -> 0 | F98: 0 | G98: 0 | H98: =IF(G98="x",0,IF(D98>0,D98/(12*G98),IF(E98>0,H72,0))) -> 0 | I98: =IF(G98="x",0,IF(D98>0,E98+G98*12-1,IF(E98>0,I72,0))) -> 0 | J98: =IF(G98="x",IF(D98>0,D98,0),0) -> 0
B99: Investitionsgut 3 | D99: 0 | E99: =E73+F99 -> 0 | F99: 0 | G99: 0 | H99: 0 | I99: 0 | J99: 0
B100: Investitionsgut 4 | D100: 0 | E100: =E74+F100 -> 0 | F100: 0 | G100: 0 | H100: 0 | I100: 0 | J100: 0
B101: Investitionsgut 5 | D101: 0 | E101: 0 | F101: 0 | G101: 0 | H101: 0 | I101: 0 | J101: 0
B102: Investitionsgut 6 | D102: 0 | E102: 0 | F102: 0 | G102: 0 | H102: 0 | I102: 0 | J102: 0
B103: Investitionsgut 7 | D103: 0 | E103: 0 | F103: 0 | G103: 0 | H103: 0 | I103: 0 | J103: 0
B104: Sammelposten | D104: =H27 -> 0 | E104: =F104 -> 13 | F104: =H13+($B$108-$B$82)*12 -> 13 | G104: 5 | H104: =D104/60 -> 0 | I104: =IF(D104>0,F104+G104*12-1,"") -> 
B105: Summe Anschaffungen | D105: =SUM(D97:D104)-J105 -> 40,000 | H105: =SUM(H97:H104) -> 667 | J105: =SUM(J97:J104) -> 0
B107: =B81 -> laufender Monat | D107: =1+($B$108-$B$82)*12 -> 13 | E107: =D107+1 -> 14 | F107: =E107+1 -> 15 | G107: 16 | H107: 17 | I107: 18 | J107: 19 | K107: 20 | L107: 21 | M107: 22 | N107: 23 | O107: 24
B108: ='1 Pers.Ausgaben|Pers Expenses'!C4+1 -> 2017 | D108: Jan. | E108: Febr. | F108: März | G108: April | H108: Mai | I108: Juni | J108: Juli | K108: Aug. | L108: Sept. | M108: Okt. | N108: Nov. | O108: Dez. | P108: Jahr
B109: =B97 -> Equipements | D109: =IF($G97="x",0,IF(OR(D$107<$E97,D$107>$I97),0,$H97)) -> 0 | E109: =IF($G97="x",0,IF(OR(E$107<$E97,E$107>$I97),0,$H97)) -> 0 | F109: 0 | G109: 667 | H109: 667 | I109: 667 | J109: 667 | K109: 667 | L109: 667 | M109: 667 | N109: 667 | O109: 667 | P109: =SUM(D109:O109) -> 6,000
B110: =B98 -> Investitionsgut 2 | D110: =IF($G98="x",0,IF(OR(D$107<$E98,D$107>$I98),0,$H98)) -> 0 | E110: 0 | F110: 0 | G110: 0 | H110: 0 | I110: 0 | J110: 0 | K110: 0 | L110: 0 | M110: 0 | N110: 0 | O110: 0 | P110: =SUM(D110:O110) -> 0
B111: Investitionsgut 3 | D111: =IF($G99="x",0,IF(OR(D$107<$E99,D$107>$I99),0,$H99)) -> 0 | E111: 0 | F111: 0 | G111: 0 | H111: 0 | I111: 0 | J111: 0 | K111: 0 | L111: 0 | M111: 0 | N111: 0 | O111: 0 | P111: 0
B112: Investitionsgut 4 | D112: =IF($G100="x",0,IF(OR(D$107<$E100,D$107>$I100),0,$H100)) -> 0 | E112: 0 | F112: 0 | G112: 0 | H112: 0 | I112: 0 | J112: 0 | K112: 0 | L112: 0 | M112: 0 | N112: 0 | O112: 0 | P112: 0
B113: Investitionsgut 5 | D113: =IF($G101="x",0,IF(OR(D$107<$E101,D$107>$I101),0,$H101)) -> 0 | E113: 0 | F113: 0 | G113: 0 | H113: 0 | I113: 0 | J113: 0 | K113: 0 | L113: 0 | M113: 0 | N113: 0 | O113: 0 | P113: 0
B114: Investitionsgut 6 | D114: =IF($G102="x",0,IF(OR(D$107<$E102,D$107>$I102),0,$H102)) -> 0 | E114: 0 | F114: 0 | G114: 0 | H114: 0 | I114: 0 | J114: 0 | K114: 0 | L114: 0 | M114: 0 | N114: 0 | O114: 0 | P114: 0
B115: Investitionsgut 7 | D115: =IF($G103="x",0,IF(OR(D$107<$E103,D$107>$I103),0,$H103)) -> 0 | E115: 0 | F115: 0 | G115: 0 | H115: 0 | I115: 0 | J115: 0 | K115: 0 | L115: 0 | M115: 0 | N115: 0 | O115: 0 | P115: =SUM(D115:O115) -> 0
B116: =B90 -> Sammelposten | D116: =IF($F104<=D$107,$H104,"") -> 0 | E116: 0 | F116: 0 | G116: 0 | H116: 0 | I116: 0 | J116: 0 | K116: 0 | L116: 0 | M116: 0 | N116: 0 | O116: 0 | P116: =SUM(D116:O116) -> 0
B117: ="Summe" &" "&B116 -> Summe Sammelposten | D117: =D116+D91 -> 20 | E117: =E116+E91 -> 20 | F117: 20 | G117: 20 | H117: 20 | I117: 20 | J117: 20 | K117: 20 | L117: 20 | M117: 20 | N117: 20 | O117: 20 | P117: =SUM(D117:O117) -> 240
B118: =B92 -> Summe Abschreibungen | D118: =SUM(D109:D115)+D117 -> 20 | E118: =SUM(E109:E115)+E117 -> 20 | F118: =SUM(F109:F115)+F117 -> 20 | G118: =SUM(G109:G115)+G117 -> 687 | H118: =SUM(H109:H115)+H117 -> 687 | I118: =SUM(I109:I115)+I117 -> 687 | J118: =SUM(J109:J115)+J117 -> 687 | K118: =SUM(K109:K115)+K117 -> 687 | L118: =SUM(L109:L115)+L117 -> 687 | M118: =SUM(M109:M115)+M117 -> 687 | N118: =SUM(N109:N115)+N117 -> 687 | O118: =SUM(O109:O115)+O117 -> 687 | P118: =SUM(D118:O118) -> 6,240
B122: =B96 -> Anschaffungen | D122: =IF($C$2="English","Value ","Betrag ")&'1 Pers.Ausgaben|Pers Expenses'!$C$4+2 -> Betrag 2018 | E122: =E96 -> Investmonat | F122: =$E$70&" "&B134 -> Investmonat 2018 | G122: =G96 -> Jahre der Abschreibung | H122: monatliche Abschreibung | I122: Ende Abschreibung | J122: Anschaffungen / Lageraufbau
B123: Equipements | D123: =I6 -> 0 | E123: =E97+F123 -> 16 | F123: =IF(D123>0,J6+($B$134-$B$82)*12,0) -> 0 | G123: =P6 -> 5 | H123: =IF(G123="x",0,IF(AND(E123>0,D123=0),H97,IF(D123>0,D123/(12*G123),0))) -> 667 | I123: =IF(G123="x",0,IF(D123>0,E123+G123*12-1,IF(E123>0,I97,0))) -> 75 | J123: =IF(G123="x",IF(D123>0,D123,0),0) -> 0
B124: Investitionsgut 2 | D124: 0 | E124: 0 | F124: =IF(D124>0,J7+($B$134-$B$82)*12,0) -> 0 | G124: 0 | H124: =IF(G124="x",0,IF(AND(E124>0,D124=0),H98,IF(D124>0,D124/(12*G124),0))) -> 0 | I124: =IF(G124="x",0,IF(D124>0,E124+G124*12-1,IF(E124>0,I98,0))) -> 0 | J124: =IF(G124="x",IF(D124>0,D124,0),0) -> 0
B125: Investitionsgut 3 | D125: 0 | E125: =E99+F125 -> 0 | F125: =IF(D125>0,J8+($B$134-$B$82)*12,0) -> 0 | G125: 0 | H125: =IF(G125="x",0,IF(AND(E125>0,D125=0),H99,IF(D125>0,D125/(12*G125),0))) -> 0 | I125: 0 | J125: 0
B126: Investitionsgut 4 | D126: 0 | E126: 0 | F126: 0 | G126: 0 | H126: 0 | I126: 0 | J126: 0
B127: Investitionsgut 5 | D127: 0 | E127: 0 | F127: 0 | G127: 0 | H127: 0 | I127: =IF(G127="x",0,IF(D127>0,E127+G127*12-1,IF(E127>0,I101,0))) -> 0 | J127: 0
B128: Investitionsgut 6 | D128: 0 | E128: 0 | F128: 0 | G128: 0 | H128: 0 | I128: 0 | J128: 0
B129: Investitionsgut 7 | D129: 0 | E129: 0 | F129: 0 | G129: 0 | H129: 0 | I129: 0 | J129: 0
B130: Sammelposten | D130: =K27 -> 0 | E130: =F130 -> 25 | F130: =J13+($B$134-$B$82)*12 -> 25 | G130: 5 | H130: =D130/60 -> 0 | I130: =IF(D130>0,F130+G130*12-1,"") -> 
B131: Summe Anschaffungen | D131: =SUM(D123:D130)-J131 -> 0 | H131: =SUM(H123:H130) -> 667 | J131: =SUM(J123:J130) -> 0
B133: =B107 -> laufender Monat | D133: =1+($B$134-$B$82)*12 -> 25 | E133: =D133+1 -> 26 | F133: =E133+1 -> 27 | G133: 28 | H133: 29 | I133: 30 | J133: 31 | K133: 32 | L133: 33 | M133: 34 | N133: 35 | O133: 36
B134: ='1 Pers.Ausgaben|Pers Expenses'!C4+2 -> 2018 | D134: Jan. | E134: Febr. | F134: März | G134: April | H134: Mai | I134: Juni | J134: Juli | K134: Aug. | L134: Sept. | M134: Okt. | N134: Nov. | O134: Dez. | P134: Jahr
B135: =B123 -> Equipements | D135: =IF($G123="x",0,IF(OR(D$133<$E123,D$133>$I123),0,$H123)) -> 667 | E135: =IF($G123="x",0,IF(OR(E$133<$E123,E$133>$I123),0,$H123)) -> 667 | F135: 667 | G135: 667 | H135: 667 | I135: 667 | J135: 667 | K135: 667 | L135: 667 | M135: 667 | N135: 667 | O135: 667 | P135: =SUM(D135:O135) -> 8,000
B136: =B124 -> Investitionsgut 2 | D136: =IF($G124="x",0,IF(OR(D$133<$E124,D$133>$I124),0,$H124)) -> 0 | E136: 0 | F136: 0 | G136: 0 | H136: 0 | I136: 0 | J136: 0 | K136: 0 | L136: 0 | M136: 0 | N136: 0 | O136: 0 | P136: =SUM(D136:O136) -> 0
B137: Investitionsgut 3 | D137: =IF($G125="x",0,IF(OR(D$133<$E125,D$133>$I125),0,$H125)) -> 0 | E137: 0 | F137: 0 | G137: 0 | H137: 0 | I137: 0 | J137: 0 | K137: 0 | L137: 0 | M137: 0 | N137: 0 | O137: 0 | P137: 0
B138: Investitionsgut 4 | D138: =IF($G126="x",0,IF(OR(D$133<$E126,D$133>$I126),0,$H126)) -> 0 | E138: 0 | F138: 0 | G138: 0 | H138: 0 | I138: 0 | J138: 0 | K138: 0 | L138: 0 | M138: 0 | N138: 0 | O138: 0 | P138: 0
B139: Investitionsgut 5 | D139: =IF($G127="x",0,IF(OR(D$133<$E127,D$133>$I127),0,$H127)) -> 0 | E139: 0 | F139: 0 | G139: 0 | H139: 0 | I139: 0 | J139: 0 | K139: 0 | L139: 0 | M139: 0 | N139: 0 | O139: 0 | P139: 0
B140: Investitionsgut 6 | D140: =IF($G128="x",0,IF(OR(D$133<$E128,D$133>$I128),0,$H128)) -> 0 | E140: 0 | F140: 0 | G140: 0 | H140: 0 | I140: 0 | J140: 0 | K140: 0 | L140: 0 | M140: 0 | N140: 0 | O140: 0 | P140: 0
B141: Investitionsgut 7 | D141: =IF($G129="x",0,IF(OR(D$133<$E129,D$133>$I129),0,$H129)) -> 0 | E141: 0 | F141: 0 | G141: 0 | H141: 0 | I141: 0 | J141: 0 | K141: 0 | L141: 0 | M141: 0 | N141: 0 | O141: 0 | P141: =SUM(D141:O141) -> 0
B142: =B116 -> Sammelposten | D142: =IF($F130<=D$133,$H130,"") -> 0 | E142: 0 | F142: 0 | G142: 0 | H142: 0 | I142: 0 | J142: 0 | K142: 0 | L142: 0 | M142: 0 | N142: 0 | O142: 0 | P142: =SUM(D142:O142) -> 0
B143: ="Summe" &" "&B142 -> Summe Sammelposten | D143: =D142+D117 -> 20 | E143: =E142+E117 -> 20 | F143: =F142+F117 -> 20 | G143: =G142+G117 -> 20 | H143: =H142+H117 -> 20 | I143: =I142+I117 -> 20 | J143: =J142+J117 -> 20 | K143: =K142+K117 -> 20 | L143: =L142+L117 -> 20 | M143: =M142+M117 -> 20 | N143: =N142+N117 -> 20 | O143: =O142+O117 -> 20 | P143: =SUM(D143:O143) -> 240
B144: =B118 -> Summe Abschreibungen | D144: =SUM(D135:D141)+D143 -> 687 | E144: =SUM(E135:E141)+E143 -> 687 | F144: =SUM(F135:F141)+F143 -> 687 | G144: =SUM(G135:G141)+G143 -> 687 | H144: =SUM(H135:H141)+H143 -> 687 | I144: =SUM(I135:I141)+I143 -> 687 | J144: =SUM(J135:J141)+J143 -> 687 | K144: =SUM(K135:K141)+K143 -> 687 | L144: =SUM(L135:L141)+L143 -> 687 | M144: =SUM(M135:M141)+M143 -> 687 | N144: =SUM(N135:N141)+N143 -> 687 | O144: =SUM(O135:O141)+O143 -> 687 | P144: =SUM(D144:O144) -> 8,240
B148: =B122 -> Anschaffungen | D148: =IF($C$2="English","Value ","Betrag ")&'1 Pers.Ausgaben|Pers Expenses'!$C$4+3 -> Betrag 2019 | E148: =E122 -> Investmonat | F148: =$E$70&" "&B160 -> Investmonat 2019 | G148: =G122 -> Jahre der Abschreibung | H148: monatliche Abschreibung | I148: Ende Abschreibung | J148: Anschaffungen / Lageraufbau
B149: Equipements | D149: =K6 -> 0 | E149: =E123+F149 -> 16 | F149: =IF(D149>0,L6+($B$160-$B$82)*12,0) -> 0 | G149: 5 | H149: =IF(G149="x",0,IF(AND(E149>0,D149=0),H123,IF(D149>0,D149/(12*G149),0))) -> 667 | I149: =IF(G149="x",0,IF(D149>0,E149+G149*12-1,IF(E149>0,I123,0))) -> 75 | J149: =IF(G149="x",IF(D149>0,D149,0),0) -> 0
B150: Investitionsgut 2 | D150: 0 | E150: =E124+F150 -> 0 | F150: 0 | G150: 0 | H150: =IF(G150="x",0,IF(AND(E150>0,D150=0),H124,IF(D150>0,D150/(12*G150),0))) -> 0 | I150: =IF(G150="x",0,IF(D150>0,E150+G150*12-1,IF(E150>0,I124,0))) -> 0 | J150: =IF(G150="x",IF(D150>0,D150,0),0) -> 0
B151: Investitionsgut 3 | D151: 0 | E151: 0 | F151: 0 | G151: 0 | H151: 0 | I151: 0 | J151: 0
B152: Investitionsgut 4 | D152: 0 | E152: 0 | F152: 0 | G152: 0 | H152: 0 | I152: 0 | J152: 0
B153: Investitionsgut 5 | D153: 0 | E153: 0 | F153: 0 | G153: 0 | H153: =IF(G153="x",0,IF(AND(E153>0,D153=0),H127,IF(D153>0,D153/(12*G153),0))) -> 0 | I153: 0 | J153: 0
B154: Investitionsgut 6 | D154: 0 | E154: 0 | F154: 0 | G154: 0 | H154: 0 | I154: 0 | J154: 0
B155: Investitionsgut 7 | D155: 0 | E155: 0 | F155: 0 | G155: 0 | H155: 0 | I155: 0 | J155: 0
B156: Sammelposten | D156: =N27 -> 0 | E156: =F156 -> 37 | F156: =L13+($B$160-$B$82)*12 -> 37 | G156: 5 | H156: =D156/60 -> 0 | I156: =IF(D156>0,F156+G156*12-1,"") -> 
B157: Summe Anschaffungen | D157: =SUM(D149:D156)-J157 -> 0 | H157: =SUM(H149:H156) -> 667 | J157: =SUM(J149:J156) -> 0
B159: =B133 -> laufender Monat | D159: =1+($B$160-$B$82)*12 -> 37 | E159: =D159+1 -> 38 | F159: =E159+1 -> 39 | G159: 40 | H159: 41 | I159: 42 | J159: 43 | K159: 44 | L159: 45 | M159: 46 | N159: 47 | O159: 48
B160: ='1 Pers.Ausgaben|Pers Expenses'!C4+3 -> 2019 | D160: Jan. | E160: Febr. | F160: März | G160: April | H160: Mai | I160: Juni | J160: Juli | K160: Aug. | L160: Sept. | M160: Okt. | N160: Nov. | O160: Dez. | P160: Jahr
B161: =B149 -> Equipements | D161: =IF($G149="x",0,IF(OR(D$159<$E149,D$159>$I149),0,$H149)) -> 667 | E161: =IF($G149="x",0,IF(OR(E$159<$E149,E$159>$I149),0,$H149)) -> 667 | F161: 667 | G161: 667 | H161: 667 | I161: 667 | J161: 667 | K161: 667 | L161: 667 | M161: 667 | N161: 667 | O161: 667 | P161: =SUM(D161:O161) -> 8,000
B162: =B150 -> Investitionsgut 2 | D162: =IF($G150="x",0,IF(OR(D$159<$E150,D$159>$I150),0,$H150)) -> 0 | E162: 0 | F162: 0 | G162: 0 | H162: 0 | I162: 0 | J162: 0 | K162: 0 | L162: 0 | M162: 0 | N162: 0 | O162: 0 | P162: =SUM(D162:O162) -> 0
B163: Investitionsgut 3 | D163: =IF($G151="x",0,IF(OR(D$159<$E151,D$159>$I151),0,$H151)) -> 0 | E163: 0 | F163: 0 | G163: 0 | H163: 0 | I163: 0 | J163: 0 | K163: 0 | L163: 0 | M163: 0 | N163: 0 | O163: 0 | P163: 0
B164: Investitionsgut 4 | D164: =IF($G152="x",0,IF(OR(D$159<$E152,D$159>$I152),0,$H152)) -> 0 | E164: 0 | F164: 0 | G164: 0 | H164: 0 | I164: 0 | J164: 0 | K164: 0 | L164: 0 | M164: 0 | N164: 0 | O164: 0 | P164: 0
B165: Investitionsgut 5 | D165: =IF($G153="x",0,IF(OR(D$159<$E153,D$159>$I153),0,$H153)) -> 0 | E165: 0 | F165: 0 | G165: 0 | H165: 0 | I165: 0 | J165: 0 | K165: 0 | L165: 0 | M165: 0 | N165: 0 | O165: 0 | P165: 0
B166: Investitionsgut 6 | D166: =IF($G154="x",0,IF(OR(D$159<$E154,D$159>$I154),0,$H154)) -> 0 | E166: 0 | F166: 0 | G166: 0 | H166: 0 | I166: 0 | J166: 0 | K166: 0 | L166: 0 | M166: 0 | N166: 0 | O166: 0 | P166: 0
B167: Investitionsgut 7 | D167: =IF($G155="x",0,IF(OR(D$159<$E155,D$159>$I155),0,$H155)) -> 0 | E167: 0 | F167: 0 | G167: 0 | H167: 0 | I167: 0 | J167: 0 | K167: 0 | L167: 0 | M167: 0 | N167: 0 | O167: 0 | P167: 0
B168: =B142 -> Sammelposten | D168: =IF($F156<=D$159,$H156,"") -> 0 | E168: =IF($F156<=E$159,$H156,"") -> 0 | F168: 0 | G168: 0 | H168: 0 | I168: 0 | J168: 0 | K168: 0 | L168: 0 | M168: 0 | N168: 0 | O168: 0 | P168: =SUM(D168:O168) -> 0
B169: ="Summe" &" "&B168 -> Summe Sammelposten | D169: =D168+D143 -> 20 | E169: =E168+E143 -> 20 | F169: =F168+F143 -> 20 | G169: =G168+G143 -> 20 | H169: =H168+H143 -> 20 | I169: =I168+I143 -> 20 | J169: =J168+J143 -> 20 | K169: =K168+K143 -> 20 | L169: =L168+L143 -> 20 | M169: =M168+M143 -> 20 | N169: =N168+N143 -> 20 | O169: =O168+O143 -> 20 | P169: =SUM(D169:O169) -> 240
B170: =B144 -> Summe Abschreibungen | D170: =SUM(D161:D167)+D169 -> 687 | E170: =SUM(E161:E167)+E169 -> 687 | F170: =SUM(F161:F167)+F169 -> 687 | G170: =SUM(G161:G167)+G169 -> 687 | H170: =SUM(H161:H167)+H169 -> 687 | I170: =SUM(I161:I167)+I169 -> 687 | J170: =SUM(J161:J167)+J169 -> 687 | K170: =SUM(K161:K167)+K169 -> 687 | L170: =SUM(L161:L167)+L169 -> 687 | M170: =SUM(M161:M167)+M169 -> 687 | N170: =SUM(N161:N167)+N169 -> 687 | O170: =SUM(O161:O167)+O169 -> 687 | P170: =SUM(D170:O170) -> 8,240
B174: =B148 -> Anschaffungen | D174: =IF($C$2="English","Value ","Betrag ")&'1 Pers.Ausgaben|Pers Expenses'!$C$4+4 -> Betrag 2020 | E174: =E148 -> Investmonat | F174: =$E$70&" "&B186 -> Investmonat 2020 | G174: =G148 -> Jahre der Abschreibung | H174: monatliche Abschreibung | I174: Ende Abschreibung | J174: Anschaffungen / Lageraufbau
B175: Equipements | D175: =M6 -> 0 | E175: =E149+F175 -> 16 | F175: =IF(D175>0,N6+($B$186-$B$82)*12,0) -> 0 | G175: =P6 -> 5 | H175: =IF(G175="x",0,IF(AND(E175>0,D175=0),H149,IF(D175>0,D175/(12*G175),0))) -> 667 | I175: =IF(G175="x",0,IF(D175>0,E175+G175*12-1,IF(E175>0,I149,0))) -> 75 | J175: =IF(G175="x",IF(D175>0,D175,0),0) -> 0
B176: Investitionsgut 2 | D176: 0 | E176: 0 | F176: 0 | G176: 0 | H176: =IF(G176="x",0,IF(AND(E176>0,D176=0),H150,IF(D176>0,D176/(12*G176),0))) -> 0 | I176: =IF(G176="x",0,IF(D176>0,E176+G176*12-1,IF(E176>0,I150,0))) -> 0 | J176: =IF(G176="x",IF(D176>0,D176,0),0) -> 0
B177: Investitionsgut 3 | D177: 0 | E177: 0 | F177: 0 | G177: 0 | H177: 0 | I177: 0 | J177: 0
B178: Investitionsgut 4 | D178: 0 | E178: 0 | F178: 0 | G178: 0 | H178: 0 | I178: 0 | J178: 0
B179: Investitionsgut 5 | D179: 0 | E179: 0 | F179: 0 | G179: 0 | H179: 0 | I179: 0 | J179: 0
B180: Investitionsgut 6 | D180: 0 | E180: 0 | F180: 0 | G180: 0 | H180: 0 | I180: 0 | J180: 0
B181: Investitionsgut 7 | D181: 0 | E181: 0 | F181: 0 | G181: 0 | H181: 0 | I181: 0 | J181: 0
B182: Sammelposten
B183: Summe Anschaffungen | D183: =SUM(D175:D182)-J183 -> 0 | H183: =SUM(H175:H182) -> 667 | J183: =SUM(J175:J182) -> 0
B185: =B159 -> laufender Monat | D185: =1+($B$186-$B$82)*12 -> 49 | E185: =D185+1 -> 50 | F185: =E185+1 -> 51 | G185: 52 | H185: 53 | I185: 54 | J185: 55 | K185: 56 | L185: 57 | M185: 58 | N185: 59 | O185: 60
B186: ='1 Pers.Ausgaben|Pers Expenses'!C4+4 -> 2020 | D186: Jan. | E186: Febr. | F186: März | G186: April | H186: Mai | I186: Juni | J186: Juli | K186: Aug. | L186: Sept. | M186: Okt. | N186: Nov. | O186: Dez. | P186: Jahr
B187: =B175 -> Equipements | D187: =IF($G175="x",0,IF(OR(D$185<$E175,D$185>$I175),0,$H175)) -> 667 | E187: =IF($G175="x",0,IF(OR(E$185<$E175,E$185>$I175),0,$H175)) -> 667 | F187: 667 | G187: 667 | H187: 667 | I187: 667 | J187: 667 | K187: 667 | L187: 667 | M187: 667 | N187: 667 | O187: 667 | P187: =SUM(D187:O187) -> 8,000
B188: =B176 -> Investitionsgut 2 | D188: =IF($G176="x",0,IF(OR(D$185<$E176,D$185>$I176),0,$H176)) -> 0 | E188: 0 | F188: 0 | G188: 0 | H188: 0 | I188: 0 | J188: 0 | K188: 0 | L188: 0 | M188: 0 | N188: 0 | O188: 0 | P188: =SUM(D188:O188) -> 0
B189: Investitionsgut 3 | D189: =IF($G177="x",0,IF(OR(D$185<$E177,D$185>$I177),0,$H177)) -> 0 | E189: 0 | F189: 0 | G189: 0 | H189: 0 | I189: 0 | J189: 0 | K189: 0 | L189: 0 | M189: 0 | N189: 0 | O189: 0 | P189: 0
B190: Investitionsgut 4 | D190: =IF($G178="x",0,IF(OR(D$185<$E178,D$185>$I178),0,$H178)) -> 0 | E190: 0 | F190: 0 | G190: 0 | H190: 0 | I190: 0 | J190: 0 | K190: 0 | L190: 0 | M190: 0 | N190: 0 | O190: 0 | P190: 0
B191: Investitionsgut 5 | D191: =IF($G179="x",0,IF(OR(D$185<$E179,D$185>$I179),0,$H179)) -> 0 | E191: 0 | F191: 0 | G191: 0 | H191: 0 | I191: 0 | J191: 0 | K191: 0 | L191: 0 | M191: 0 | N191: 0 | O191: 0 | P191: 0
B192: Investitionsgut 6 | D192: =IF($G180="x",0,IF(OR(D$185<$E180,D$185>$I180),0,$H180)) -> 0 | E192: 0 | F192: 0 | G192: 0 | H192: 0 | I192: 0 | J192: 0 | K192: 0 | L192: 0 | M192: 0 | N192: 0 | O192: 0 | P192: 0
B193: Investitionsgut 7 | D193: =IF($G181="x",0,IF(OR(D$185<$E181,D$185>$I181),0,$H181)) -> 0 | E193: 0 | F193: 0 | G193: 0 | H193: 0 | I193: 0 | J193: 0 | K193: 0 | L193: 0 | M193: 0 | N193: 0 | O193: 0 | P193: 0
B194: =B168 -> Sammelposten | D194: 0 | E194: 0 | F194: 0 | G194: 0 | H194: 0 | I194: 0 | J194: 0 | K194: 0 | L194: 0 | M194: 0 | N194: 0 | O194: 0 | P194: =SUM(D194:O194) -> 0
B195: ="Summe" &" "&B194 -> Summe Sammelposten | D195: =D194+D169 -> 20 | E195: =E194+E169 -> 20 | F195: =F194+F169 -> 20 | G195: =G194+G169 -> 20 | H195: =H194+H169 -> 20 | I195: =I194+I169 -> 20 | J195: =J194+J169 -> 20 | K195: =K194+K169 -> 20 | L195: =L194+L169 -> 20 | M195: =M194+M169 -> 20 | N195: =N194+N169 -> 20 | O195: =O194+O169 -> 20 | P195: =SUM(D195:O195) -> 240
B196: =B170 -> Summe Abschreibungen | D196: =SUM(D187:D193)+D195 -> 687 | E196: =SUM(E187:E193)+E195 -> 687 | F196: =SUM(F187:F193)+F195 -> 687 | G196: =SUM(G187:G193)+G195 -> 687 | H196: =SUM(H187:H193)+H195 -> 687 | I196: =SUM(I187:I193)+I195 -> 687 | J196: =SUM(J187:J193)+J195 -> 687 | K196: =SUM(K187:K193)+K195 -> 687 | L196: =SUM(L187:L193)+L195 -> 687 | M196: =SUM(M187:M193)+M195 -> 687 | N196: =SUM(N187:N193)+N195 -> 687 | O196: =SUM(O187:O193)+O195 -> 687 | P196: =SUM(D196:O196) -> 8,240
C200: =IF($C$2="English",CW200,CV200) -> Anschaffungen/Investitionen | D200: ='1 Pers.Ausgaben|Pers Expenses'!$C$4 -> 2,016 | F200: =D200+1 -> 2,017 | H200: =F200+1 -> 2,018 | J200: =H200+1 -> 2,019 | L200: =J200+1 -> 2,020 | CV200: Anschaffungen/Investitionen | CW200: Investment/Acquisition
C201: =IF($C$2="English",CW201,CV201) -> Lageraufbau | D201: =J79 -> 0 | F201: =J105 -> 0 | H201: =J131 -> 0 | J201: =J157 -> 0 | L201: =J183 -> 0 | CV201: Lageraufbau | CW201: Building up of Inventory
C202: Investitionen | D202: =D79 -> 1,200 | F202: =D105 -> 40,000 | H202: =D131 -> 0 | J202: =D157 -> 0 | L202: =D183 -> 0 | CV202: Investitionen | CW202: capital expenditure
C203: Abschreibungen | E203: =P92 -> 240 | G203: =P118 -> 6,240 | I203: =P144 -> 8,240 | K203: =P170 -> 8,240 | M203: =P196 -> 8,240 | CV203: Abschreibungen | CW203: Depeciation
E347: =E349 -> Betrag 2016 | F347: =G349 -> Betrag 2017 | H347: =J349 -> Betrag 2018 | K347: =N349 -> Betrag 2019 | O347: =T349 -> Betrag 2020 | U347: Startjahr | AG347: 2.Jahr
D348: Zählreihe | E348: 1 | F348: 2 | G348: 1 | H348: 3 | I348: 2 | J348: 1 | K348: 4 | L348: 3 | M348: 2 | N348: 1 | O348: 5 | P348: 4 | R348: 3 | S348: 2 | T348: 1 | U348: =E349 -> Betrag 2016 | V348: Errechnen Monatswerte Abschreibungen | AG348: =R349 -> Betrag 2018 | AH348: Errechnen Monatswerte Abschreibungen | CW348: Zählreihe
D349: Anschaffungsjahr | E349: =E5 -> Betrag 2016 | F349: =E5 -> Betrag 2016 | G349: =G5 -> Betrag 2017 | H349: =E5 -> Betrag 2016 | I349: =G5 -> Betrag 2017 | J349: =I5 -> Betrag 2018 | K349: =E5 -> Betrag 2016 | L349: =G5 -> Betrag 2017 | M349: =I5 -> Betrag 2018 | N349: =K5 -> Betrag 2019 | O349: =E5 -> Betrag 2016 | P349: =G5 -> Betrag 2017 | R349: =I5 -> Betrag 2018 | S349: =K5 -> Betrag 2019 | T349: =M5 -> Betrag 2020 | U349: Jan | V349: Feb | W349: Mrz | X349: Apr | Y349: Mai | Z349: Jun | AA349: Jul | AB349: Aug | AC349: Sep | AD349: Okt | AE349: Nov | AF349: Dez | AG349: Jan | AH349: Feb | AI349: Mrz | AJ349: Apr | AK349: Mai | AL349: Jun | AM349: Jul | AN349: Aug | AO349: Sep | AP349: Okt | AQ349: Nov | AR349: Dez | CW349: Anschaffungsjahr
D350: Abschreibungen über Kalenderjahre | U350: 1 | V350: 2 | W350: 3 | X350: 4 | Y350: 5 | Z350: 6 | AA350: 7 | AB350: 8 | AC350: 9 | AD350: 10 | AE350: 11 | AF350: 12 | AG350: 1 | AH350: 2 | AI350: 3 | AJ350: 4 | AK350: 5 | AL350: 6 | AM350: 7 | AN350: 8 | AO350: 9 | AP350: 10 | AQ350: 11 | AR350: 12 | CW350: Abschreibungen über Kalenderjahre
D351: =SUM(V381:Z381) -> 6 | E351: =IF(OR($P6="",P6="x"),"",(13-IF(F6=0,1,F6))/12/P6*E6) -> 0 | F351: =IF(OR($P6="",P6="x"),"",IF(F$348<$D351,$E6/$P6,IF(F$348=$D351,IF($F6=1,$E6/$P6,$E6/$P6-$E351),0))) -> 0 | G351: =IF(OR($P6="",P6="x"),"",(13-IF(H6=0,1,H6))/12/P6*G6) -> 6,000 | H351: =IF(OR($P6="",P6="x"),"",IF(H$348<$D351,$E6/$P6,IF(H$348=$D351,IF($F6=1,$E6/$P6,$E6/$P6-$E351),0))) -> 0 | I351: =IF(OR($P6="",P6="x"),"",IF(I$348<$D351,$G6/$P6,IF(I$348=$D351,IF($H6=1,$G6/$P6,$G6/$P6-$E351),0))) -> 8,000 | J351: =IF(OR($P6="",P6="x"),"",(13-IF(J6=0,1,J6))/12*I6/P6) -> 0 | K351: =IF(OR($P6="",P6="x"),"",IF(K$348<$D351,$E6/$P6,IF(K$348=$D351,IF($F6=1,$E6/$P6,$E6/$P6-$E351),0))) -> 0 | L351: =IF(OR($P6="",P6="x"),"",IF(L$348<$D351,$G6/$P6,IF(L$348=$D351,IF($H6=1,$G6/$P6,$G6/$P6-$E351),0))) -> 8,000 | M351: =IF(OR($P6="",P6="x"),"",IF(M$348<$D351,$I6/$P6,IF(M$348=$D351,IF($J6=1,$I6/$P6,$I6/$P6-$J351),0))) -> 0 | N351: =IF(OR($P6="",P6="x"),"",(13-IF(L6=0,1,L6))/12*K6/P6) -> 0 | O351: =IF(OR($P6="",P6="x"),"",IF(O$348<$D351,$E6/$P6,IF(O$348=$D351,IF($F6=1,$E6/$P6,$E6/$P6-$E351),0))) -> 0 | P351: =IF(OR($P6="",P6="x"),"",IF(P$348<$D351,$G6/$P6,IF(P$348=$D351,IF($H6=1,$G6/$P6,$G6/$P6-$G351),0))) -> 8,000 | R351: =IF(OR($P6="",P6="x"),"",IF(R$348<$D351,$I6/$P6,IF(R$348=$D351,IF($J6=1,$I6/$P6,$I6/$P6-$J351),0))) -> 0 | S351: =IF(OR($P6="",P6="x"),"",IF(S$348<$D351,$K6/$P6,IF(S$348=$D351,IF($L6=1,$K6/$P6,$K6/$P6-$N351),0))) -> 0 | T351: =IF(OR($P6="",P6="x"),"",(13-IF(N6=0,1,N6))/P6*M6/12) -> 0 | U351: =IF($F6=U$350,$E351,0) -> 0 | V351: 0 | W351: 0 | X351: 0 | Y351: 0 | Z351: 0 | AA351: 0 | AB351: 0 | AC351: 0 | AD351: 0 | AE351: 0 | AF351: 0 | AG351: =IF($H6=AG$350,$G351,0) -> 0 | AH351: 0 | AI351: 0 | AJ351: 6000 | AK351: 0 | AL351: 0 | AM351: 0 | AN351: 0 | AO351: 0 | AP351: 0 | AQ351: 0 | AR351: 0 | CW351: =SUM(DO381:DS381) -> 0
D352: =SUM(V382:Z382) -> 0 | E352: =IF(OR($P7="",$P7="x"),"",(13-IF(F7=0,1,F7))/12/P7*E7) ->  | U352: =IF($F7=U$350,$E352,0) -> 0 | V352: 0 | W352: 0 | X352: 0 | Y352: 0 | Z352: 0 | AA352: 0 | AB352: 0 | AC352: 0 | AD352: 0 | AE352: 0 | AF352: 0 | AG352: =IF($H7=AG$350,$G352,0) -> 0 | AH352: 0 | AI352: 0 | AJ352: 0 | AK352: 0 | AL352: 0 | AM352: 0 | AN352: 0 | AO352: 0 | AP352: 0 | AQ352: 0 | AR352: 0 | CW352: 0
D353: =SUM(V383:Z383) -> 0 | U353: =IF($F8=U$350,$E353,0) -> 0 | V353: 0 | W353: 0 | X353: 0 | Y353: 0 | Z353: 0 | AA353: 0 | AB353: 0 | AC353: 0 | AD353: 0 | AE353: 0 | AF353: 0 | AG353: =IF($H8=AG$350,$G353,0) -> 0 | AH353: 0 | AI353: 0 | AJ353: 0 | AK353: 0 | AL353: 0 | AM353: 0 | AN353: 0 | AO353: 0 | AP353: 0 | AQ353: 0 | AR353: 0 | CW353: 0
D354: 0 | U354: =IF($F9=U$350,$E354,0) -> 0 | V354: 0 | W354: 0 | X354: 0 | Y354: 0 | Z354: 0 | AA354: 0 | AB354: 0 | AC354: 0 | AD354: 0 | AE354: 0 | AF354: 0 | AG354: =IF($H9=AG$350,$G354,0) -> 0 | AH354: 0 | AI354: 0 | AJ354: 0 | AK354: 0 | AL354: 0 | AM354: 0 | AN354: 0 | AO354: 0 | AP354: 0 | AQ354: 0 | AR354: 0 | CW354: 0
D355: 0 | U355: =IF($F10=U$350,$E355,0) -> 0 | V355: 0 | W355: 0 | X355: 0 | Y355: 0 | Z355: 0 | AA355: 0 | AB355: 0 | AC355: 0 | AD355: 0 | AE355: 0 | AF355: 0 | AG355: =IF($H10=AG$350,$G355,0) -> 0 | AH355: 0 | AI355: 0 | AJ355: 0 | AK355: 0 | AL355: 0 | AM355: 0 | AN355: 0 | AO355: 0 | AP355: 0 | AQ355: 0 | AR355: 0 | CW355: 0
D356: 0 | U356: =IF($F11=U$350,$E356,0) -> 0 | V356: 0 | W356: 0 | X356: 0 | Y356: 0 | Z356: 0 | AA356: 0 | AB356: 0 | AC356: 0 | AD356: 0 | AE356: 0 | AF356: 0 | AG356: =IF($H11=AG$350,$G356,0) -> 0 | AH356: 0 | AI356: 0 | AJ356: 0 | AK356: 0 | AL356: 0 | AM356: 0 | AN356: 0 | AO356: 0 | AP356: 0 | AQ356: 0 | AR356: 0 | CW356: 0
D357: 0 | U357: =IF($F12=U$350,$E357,0) -> 0 | V357: 0 | W357: 0 | X357: 0 | Y357: 0 | Z357: 0 | AA357: 0 | AB357: 0 | AC357: 0 | AD357: 0 | AE357: 0 | AF357: 0 | AG357: =IF($H12=AG$350,$G357,0) -> 0 | AH357: 0 | AI357: 0 | AJ357: 0 | AK357: 0 | AL357: 0 | AM357: 0 | AN357: 0 | AO357: 0 | AP357: 0 | AQ357: 0 | AR357: 0 | CW357: 0
D358: 5 | E358: =E27/5 -> 240 | F358: =E27/5 -> 240 | G358: =H27/5 -> 0 | H358: =E27/5 -> 240 | I358: =H27/5 -> 0 | J358: =K27/5 -> 0 | K358: =E27/5 -> 240 | L358: =H27/5 -> 0 | M358: =K27/5 -> 0 | N358: =N27/5 -> 0 | O358: =E27/5 -> 240 | P358: =H27/5 -> 0 | R358: =K27/5 -> 0 | S358: =N27/12 -> 0 | T358: =R27/12 -> 0 | AF358: =F358 -> 240 | AR358: =H358 -> 240 | CW358: 0
E359: =SUM(E350:E357) -> 0 | F359: =SUM(F350:F358) -> 240 | G359: 6,000 | H359: 240 | I359: 8,000 | J359: 0 | K359: 240 | L359: 8,000 | M359: 0 | N359: 0 | O359: 240 | P359: 8,000 | R359: 0 | S359: 0 | T359: 0 | U359: =SUM(U351:U358) -> 0 | V359: =SUM(V351:V358) -> 0 | W359: 0 | X359: 0 | Y359: 0 | Z359: 0 | AA359: 0 | AB359: 0 | AC359: 0 | AD359: 0 | AE359: 0 | AF359: 240 | AG359: =SUM(AG351:AG358) -> 0 | AH359: =SUM(AH351:AH358) -> 0 | AI359: 0 | AJ359: 6000 | AK359: 0 | AL359: 0 | AM359: 0 | AN359: 0 | AO359: 0 | AP359: 0 | AQ359: 0 | AR359: 240
D360: Abschreibungen Jahreswerte | E360: =E359 -> 0 | G360: =G359+F359 -> 6,240 | J360: =SUM(H359:J359) -> 8,240 | N360: =SUM(L359:N359) -> 8,000 | T360: =SUM(O359:T359) -> 8,240 | U360: =U359/12 -> 0 | V360: =V359/11 -> 0 | W360: =W359/10 -> 0 | X360: =X359/9 -> 0 | Y360: =Y359/8 -> 0 | Z360: =Z359/7 -> 0 | AA360: =AA359/6 -> 0 | AB360: =AB359/5 -> 0 | AC360: =AC359/4 -> 0 | AD360: =AD359/3 -> 0 | AE360: =AE359/2 -> 0 | AF360: =AF359/1 -> 240 | AG360: =AG359/12 -> 0 | AH360: =AH359/11 -> 0 | AI360: =AI359/10 -> 0 | AJ360: =AJ359/9 -> 667 | AK360: =AK359/8 -> 0 | AL360: =AL359/7 -> 0 | AM360: =AM359/6 -> 0 | AN360: =AN359/5 -> 0 | AO360: =AO359/4 -> 0 | AP360: =AP359/3 -> 0 | AQ360: =AQ359/2 -> 0 | AR360: =AR359/1 -> 240 | CW360: Abschreibungen Jahreswerte
U361: =T361+U360 -> 0 | V361: =U361+V360 -> 0 | W361: =V361+W360 -> 0 | X361: 0 | Y361: 0 | Z361: 0 | AA361: 0 | AB361: 0 | AC361: 0 | AD361: 0 | AE361: 0 | AF361: =AE361+AF359 -> 240 | AG361: =AF361-AF359+AG359-AG360 -> 0 | AH361: =AG361-AG359+AH359-AH360 -> 0 | AI361: 0 | AJ361: 5333 | AK361: -667 | AL361: -667 | AM361: -667 | AN361: -667 | AO361: -667 | AP361: -667 | AQ361: -667 | AR361: -667
AF362: =AF361 -> 240 | AG362: =AG360+AF362 -> 240 | AH362: =AG362+AH360 -> 240 | AI362: 240 | AJ362: 907 | AK362: 907 | AL362: 907 | AM362: 907 | AN362: 907 | AO362: 907 | AP362: 907 | AQ362: 907 | AR362: 1147
AG363: =AG362+AG361 -> 240 | AH363: =AH362+AH361 -> 240 | AI363: 240 | AJ363: 6240 | AK363: 240 | AL363: 240 | AM363: 240 | AN363: 240 | AO363: 240 | AP363: 240 | AQ363: 240 | AR363: 480
C365: Anschaffungen Eingabetabelle | E365: Anschaffungen Eingabetabelle | H365: ="Anschaffungen " & C366 & " auf die Monate zugeordnet" -> Anschaffungen Betrag 2016 auf die Monate zugeordnet | U365: 2.Jahr | CV365: Anschaffungen Eingabetabelle
C366: =E5 -> Betrag 2016 | E366: =G5 -> Betrag 2017 | H366: 1 | I366: 2 | J366: 3 | K366: 4 | L366: 5 | M366: 6 | N366: 7 | O366: 8 | P366: 9 | R366: 10 | S366: 11 | T366: 12 | U366: 1 | V366: 2 | W366: 3 | X366: 4 | Y366: 5 | Z366: 6 | AA366: 7 | AB366: 8 | AC366: 9 | AD366: 10 | AE366: 11 | AF366: 12 | CV366: =CX5 -> 0
C367: =E6 -> 0 | D367: 0 | E367: 40,000 | F367: 4 | H367: =IF($D367=H$366,$C367,0) -> 0 | I367: 0 | J367: 0 | K367: 0 | L367: 0 | M367: 0 | N367: 0 | O367: 0 | P367: 0 | R367: 0 | S367: 0 | T367: 0 | U367: =IF($F367=U$366,$E367,0) -> 0 | V367: =IF($F367=V$366,$E367,0) -> 0 | W367: 0 | X367: 40,000 | Y367: 0 | Z367: 0 | AA367: 0 | AB367: 0 | AC367: 0 | AD367: 0 | AE367: 0 | AF367: 0 | CV367: 0 | CW367: =CY6 -> 0
C368: 0 | D368: 0 | E368: 0 | F368: 0 | H368: 0 | I368: 0 | J368: 0 | K368: 0 | L368: 0 | M368: 0 | N368: 0 | O368: 0 | P368: 0 | R368: 0 | S368: 0 | T368: 0 | U368: =IF($F368=U$366,$E368,0) -> 0 | V368: 0 | W368: 0 | X368: 0 | Y368: 0 | Z368: 0 | AA368: 0 | AB368: 0 | AC368: 0 | AD368: 0 | AE368: 0 | AF368: 0 | CV368: 0 | CW368: 0
C369: 0 | D369: 0 | E369: 0 | F369: 0 | H369: 0 | I369: 0 | J369: 0 | K369: 0 | L369: 0 | M369: 0 | N369: 0 | O369: 0 | P369: 0 | R369: 0 | S369: 0 | T369: 0 | U369: 0 | V369: 0 | W369: 0 | X369: 0 | Y369: 0 | Z369: 0 | AA369: 0 | AB369: 0 | AC369: 0 | AD369: 0 | AE369: 0 | AF369: 0 | CV369: 0 | CW369: 0
C370: 0 | D370: 0 | E370: 0 | F370: 0 | H370: 0 | I370: 0 | J370: 0 | K370: 0 | L370: 0 | M370: 0 | N370: 0 | O370: 0 | P370: 0 | R370: 0 | S370: 0 | T370: 0 | U370: 0 | V370: 0 | W370: 0 | X370: 0 | Y370: 0 | Z370: 0 | AA370: 0 | AB370: 0 | AC370: 0 | AD370: 0 | AE370: 0 | AF370: 0 | CV370: 0 | CW370: 0
C371: 0 | D371: 0 | E371: 0 | F371: 0 | H371: 0 | I371: 0 | J371: 0 | K371: 0 | L371: 0 | M371: 0 | N371: 0 | O371: 0 | P371: 0 | R371: 0 | S371: 0 | T371: 0 | U371: 0 | V371: 0 | W371: 0 | X371: 0 | Y371: 0 | Z371: 0 | AA371: 0 | AB371: 0 | AC371: 0 | AD371: 0 | AE371: 0 | AF371: 0 | CV371: 0 | CW371: 0
C372: 0 | D372: 0 | E372: 0 | F372: 0 | H372: 0 | I372: 0 | J372: 0 | K372: 0 | L372: 0 | M372: 0 | N372: 0 | O372: 0 | P372: 0 | R372: 0 | S372: 0 | T372: 0 | U372: 0 | V372: 0 | W372: 0 | X372: 0 | Y372: 0 | Z372: 0 | AA372: 0 | AB372: 0 | AC372: 0 | AD372: 0 | AE372: 0 | AF372: 0 | CV372: 0 | CW372: 0
C373: 0 | D373: 0 | E373: 0 | F373: 0 | H373: 0 | I373: 0 | J373: 0 | K373: 0 | L373: 0 | M373: 0 | N373: 0 | O373: 0 | P373: 0 | R373: 0 | S373: 0 | T373: 0 | U373: 0 | V373: 0 | W373: 0 | X373: 0 | Y373: 0 | Z373: 0 | AA373: 0 | AB373: 0 | AC373: 0 | AD373: 0 | AE373: 0 | AF373: 0 | CV373: 0 | CW373: 0
C374: 1,200 | D374: 12 | E374: 0 | F374: 12 | H374: 0 | I374: 0 | J374: 0 | K374: 0 | L374: 0 | M374: 0 | N374: 0 | O374: 0 | P374: 0 | R374: 0 | S374: 0 | T374: 1,200 | U374: 0 | V374: 0 | W374: 0 | X374: 0 | Y374: 0 | Z374: 0 | AA374: 0 | AB374: 0 | AC374: 0 | AD374: 0 | AE374: 0 | AF374: 0 | CV374: 0 | CW374: 12
... 57 more rows

Sheet 4 Betriebskosten|Operation Ex (hidden)
A2: =IF($C$2="English","Choose VAT","Auswahl MwSt") -> Auswahl MwSt | C2: ='Deckblatt Gruender|Data Founder'!$D$8 -> Deutsch | Q2: 19% | T2: Aufgaben und/oder Kommentar | CW2: Zeilen | CX2: Steuersatz | DA2: Zeilen | DB2: Steuersatz | DG2: Jan. | DH2: Febr. | DI2: März | DJ2: April | DK2: Mai | DL2: Juni | DM2: Juli | DN2: Aug. | DO2: Sept. | DP2: Okt. | DQ2: Nov. | DR2: Dez. | DS2: ="Jahr "&'1 Pers.Ausgaben|Pers Expenses'!C4 -> Jahr 2016
B3: =IF($C$2="English",CZ3,CY3) -> 4a Betriebskosten für das Jahr 2016 in EUR (ohne MwSt) | Q3: 7% | T3: To Do list / Comments | U3: =IF($C$2="English",CV5,CU5) -> Nebenrechung Personalkosten | CW3: Original | CY3: ="4a Betriebskosten für das Jahr " &'1 Pers.Ausgaben|Pers Expenses'!$C$4&" in EUR" & " (" & IF(OR($D$4=1,$D$4=2),"mit MwSt","ohne MwSt")& ") " -> 4a Betriebskosten für das Jahr 2016 in EUR (ohne MwSt) | CZ3: ="4a-1 Operating Cost for Year " &'1 Pers.Ausgaben|Pers Expenses'!$C$4&" in EUR" & " (" &IF(OR($D$4=1,$D$4=2),"incl. VAT","w/o VAT")& ") " -> 4a-1 Operating Cost for Year 2016 in EUR (w/o VAT) | DA3: DATEV | DG3: Jan | DH3: Feb | DI3: Mar | DJ3: Apr | DK3: May | DL3: June | DM3: July | DN3: Aug | DO3: Sept | DP3: Oct | DQ3: Nov | DR3: Dec | DS3: ="Year "&'1 Pers.Ausgaben|Pers Expenses'!C4 -> Year 2016
B4: =IF($C$2="English",CZ4,CY4) -> ┌ MwSt-Satz der jeweiligen Kostenart | D4: ='Deckblatt Gruender|Data Founder'!M1 -> 0 | Q4: 0% | CY4: =IF($D$4=-1,""," ┌ MwSt-Satz der jeweiligen Kostenart") -> ┌ MwSt-Satz der jeweiligen Kostenart | CZ4: =IF($D$4=-1,""," ┌ VAT for Cost Type") -> ┌ VAT for Cost Type
B5: No. | C5: =IF($C$2="Deutsch",CY5,IF($C$2="English",CZ5,DB5)) -> Kostenart | D5: =IF($C$2="English",DG3,DG2) -> Jan. | E5: Febr. | F5: März | G5: April | H5: Mai | I5: Juni | J5: Juli | K5: Aug. | L5: Sept. | M5: Okt. | N5: Nov. | O5: Dez. | P5: Jahr 2016 | S5: =IF(C2="English",T3,T2) -> Aufgaben und/oder Kommentar | U5: =D81 -> 2016 | V5: =D5 -> Jan. | W5: Febr. | X5: März | Y5: April | Z5: Mai | AA5: Juni | AB5: Juli | AC5: Aug. | AD5: Sept. | AE5: Okt. | AF5: Nov. | AG5: Dez. | BA5: No. | BB5: ="MwSt "&$Q$2*100&"%" -> MwSt 19% | BC5: Jan. | BD5: Febr. | BE5: März | BF5: April | BG5: Mai | BH5: Juni | BI5: Juli | BJ5: Aug. | BK5: Sept. | BL5: Okt. | BM5: Nov. | BN5: Dez. | BO5: =IF($C$2="English",FN3,FN2) -> 0 | BR5: No. | BS5: ="MwSt "&$Q$3*100&"%" -> MwSt 7% | BT5: Jan. | BU5: Febr. | BV5: März | BW5: April | BX5: Mai | BY5: Juni | BZ5: Juli | CA5: Aug. | CB5: Sept. | CC5: Okt. | CD5: Nov. | CE5: Dez. | CF5: =IF($C$2="English",GE3,GE2) -> 0 | CU5: Nebenrechung Personalkosten | CV5: Auxciliary Caluculation for Personal Costs | CY5: Kostenart | CZ5: Cost Type | DC5: Nebenrechung Personalkosten | DD5: Ancillary Account for Personal Costs
B6: 1 | C6: Bürokosten | U6: =IF($C$2="English",CV6,CU6) -> Anzahl Mitarbeiter | BA6: 1 | BB6: Bürokosten | BR6: 1 | BS6: Bürokosten | CU6: Anzahl Mitarbeiter | CV6: Headcount | CW6: 1 | CY6: Bürokosten | CZ6: Office expences | DA6: 1 | DB6: =VLOOKUP(DA6,$CW$6:$CZ$66,2,FALSE) -> 0% | DC6: =VLOOKUP(DA6,$CW$6:$CZ$66,3,FALSE) -> Bürokosten | DD6: =VLOOKUP(DA6,$CW$6:$CZ$66,4,FALSE) -> Office expences
A7: =$Q$2 -> 19% | B7: =IF($D$4<>1, A7,"") -> 19% | C7: Raummiete | F7: 500 | G7: 500 | H7: 500 | I7: 500 | J7: 500 | K7: 500 | L7: 500 | M7: 500 | N7: 500 | O7: 500 | P7: =SUM(D7:O7) -> 5,000 | U7: Gehalt1 | BA7: 19% | BB7: Raummiete | BC7: =IF($A7=$Q$2,D7*IF(OR($D$4=0,$D$4=3),$A7,$A7/(1+$A7)),0) -> 0 | BD7: 0 | BE7: 95 | BF7: 95 | BG7: 95 | BH7: 95 | BI7: 95 | BJ7: 95 | BK7: 95 | BL7: 95 | BM7: 95 | BN7: 95 | BO7: =SUM(BC7:BN7) -> 950 | BR7: 19% | BS7: Raummiete | BT7: =IF($A7=$Q$3,D7*IF(OR($D$4=0,$D$4=3),$A7,$A7/(1+$A7)),0) -> 0 | BU7: 0 | BV7: 0 | BW7: 0 | BX7: 0 | BY7: 0 | BZ7: 0 | CA7: 0 | CB7: 0 | CC7: 0 | CD7: 0 | CE7: 0 | CF7: =SUM(BT7:CE7) -> 0 | CU7: Gehalt1 | CV7: Salary1 | CW7: 2 | CX7: =$Q$2 -> 19% | CY7: Raummiete | CZ7: Room rental | DA7: 2 | DB7: =VLOOKUP(DA7,$CW$6:$CZ$66,2,FALSE) -> 19% | DC7: =VLOOKUP(DA7,$CW$6:$CZ$66,3,FALSE) -> Raummiete | DD7: =VLOOKUP(DA7,$CW$6:$CZ$66,4,FALSE) -> Room rental
A8: =$Q$2 -> 19% | B8: =IF($D$4<>1, A8,"") -> 19% | C8: Strom, Wasser, Heizung, sonst. Nebenkosten | F8: 50 | G8: 50 | H8: 50 | I8: 50 | J8: 50 | K8: 50 | L8: 50 | M8: 50 | N8: 50 | O8: 50 | P8: 500 | U8: =IF($C$2="English",CV8,CU8) -> Anzahl Mitarbeiter | BA8: 19% | BB8: Strom, Wasser, Heizung, sonst. Nebenkosten | BC8: 0 | BD8: 0 | BE8: 10 | BF8: 10 | BG8: 10 | BH8: 10 | BI8: 10 | BJ8: 10 | BK8: 10 | BL8: 10 | BM8: 10 | BN8: 10 | BO8: 95 | BR8: 19% | BS8: Strom, Wasser, Heizung, sonst. Nebenkosten | BT8: 0 | BU8: 0 | BV8: 0 | BW8: 0 | BX8: 0 | BY8: 0 | BZ8: 0 | CA8: 0 | CB8: 0 | CC8: 0 | CD8: 0 | CE8: 0 | CF8: 0 | CU8: Anzahl Mitarbeiter | CV8: Headcount | CW8: 3 | CX8: 19% | CY8: Strom, Wasser, Heizung, sonst. Nebenkosten | CZ8: Electricity, water, heating, other costs | DA8: 3 | DB8: 19% | DC8: Strom, Wasser, Heizung, sonst. Nebenkosten | DD8: Electricity, water, heating, other costs
A9: =$Q$2 -> 19% | B9: =IF($D$4<>1, A9,"") -> 19% | C9: Telefon, Fax, Internet, Porto | F9: 50 | G9: 50 | H9: 50 | I9: 50 | J9: 50 | K9: 50 | L9: 50 | M9: 50 | N9: 50 | O9: 50 | P9: 500 | U9: Gehalt2 | BA9: 19% | BB9: Telefon, Fax, Internet, Porto | BC9: 0 | BD9: 0 | BE9: 10 | BF9: 10 | BG9: 10 | BH9: 10 | BI9: 10 | BJ9: 10 | BK9: 10 | BL9: 10 | BM9: 10 | BN9: 10 | BO9: 95 | BR9: 19% | BS9: Telefon, Fax, Internet, Porto | BT9: 0 | BU9: 0 | BV9: 0 | BW9: 0 | BX9: 0 | BY9: 0 | BZ9: 0 | CA9: 0 | CB9: 0 | CC9: 0 | CD9: 0 | CE9: 0 | CF9: 0 | CU9: Gehalt2 | CV9: Salary2 | CW9: 4 | CX9: 19% | CY9: Telefon, Fax, Internet, Porto | CZ9: Phone, fax, internet, postage | DA9: 5 | DB9: 19% | DC9: Geringw. Wirtschaftsgüter (Büromöbel, Einrichtungen,...) | DD9: Low value assets (office furniture, facilities, ...)
A10: =$Q$2 -> 19% | B10: =IF($D$4<>1, A10,"") -> 19% | C10: Geringw. Wirtschaftsgüter (Büromöbel, Einrichtungen,...) | P10: 0 | U10: Anzahl Mitarbeiter | BA10: 19% | BB10: Geringw. Wirtschaftsgüter (Büromöbel, Einrichtungen,...) | BC10: 0 | BD10: 0 | BE10: 0 | BF10: 0 | BG10: 0 | BH10: 0 | BI10: 0 | BJ10: 0 | BK10: 0 | BL10: 0 | BM10: 0 | BN10: 0 | BO10: 0 | BR10: 19% | BS10: Geringw. Wirtschaftsgüter (Büromöbel, Einrichtungen,...) | BT10: 0 | BU10: 0 | BV10: 0 | BW10: 0 | BX10: 0 | BY10: 0 | BZ10: 0 | CA10: 0 | CB10: 0 | CC10: 0 | CD10: 0 | CE10: 0 | CF10: 0 | CU10: Anzahl Mitarbeiter | CV10: Headcount | CW10: 5 | CX10: 19% | CY10: Geringw. Wirtschaftsgüter (Büromöbel, Einrichtungen,...) | CZ10: Low value assets (office furniture, facilities, ...) | DA10: 4 | DB10: 19% | DC10: Telefon, Fax, Internet, Porto | DD10: Phone, fax, internet, postage
A11: =$Q$2 -> 19% | B11: =IF($D$4<>1, A11,"") -> 19% | C11: IT (Lizenzen, Windows, Office, Wartung) | P11: 0 | U11: Gehalt3 | BA11: 19% | BB11: IT (Lizenzen, Windows, Office, Wartung) | BC11: 0 | BD11: 0 | BE11: 0 | BF11: 0 | BG11: 0 | BH11: 0 | BI11: 0 | BJ11: 0 | BK11: 0 | BL11: 0 | BM11: 0 | BN11: 0 | BO11: 0 | BR11: 19% | BS11: IT (Lizenzen, Windows, Office, Wartung) | BT11: 0 | BU11: 0 | BV11: 0 | BW11: 0 | BX11: 0 | BY11: 0 | BZ11: 0 | CA11: 0 | CB11: 0 | CC11: 0 | CD11: 0 | CE11: 0 | CF11: 0 | CU11: Gehalt3 | CV11: Salery3 | CW11: 6 | CX11: 19% | CY11: IT (Lizenzen, Windows, Office, Wartung) | CZ11: IT (licenses, windows, office, maintenace, ...) | DA11: 6 | DB11: 19% | DC11: IT (Lizenzen, Windows, Office, Wartung) | DD11: IT (licenses, windows, office, maintenace, ...)
A12: 19% | C12: Studio-/ Büro-Miete inkl. Nebenkosten | F12: 100 | G12: 100 | H12: 100 | I12: 100 | J12: 100 | K12: 100 | L12: 100 | M12: 100 | N12: 100 | O12: 100 | P12: 1,000 | U12: Nebenkosten (%) | BB12: Sonstiges | BC12: 0 | BD12: 0 | BE12: 19 | BF12: 19 | BG12: 19 | BH12: 19 | BI12: 19 | BJ12: 19 | BK12: 19 | BL12: 19 | BM12: 19 | BN12: 19 | BO12: 190 | BS12: Sonstiges | BT12: 0 | BU12: 0 | BV12: 0 | BW12: 0 | BX12: 0 | BY12: 0 | BZ12: 0 | CA12: 0 | CB12: 0 | CC12: 0 | CD12: 0 | CE12: 0 | CF12: 0 | CU12: Nebenkosten (%) | CV12: Additional Expenses (%) | CW12: 7 | CX12: 19% | CY12: Sonstiges | CZ12: Others | DA12: 7 | DB12: 19% | DC12: Sonstiges | DD12: Others
C13: Summe Bürokosten | D13: =SUM(D7:D12) -> 0 | E13: =SUM(E7:E12) -> 0 | F13: 700 | G13: 700 | H13: 700 | I13: 700 | J13: 700 | K13: 700 | L13: 700 | M13: 700 | N13: 700 | O13: 700 | P13: =SUM(D13:O13) -> 7,000 | U13: Personalkosten | V13: =((V6*V7)+(V8*V9)+(V10*V11))*(1+V12) -> 0 | W13: =((W6*W7)+(W8*W9)+(W10*W11))*(1+W12) -> 0 | X13: 0 | Y13: 0 | Z13: 0 | AA13: 0 | AB13: 0 | AC13: 0 | AD13: 0 | AE13: 0 | AF13: 0 | AG13: 0 | AH13: =SUM(V13:AG13) -> 0 | BB13: Summe Bürokosten | BC13: =SUM(BC7:BC12) -> 0 | BD13: =SUM(BD7:BD12) -> 0 | BE13: 133 | BF13: 133 | BG13: 133 | BH13: 133 | BI13: 133 | BJ13: 133 | BK13: 133 | BL13: 133 | BM13: 133 | BN13: 133 | BO13: =SUM(BC13:BN13) -> 1,330 | BS13: Summe Bürokosten | BT13: =SUM(BT7:BT12) -> 0 | BU13: =SUM(BU7:BU12) -> 0 | BV13: 0 | BW13: 0 | BX13: 0 | BY13: 0 | BZ13: 0 | CA13: 0 | CB13: 0 | CC13: 0 | CD13: 0 | CE13: 0 | CF13: =SUM(BT13:CE13) -> 0 | CU13: Personalkosten | CV13: Personnel Costs | CW13: 8 | CY13: ="Summe " &CY6 -> Summe Bürokosten | CZ13: Sum office expences | DA13: 8 | DB13: 0% | DC13: Summe Bürokosten | DD13: Sum office expences
B14: 2 | C14: Produktionskosten | BA14: 2 | BB14: Produktionskosten | BR14: 2 | BS14: Produktionskosten | CW14: 9 | CY14: Produktionskosten | CZ14: Production costs | DA14: 9 | DB14: 0% | DC14: Produktionskosten | DD14: Production costs
A15: =$Q$2 -> 19% | B15: =IF($D$4<>1, A15,"") -> 19% | C15: Raummiete | P15: =SUM(D15:O15) -> 0 | BA15: 19% | BB15: Raummiete | BC15: =IF($A15=$Q$2,D15*IF(OR($D$4=0,$D$4=3),$A15,$A15/(1+$A15)),0) -> 0 | BD15: 0 | BE15: 0 | BF15: 0 | BG15: 0 | BH15: 0 | BI15: 0 | BJ15: 0 | BK15: 0 | BL15: 0 | BM15: 0 | BN15: 0 | BO15: =SUM(BC15:BN15) -> 0 | BR15: 19% | BS15: Raummiete | BT15: =IF($A15=$Q$3,D15*IF(OR($D$4=0,$D$4=3),$A15,$A15/(1+$A15)),0) -> 0 | BU15: 0 | BV15: 0 | BW15: 0 | BX15: 0 | BY15: 0 | BZ15: 0 | CA15: 0 | CB15: 0 | CC15: 0 | CD15: 0 | CE15: 0 | CF15: =SUM(BT15:CE15) -> 0 | CW15: 10 | CX15: =$Q$2 -> 19% | CY15: Raummiete | CZ15: Room rental | DA15: 10 | DB15: 19% | DC15: Raummiete | DD15: Room rental
A16: =$Q$2 -> 19% | B16: =IF($D$4<>1, A16,"") -> 19% | C16: Strom, Wasser, Heizung, sonst. Nebenkosten | P16: 0 | BA16: 19% | BB16: Strom, Wasser, Heizung, sonst. Nebenkosten | BC16: 0 | BD16: 0 | BE16: 0 | BF16: 0 | BG16: 0 | BH16: 0 | BI16: 0 | BJ16: 0 | BK16: 0 | BL16: 0 | BM16: 0 | BN16: 0 | BO16: 0 | BR16: 19% | BS16: Strom, Wasser, Heizung, sonst. Nebenkosten | BT16: 0 | BU16: 0 | BV16: 0 | BW16: 0 | BX16: 0 | BY16: 0 | BZ16: 0 | CA16: 0 | CB16: 0 | CC16: 0 | CD16: 0 | CE16: 0 | CF16: 0 | CW16: 11 | CX16: =$Q$2 -> 19% | CY16: Strom, Wasser, Heizung, sonst. Nebenkosten | CZ16: Electricity, water, heating, other costs | DA16: 11 | DB16: 19% | DC16: Strom, Wasser, Heizung, sonst. Nebenkosten | DD16: Electricity, water, heating, other costs
A17: =$Q$2 -> 19% | B17: 19% | C17: Materialaufwand zur Produktion (19%) | F17: 700 | G17: 760 | H17: 820 | I17: 880 | J17: 740 | K17: 800 | L17: 1,700 | M17: 920 | N17: 980 | O17: 1,040 | P17: =SUM(D17:O17) -> 9,340 | U17: =E81 -> 2017 | V17: =V5 -> Jan. | W17: Febr. | X17: März | Y17: April | Z17: Mai | AA17: Juni | AB17: Juli | AC17: Aug. | AD17: Sept. | AE17: Okt. | AF17: Nov. | AG17: Dez. | BA17: 19% | BB17: Materialaufwand zur Produktion (19%) | BC17: 0 | BD17: 0 | BE17: 133 | BF17: 144 | BG17: 156 | BH17: 167 | BI17: 141 | BJ17: 152 | BK17: 323 | BL17: 175 | BM17: 186 | BN17: 198 | BO17: =SUM(BC17:BN17) -> 1,775 | BR17: 19% | BS17: Materialaufwand zur Produktion (19%) | BT17: 0 | BU17: 0 | BV17: 0 | BW17: 0 | BX17: 0 | BY17: 0 | BZ17: 0 | CA17: 0 | CB17: 0 | CC17: 0 | CD17: 0 | CE17: 0 | CF17: 0 | CW17: 12 | CX17: =$Q$2 -> 19% | CY17: ="Materialaufwand zur Produktion ("&$Q$2*100 &"%)" -> Materialaufwand zur Produktion (19%) | CZ17: ="Cost of production material ("&$Q$2*100 &"%)" -> Cost of production material (19%) | DA17: 12 | DB17: 19% | DC17: Materialaufwand zur Produktion (19%) | DD17: Cost of production material (19%)
A18: =$Q$3 -> 7% | B18: 7% | C18: Materialaufwand zur Produktion (7%) | P18: 0 | U18: =U6 -> Anzahl Mitarbeiter | BA18: 7% | BB18: Materialaufwand zur Produktion (7%) | BC18: 0 | BD18: 0 | BE18: 0 | BF18: 0 | BG18: 0 | BH18: 0 | BI18: 0 | BJ18: 0 | BK18: 0 | BL18: 0 | BM18: 0 | BN18: 0 | BO18: 0 | BR18: 7% | BS18: Materialaufwand zur Produktion (7%) | BT18: 0 | BU18: 0 | BV18: 0 | BW18: 0 | BX18: 0 | BY18: 0 | BZ18: 0 | CA18: 0 | CB18: 0 | CC18: 0 | CD18: 0 | CE18: 0 | CF18: 0 | CW18: 13 | CX18: =$Q$3 -> 7% | CY18: ="Materialaufwand zur Produktion ("&$Q$3*100 &"%)" -> Materialaufwand zur Produktion (7%) | CZ18: ="Cost for materials for production ("&$Q$3*100 &"%)" -> Cost for materials for production (7%) | DA18: 13 | DB18: 7% | DC18: Materialaufwand zur Produktion (7%) | DD18: Cost for materials for production (7%)
A19: =$Q$2 -> 19% | B19: 19% | C19: Produktionsbedarf, geringwertige Wirtschaftsgüter | F19: 100 | G19: 100 | H19: 100 | I19: 100 | J19: 100 | K19: 100 | L19: 100 | M19: 100 | N19: 100 | O19: 100 | P19: 1,000 | U19: Gehalt1 | BA19: 19% | BB19: Produktionsbedarf, geringwertige Wirtschaftsgüter | BC19: 0 | BD19: 0 | BE19: 19 | BF19: 19 | BG19: 19 | BH19: 19 | BI19: 19 | BJ19: 19 | BK19: 19 | BL19: 19 | BM19: 19 | BN19: 19 | BO19: 190 | BR19: 19% | BS19: Produktionsbedarf, geringwertige Wirtschaftsgüter | BT19: 0 | BU19: 0 | BV19: 0 | BW19: 0 | BX19: 0 | BY19: 0 | BZ19: 0 | CA19: 0 | CB19: 0 | CC19: 0 | CD19: 0 | CE19: 0 | CF19: 0 | CW19: 14 | CX19: =$Q$2 -> 19% | CY19: Produktionsbedarf, geringwertige Wirtschaftsgüter | CZ19: Production need, low value assets | DA19: 14 | DB19: 19% | DC19: Produktionsbedarf, geringwertige Wirtschaftsgüter | DD19: Production need, low value assets
A20: =$Q$2 -> 19% | B20: =IF($D$4<>1, A20,"") -> 19% | C20: Leasingraten für Produktionsanlagen, -maschinen | P20: 0 | U20: Anzahl Mitarbeiter | BA20: 19% | BB20: Leasingraten für Produktionsanlagen, -maschinen | BC20: 0 | BD20: 0 | BE20: 0 | BF20: 0 | BG20: 0 | BH20: 0 | BI20: 0 | BJ20: 0 | BK20: 0 | BL20: 0 | BM20: 0 | BN20: 0 | BO20: 0 | BR20: 19% | BS20: Leasingraten für Produktionsanlagen, -maschinen | BT20: 0 | BU20: 0 | BV20: 0 | BW20: 0 | BX20: 0 | BY20: 0 | BZ20: 0 | CA20: 0 | CB20: 0 | CC20: 0 | CD20: 0 | CE20: 0 | CF20: 0 | CW20: 15 | CX20: =$Q$2 -> 19% | CY20: Leasingraten für Produktionsanlagen, -maschinen | CZ20: Leasing rate for production facityties , -machines | DA20: 15 | DB20: 19% | DC20: Leasingraten für Produktionsanlagen, -maschinen | DD20: Leasing rate for production facityties , -machines
A21: =$Q$2 -> 19% | B21: 19% | C21: Instandhaltung und Reparaturen | F21: 200 | G21: 200 | H21: 200 | I21: 200 | J21: 200 | K21: 200 | L21: 200 | M21: 200 | N21: 200 | O21: 200 | P21: 2,000 | U21: Gehalt2 | BA21: 19% | BB21: Instandhaltung und Reparaturen | BC21: 0 | BD21: 0 | BE21: 38 | BF21: 38 | BG21: 38 | BH21: 38 | BI21: 38 | BJ21: 38 | BK21: 38 | BL21: 38 | BM21: 38 | BN21: 38 | BO21: 380 | BR21: 19% | BS21: Instandhaltung und Reparaturen | BT21: 0 | BU21: 0 | BV21: 0 | BW21: 0 | BX21: 0 | BY21: 0 | BZ21: 0 | CA21: 0 | CB21: 0 | CC21: 0 | CD21: 0 | CE21: 0 | CF21: 0 | CW21: 16 | CX21: =$Q$2 -> 19% | CY21: Instandhaltung und Reparaturen | CZ21: Maintenace and repairs | DA21: 16 | DB21: 19% | DC21: Instandhaltung und Reparaturen | DD21: Maintenace and repairs
A22: 19% | C22: Verbrauchsmaterialien Studio 5.000 Euro, Büro 2000 | P22: 0 | U22: Anzahl Mitarbeiter | BB22: Sonstiges | BC22: 0 | BD22: 0 | BE22: 0 | BF22: 0 | BG22: 0 | BH22: 0 | BI22: 0 | BJ22: 0 | BK22: 0 | BL22: 0 | BM22: 0 | BN22: 0 | BO22: 0 | BS22: Sonstiges | BT22: 0 | BU22: 0 | BV22: 0 | BW22: 0 | BX22: 0 | BY22: 0 | BZ22: 0 | CA22: 0 | CB22: 0 | CC22: 0 | CD22: 0 | CE22: 0 | CF22: 0 | CW22: 17 | CX22: =$Q$2 -> 19% | CY22: Sonstiges | CZ22: Others | DA22: 17 | DB22: 19% | DC22: Sonstiges | DD22: Others
C23: Summe Produktionskosten | D23: =SUM(D15:D22) -> 0 | E23: =SUM(E15:E22) -> 0 | F23: 1,000 | G23: 1,060 | H23: 1,120 | I23: 1,180 | J23: 1,040 | K23: 1,100 | L23: 2,000 | M23: 1,220 | N23: 1,280 | O23: 1,340 | P23: =SUM(D23:O23) -> 12,340 | U23: Gehalt3 | BB23: Summe Produktionskosten | BC23: =SUM(BC15:BC22) -> 0 | BD23: =SUM(BD15:BD22) -> 0 | BE23: 190 | BF23: 201 | BG23: 213 | BH23: 224 | BI23: 198 | BJ23: 209 | BK23: 380 | BL23: 232 | BM23: 243 | BN23: 255 | BO23: =SUM(BC23:BN23) -> 2,345 | BS23: Summe Produktionskosten | BT23: =SUM(BT15:BT22) -> 0 | BU23: =SUM(BU15:BU22) -> 0 | BV23: 0 | BW23: 0 | BX23: 0 | BY23: 0 | BZ23: 0 | CA23: 0 | CB23: 0 | CC23: 0 | CD23: 0 | CE23: 0 | CF23: 0 | CW23: 18 | CY23: ="Summe "&CY14 -> Summe Produktionskosten | CZ23: Sum production costs | DA23: 18 | DB23: 0% | DC23: Summe Produktionskosten | DD23: Sum production costs
B24: 3 | C24: Personalkosten (nur Angestellte) | U24: Nebenkosten (%) | BA24: 3 | BB24: Personalkosten (nur Angestellte) | BR24: 3 | BS24: Personalkosten (nur Angestellte) | CW24: 19 | CY24: Personalkosten (nur Angestellte) | CZ24: Personnel costs (salery personel only) | DA24: 19 | DB24: 0% | DC24: Personalkosten (nur Angestellte) | DD24: Personnel costs (salery personel only)
A25: 0% | B25: =IF($D$4<>1, A25,"") -> 0% | C25: Löhne, Gehälter mit Nebenkosten (s. Nebenrechnung) | F25: 1,740 | G25: 1,740 | H25: 1,740 | I25: 1,740 | J25: 1,740 | K25: 1,740 | L25: 1,740 | M25: 1,740 | N25: 1,740 | O25: 1,740 | P25: =SUM(D25:O25) -> 17,400 | U25: Personalkosten | V25: =((V18*V19)+(V20*V21)+(V22*V23))*(1+V24) -> 0 | W25: =((W18*W19)+(W20*W21)+(W22*W23))*(1+W24) -> 0 | X25: 0 | Y25: 0 | Z25: 0 | AA25: 0 | AB25: 0 | AC25: 0 | AD25: 0 | AE25: 0 | AF25: 0 | AG25: 0 | AH25: =SUM(V25:AG25) -> 0 | BA25: 0% | BB25: Löhne, Gehälter mit Nebenkosten (s. Nebenrechnung) | BC25: =IF($A25=$Q$2,D25*IF(OR($D$4=0,$D$4=3),$A25,$A25/(1+$A25)),0) -> 0 | BD25: 0 | BE25: 0 | BF25: 0 | BG25: 0 | BH25: 0 | BI25: 0 | BJ25: 0 | BK25: 0 | BL25: 0 | BM25: 0 | BN25: 0 | BO25: =SUM(BC25:BN25) -> 0 | BR25: 0% | BS25: Löhne, Gehälter mit Nebenkosten (s. Nebenrechnung) | BT25: =IF($A25=$Q$3,D25*IF(OR($D$4=0,$D$4=3),$A25,$A25/(1+$A25)),0) -> 0 | BU25: 0 | BV25: 0 | BW25: 0 | BX25: 0 | BY25: 0 | BZ25: 0 | CA25: 0 | CB25: 0 | CC25: 0 | CD25: 0 | CE25: 0 | CF25: =SUM(BT25:CE25) -> 0 | CW25: 20 | CX25: 0% | CY25: Löhne, Gehälter mit Nebenkosten (s. Nebenrechnung) | CZ25: Wages, saleries with additional costs (s. ancillary account) | DA25: 20 | DB25: 0% | DC25: Löhne, Gehälter mit Nebenkosten (s. Nebenrechnung) | DD25: Wages, saleries with additional costs (s. ancillary account)
A26: 19% | C26: Sonstiges | P26: =SUM(D26:O26) -> 0 | BB26: Sonstiges | BC26: 0 | BD26: 0 | BE26: 0 | BF26: 0 | BG26: 0 | BH26: 0 | BI26: 0 | BJ26: 0 | BK26: 0 | BL26: 0 | BM26: 0 | BN26: 0 | BO26: =SUM(BC26:BN26) -> 0 | BS26: Sonstiges | BT26: 0 | BU26: 0 | BV26: 0 | BW26: 0 | BX26: 0 | BY26: 0 | BZ26: 0 | CA26: 0 | CB26: 0 | CC26: 0 | CD26: 0 | CE26: 0 | CF26: =SUM(BT26:CE26) -> 0 | CW26: 21 | CX26: =$Q$2 -> 19% | CY26: Sonstiges | CZ26: Others | DA26: 21 | DB26: 19% | DC26: Sonstiges | DD26: Others
C27: Summe Personalkosten | D27: =SUM(D25:D26) -> 0 | E27: =SUM(E25:E26) -> 0 | F27: 1,740 | G27: 1,740 | H27: 1,740 | I27: 1,740 | J27: 1,740 | K27: 1,740 | L27: 1,740 | M27: 1,740 | N27: 1,740 | O27: 1,740 | P27: =SUM(D27:O27) -> 17,400 | BB27: Summe Personalkosten | BC27: =SUM(BC25:BC26) -> 0 | BD27: =SUM(BD25:BD26) -> 0 | BE27: 0 | BF27: 0 | BG27: 0 | BH27: 0 | BI27: 0 | BJ27: 0 | BK27: 0 | BL27: 0 | BM27: 0 | BN27: 0 | BO27: =SUM(BC27:BN27) -> 0 | BS27: Summe Personalkosten | BT27: =SUM(BT25:BT26) -> 0 | BU27: =SUM(BU25:BU26) -> 0 | BV27: 0 | BW27: 0 | BX27: 0 | BY27: 0 | BZ27: 0 | CA27: 0 | CB27: 0 | CC27: 0 | CD27: 0 | CE27: 0 | CF27: =SUM(BT27:CE27) -> 0 | CW27: 22 | CY27: Summe Personalkosten | CZ27: Sum personal costs | DA27: 22 | DB27: 0% | DC27: Summe Personalkosten | DD27: Sum personal costs
B28: 4 | C28: Reisekosten | BA28: 4 | BB28: Reisekosten | BR28: 4 | BS28: Reisekosten | CW28: 23 | CY28: Reisekosten | CZ28: Travel expenses | DA28: 23 | DB28: 0% | DC28: Reisekosten | DD28: Travel expenses
A29: =$Q$2 -> 19% | B29: =IF($D$4<>1, A29,"") -> 19% | C29: Fahrtkosten | F29: 100 | G29: 100 | H29: 100 | I29: 100 | J29: 100 | K29: 100 | L29: 100 | M29: 100 | N29: 100 | O29: 100 | P29: =SUM(D29:O29) -> 1,000 | U29: =F81 -> 2018 | V29: =V17 -> Jan. | W29: Febr. | X29: März | Y29: April | Z29: Mai | AA29: Juni | AB29: Juli | AC29: Aug. | AD29: Sept. | AE29: Okt. | AF29: Nov. | AG29: Dez. | BA29: 19% | BB29: Fahrtkosten | BC29: =IF($A29=$Q$2,D29*IF(OR($D$4=0,$D$4=3),$A29,$A29/(1+$A29)),0) -> 0 | BD29: 0 | BE29: 19 | BF29: 19 | BG29: 19 | BH29: 19 | BI29: 19 | BJ29: 19 | BK29: 19 | BL29: 19 | BM29: 19 | BN29: 19 | BO29: =SUM(BC29:BN29) -> 190 | BR29: 19% | BS29: Fahrtkosten | BT29: =IF($A29=$Q$3,D29*IF(OR($D$4=0,$D$4=3),$A29,$A29/(1+$A29)),0) -> 0 | BU29: 0 | BV29: 0 | BW29: 0 | BX29: 0 | BY29: 0 | BZ29: 0 | CA29: 0 | CB29: 0 | CC29: 0 | CD29: 0 | CE29: 0 | CF29: =SUM(BT29:CE29) -> 0 | CW29: 24 | CX29: =$Q$2 -> 19% | CY29: Fahrtkosten | CZ29: Travel expenses | DA29: 24 | DB29: 19% | DC29: Fahrtkosten | DD29: Travel expenses
A30: =$Q$2 -> 19% | B30: =IF($D$4<>1, A30,"") -> 19% | C30: Reisekostenpauschalen | P30: =SUM(D30:O30) -> 0 | U30: =U6 -> Anzahl Mitarbeiter | BA30: 19% | BB30: Reisekostenpauschalen | BC30: 0 | BD30: 0 | BE30: 0 | BF30: 0 | BG30: 0 | BH30: 0 | BI30: 0 | BJ30: 0 | BK30: 0 | BL30: 0 | BM30: 0 | BN30: 0 | BO30: =SUM(BC30:BN30) -> 0 | BR30: 19% | BS30: Reisekostenpauschalen | BT30: 0 | BU30: 0 | BV30: 0 | BW30: 0 | BX30: 0 | BY30: 0 | BZ30: 0 | CA30: 0 | CB30: 0 | CC30: 0 | CD30: 0 | CE30: 0 | CF30: =SUM(BT30:CE30) -> 0 | CW30: 25 | CX30: =$Q$2 -> 19% | CY30: Reisekostenpauschalen | CZ30: Travelling allowances | DA30: 25 | DB30: 19% | DC30: Reisekostenpauschalen | DD30: Travelling allowances
A31: =$Q$3 -> 7% | B31: =IF($D$4<>1, A31,"") -> 7% | C31: Übernachtungen | P31: =SUM(D31:O31) -> 0 | U31: Gehalt1 | BA31: 7% | BB31: Übernachtungen | BC31: 0 | BD31: 0 | BE31: 0 | BF31: 0 | BG31: 0 | BH31: 0 | BI31: 0 | BJ31: 0 | BK31: 0 | BL31: 0 | BM31: 0 | BN31: 0 | BO31: =SUM(BC31:BN31) -> 0 | BR31: 7% | BS31: Übernachtungen | BT31: 0 | BU31: 0 | BV31: 0 | BW31: 0 | BX31: 0 | BY31: 0 | BZ31: 0 | CA31: 0 | CB31: 0 | CC31: 0 | CD31: 0 | CE31: 0 | CF31: =SUM(BT31:CE31) -> 0 | CW31: 26 | CX31: =$Q$3 -> 7% | CY31: Übernachtungen | CZ31: Accomodations | DA31: 26 | DB31: 7% | DC31: Übernachtungen | DD31: Accomodations
A32: 19% | C32: Kosten für Ausbelichtungen u. Foto-Dienstleiustungen | P32: =SUM(D32:O32) -> 0 | U32: Anzahl Mitarbeiter | BB32: Sonstiges | BC32: 0 | BD32: 0 | BE32: 0 | BF32: 0 | BG32: 0 | BH32: 0 | BI32: 0 | BJ32: 0 | BK32: 0 | BL32: 0 | BM32: 0 | BN32: 0 | BO32: =SUM(BC32:BN32) -> 0 | BS32: Sonstiges | BT32: 0 | BU32: 0 | BV32: 0 | BW32: 0 | BX32: 0 | BY32: 0 | BZ32: 0 | CA32: 0 | CB32: 0 | CC32: 0 | CD32: 0 | CE32: 0 | CF32: =SUM(BT32:CE32) -> 0 | CW32: 27 | CX32: =$Q$2 -> 19% | CY32: Sonstiges | CZ32: Others | DA32: 27 | DB32: 19% | DC32: Sonstiges | DD32: Others
C33: Summe Reisekosten | D33: =SUM(D29:D32) -> 0 | E33: =SUM(E29:E32) -> 0 | F33: 100 | G33: 100 | H33: 100 | I33: 100 | J33: 100 | K33: 100 | L33: 100 | M33: 100 | N33: 100 | O33: 100 | P33: =SUM(D33:O33) -> 1,000 | U33: Gehalt2 | BB33: Summe Reisekosten | BC33: =SUM(BC29:BC32) -> 0 | BD33: =SUM(BD29:BD32) -> 0 | BE33: 19 | BF33: 19 | BG33: 19 | BH33: 19 | BI33: 19 | BJ33: 19 | BK33: 19 | BL33: 19 | BM33: 19 | BN33: 19 | BO33: =SUM(BC33:BN33) -> 190 | BS33: Summe Reisekosten | BT33: =SUM(BT29:BT32) -> 0 | BU33: =SUM(BU29:BU32) -> 0 | BV33: 0 | BW33: 0 | BX33: 0 | BY33: 0 | BZ33: 0 | CA33: 0 | CB33: 0 | CC33: 0 | CD33: 0 | CE33: 0 | CF33: =SUM(BT33:CE33) -> 0 | CW33: 28 | CY33: ="Summe " &CY28 -> Summe Reisekosten | CZ33: Sum travel expenses | DA33: 28 | DB33: 0% | DC33: Summe Reisekosten | DD33: Sum travel expenses
B34: 5 | C34: Versicherungen und Beiträge (betrieblich!) | U34: Anzahl Mitarbeiter | BA34: 5 | BB34: Versicherungen und Beiträge (betrieblich!) | BR34: 5 | BS34: Versicherungen und Beiträge (betrieblich!) | CW34: 29 | CY34: Versicherungen und Beiträge (betrieblich!) | CZ34: Insurances and Contributions | DA34: 29 | DB34: 0% | DC34: Versicherungen und Beiträge (betrieblich!) | DD34: Insurances and Contributions
A35: =$Q$2 -> 19% | B35: =IF($D$4<>1, A35,"") -> 19% | C35: Haftpflicht | P35: =SUM(D35:O35) -> 0 | U35: Gehalt3 | BA35: 19% | BB35: Haftpflicht | BC35: =IF($A35=$Q$2,D35*IF(OR($D$4=0,$D$4=3),$A35,$A35/(1+$A35)),0) -> 0 | BD35: 0 | BE35: 0 | BF35: 0 | BG35: 0 | BH35: 0 | BI35: 0 | BJ35: 0 | BK35: 0 | BL35: 0 | BM35: 0 | BN35: 0 | BO35: =SUM(BC35:BN35) -> 0 | BR35: 19% | BS35: Haftpflicht | BT35: =IF($A35=$Q$3,D35*IF(OR($D$4=0,$D$4=3),$A35,$A35/(1+$A35)),0) -> 0 | BU35: 0 | BV35: 0 | BW35: 0 | BX35: 0 | BY35: 0 | BZ35: 0 | CA35: 0 | CB35: 0 | CC35: 0 | CD35: 0 | CE35: 0 | CF35: =SUM(BT35:CE35) -> 0 | CW35: 30 | CX35: =$Q$2 -> 19% | CY35: Haftpflicht | CZ35: Insurance | DA35: 30 | DB35: 19% | DC35: Haftpflicht | DD35: Insurance
A36: =$Q$2 -> 19% | B36: =IF($D$4<>1, A36,"") -> 19% | C36: Rechtschutzversicherung | F36: 100 | G36: 100 | H36: 100 | I36: 100 | J36: 100 | K36: 100 | L36: 100 | M36: 100 | N36: 100 | O36: 100 | P36: =SUM(D36:O36) -> 1,000 | U36: Nebenkosten (%) | BA36: 19% | BB36: Rechtschutzversicherung | BC36: 0 | BD36: 0 | BE36: 19 | BF36: 19 | BG36: 19 | BH36: 19 | BI36: 19 | BJ36: 19 | BK36: 19 | BL36: 19 | BM36: 19 | BN36: 19 | BO36: =SUM(BC36:BN36) -> 190 | BR36: 19% | BS36: Rechtschutzversicherung | BT36: 0 | BU36: 0 | BV36: 0 | BW36: 0 | BX36: 0 | BY36: 0 | BZ36: 0 | CA36: 0 | CB36: 0 | CC36: 0 | CD36: 0 | CE36: 0 | CF36: =SUM(BT36:CE36) -> 0 | CW36: 31 | CX36: =$Q$2 -> 19% | CY36: Rechtschutzversicherung | CZ36: Legal costs insurance | DA36: 31 | DB36: 19% | DC36: Rechtschutzversicherung | DD36: Legal costs insurance
A37: =$Q$2 -> 19% | B37: =IF($D$4<>1, A37,"") -> 19% | C37: =IF($C$2="Deutsch",CY37,IF($C$2="English",CZ37,DB37)) -> Beiträge (IHK, Berufsverbände, ...) | P37: =SUM(D37:O37) -> 0 | U37: Personalkosten | V37: =((V30*V31)+(V32*V33)+(V34*V35))*(1+V36) -> 0 | W37: 0 | X37: 0 | Y37: 0 | Z37: 0 | AA37: 0 | AB37: 0 | AC37: 0 | AD37: 0 | AE37: 0 | AF37: 0 | AG37: 0 | AH37: =SUM(V37:AG37) -> 0 | BA37: 19% | BB37: Beiträge (IHK, Berufsverbände, ...) | BC37: 0 | BD37: 0 | BE37: 0 | BF37: 0 | BG37: 0 | BH37: 0 | BI37: 0 | BJ37: 0 | BK37: 0 | BL37: 0 | BM37: 0 | BN37: 0 | BO37: =SUM(BC37:BN37) -> 0 | BR37: 19% | BS37: Beiträge (IHK, Berufsverbände, ...) | BT37: 0 | BU37: 0 | BV37: 0 | BW37: 0 | BX37: 0 | BY37: 0 | BZ37: 0 | CA37: 0 | CB37: 0 | CC37: 0 | CD37: 0 | CE37: 0 | CF37: =SUM(BT37:CE37) -> 0 | CW37: 32 | CX37: =$Q$2 -> 19% | CY37: Beiträge (IHK, Berufsverbände, ...) | CZ37: Conributions (IHK, trade organizations, ...) | DA37: 32 | DB37: 19% | DC37: Beiträge (IHK, Berufsverbände, ...) | DD37: Conributions (IHK, trade organizations, ...)
A38: 19% | B38: =IF($D$4>0, A38,"") ->  | C38: Sonstiges | P38: =SUM(D38:O38) -> 0 | BB38: Sonstiges | BC38: 0 | BD38: 0 | BE38: 0 | BF38: 0 | BG38: 0 | BH38: 0 | BI38: 0 | BJ38: 0 | BK38: 0 | BL38: 0 | BM38: 0 | BN38: 0 | BO38: =SUM(BC38:BN38) -> 0 | BS38: Sonstiges | BT38: 0 | BU38: 0 | BV38: 0 | BW38: 0 | BX38: 0 | BY38: 0 | BZ38: 0 | CA38: 0 | CB38: 0 | CC38: 0 | CD38: 0 | CE38: 0 | CF38: =SUM(BT38:CE38) -> 0 | CW38: 33 | CX38: =$Q$2 -> 19% | CY38: Sonstiges | CZ38: Others | DA38: 33 | DB38: 19% | DC38: Sonstiges | DD38: Others
C39: Summe Versicherungen und Beiträge (betrieblich!) | D39: =SUM(D35:D38) -> 0 | E39: =SUM(E35:E38) -> 0 | F39: 100 | G39: 100 | H39: 100 | I39: 100 | J39: 100 | K39: 100 | L39: 100 | M39: 100 | N39: 100 | O39: 100 | P39: =SUM(D39:O39) -> 1,000 | BB39: Summe Versicherungen und Beiträge (betrieblich!) | BC39: =SUM(BC35:BC38) -> 0 | BD39: =SUM(BD35:BD38) -> 0 | BE39: 19 | BF39: 19 | BG39: 19 | BH39: 19 | BI39: 19 | BJ39: 19 | BK39: 19 | BL39: 19 | BM39: 19 | BN39: 19 | BO39: =SUM(BC39:BN39) -> 190 | BS39: Summe Versicherungen und Beiträge (betrieblich!) | BT39: =SUM(BT35:BT38) -> 0 | BU39: =SUM(BU35:BU38) -> 0 | BV39: 0 | BW39: 0 | BX39: 0 | BY39: 0 | BZ39: 0 | CA39: 0 | CB39: 0 | CC39: 0 | CD39: 0 | CE39: 0 | CF39: =SUM(BT39:CE39) -> 0 | CW39: 34 | CY39: ="Summe "&CY34 -> Summe Versicherungen und Beiträge (betrieblich!) | CZ39: Sum insurances (operational) | DA39: 34 | DB39: 0% | DC39: Summe Versicherungen und Beiträge (betrieblich!) | DD39: Sum insurances (operational)
B40: 6 | C40: KFZ Kosten / Betriebliche Nutzung | BA40: 6 | BB40: KFZ Kosten / Betriebliche Nutzung | BR40: 6 | BS40: KFZ Kosten / Betriebliche Nutzung | CW40: 35 | CY40: KFZ Kosten / Betriebliche Nutzung | CZ40: Vehicle expenses for operational use | DA40: 35 | DB40: 0% | DC40: KFZ Kosten / Betriebliche Nutzung | DD40: Vehicle expenses for operational use
A41: =$Q$2 -> 19% | B41: =IF($D$4<>1, A41,"") -> 19% | C41: Leasingraten Kfz | F41: 100 | G41: 100 | H41: 100 | I41: 100 | J41: 100 | K41: 100 | L41: 100 | M41: 100 | N41: 100 | O41: 100 | P41: =SUM(D41:O41) -> 1,000 | U41: =G81 -> 2019 | V41: =V5 -> Jan. | W41: Febr. | X41: März | Y41: April | Z41: Mai | AA41: Juni | AB41: Juli | AC41: Aug. | AD41: Sept. | AE41: Okt. | AF41: Nov. | AG41: Dez. | BA41: 19% | BB41: Leasingraten Kfz | BC41: =IF($A41=$Q$2,D41*IF(OR($D$4=0,$D$4=3),$A41,$A41/(1+$A41)),0) -> 0 | BD41: 0 | BE41: 19 | BF41: 19 | BG41: 19 | BH41: 19 | BI41: 19 | BJ41: 19 | BK41: 19 | BL41: 19 | BM41: 19 | BN41: 19 | BO41: =SUM(BC41:BN41) -> 190 | BR41: 19% | BS41: Leasingraten Kfz | BT41: =IF($A41=$Q$3,D41*IF(OR($D$4=0,$D$4=3),$A41,$A41/(1+$A41)),0) -> 0 | BU41: 0 | BV41: 0 | BW41: 0 | BX41: 0 | BY41: 0 | BZ41: 0 | CA41: 0 | CB41: 0 | CC41: 0 | CD41: 0 | CE41: 0 | CF41: =SUM(BT41:CE41) -> 0 | CW41: 36 | CX41: =$Q$2 -> 19% | CY41: Leasingraten Kfz | CZ41: Vehicle leasing rates | DA41: 36 | DB41: 19% | DC41: Leasingraten Kfz | DD41: Vehicle leasing rates
A42: 19% | B42: =IF($D$4<>1, A42,"") -> 19% | C42: Versicherungen/Kfz-Steuer | F42: 100 | G42: 100 | H42: 100 | I42: 100 | J42: 100 | K42: 100 | L42: 100 | M42: 100 | N42: 100 | O42: 100 | P42: 1,000 | U42: =U30 -> Anzahl Mitarbeiter | BA42: 19% | BB42: Versicherungen/Kfz-Steuer | BC42: 0 | BD42: 0 | BE42: 19 | BF42: 19 | BG42: 19 | BH42: 19 | BI42: 19 | BJ42: 19 | BK42: 19 | BL42: 19 | BM42: 19 | BN42: 19 | BO42: =SUM(BC42:BN42) -> 190 | BR42: 19% | BS42: Versicherungen/Kfz-Steuer | BT42: 0 | BU42: 0 | BV42: 0 | BW42: 0 | BX42: 0 | BY42: 0 | BZ42: 0 | CA42: 0 | CB42: 0 | CC42: 0 | CD42: 0 | CE42: 0 | CF42: =SUM(BT42:CE42) -> 0 | CW42: 37 | CX42: 19% | CY42: Versicherungen/Kfz-Steuer | CZ42: Insurances / tax on cars | DA42: 37 | DB42: 19% | DC42: Versicherungen/Kfz-Steuer | DD42: Insurances / tax on cars
A43: 19% | B43: =IF($D$4<>1, A43,"") -> 19% | C43: Fahrzeugkosten (Tanken und Reparatur) | P43: 0 | U43: Gehalt1 | BA43: 19% | BB43: Fahrzeugkosten (Tanken und Reparatur) | BC43: 0 | BD43: 0 | BE43: 0 | BF43: 0 | BG43: 0 | BH43: 0 | BI43: 0 | BJ43: 0 | BK43: 0 | BL43: 0 | BM43: 0 | BN43: 0 | BO43: =SUM(BC43:BN43) -> 0 | BR43: 19% | BS43: Fahrzeugkosten (Tanken und Reparatur) | BT43: 0 | BU43: 0 | BV43: 0 | BW43: 0 | BX43: 0 | BY43: 0 | BZ43: 0 | CA43: 0 | CB43: 0 | CC43: 0 | CD43: 0 | CE43: 0 | CF43: =SUM(BT43:CE43) -> 0 | CW43: 38 | CX43: 19% | CY43: Fahrzeugkosten (Tanken und Reparatur) | CZ43: vehicle's cost (fuel and repairs) | DA43: 38 | DB43: 19% | DC43: Fahrzeugkosten (Tanken und Reparatur) | DD43: vehicle's cost (fuel and repairs)
A44: 0% | B44: =IF($D$4<>1, A44,"") -> 0% | C44: Abrechenbare Kilometerkosten | P44: 0 | U44: Anzahl Mitarbeiter | BA44: 0% | BB44: Abrechenbare Kilometerkosten | BC44: 0 | BD44: 0 | BE44: 0 | BF44: 0 | BG44: 0 | BH44: 0 | BI44: 0 | BJ44: 0 | BK44: 0 | BL44: 0 | BM44: 0 | BN44: 0 | BO44: =SUM(BC44:BN44) -> 0 | BR44: 0% | BS44: Abrechenbare Kilometerkosten | BT44: 0 | BU44: 0 | BV44: 0 | BW44: 0 | BX44: 0 | BY44: 0 | BZ44: 0 | CA44: 0 | CB44: 0 | CC44: 0 | CD44: 0 | CE44: 0 | CF44: =SUM(BT44:CE44) -> 0 | CW44: 39 | CX44: 0% | CY44: Abrechenbare Kilometerkosten | CZ44: Deductible cost per kilometre | DA44: 39 | DB44: 0% | DC44: Abrechenbare Kilometerkosten | DD44: Deductible cost per kilometre
A45: 19% | C45: Fahrtkosten | P45: 0 | U45: Gehalt2 | BB45: Sonstiges | BC45: 0 | BD45: 0 | BE45: 0 | BF45: 0 | BG45: 0 | BH45: 0 | BI45: 0 | BJ45: 0 | BK45: 0 | BL45: 0 | BM45: 0 | BN45: 0 | BS45: Sonstiges | BT45: 0 | BU45: 0 | BV45: 0 | BW45: 0 | BX45: 0 | BY45: 0 | BZ45: 0 | CA45: 0 | CB45: 0 | CC45: 0 | CD45: 0 | CE45: 0 | CW45: 40 | CX45: =$Q$2 -> 19% | CY45: Sonstiges | CZ45: Others | DA45: 40 | DB45: 19% | DC45: Sonstiges | DD45: Others
C46: Summe KFZ Kosten / Betriebliche Nutzung | D46: =SUM(D41:D45) -> 0 | E46: =SUM(E41:E45) -> 0 | F46: 200 | G46: 200 | H46: 200 | I46: 200 | J46: 200 | K46: 200 | L46: 200 | M46: 200 | N46: 200 | O46: 200 | P46: 2,000 | U46: Anzahl Mitarbeiter | BB46: Summe KFZ Kosten / Betriebliche Nutzung | BC46: =SUM(BC41:BC45) -> 0 | BD46: =SUM(BD41:BD45) -> 0 | BE46: 38 | BF46: 38 | BG46: 38 | BH46: 38 | BI46: 38 | BJ46: 38 | BK46: 38 | BL46: 38 | BM46: 38 | BN46: 38 | BO46: =SUM(BC46:BN46) -> 380 | BS46: Summe KFZ Kosten / Betriebliche Nutzung | BT46: =SUM(BT41:BT45) -> 0 | BU46: =SUM(BU41:BU45) -> 0 | BV46: 0 | BW46: 0 | BX46: 0 | BY46: 0 | BZ46: 0 | CA46: 0 | CB46: 0 | CC46: 0 | CD46: 0 | CE46: 0 | CF46: =SUM(BT46:CE46) -> 0 | CW46: 41 | CY46: ="Summe "&CY40 -> Summe KFZ Kosten / Betriebliche Nutzung | CZ46: Sum vehical costs / operational use) | DA46: 41 | DB46: 0% | DC46: Summe KFZ Kosten / Betriebliche Nutzung | DD46: Sum vehical costs / operational use)
B47: 7 | C47: Marketing u. Werbung | U47: Gehalt3 | BA47: 7 | BB47: Marketing u. Werbung | BR47: 7 | BS47: Marketing u. Werbung | CW47: 42 | CY47: Marketing u. Werbung | CZ47: Marketing & advertising | DA47: 42 | DB47: 0% | DC47: Marketing u. Werbung | DD47: Marketing & advertising
A48: =$Q$2 -> 19% | B48: =IF($D$4<>1, A48,"") -> 19% | C48: Marktforschung | I48: 5,000 | P48: =SUM(D48:O48) -> 5,000 | U48: Nebenkosten (%) | BA48: 19% | BB48: Marktforschung | BC48: =IF($A48=$Q$2,D48*IF(OR($D$4=0,$D$4=3),$A48,$A48/(1+$A48)),0) -> 0 | BD48: 0 | BE48: 0 | BF48: 0 | BG48: 0 | BH48: 950 | BI48: 0 | BJ48: 0 | BK48: 0 | BL48: 0 | BM48: 0 | BN48: 0 | BO48: =SUM(BC48:BN48) -> 950 | BR48: 19% | BS48: Marktforschung | BT48: =IF($A48=$Q$3,D48*IF(OR($D$4=0,$D$4=3),$A48,$A48/(1+$A48)),0) -> 0 | BU48: 0 | BV48: 0 | BW48: 0 | BX48: 0 | BY48: 0 | BZ48: 0 | CA48: 0 | CB48: 0 | CC48: 0 | CD48: 0 | CE48: 0 | CF48: =SUM(BT48:CE48) -> 0 | CW48: 43 | CX48: =$Q$2 -> 19% | CY48: Marktforschung | CZ48: Market research | DA48: 43 | DB48: 19% | DC48: Marktforschung | DD48: Market research
A49: =$Q$2 -> 19% | B49: =IF($D$4<>1, A49,"") -> 19% | C49: Briefpapier, Visitenkarte, Stempel | P49: 0 | U49: Personalkosten | V49: =((V42*V43)+(V44*V45)+(V46*V47))*(1+V48) -> 0 | W49: 0 | X49: 0 | Y49: 0 | Z49: 0 | AA49: 0 | AB49: 0 | AC49: 0 | AD49: 0 | AE49: 0 | AF49: 0 | AG49: 0 | AH49: =SUM(V49:AG49) -> 0 | BA49: 19% | BB49: Briefpapier, Visitenkarte, Stempel | BC49: 0 | BD49: 0 | BE49: 0 | BF49: 0 | BG49: 0 | BH49: 0 | BI49: 0 | BJ49: 0 | BK49: 0 | BL49: 0 | BM49: 0 | BN49: 0 | BO49: 0 | BR49: 19% | BS49: Briefpapier, Visitenkarte, Stempel | BT49: 0 | BU49: 0 | BV49: 0 | BW49: 0 | BX49: 0 | BY49: 0 | BZ49: 0 | CA49: 0 | CB49: 0 | CC49: 0 | CD49: 0 | CE49: 0 | CF49: 0 | CW49: 44 | CX49: =$Q$2 -> 19% | CY49: Briefpapier, Visitenkarte, Stempel | CZ49: Office supply, paper, business cards, stamps | DA49: 44 | DB49: 19% | DC49: Briefpapier, Visitenkarte, Stempel | DD49: Office supply, paper, business cards, stamps
A50: =$Q$2 -> 19% | B50: =IF($D$4<>1, A50,"") -> 19% | C50: Webseite, lfd. Webseitenpflege | F50: 100 | G50: 100 | H50: 100 | I50: 100 | J50: 100 | K50: 100 | L50: 100 | M50: 100 | N50: 100 | O50: 100 | P50: 1,000 | BA50: 19% | BB50: Webseite, lfd. Webseitenpflege | BC50: 0 | BD50: 0 | BE50: 19 | BF50: 19 | BG50: 19 | BH50: 19 | BI50: 19 | BJ50: 19 | BK50: 19 | BL50: 19 | BM50: 19 | BN50: 19 | BO50: 190 | BR50: 19% | BS50: Webseite, lfd. Webseitenpflege | BT50: 0 | BU50: 0 | BV50: 0 | BW50: 0 | BX50: 0 | BY50: 0 | BZ50: 0 | CA50: 0 | CB50: 0 | CC50: 0 | CD50: 0 | CE50: 0 | CF50: 0 | CW50: 45 | CX50: =$Q$2 -> 19% | CY50: Webseite, lfd. Webseitenpflege | CZ50: Homepage, current website maintenance | DA50: 45 | DB50: 19% | DC50: Webseite, lfd. Webseitenpflege | DD50: Homepage, current website maintenance
A51: =$Q$2 -> 19% | B51: =IF($D$4<>1, A51,"") -> 19% | C51: Flyer, Prospekte, Broschüren, Anzeigen | P51: 0 | BA51: 19% | BB51: Flyer, Prospekte, Broschüren, Anzeigen | BC51: 0 | BD51: 0 | BE51: 0 | BF51: 0 | BG51: 0 | BH51: 0 | BI51: 0 | BJ51: 0 | BK51: 0 | BL51: 0 | BM51: 0 | BN51: 0 | BO51: 0 | BR51: 19% | BS51: Flyer, Prospekte, Broschüren, Anzeigen | BT51: 0 | BU51: 0 | BV51: 0 | BW51: 0 | BX51: 0 | BY51: 0 | BZ51: 0 | CA51: 0 | CB51: 0 | CC51: 0 | CD51: 0 | CE51: 0 | CF51: 0 | CW51: 46 | CX51: =$Q$2 -> 19% | CY51: Flyer, Prospekte, Broschüren, Anzeigen | CZ51: Flyers, leaflets, booklets, ads | DA51: 46 | DB51: 19% | DC51: Flyer, Prospekte, Broschüren, Anzeigen | DD51: Flyers, leaflets, booklets, ads
A52: 19% | B52: =IF($D$4<>1, A52,"") -> 19% | C52: Bewirtungskosten | P52: 0 | BA52: 19% | BB52: Bewirtungskosten | BC52: 0 | BD52: 0 | BE52: 0 | BF52: 0 | BG52: 0 | BH52: 0 | BI52: 0 | BJ52: 0 | BK52: 0 | BL52: 0 | BM52: 0 | BN52: 0 | BO52: 0 | BR52: 19% | BS52: Bewirtungskosten | BT52: 0 | BU52: 0 | BV52: 0 | BW52: 0 | BX52: 0 | BY52: 0 | BZ52: 0 | CA52: 0 | CB52: 0 | CC52: 0 | CD52: 0 | CE52: 0 | CF52: 0 | CW52: 47 | CX52: 19% | CY52: Bewirtungskosten | CZ52: Entertainment expenses | DA52: 47 | DB52: 19% | DC52: Bewirtungskosten | DD52: Entertainment expenses
A53: 19% | C53: Werbung | P53: 0 | U53: =H81 -> 2020 | V53: =V17 -> Jan. | W53: Febr. | X53: März | Y53: April | Z53: Mai | AA53: Juni | AB53: Juli | AC53: Aug. | AD53: Sept. | AE53: Okt. | AF53: Nov. | AG53: Dez. | BB53: Sonstiges, Messen, ... | BC53: 0 | BD53: 0 | BE53: 0 | BF53: 0 | BG53: 0 | BH53: 0 | BI53: 0 | BJ53: 0 | BK53: 0 | BL53: 0 | BM53: 0 | BN53: 0 | BO53: 0 | BS53: Sonstiges, Messen, ... | BT53: 0 | BU53: 0 | BV53: 0 | BW53: 0 | BX53: 0 | BY53: 0 | BZ53: 0 | CA53: 0 | CB53: 0 | CC53: 0 | CD53: 0 | CE53: 0 | CF53: 0 | CW53: 48 | CX53: =$Q$2 -> 19% | CY53: Sonstiges, Messen, ... | CZ53: Others, exhibitions, ... | DA53: 48 | DB53: 19% | DC53: Sonstiges, Messen, ... | DD53: Others, exhibitions, ...
C54: Summe Marketing u. Werbung | D54: =SUM(D48:D53) -> 0 | E54: =SUM(E48:E53) -> 0 | F54: 100 | G54: 100 | H54: 100 | I54: 5,100 | J54: 100 | K54: 100 | L54: 100 | M54: 100 | N54: 100 | O54: 100 | P54: 6,000 | U54: =U42 -> Anzahl Mitarbeiter | BB54: Summe Marketing u. Werbung | BC54: =SUM(BC48:BC53) -> 0 | BD54: =SUM(BD48:BD53) -> 0 | BE54: 19 | BF54: 19 | BG54: 19 | BH54: 969 | BI54: 19 | BJ54: 19 | BK54: 19 | BL54: 19 | BM54: 19 | BN54: 19 | BO54: 1,140 | BS54: Summe Marketing u. Werbung | BT54: =SUM(BT48:BT53) -> 0 | BU54: =SUM(BU48:BU53) -> 0 | BV54: 0 | BW54: 0 | BX54: 0 | BY54: 0 | BZ54: 0 | CA54: 0 | CB54: 0 | CC54: 0 | CD54: 0 | CE54: 0 | CF54: 0 | CW54: 49 | CY54: ="Summe "&CY47 -> Summe Marketing u. Werbung | CZ54: Sum marketing & advertising | DA54: 49 | DB54: 0% | DC54: Summe Marketing u. Werbung | DD54: Sum marketing & advertising
B55: 8 | C55: Rechts- und Beratungskosten | U55: Gehalt1 | BA55: 8 | BB55: Rechts- und Beratungskosten | BR55: 8 | BS55: Rechts- und Beratungskosten | CW55: 50 | CY55: Rechts- und Beratungskosten | CZ55: Legal and accountancy fees | DA55: 50 | DB55: 0% | DC55: Rechts- und Beratungskosten | DD55: Legal and accountancy fees
A56: 19% | B56: =IF($D$4<>1, A56,"") -> 19% | C56: Buchhaltung | P56: 0 | U56: Anzahl Mitarbeiter | BA56: 19% | BB56: Buchhaltung | BC56: =IF($A56=$Q$2,D56*IF(OR($D$4=0,$D$4=3),$A56,$A56/(1+$A56)),0) -> 0 | BD56: 0 | BE56: 0 | BF56: 0 | BG56: 0 | BH56: 0 | BI56: 0 | BJ56: 0 | BK56: 0 | BL56: 0 | BM56: 0 | BN56: 0 | BO56: 0 | BR56: 19% | BS56: Buchhaltung | BT56: =IF($A56=$Q$3,D56*IF(OR($D$4=0,$D$4=3),$A56,$A56/(1+$A56)),0) -> 0 | BU56: 0 | BV56: 0 | BW56: 0 | BX56: 0 | BY56: 0 | BZ56: 0 | CA56: 0 | CB56: 0 | CC56: 0 | CD56: 0 | CE56: 0 | CF56: =SUM(BT56:CE56) -> 0 | CW56: 51 | CX56: 19% | CY56: Buchhaltung | CZ56: Bookkeeping | DA56: 51 | DB56: 19% | DC56: Buchhaltung | DD56: Bookkeeping
A57: 19% | B57: =IF($D$4<>1, A57,"") -> 19% | C57: Steuerberatung, Abschluss, Prüfung | P57: 0 | U57: Gehalt2 | BA57: 19% | BB57: Steuerberatung, Abschluss, Prüfung | BC57: 0 | BD57: 0 | BE57: 0 | BF57: 0 | BG57: 0 | BH57: 0 | BI57: 0 | BJ57: 0 | BK57: 0 | BL57: 0 | BM57: 0 | BN57: 0 | BO57: 0 | BR57: 19% | BS57: Steuerberatung, Abschluss, Prüfung | BT57: 0 | BU57: 0 | BV57: 0 | BW57: 0 | BX57: 0 | BY57: 0 | BZ57: 0 | CA57: 0 | CB57: 0 | CC57: 0 | CD57: 0 | CE57: 0 | CF57: =SUM(BT57:CE57) -> 0 | CW57: 52 | CX57: 19% | CY57: Steuerberatung, Abschluss, Prüfung | CZ57: Tax advice, annual accounts, accounts audit | DA57: 52 | DB57: 19% | DC57: Steuerberatung, Abschluss, Prüfung | DD57: Tax advice, annual accounts, accounts audit
A58: 19% | C58: Sonstiges | P58: 0 | U58: Anzahl Mitarbeiter | BB58: Sonstiges | BC58: 0 | BD58: 0 | BE58: 0 | BF58: 0 | BG58: 0 | BH58: 0 | BI58: 0 | BJ58: 0 | BK58: 0 | BL58: 0 | BM58: 0 | BN58: 0 | BO58: 0 | BS58: Sonstiges | BT58: 0 | BU58: 0 | BV58: 0 | BW58: 0 | BX58: 0 | BY58: 0 | BZ58: 0 | CA58: 0 | CB58: 0 | CC58: 0 | CD58: 0 | CE58: 0 | CF58: =SUM(BT58:CE58) -> 0 | CW58: 53 | CX58: 7% | CY58: Sonstiges | CZ58: Others | DA58: 53 | DB58: 7% | DC58: Sonstiges | DD58: Others
C59: Summe Rechts- und Beratungskosten | D59: =SUM(D56:D58) -> 0 | E59: =SUM(E56:E58) -> 0 | F59: 0 | G59: 0 | H59: 0 | I59: 0 | J59: 0 | K59: 0 | L59: 0 | M59: 0 | N59: 0 | O59: 0 | P59: 0 | U59: Gehalt3 | BB59: Summe Rechts- und Beratungskosten | BC59: =SUM(BC56:BC58) -> 0 | BD59: =SUM(BD56:BD58) -> 0 | BE59: 0 | BF59: 0 | BG59: 0 | BH59: 0 | BI59: 0 | BJ59: 0 | BK59: 0 | BL59: 0 | BM59: 0 | BN59: 0 | BO59: 0 | BS59: Summe Rechts- und Beratungskosten | BT59: =SUM(BT56:BT58) -> 0 | BU59: =SUM(BU56:BU58) -> 0 | BV59: 0 | BW59: 0 | BX59: 0 | BY59: 0 | BZ59: 0 | CA59: 0 | CB59: 0 | CC59: 0 | CD59: 0 | CE59: 0 | CF59: =SUM(BT59:CE59) -> 0 | CW59: 54 | CY59: Summe Rechts- und Beratungskosten | CZ59: Sum legislation and consultancy fees | DA59: 54 | DB59: 0% | DC59: Summe Rechts- und Beratungskosten | DD59: Sum legislation and consultancy fees
B60: 9 | C60: Verschiedenes | U60: Nebenkosten (%) | BA60: 9 | BB60: Verschiedenes | BR60: 9 | BS60: Verschiedenes | CW60: 55 | CY60: Verschiedenes | CZ60: Miscellaneous | DA60: 55 | DB60: 0% | DC60: Verschiedenes | DD60: Miscellaneous
A61: 0% | B61: =IF($D$4=-1, A61,"") ->  | C61: Finanzaufwand / Zinsen *) | D61: ='7 Finanzierung|Financing'!D37 -> 0 | E61: ='7 Finanzierung|Financing'!E37 -> 0 | F61: ='7 Finanzierung|Financing'!F37 -> 83 | G61: ='7 Finanzierung|Financing'!G37 -> 83 | H61: ='7 Finanzierung|Financing'!H37 -> 249 | I61: ='7 Finanzierung|Financing'!I37 -> 245 | J61: ='7 Finanzierung|Financing'!J37 -> 242 | K61: ='7 Finanzierung|Financing'!K37 -> 238 | L61: ='7 Finanzierung|Financing'!L37 -> 235 | M61: ='7 Finanzierung|Financing'!M37 -> 231 | N61: ='7 Finanzierung|Financing'!N37 -> 228 | O61: ='7 Finanzierung|Financing'!O37 -> 224 | P61: =SUM(D61:O61) -> 2,058 | U61: Personalkosten | V61: =((V54*V55)+(V56*V57)+(V58*V59))*(1+V60) -> 0 | W61: 0 | X61: 0 | Y61: 0 | Z61: 0 | AA61: 0 | AB61: 0 | AC61: 0 | AD61: 0 | AE61: 0 | AF61: 0 | AG61: 0 | AH61: =SUM(V61:AG61) -> 0 | BB61: Finanzaufwand / Zinsen *) | BC61: =IF($A61=$Q$2,D61*IF(OR($D$4=0,$D$4=3),$A61,$A61/(1+$A61)),0) -> 0 | BD61: 0 | BE61: 0 | BF61: 0 | BG61: 0 | BH61: 0 | BI61: 0 | BJ61: 0 | BK61: 0 | BL61: 0 | BM61: 0 | BN61: 0 | BO61: =SUM(BC61:BN61) -> 0 | BS61: Finanzaufwand / Zinsen *) | BT61: =IF($A61=$Q$3,D61*IF(OR($D$4=0,$D$4=3),$A61,$A61/(1+$A61)),0) -> 0 | BU61: 0 | BV61: 0 | BW61: 0 | BX61: 0 | BY61: 0 | BZ61: 0 | CA61: 0 | CB61: 0 | CC61: 0 | CD61: 0 | CE61: 0 | CF61: =SUM(BT61:CE61) -> 0 | CW61: 56 | CX61: 0% | CY61: Finanzaufwand / Zinsen *) | CZ61: Finance costs / interest *) | DA61: 56 | DB61: 0% | DC61: Finanzaufwand / Zinsen *) | DD61: Finance costs / interest *)
A62: =$Q$2 -> 19% | B62: =IF($D$4<>1, A62,"") -> 19% | C62: Reisekosten | F62: 100 | G62: 100 | H62: 100 | I62: 100 | J62: 100 | K62: 100 | L62: 100 | M62: 100 | N62: 100 | O62: 100 | P62: 1,000 | BA62: 19% | BB62: Reisekosten | BC62: 0 | BD62: 0 | BE62: 19 | BF62: 19 | BG62: 19 | BH62: 19 | BI62: 19 | BJ62: 19 | BK62: 19 | BL62: 19 | BM62: 19 | BN62: 19 | BO62: 190 | BR62: 19% | BS62: Reisekosten | BT62: 0 | BU62: 0 | BV62: 0 | BW62: 0 | BX62: 0 | BY62: 0 | BZ62: 0 | CA62: 0 | CB62: 0 | CC62: 0 | CD62: 0 | CE62: 0 | CF62: 0 | CW62: 57 | CX62: =$Q$2 -> 19% | CY62: Reisekosten | CZ62: Travel expenses | DA62: 57 | DB62: 19% | DC62: Reisekosten | DD62: Travel expenses
A63: 7% | B63: =IF($D$4<>1, A63,"") -> 7% | C63: Fachliteratur, Bücher | F63: 20 | G63: 20 | H63: 20 | I63: 20 | J63: 20 | K63: 20 | L63: 20 | M63: 20 | N63: 20 | O63: 20 | P63: 200 | BA63: 7% | BB63: Fachliteratur, Bücher | BC63: 0 | BD63: 0 | BE63: 0 | BF63: 0 | BG63: 0 | BH63: 0 | BI63: 0 | BJ63: 0 | BK63: 0 | BL63: 0 | BM63: 0 | BN63: 0 | BO63: 0 | BR63: 7% | BS63: Fachliteratur, Bücher | BT63: 0 | BU63: 0 | BV63: 1 | BW63: 1 | BX63: 1 | BY63: 1 | BZ63: 1 | CA63: 1 | CB63: 1 | CC63: 1 | CD63: 1 | CE63: 1 | CF63: 14 | CW63: 58 | CX63: 7% | CY63: Fachliteratur, Bücher | CZ63: Business literature | DA63: 58 | DB63: 7% | DC63: Fachliteratur, Bücher | DD63: Business literature
A64: 19% | B64: =IF($D$4<>1, A64,"") -> 19% | C64: Schulungen | K64: 1,000 | P64: 1,000 | BA64: 19% | BB64: Schulungen | BC64: 0 | BD64: 0 | BE64: 0 | BF64: 0 | BG64: 0 | BH64: 0 | BI64: 0 | BJ64: 190 | BK64: 0 | BL64: 0 | BM64: 0 | BN64: 0 | BO64: 190 | BR64: 19% | BS64: Schulungen | BT64: 0 | BU64: 0 | BV64: 0 | BW64: 0 | BX64: 0 | BY64: 0 | BZ64: 0 | CA64: 0 | CB64: 0 | CC64: 0 | CD64: 0 | CE64: 0 | CF64: 0 | CW64: 59 | CX64: 19% | CY64: Schulungen | CZ64: Training | DA64: 59 | DB64: 19% | DC64: Schulungen | DD64: Training
A65: 0% | C65: Versicherungen, Berufsgenossenschaft, Handwerkskammer etc. | P65: 0 | BB65: Sonstiges | BC65: 0 | BD65: 0 | BE65: 0 | BF65: 0 | BG65: 0 | BH65: 0 | BI65: 0 | BJ65: 0 | BK65: 0 | BL65: 0 | BM65: 0 | BN65: 0 | BO65: 0 | BS65: Sonstiges | BT65: 0 | BU65: 0 | BV65: 0 | BW65: 0 | BX65: 0 | BY65: 0 | BZ65: 0 | CA65: 0 | CB65: 0 | CC65: 0 | CD65: 0 | CE65: 0 | CF65: 0 | CW65: 60 | CX65: 7% | CY65: Sonstiges | CZ65: Others | DA65: 60 | DB65: 7% | DC65: Sonstiges | DD65: Others
C66: Summe Verschiedenes | D66: =SUM(D61:D65) -> 0 | E66: =SUM(E61:E65) -> 0 | F66: 203 | G66: 203 | H66: 369 | I66: 365 | J66: 362 | K66: 1,358 | L66: 355 | M66: 351 | N66: 348 | O66: 344 | P66: 4,258 | BB66: Summe Verschiedenes | BC66: =SUM(BC61:BC65) -> 0 | BD66: =SUM(BD61:BD65) -> 0 | BE66: 19 | BF66: 19 | BG66: 19 | BH66: 19 | BI66: 19 | BJ66: 209 | BK66: 19 | BL66: 19 | BM66: 19 | BN66: 19 | BO66: 380 | BS66: Summe Verschiedenes | BT66: =SUM(BT61:BT65) -> 0 | BU66: =SUM(BU61:BU65) -> 0 | BV66: 1 | BW66: 1 | BX66: 1 | BY66: 1 | BZ66: 1 | CA66: 1 | CB66: 1 | CC66: 1 | CD66: 1 | CE66: 1 | CF66: 14 | CW66: 61 | CY66: Summe Verschiedenes | CZ66: Sum miscellaneous | DA66: 61 | DB66: 0% | DC66: Summe Verschiedenes | DD66: Sum miscellaneous
C67: Summe Betriebskosten I | D67: =SUM(D6:D66)/2 -> 0 | E67: =SUM(E6:E66)/2 -> 0 | F67: 4,143 | G67: 4,203 | H67: 4,429 | I67: 9,485 | J67: 4,342 | K67: 5,398 | L67: 5,295 | M67: 4,511 | N67: 4,568 | O67: 4,624 | P67: =SUM(P6:P66)/2 -> 50,998 | Q67: =IF(P67<>SUM(P7:P66)/2,"Fehler melden","") ->  | BB67: ="Summe MwSt "&$Q$2*100&"%" -> Summe MwSt 19% | BC67: =SUM(BC6:BC66)/2 -> 0 | BD67: =SUM(BD6:BD66)/2 -> 0 | BE67: 437 | BF67: 448 | BG67: 460 | BH67: 1,421 | BI67: 445 | BJ67: 646 | BK67: 627 | BL67: 479 | BM67: 490 | BN67: 502 | BO67: 5,955 | BS67: ="Summe MwSt "&$Q$3*100&"%" -> Summe MwSt 7% | BT67: =SUM(BT6:BT66)/2 -> 0 | BU67: =SUM(BU6:BU66)/2 -> 0 | BV67: 1 | BW67: 1 | BX67: 1 | BY67: 1 | BZ67: 1 | CA67: 1 | CB67: 1 | CC67: 1 | CD67: 1 | CE67: 1 | CF67: 14 | CY67: Summe Betriebskosten I | CZ67: Sum operating costs I
C68: Abschreibungen (aus "3 Anschaffungen|Investment") | D68: ='3 Anschaffungen|Investment'!E32 -> 20 | E68: ='3 Anschaffungen|Investment'!F32 -> 20 | F68: ='3 Anschaffungen|Investment'!G32 -> 20 | G68: ='3 Anschaffungen|Investment'!H32 -> 20 | H68: ='3 Anschaffungen|Investment'!I32 -> 20 | I68: ='3 Anschaffungen|Investment'!J32 -> 20 | J68: ='3 Anschaffungen|Investment'!K32 -> 20 | K68: ='3 Anschaffungen|Investment'!L32 -> 20 | L68: ='3 Anschaffungen|Investment'!M32 -> 20 | M68: ='3 Anschaffungen|Investment'!N32 -> 20 | N68: ='3 Anschaffungen|Investment'!O32 -> 20 | O68: ='3 Anschaffungen|Investment'!P32 -> 20 | P68: =SUM(D68:O68) -> 240 | CY68: Abschreibungen (aus "3 Anschaffungen|Investment") | CZ68: Depreciation (from "3 Anschaffungen|Investment")
C69: Summe Betriebskosten II | D69: =SUM(D67:D68) -> 20 | E69: =SUM(E67:E68) -> 20 | F69: =SUM(F67:F68) -> 4,163 | G69: 4,223 | H69: 4,449 | I69: 9,505 | J69: 4,362 | K69: 5,418 | L69: 5,315 | M69: 4,531 | N69: 4,588 | O69: 4,644 | P69: 51,238 | CY69: ="Summe Betriebskosten II" -> Summe Betriebskosten II | CZ69: Sum operating costs II
C70: *) wird aus Tabelle "Finanzierung" übernommen (auf ganze Euro gerundet!) | CY70: *) wird aus Tabelle "Finanzierung" übernommen (auf ganze Euro gerundet!) | CZ70: *) out of Table "7 Finanzierung | Financing"
C72: =IF($C$2="English",CZ72,CY72) -> 4a Anhang: Ausweis der MwSt in EURO aus der Differenz zwischen den Tabellen 4a und 4c | CY72: 4a Anhang: Ausweis der MwSt in EURO aus der Differenz zwischen den Tabellen 4a und 4c | CZ72: 4a-1 Annex: Disclosure of VAT (Difference between Tab. 4a-1 and 4-1c)
C73: =IF($C$2="Deutsch",CY74,IF($C$2="English",CZ74,DB74))& " " & $Q$2*100 &"%" -> Summe der angefallenen MwSt 19% | D73: =BC67 -> 0.0 | E73: =BD67 -> 0.0 | F73: 437.0 | G73: 448.4 | H73: 459.8 | I73: 1,421.2 | J73: 444.6 | K73: 646.0 | L73: 627.0 | M73: 478.8 | N73: 490.2 | O73: 501.6 | P73: =SUM(D73:O73) -> 5,954.6 | CY73: Summe der angefallenen MwSt | CZ73: Sum VAT
C74: =IF($C$2="Deutsch",CY74,IF($C$2="English",CZ74,DB74))& " " & $Q$3*100 &"%" -> Summe der angefallenen MwSt 7% | D74: =BT67 -> 0.0 | E74: =BU67 -> 0.0 | F74: 1.4 | G74: 1.4 | H74: 1.4 | I74: 1.4 | J74: 1.4 | K74: 1.4 | L74: 1.4 | M74: 1.4 | N74: 1.4 | O74: 1.4 | P74: =SUM(D74:O74) -> 14.0 | CY74: Summe der angefallenen MwSt | CZ74: Sum VAT
C75: =IF($C$2="Deutsch",CY75,IF($C$2="English",CZ75,DB75)) -> Gesamtsumme angefallener MwSt | D75: =D74+D73 -> 0.0 | E75: =E74+E73 -> 0.0 | F75: 438.4 | G75: 449.8 | H75: 461.2 | I75: 1,422.6 | J75: 446.0 | K75: 647.4 | L75: 628.4 | M75: 480.2 | N75: 491.6 | O75: 503.0 | P75: =SUM(D75:O75) -> 5,968.6 | CY75: Gesamtsumme angefallener MwSt | CZ75: Total sum VAT
G76: =IF($C$2="English",G78,G77) -> Betriebskosten II für das Jahr 2016 (ohne MwSt) | J76: =IF($C$2="English",J78,J77) -> Betriebskosten II für die Jahre 2016 - 2020 (ohne MwSt)
G77: ="Betriebskosten II für das Jahr " &'1 Pers.Ausgaben|Pers Expenses'!C4&" (" & 'Deckblatt Gruender|Data Founder'!J1 & ")" -> Betriebskosten II für das Jahr 2016 (ohne MwSt) | J77: ="Betriebskosten II für die Jahre " &'1 Pers.Ausgaben|Pers Expenses'!$C$4 & " - " & '1 Pers.Ausgaben|Pers Expenses'!$C$4+4& " (" & 'Deckblatt Gruender|Data Founder'!$J$1 & ")" -> Betriebskosten II für die Jahre 2016 - 2020 (ohne MwSt)
G78: ="Operation Expenses II for Year "&'1 Pers.Ausgaben|Pers Expenses'!C4&" ("&'Deckblatt Gruender|Data Founder'!K1&")" -> Operation Expenses II for Year 2016 (w/o VAT) | J78: ="Operation Expense II for Years " &'1 Pers.Ausgaben|Pers Expenses'!$C$4 & " - " & '1 Pers.Ausgaben|Pers Expenses'!$C$4+4 &" (" & 'Deckblatt Gruender|Data Founder'!$K$1 & ")" -> Operation Expense II for Years 2016 - 2020 (w/o VAT)
B79: =IF($C$2="English",CZ79,CY79) -> 4b Betriebskosten für die Jahre 2016 - 2020 in EUR (ohne MwSt) | U79: =IF($C$2="English",DD79,DC79) -> Nebenrechnung für andere Positionen | CU79: Nebenrechnung für andere Positionen | CV79: Ancillary: Account for other Positions | CY79: ="4b Betriebskosten für die Jahre " &'1 Pers.Ausgaben|Pers Expenses'!$C$4& " - " & '1 Pers.Ausgaben|Pers Expenses'!$C$4+4 &" in EUR" & " (" & IF(OR($D$4=1,$D$4=2),"mit MwSt","ohne MwSt")& ") " -> 4b Betriebskosten für die Jahre 2016 - 2020 in EUR (ohne MwSt) | CZ79: ="4b Operating Expense for Years " &'1 Pers.Ausgaben|Pers Expenses'!$C$4& " - " & '1 Pers.Ausgaben|Pers Expenses'!$C$4+4 &" in EUR" & " (" & IF(OR($D$4=1,$D$4=2),"incl. VAT","w/o VAT")& ") "& ") " -> 4b Operating Expense for Years 2016 - 2020 in EUR (w/o VAT) ) | DC79: Nebenrechnung für andere Positionen | DD79: Ancillary Account for other Positions
B80: =B4 -> ┌ MwSt-Satz der jeweiligen Kostenart | CY80: =IF($D$4=-1," ┌ MwSt-Satz der jeweiligen Kostenart","") -> 
B81: =B5 -> No. | C81: =C5 -> Kostenart | D81: ='1 Pers.Ausgaben|Pers Expenses'!$C$4 -> 2016 | E81: =D81+1 -> 2017 | F81: =E81+1 -> 2018 | G81: =F81+1 -> 2019 | H81: =G81+1 -> 2020 | U81: =U5 -> 2016 | V81: =V53 -> Jan. | W81: Febr. | X81: März | Y81: April | Z81: Mai | AA81: Juni | AB81: Juli | AC81: Aug. | AD81: Sept. | AE81: Okt. | AF81: Nov. | AG81: Dez. | BA81: =BA5 -> No. | BB81: ="MwSt "&$Q$2*100&"%" -> MwSt 19% | BC81: ='1 Pers.Ausgaben|Pers Expenses'!$C$4 -> 2016 | BD81: =BC81+1 -> 2017 | BE81: =BD81+1 -> 2018 | BF81: =BE81+1 -> 2019 | BG81: =BF81+1 -> 2020 | BR81: =BR5 -> No. | BS81: ="MwSt "&$Q$3*100&"%" -> MwSt 7% | BT81: ='1 Pers.Ausgaben|Pers Expenses'!$C$4 -> 2016 | BU81: =BT81+1 -> 2017 | BV81: =BU81+1 -> 2018 | BW81: =BV81+1 -> 2019 | BX81: =BW81+1 -> 2020
B82: =B6 -> 1 | C82: =C6 -> Bürokosten | BA82: =BA6 -> 1 | BB82: Bürokosten | BR82: =BR6 -> 1 | BS82: Bürokosten
A83: 19% | B83: 19% | C83: Raummiete | D83: =P7 -> 5,000 | E83: 6,000 | F83: 6,000 | G83: 6,000 | H83: 6,000 | BA83: =BA7 -> 19% | BB83: Raummiete | BC83: =BO7 -> 950 | BD83: =IF($A83=$Q$2,E83*IF(OR($D$4=0,$D$4=3),$A83,$A83/(1+$A83)),0) -> 1,140 | BE83: 1,140 | BF83: 1,140 | BG83: 1,140 | BR83: =BR7 -> 19% | BS83: Raummiete | BT83: =CF7 -> 0 | BU83: =IF($A83=$Q$3,E83*IF(OR($D$4=0,$D$4=3),$A83,$A83/(1+$A83)),0) -> 0 | BV83: 0 | BW83: 0 | BX83: 0 | CX83: =CX7 -> 19%
A84: =A8 -> 19% | B84: 19% | C84: Strom, Wasser, Heizung, sonst. Nebenkosten | D84: 500 | E84: 600 | F84: 600 | G84: 600 | H84: 600 | BA84: =BA8 -> 19% | BB84: Strom, Wasser, Heizung, sonst. Nebenkosten | BC84: 95 | BD84: 114 | BE84: 114 | BF84: 114 | BG84: 114 | BR84: =BR8 -> 19% | BS84: Strom, Wasser, Heizung, sonst. Nebenkosten | BT84: 0 | BU84: 0 | BV84: 0 | BW84: 0 | BX84: 0 | CX84: 19%
A85: =A9 -> 19% | B85: 19% | C85: Telefon, Fax, Internet, Porto | D85: 500 | E85: 600 | F85: 600 | G85: 600 | H85: 600 | BA85: =BA9 -> 19% | BB85: Telefon, Fax, Internet, Porto | BC85: 95 | BD85: 114 | BE85: 114 | BF85: 114 | BG85: 114 | BR85: =BR9 -> 19% | BS85: Telefon, Fax, Internet, Porto | BT85: 0 | BU85: 0 | BV85: 0 | BW85: 0 | BX85: 0 | CX85: 19%
A86: =A10 -> 19% | B86: 19% | C86: Geringw. Wirtschaftsgüter (Büromöbel, Einrichtungen,...) | D86: 0 | BA86: =BA10 -> 19% | BB86: Geringw. Wirtschaftsgüter (Büromöbel, Einrichtungen,...) | BC86: 0 | BD86: 0 | BE86: 0 | BF86: 0 | BG86: 0 | BR86: =BR10 -> 19% | BS86: Geringw. Wirtschaftsgüter (Büromöbel, Einrichtungen,...) | BT86: 0 | BU86: 0 | BV86: 0 | BW86: 0 | BX86: 0 | CX86: 19%
A87: =A11 -> 19% | B87: 19% | C87: IT (Lizenzen, Windows, Office, Wartung) | D87: 0 | BA87: =BA11 -> 19% | BB87: IT (Lizenzen, Windows, Office, Wartung) | BC87: 0 | BD87: 0 | BE87: 0 | BF87: 0 | BG87: 0 | BR87: =BR11 -> 19% | BS87: IT (Lizenzen, Windows, Office, Wartung) | BT87: 0 | BU87: 0 | BV87: 0 | BW87: 0 | BX87: 0 | CX87: 19%
A88: =A12 -> 19% | B88: =A12 -> 19% | C88: Studio-/ Büro-Miete inkl. Nebenkosten | D88: 1,000 | E88: 1,200 | F88: 1,200 | G88: 1,200 | H88: 1,200 | U88: =IF($C$2="English",DD88,DC88) -> Gesamtsumme | V88: =SUM(V82:V87) -> 0.00 | W88: =SUM(W82:W87) -> 0.00 | X88: 0.00 | Y88: 0.00 | Z88: 0.00 | AA88: 0.00 | AB88: 0.00 | AC88: 0.00 | AD88: 0.00 | AE88: 0.00 | AF88: 0.00 | AG88: 0.00 | AH88: =SUM(V88:AG88) -> 0.00 | BA88: =AZ12 -> 0% | BB88: Sonstiges | BC88: 190 | BD88: 228 | BE88: 228 | BF88: 228 | BG88: 228 | BR88: =BQ12 -> 0% | BS88: Sonstiges | BT88: 0 | BU88: 0 | BV88: 0 | BW88: 0 | BX88: 0 | CU88: Gesamtsumme | CV88: Total sum | CX88: 19% | DC88: Gesamtsumme | DD88: Total sum
C89: Summe Bürokosten | D89: 7,000 | E89: =SUM(E83:E88) -> 8,400 | F89: =SUM(F83:F88) -> 8,400 | G89: =SUM(G83:G88) -> 8,400 | H89: =SUM(H83:H88) -> 8,400 | BB89: Summe Bürokosten | BC89: 1,330 | BD89: =SUM(BD83:BD88) -> 1,596 | BE89: 1,596 | BF89: 1,596 | BG89: 1,596 | BS89: Summe Bürokosten | BT89: 0 | BU89: =SUM(BU83:BU88) -> 0 | BV89: 0 | BW89: 0 | BX89: 0
B90: 2 | C90: Produktionskosten | BA90: 2 | BB90: Produktionskosten | BR90: 2 | BS90: Produktionskosten
A91: =A15 -> 19% | B91: 19% | C91: Raummiete | D91: 0 | BA91: =BA15 -> 19% | BB91: Raummiete | BC91: =BO15 -> 0 | BD91: =IF($A91=$Q$2,E91*IF(OR($D$4=0,$D$4=3),$A91,$A91/(1+$A91)),0) -> 0 | BE91: 0 | BF91: 0 | BG91: 0 | BR91: =BR15 -> 19% | BS91: Raummiete | BT91: =CF15 -> 0 | BU91: =IF($A91=$Q$3,E91*IF(OR($D$4=0,$D$4=3),$A91,$A91/(1+$A91)),0) -> 0 | BV91: 0 | BW91: 0 | BX91: 0 | CX91: =CX15 -> 19%
A92: 19% | B92: 19% | C92: Strom, Wasser, Heizung, sonst. Nebenkosten | D92: 0 | U92: =U81+1 -> 2017 | V92: =V81 -> Jan. | W92: Febr. | X92: März | Y92: April | Z92: Mai | AA92: Juni | AB92: Juli | AC92: Aug. | AD92: Sept. | AE92: Okt. | AF92: Nov. | AG92: Dez. | BA92: 19% | BB92: Strom, Wasser, Heizung, sonst. Nebenkosten | BC92: 0 | BD92: 0 | BE92: 0 | BF92: 0 | BG92: 0 | BR92: 19% | BS92: Strom, Wasser, Heizung, sonst. Nebenkosten | BT92: 0 | BU92: 0 | BV92: 0 | BW92: 0 | BX92: 0 | CX92: 19%
A93: 19% | B93: 19% | C93: Materialaufwand zur Produktion (19%) | D93: 9,340 | E93: 10,900 | F93: 12,600 | G93: 16,300 | H93: 22,200 | BA93: 19% | BB93: Materialaufwand zur Produktion (19%) | BC93: 1,775 | BD93: 2,071 | BE93: 2,394 | BF93: 3,097 | BG93: 4,218 | BR93: 19% | BS93: Materialaufwand zur Produktion (19%) | BT93: 0 | BU93: 0 | BV93: 0 | BW93: 0 | BX93: 0 | CX93: 19%
A94: 7% | B94: 7% | C94: Materialaufwand zur Produktion (7%) | D94: 0 | BA94: 7% | BB94: Materialaufwand zur Produktion (7%) | BC94: 0 | BD94: 0 | BE94: 0 | BF94: 0 | BG94: 0 | BR94: 7% | BS94: Materialaufwand zur Produktion (7%) | BT94: 0 | BU94: 0 | BV94: 0 | BW94: 0 | BX94: 0 | CX94: 7%
A95: 19% | B95: 19% | C95: Produktionsbedarf, geringwertige Wirtschaftsgüter | D95: 1,000 | E95: 1,400 | F95: 1,400 | G95: 1,400 | H95: 1,400 | BA95: 19% | BB95: Produktionsbedarf, geringwertige Wirtschaftsgüter | BC95: 190 | BD95: 266 | BE95: 266 | BF95: 266 | BG95: 266 | BR95: 19% | BS95: Produktionsbedarf, geringwertige Wirtschaftsgüter | BT95: 0 | BU95: 0 | BV95: 0 | BW95: 0 | BX95: 0 | CX95: 19%
A96: 19% | B96: 19% | C96: Leasingraten für Produktionsanlagen, -maschinen | D96: 0 | BA96: 19% | BB96: Leasingraten für Produktionsanlagen, -maschinen | BC96: 0 | BD96: 0 | BE96: 0 | BF96: 0 | BG96: 0 | BR96: 19% | BS96: Leasingraten für Produktionsanlagen, -maschinen | BT96: 0 | BU96: 0 | BV96: 0 | BW96: 0 | BX96: 0 | CX96: 19%
A97: 19% | B97: 19% | C97: Instandhaltung und Reparaturen | D97: 2,000 | E97: 2,400 | F97: 2,400 | G97: 2,400 | H97: 2,400 | BA97: =BA21 -> 19% | BB97: Instandhaltung und Reparaturen | BC97: 380 | BD97: 456 | BE97: 456 | BF97: 456 | BG97: 456 | BR97: =BR21 -> 19% | BS97: Instandhaltung und Reparaturen | BT97: 0 | BU97: 0 | BV97: 0 | BW97: 0 | BX97: 0 | CX97: 19%
A98: =A22 -> 19% | B98: =A22 -> 19% | C98: Verbrauchsmaterialien Studio 5.000 Euro, Büro 2000 | D98: 0 | BA98: =AZ22 -> 0% | BB98: =BB22 -> Sonstiges | BC98: 0 | BD98: 0 | BE98: 0 | BF98: 0 | BG98: 0 | BR98: =BQ22 -> 0% | BS98: =BS22 -> Sonstiges | BT98: 0 | BU98: 0 | BV98: 0 | BW98: 0 | BX98: 0 | CX98: 19%
C99: Summe Produktionskosten | D99: 12,340 | E99: =SUM(E91:E98) -> 14,700 | F99: =SUM(F91:F98) -> 16,400 | G99: =SUM(G91:G98) -> 20,100 | H99: =SUM(H91:H98) -> 26,000 | U99: =U88 -> Gesamtsumme | V99: =SUM(V93:V98) -> 0.00 | W99: 0.00 | X99: 0.00 | Y99: 0.00 | Z99: 0.00 | AA99: 0.00 | AB99: 0.00 | AC99: 0.00 | AD99: 0.00 | AE99: 0.00 | AF99: 0.00 | AG99: 0.00 | AH99: =SUM(V99:AG99) -> 0.00 | BB99: Summe Produktionskosten | BC99: 2,345 | BD99: =SUM(BD91:BD98) -> 2,793 | BE99: 3,116 | BF99: 3,819 | BG99: 4,940 | BS99: Summe Produktionskosten | BT99: 0 | BU99: =SUM(BU91:BU98) -> 0 | BV99: 0 | BW99: 0 | BX99: 0
B100: 3 | C100: Personalkosten (nur Angestellte) | BA100: 3 | BB100: Personalkosten (nur Angestellte) | BR100: 3 | BS100: Personalkosten (nur Angestellte)
A101: =A25 -> 0% | B101: =B25 -> 0% | C101: Löhne, Gehälter mit Nebenkosten (s. Nebenrechnung) | D101: 17,400 | E101: 21,924 | F101: 23,020 | G101: 24,171 | H101: 25,380 | BA101: =BA25 -> 0% | BB101: Löhne, Gehälter mit Nebenkosten (s. Nebenrechnung) | BC101: =BO25 -> 0 | BD101: =IF($A101=$Q$2,E101*IF(OR($D$4=0,$D$4=3),$A101,$A101/(1+$A101)),0) -> 0 | BE101: 0 | BF101: 0 | BG101: 0 | BR101: =BR25 -> 0% | BS101: Löhne, Gehälter mit Nebenkosten (s. Nebenrechnung) | BT101: =CF25 -> 0 | BU101: =IF($A101=$Q$3,E101*IF(OR($D$4=0,$D$4=3),$A101,$A101/(1+$A101)),0) -> 0 | BV101: 0 | BW101: 0 | BX101: 0 | CX101: =CX25 -> 0%
A102: =A26 -> 19% | B102: =A26 -> 19% | C102: Sonstiges | D102: 0 | BA102: =AZ26 -> 0% | BB102: Sonstiges | BC102: =BO26 -> 0 | BD102: 0 | BE102: 0 | BF102: 0 | BG102: 0 | BR102: =BQ26 -> 0% | BS102: Sonstiges | BT102: =CF26 -> 0 | BU102: 0 | BV102: 0 | BW102: 0 | BX102: 0 | CX102: =CX26 -> 19%
C103: Summe Personalkosten | D103: 17,400 | E103: =SUM(E101:E102) -> 21,924 | F103: =SUM(F101:F102) -> 23,020 | G103: =SUM(G101:G102) -> 24,171 | H103: =SUM(H101:H102) -> 25,380 | U103: =U92+1 -> 2018 | V103: =V81 -> Jan. | W103: Febr. | X103: März | Y103: April | Z103: Mai | AA103: Juni | AB103: Juli | AC103: Aug. | AD103: Sept. | AE103: Okt. | AF103: Nov. | AG103: Dez. | BB103: Summe Personalkosten | BC103: =BO27 -> 0 | BD103: =SUM(BD101:BD102) -> 0 | BE103: 0 | BF103: 0 | BG103: 0 | BS103: Summe Personalkosten | BT103: =CF27 -> 0 | BU103: =SUM(BU101:BU102) -> 0 | BV103: 0 | BW103: 0 | BX103: 0
B104: 4 | C104: Reisekosten | BA104: 4 | BB104: Reisekosten | BR104: 4 | BS104: Reisekosten
A105: =A29 -> 19% | B105: 19% | C105: Fahrtkosten | D105: 1,000 | E105: 1,000 | F105: 1,500 | G105: 1,000 | H105: 1,000 | BA105: =BA29 -> 19% | BB105: Fahrtkosten | BC105: =BO29 -> 190 | BD105: =IF($A105=$Q$2,E105*IF(OR($D$4=0,$D$4=3),$A105,$A105/(1+$A105)),0) -> 190 | BE105: 285 | BF105: 190 | BG105: 190 | BR105: =BR29 -> 19% | BS105: Fahrtkosten | BT105: =CF29 -> 0 | BU105: =IF($A105=$Q$3,E105*IF(OR($D$4=0,$D$4=3),$A105,$A105/(1+$A105)),0) -> 0 | BV105: 0 | BW105: 0 | BX105: 0 | CX105: =CX29 -> 19%
A106: 19% | B106: 19% | C106: Reisekostenpauschalen | D106: 0 | BA106: =BA30 -> 19% | BB106: Reisekostenpauschalen | BC106: =BO30 -> 0 | BD106: 0 | BE106: 0 | BF106: 0 | BG106: 0 | BR106: =BR30 -> 19% | BS106: Reisekostenpauschalen | BT106: =CF30 -> 0 | BU106: 0 | BV106: 0 | BW106: 0 | BX106: 0 | CX106: =CX30 -> 19%
A107: 7% | B107: 7% | C107: Übernachtungen | D107: 0 | BA107: =BA31 -> 7% | BB107: Übernachtungen | BC107: =BO31 -> 0 | BD107: 0 | BE107: 0 | BF107: 0 | BG107: 0 | BR107: =BR31 -> 7% | BS107: Übernachtungen | BT107: =CF31 -> 0 | BU107: 0 | BV107: 0 | BW107: 0 | BX107: 0 | CX107: =CX31 -> 7%
A108: =A32 -> 19% | B108: =A32 -> 19% | C108: Kosten für Ausbelichtungen u. Foto-Dienstleiustungen | D108: 0 | BA108: =AZ32 -> 0% | BB108: Sonstiges | BC108: =BO32 -> 0 | BD108: 0 | BE108: 0 | BF108: 0 | BG108: 0 | BR108: =BQ32 -> 0% | BS108: Sonstiges | BT108: =CF32 -> 0 | BU108: 0 | BV108: 0 | BW108: 0 | BX108: 0 | CX108: =CX32 -> 19%
C109: Summe Reisekosten | D109: 1,000 | E109: =SUM(E105:E108) -> 1,000 | F109: =SUM(F105:F108) -> 1,500 | G109: =SUM(G105:G108) -> 1,000 | H109: =SUM(H105:H108) -> 1,000 | BB109: Summe Reisekosten | BC109: =BO33 -> 190 | BD109: =SUM(BD105:BD108) -> 190 | BE109: 285 | BF109: 190 | BG109: 190 | BS109: Summe Reisekosten | BT109: =CF33 -> 0 | BU109: =SUM(BU105:BU108) -> 0 | BV109: 0 | BW109: 0 | BX109: 0
B110: 5 | C110: Versicherungen und Beiträge (betrieblich!) | U110: =U88 -> Gesamtsumme | V110: =SUM(V104:V109) -> 0.00 | W110: =SUM(W104:W109) -> 0.00 | X110: 0.00 | Y110: 0.00 | Z110: 0.00 | AA110: 0.00 | AB110: 0.00 | AC110: 0.00 | AD110: 0.00 | AE110: 0.00 | AF110: 0.00 | AG110: 0.00 | AH110: =SUM(V110:AG110) -> 0.00 | BA110: 5 | BB110: Versicherungen und Beiträge (betrieblich!) | BR110: 5 | BS110: Versicherungen und Beiträge (betrieblich!)
A111: =A35 -> 19% | B111: 19% | C111: Haftpflicht | D111: 0 | BA111: =BA35 -> 19% | BB111: Haftpflicht | BC111: =BO35 -> 0 | BD111: =IF($A111=$Q$2,E111*IF(OR($D$4=0,$D$4=3),$A111,$A111/(1+$A111)),0) -> 0 | BE111: 0 | BF111: 0 | BG111: 0 | BR111: =BR35 -> 19% | BS111: Haftpflicht | BT111: =CF35 -> 0 | BU111: =IF($A111=$Q$3,E111*IF(OR($D$4=0,$D$4=3),$A111,$A111/(1+$A111)),0) -> 0 | BV111: 0 | BW111: 0 | BX111: 0 | CX111: =CX35 -> 19%
A112: =A36 -> 19% | B112: 19% | C112: Rechtschutzversicherung | D112: 1,000 | E112: 1,200 | F112: 1,200 | G112: 1,200 | H112: 1,200 | BA112: =BA36 -> 19% | BB112: Rechtschutzversicherung | BC112: =BO36 -> 190 | BD112: 228 | BE112: 228 | BF112: 228 | BG112: 228 | BR112: =BR36 -> 19% | BS112: Rechtschutzversicherung | BT112: =CF36 -> 0 | BU112: 0 | BV112: 0 | BW112: 0 | BX112: 0 | CX112: =CX36 -> 19%
A113: =A37 -> 19% | B113: 19% | C113: Beiträge (IHK, Berufsverbände, ...) | D113: 0 | BA113: =BA37 -> 19% | BB113: Beiträge (IHK, Berufsverbände, ...) | BC113: =BO37 -> 0 | BD113: 0 | BE113: 0 | BF113: 0 | BG113: 0 | BR113: =BR37 -> 19% | BS113: Beiträge (IHK, Berufsverbände, ...) | BT113: =CF37 -> 0 | BU113: 0 | BV113: 0 | BW113: 0 | BX113: 0 | CX113: =CX37 -> 19%
A114: =A38 -> 19% | B114: =A38 -> 19% | C114: Sonstiges | D114: 0 | U114: =U103+1 -> 2019 | V114: =V81 -> Jan. | W114: Febr. | X114: März | Y114: April | Z114: Mai | AA114: Juni | AB114: Juli | AC114: Aug. | AD114: Sept. | AE114: Okt. | AF114: Nov. | AG114: Dez. | BA114: =AZ38 -> 0% | BB114: Sonstiges | BC114: =BO38 -> 0 | BD114: 0 | BE114: 0 | BF114: 0 | BG114: 0 | BR114: =BQ38 -> 0% | BS114: Sonstiges | BT114: =CF38 -> 0 | BU114: 0 | BV114: 0 | BW114: 0 | BX114: 0 | CX114: =CX38 -> 19%
B115: =B44 -> 0 | C115: Summe Versicherungen und Beiträge (betrieblich!) | D115: 1,000 | E115: =SUM(E111:E114) -> 1,200 | F115: =SUM(F111:F114) -> 1,200 | G115: =SUM(G111:G114) -> 1,200 | H115: =SUM(H111:H114) -> 1,200 | BA115: =BA44 -> 0 | BB115: Summe Versicherungen und Beiträge (betrieblich!) | BC115: =BO39 -> 190 | BD115: =SUM(BD111:BD114) -> 228 | BE115: 228 | BF115: 228 | BG115: 228 | BR115: =BR44 -> 0 | BS115: Summe Versicherungen und Beiträge (betrieblich!) | BT115: =CF39 -> 0 | BU115: =SUM(BU111:BU114) -> 0 | BV115: 0 | BW115: 0 | BX115: 0
B116: 6 | C116: KFZ Kosten / Betriebliche Nutzung | BA116: 6 | BB116: KFZ Kosten / Betriebliche Nutzung | BR116: 6 | BS116: KFZ Kosten / Betriebliche Nutzung
A117: =A41 -> 19% | B117: 19% | C117: Leasingraten Kfz | D117: 1,000 | E117: 1,200 | F117: 1,200 | G117: 1,200 | H117: 12,000 | BA117: =BA41 -> 19% | BB117: Leasingraten Kfz | BC117: =BO41 -> 190 | BD117: =IF($A117=$Q$2,E117*IF(OR($D$4=0,$D$4=3),$A117,$A117/(1+$A117)),0) -> 228 | BE117: 228 | BF117: 228 | BG117: 2,280 | BR117: =BR41 -> 19% | BS117: Leasingraten Kfz | BT117: =CF41 -> 0 | BU117: =IF($A117=$Q$3,E117*IF(OR($D$4=0,$D$4=3),$A117,$A117/(1+$A117)),0) -> 0 | BV117: 0 | BW117: 0 | BX117: 0 | CX117: =CX41 -> 19%
A118: 19% | B118: 19% | C118: Versicherungen/Kfz-Steuer | D118: 1,000 | E118: 1,200 | F118: 1,200 | G118: 1,200 | H118: 1,200 | BA118: =BA42 -> 19% | BB118: Versicherungen/Kfz-Steuer | BC118: 190 | BD118: 228 | BE118: 228 | BF118: 228 | BG118: 228 | BR118: =BR42 -> 19% | BS118: Versicherungen/Kfz-Steuer | BT118: 0 | BU118: 0 | BV118: 0 | BW118: 0 | BX118: 0 | CX118: =CX42 -> 19%
A119: 19% | B119: 19% | C119: Fahrzeugkosten (Tanken und Reparatur) | D119: 0 | BA119: =BA43 -> 19% | BB119: Fahrzeugkosten (Tanken und Reparatur) | BC119: 0 | BD119: 0 | BE119: 0 | BF119: 0 | BG119: 0 | BR119: =BR43 -> 19% | BS119: Fahrzeugkosten (Tanken und Reparatur) | BT119: 0 | BU119: 0 | BV119: 0 | BW119: 0 | BX119: 0 | CX119: =CX43 -> 19%
A120: 0% | B120: 0% | C120: Abrechenbare Kilometerkosten | D120: 0 | BA120: =BA44 -> 0% | BB120: Abrechenbare Kilometerkosten | BC120: 0 | BD120: 0 | BE120: 0 | BF120: 0 | BG120: 0 | BR120: =BR44 -> 0% | BS120: Abrechenbare Kilometerkosten | BT120: 0 | BU120: 0 | BV120: 0 | BW120: 0 | BX120: 0 | CX120: =CX44 -> 0%
A121: =A45 -> 19% | B121: =A45 -> 19% | C121: Fahrtkosten | D121: 0 | U121: =U88 -> Gesamtsumme | V121: =SUM(V115:V120) -> 0.00 | W121: =SUM(W115:W120) -> 0.00 | X121: 0.00 | Y121: 0.00 | Z121: 0.00 | AA121: 0.00 | AB121: 0.00 | AC121: 0.00 | AD121: 0.00 | AE121: 0.00 | AF121: 0.00 | AG121: 0.00 | AH121: =SUM(V121:AG121) -> 0.00 | BA121: =AZ45 -> 0% | BB121: Sonstiges | BC121: 0 | BD121: 0 | BE121: 0 | BF121: 0 | BG121: 0 | BR121: =BQ45 -> 0% | BS121: Sonstiges | BT121: 0 | BU121: 0 | BV121: 0 | BW121: 0 | BX121: 0 | CX121: =CX45 -> 19%
C122: Summe KFZ Kosten / Betriebliche Nutzung | D122: 2,000 | E122: =SUM(E117:E121) -> 2,400 | F122: =SUM(F117:F121) -> 2,400 | G122: =SUM(G117:G121) -> 2,400 | H122: =SUM(H117:H121) -> 13,200 | BB122: Summe KFZ Kosten / Betriebliche Nutzung | BC122: 380 | BD122: =SUM(BD117:BD121) -> 456 | BE122: 456 | BF122: 456 | BG122: 2,508 | BS122: Summe KFZ Kosten / Betriebliche Nutzung | BT122: 0 | BU122: =SUM(BU117:BU121) -> 0 | BV122: 0 | BW122: 0 | BX122: 0
B123: 7 | C123: Marketing u. Werbung | BA123: 7 | BB123: Marketing u. Werbung | BR123: 7 | BS123: Marketing u. Werbung
A124: =A48 -> 19% | B124: 19% | C124: Marktforschung | D124: 5,000 | F124: 5,000 | BA124: =BA48 -> 19% | BB124: Marktforschung | BC124: =BO48 -> 950 | BD124: =IF($A124=$Q$2,E124*IF(OR($D$4=0,$D$4=3),$A124,$A124/(1+$A124)),0) -> 0 | BE124: 950 | BF124: 0 | BG124: 0 | BR124: =BR48 -> 19% | BS124: Marktforschung | BT124: =CF48 -> 0 | BU124: =IF($A124=$Q$3,E124*IF(OR($D$4=0,$D$4=3),$A124,$A124/(1+$A124)),0) -> 0 | BV124: 0 | BW124: 0 | BX124: 0 | CX124: =CX48 -> 19%
A125: 19% | B125: 19% | C125: Briefpapier, Visitenkarte, Stempel | D125: 0 | E125: 800 | F125: 500 | G125: 300 | H125: 300 | U125: =U114+1 -> 2020 | V125: =V81 -> Jan. | W125: Febr. | X125: März | Y125: April | Z125: Mai | AA125: Juni | AB125: Juli | AC125: Aug. | AD125: Sept. | AE125: Okt. | AF125: Nov. | AG125: Dez. | BA125: =BA49 -> 19% | BB125: Briefpapier, Visitenkarte, Stempel | BC125: 0 | BD125: 152 | BE125: 95 | BF125: 57 | BG125: 57 | BR125: =BR49 -> 19% | BS125: Briefpapier, Visitenkarte, Stempel | BT125: 0 | BU125: 0 | BV125: 0 | BW125: 0 | BX125: 0 | CX125: 19%
A126: 19% | B126: 19% | C126: Webseite, lfd. Webseitenpflege | D126: 1,000 | E126: 1,200 | F126: 1,200 | G126: 1,200 | H126: 1,200 | BA126: =BA50 -> 19% | BB126: Webseite, lfd. Webseitenpflege | BC126: 190 | BD126: 228 | BE126: 228 | BF126: 228 | BG126: 228 | BR126: =BR50 -> 19% | BS126: Webseite, lfd. Webseitenpflege | BT126: 0 | BU126: 0 | BV126: 0 | BW126: 0 | BX126: 0 | CX126: 19%
A127: 19% | B127: 19% | C127: Flyer, Prospekte, Broschüren, Anzeigen | D127: 0 | BA127: =BA51 -> 19% | BB127: Flyer, Prospekte, Broschüren, Anzeigen | BC127: 0 | BD127: 0 | BE127: 0 | BF127: 0 | BG127: 0 | BR127: =BR51 -> 19% | BS127: Flyer, Prospekte, Broschüren, Anzeigen | BT127: 0 | BU127: 0 | BV127: 0 | BW127: 0 | BX127: 0 | CX127: 19%
A128: 19% | B128: 19% | C128: Bewirtungskosten | D128: 0 | BA128: =BA52 -> 19% | BB128: Bewirtungskosten | BC128: 0 | BD128: 0 | BE128: 0 | BF128: 0 | BG128: 0 | BR128: =BR52 -> 19% | BS128: Bewirtungskosten | BT128: 0 | BU128: 0 | BV128: 0 | BW128: 0 | BX128: 0 | CX128: 19%
A129: =A53 -> 19% | B129: =A53 -> 19% | C129: Werbung | D129: 0 | BA129: =AZ53 -> 0% | BB129: Sonstiges, Messen, ... | BC129: 0 | BD129: 0 | BE129: 0 | BF129: 0 | BG129: 0 | BR129: =BQ53 -> 0% | BS129: Sonstiges, Messen, ... | BT129: 0 | BU129: 0 | BV129: 0 | BW129: 0 | BX129: 0 | CX129: 19%
B130: =B50 -> 0 | C130: Summe Marketing u. Werbung | D130: 6,000 | E130: =SUM(E124:E129) -> 2,000 | F130: =SUM(F124:F129) -> 6,700 | G130: =SUM(G124:G129) -> 1,500 | H130: =SUM(H124:H129) -> 1,500 | BA130: =BA50 -> 0 | BB130: Summe Marketing u. Werbung | BC130: 1,140 | BD130: =SUM(BD124:BD129) -> 380 | BE130: 1,273 | BF130: 285 | BG130: 285 | BR130: =BR50 -> 0 | BS130: Summe Marketing u. Werbung | BT130: 0 | BU130: =SUM(BU124:BU129) -> 0 | BV130: 0 | BW130: 0 | BX130: 0
B131: 8 | C131: Rechts- und Beratungskosten | BA131: 8 | BB131: Rechts- und Beratungskosten | BR131: 8 | BS131: Rechts- und Beratungskosten
A132: =A56 -> 19% | B132: =B56 -> 19% | C132: Buchhaltung | D132: 0 | U132: =U88 -> Gesamtsumme | V132: =SUM(V126:V131) -> 0.00 | W132: 0.00 | X132: 0.00 | Y132: 0.00 | Z132: 0.00 | AA132: 0.00 | AB132: 0.00 | AC132: 0.00 | AD132: 0.00 | AE132: 0.00 | AF132: 0.00 | AG132: 0.00 | AH132: =SUM(V132:AG132) -> 0.00 | BA132: =BA56 -> 19% | BB132: Buchhaltung | BC132: =BO56 -> 0 | BD132: =IF($A132=$Q$2,E132*IF(OR($D$4=0,$D$4=3),$A132,$A132/(1+$A132)),0) -> 0 | BE132: 0 | BF132: 0 | BG132: 0 | BR132: =BR56 -> 19% | BS132: Buchhaltung | BT132: =CF56 -> 0 | BU132: =IF($A132=$Q$3,E132*IF(OR($D$4=0,$D$4=3),$A132,$A132/(1+$A132)),0) -> 0 | BV132: 0 | BW132: 0 | BX132: 0 | CX132: =CX56 -> 19%
A133: =A57 -> 19% | B133: =B57 -> 19% | C133: Steuerberatung, Abschluss, Prüfung | D133: 0 | BA133: =BA57 -> 19% | BB133: Steuerberatung, Abschluss, Prüfung | BC133: =BO57 -> 0 | BD133: 0 | BE133: 0 | BF133: 0 | BG133: 0 | BR133: =BR57 -> 19% | BS133: Steuerberatung, Abschluss, Prüfung | BT133: =CF57 -> 0 | BU133: 0 | BV133: 0 | BW133: 0 | BX133: 0 | CX133: =CX57 -> 19%
A134: =A58 -> 19% | B134: =A58 -> 19% | C134: Sonstiges | D134: 0 | BA134: =AZ58 -> 0% | BB134: Sonstiges | BC134: =BO58 -> 0 | BD134: 0 | BE134: 0 | BF134: 0 | BG134: 0 | BR134: =BQ58 -> 0% | BS134: Sonstiges | BT134: =CF58 -> 0 | BU134: 0 | BV134: 0 | BW134: 0 | BX134: 0 | CX134: =CX58 -> 7%
B135: =IF($D$4=-1, 0,"") ->  | C135: Summe Rechts- und Beratungskosten | D135: 0 | E135: =SUM(E132:E134) -> 0 | F135: =SUM(F132:F134) -> 0 | G135: =SUM(G132:G134) -> 0 | H135: =SUM(H132:H134) -> 0 | BA135: =IF($D$4=-1, 0,"") ->  | BB135: Summe Rechts- und Beratungskosten | BC135: =BO59 -> 0 | BD135: =SUM(BD132:BD134) -> 0 | BE135: 0 | BF135: 0 | BG135: 0 | BR135: =IF($D$4=-1, 0,"") ->  | BS135: Summe Rechts- und Beratungskosten | BT135: =CF59 -> 0 | BU135: =SUM(BU132:BU134) -> 0 | BV135: 0 | BW135: 0 | BX135: 0
B136: 9 | C136: Verschiedenes | BA136: 9 | BB136: Verschiedenes | BR136: 9 | BS136: Verschiedenes
A137: =A61 -> 0% | C137: Finanzaufwand / Zinsen *) | D137: 2,058 | E137: ='7 Finanzierung|Financing'!E56 -> 9,608 | F137: ='7 Finanzierung|Financing'!F56 -> 10,410 | G137: ='7 Finanzierung|Financing'!G56 -> 8,660 | H137: ='7 Finanzierung|Financing'!H56 -> 6,910 | BA137: =BA61 ->  | BB137: Finanzaufwand / Zinsen *) | BC137: =BO61 -> 0 | BD137: =IF($A137=$Q$2,E137*IF(OR($D$4=0,$D$4=3),$A137,$A137/(1+$A137)),0) -> 0 | BE137: 0 | BF137: 0 | BG137: 0 | BR137: =BR61 ->  | BS137: Finanzaufwand / Zinsen *) | BT137: =CF61 -> 0 | BU137: =IF($A137=$Q$3,E137*IF(OR($D$4=0,$D$4=3),$A137,$A137/(1+$A137)),0) -> 0 | BV137: 0 | BW137: 0 | BX137: 0 | CX137: =CX61 -> 0%
A138: 19% | B138: 19% | C138: Reisekosten | D138: 1,000 | E138: 1,200 | F138: 1,200 | G138: 1,200 | H138: 1,200 | BA138: =BA62 -> 19% | BB138: Reisekosten | BC138: 190 | BD138: 228 | BE138: 228 | BF138: 228 | BG138: 228 | BR138: =BR62 -> 19% | BS138: Reisekosten | BT138: 0 | BU138: 0 | BV138: 0 | BW138: 0 | BX138: 0 | CX138: =CX62 -> 19%
A139: 7% | B139: 7% | C139: Fachliteratur, Bücher | D139: 200 | E139: 1,000 | F139: 1,000 | G139: 1,000 | H139: 1,000 | BA139: =BA63 -> 7% | BB139: Fachliteratur, Bücher | BC139: 0 | BD139: 0 | BE139: 0 | BF139: 0 | BG139: 0 | BR139: =BR63 -> 7% | BS139: Fachliteratur, Bücher | BT139: 14 | BU139: 70 | BV139: 70 | BW139: 70 | BX139: 70 | CX139: =CX63 -> 7%
A140: 19% | B140: 19% | C140: Schulungen | D140: 1,000 | G140: 2,000 | BA140: =BA64 -> 19% | BB140: Schulungen | BC140: 190 | BD140: 0 | BE140: 0 | BF140: 380 | BG140: 0 | BR140: =BR64 -> 19% | BS140: Schulungen | BT140: 0 | BU140: 0 | BV140: 0 | BW140: 0 | BX140: 0 | CX140: =CX64 -> 19%
A141: =A65 -> 0% | B141: =A65 -> 0% | C141: Versicherungen, Berufsgenossenschaft, Handwerkskammer etc. | D141: 0 | BA141: =AZ65 -> 0% | BB141: Sonstiges | BC141: 0 | BD141: 0 | BE141: 0 | BF141: 0 | BG141: 0 | BR141: =BQ65 -> 0% | BS141: Sonstiges | BT141: 0 | BU141: 0 | BV141: 0 | BW141: 0 | BX141: 0 | CX141: =CX65 -> 7%
C142: Summe Verschiedenes | D142: 4,258 | E142: =SUM(E137:E141) -> 11,808 | F142: =SUM(F137:F141) -> 12,610 | G142: =SUM(G137:G141) -> 12,860 | H142: =SUM(H137:H141) -> 9,110 | BB142: Summe Verschiedenes | BC142: 380 | BD142: =SUM(BD137:BD141) -> 228 | BE142: 228 | BF142: 608 | BG142: 228 | BS142: Summe Verschiedenes | BT142: 14 | BU142: =SUM(BU137:BU141) -> 70 | BV142: 70 | BW142: 70 | BX142: 70
C143: Summe Betriebskosten I | D143: 50,998 | E143: =SUM(E83:E142)/2 -> 63,432 | F143: =SUM(F83:F142)/2 -> 72,231 | G143: =SUM(G83:G142)/2 -> 71,632 | H143: =SUM(H83:H142)/2 -> 85,790 | BB143: ="Summe MwSt "&$Q$2*100&"%" -> Summe MwSt 19% | BC143: 5,955 | BD143: =SUM(BD82:BD142)/2 -> 5,871 | BE143: =SUM(BE82:BE142)/2 -> 7,182 | BF143: =SUM(BF82:BF142)/2 -> 7,182 | BG143: =SUM(BG82:BG142)/2 -> 9,975 | BS143: ="Summe MwSt "&$Q$3*100&"%" -> Summe MwSt 7% | BT143: 14 | BU143: =SUM(BU82:BU142)/2 -> 70 | BV143: =SUM(BV82:BV142)/2 -> 70 | BW143: =SUM(BW82:BW142)/2 -> 70 | BX143: =SUM(BX82:BX142)/2 -> 70
C144: Abschreibungen (aus "3 Anschaffungen|Investment") | D144: 240 | E144: ='3 Anschaffungen|Investment'!F55 -> 6,240 | F144: ='3 Anschaffungen|Investment'!G55 -> 8,240 | G144: ='3 Anschaffungen|Investment'!H55 -> 8,240 | H144: ='3 Anschaffungen|Investment'!I55 -> 8,240
C145: =C69 -> Summe Betriebskosten II | D145: 51,238 | E145: =SUM(E143:E144) -> 69,672 | F145: =SUM(F143:F144) -> 80,471 | G145: =SUM(G143:G144) -> 79,872 | H145: =SUM(H143:H144) -> 94,030
C146: =C70 -> *) wird aus Tabelle "Finanzierung" übernommen (auf ganze Euro gerundet!)
C148: =IF($C$2="English",CZ148,CY148) -> 4b Anhang: Ausweis der MwSt in EURO aus der Differenz zwischen den Tabellen 4b und 4d | CY148: 4b Anhang: Ausweis der MwSt in EURO aus der Differenz zwischen den Tabellen 4b und 4d | CZ148: 4b Addendum: Disclosure of VAT (Difference between Tab. 4b and 4d)
C149: =C73 -> Summe der angefallenen MwSt 19% | D149: =P73 -> 5,954.6 | E149: =BD143 -> 5,871.0 | F149: =BE143 -> 7,182.0 | G149: =BF143 -> 7,182.0 | H149: =BG143 -> 9,975.0
C150: =C74 -> Summe der angefallenen MwSt 7% | D150: =P74 -> 14.0 | E150: =BU143 -> 70.0 | F150: =BV143 -> 70.0 | G150: =BW143 -> 70.0 | H150: =BX143 -> 70.0
C151: =C75 -> Gesamtsumme angefallener MwSt | D151: =D150+D149 -> 5,968.6 | E151: =E150+E149 -> 5,941.0 | F151: =F150+F149 -> 7,252.0 | G151: =G150+G149 -> 7,252.0 | H151: =H150+H149 -> 10,045.0
S155: Ende
B166: =IF($C$2="English",CZ166,CY166) -> 4c Betriebskosten für das Jahr 2016 in EUR (mit MwSt;nur zur Kenntnis) | CY166: ="4c Betriebskosten für das Jahr " &'1 Pers.Ausgaben|Pers Expenses'!$C$4&" in EUR" & IF('Deckblatt Gruender|Data Founder'!M1>0," (ohne MwSt;nur zur Kenntnis)"," (mit MwSt;nur zur Kenntnis)") -> 4c Betriebskosten für das Jahr 2016 in EUR (mit MwSt;nur zur Kenntnis)
B167: =IF($C$2="English",CZ167,CY167) ->  | D167: =IF(D4>0,-1,1) -> 1 | CY167: =IF($D$4=-1," ┌ MwSt-Satz der jeweiligen Kostenart","") -> 
B168: =B5 -> No. | C168: Kostenart | D168: Jan. | E168: Febr. | F168: März | G168: April | H168: Mai | I168: Juni | J168: Juli | K168: Aug. | L168: Sept. | M168: Okt. | N168: Nov. | O168: Dez. | P168: Jahr 2016 | BO168: =BO5 -> 0
B169: 1 | C169: =C6 -> Bürokosten
B170: =A7 -> 19% | C170: Raummiete | D170: =D7*POWER((1+$B170),$D$167) -> 0.0 | E170: =E7*POWER((1+$B170),$D$167) -> 0.0 | F170: 595.0 | G170: 595.0 | H170: 595.0 | I170: 595.0 | J170: 595.0 | K170: 595.0 | L170: 595.0 | M170: 595.0 | N170: 595.0 | O170: 595.0 | P170: =SUM(D170:O170) -> 5,950.0 | BO170: =SUM(BC170:BN170) -> 0.0
B171: 19% | C171: Strom, Wasser, Heizung, sonst. Nebenkosten | D171: =D8*POWER((1+$B171),$D$167) -> 0.0 | E171: 0.0 | F171: 59.5 | G171: 59.5 | H171: 59.5 | I171: 59.5 | J171: 59.5 | K171: 59.5 | L171: 59.5 | M171: 59.5 | N171: 59.5 | O171: 59.5 | P171: 595.0 | BO171: 0.0
B172: 19% | C172: Telefon, Fax, Internet, Porto | D172: =D9*POWER((1+$B172),$D$167) -> 0.0 | E172: 0.0 | F172: 59.5 | G172: 59.5 | H172: 59.5 | I172: 59.5 | J172: 59.5 | K172: 59.5 | L172: 59.5 | M172: 59.5 | N172: 59.5 | O172: 59.5 | P172: 595.0 | BO172: 0.0
B173: 19% | C173: Geringw. Wirtschaftsgüter (Büromöbel, Einrichtungen,...) | D173: =D10*POWER((1+$B173),$D$167) -> 0.0 | E173: 0.0 | F173: 0.0 | G173: 0.0 | H173: 0.0 | I173: 0.0 | J173: 0.0 | K173: 0.0 | L173: 0.0 | M173: 0.0 | N173: 0.0 | O173: 0.0 | P173: 0.0 | BO173: 0.0
B174: 19% | C174: IT (Lizenzen, Windows, Office, Wartung) | D174: =D11*POWER((1+$B174),$D$167) -> 0.0 | E174: 0.0 | F174: 0.0 | G174: 0.0 | H174: 0.0 | I174: 0.0 | J174: 0.0 | K174: 0.0 | L174: 0.0 | M174: 0.0 | N174: 0.0 | O174: 0.0 | P174: 0.0 | BO174: 0.0
B175: 19% | C175: Studio-/ Büro-Miete inkl. Nebenkosten | D175: =D12*POWER((1+$B175),$D$167) -> 0.0 | E175: 0.0 | F175: 119.0 | G175: 119.0 | H175: 119.0 | I175: 119.0 | J175: 119.0 | K175: 119.0 | L175: 119.0 | M175: 119.0 | N175: 119.0 | O175: 119.0 | P175: 1,190.0 | BO175: 0.0
C176: Summe Bürokosten | D176: =SUM(D170:D175) -> 0.0 | E176: =SUM(E170:E175) -> 0.0 | F176: 833.0 | G176: 833.0 | H176: 833.0 | I176: 833.0 | J176: 833.0 | K176: 833.0 | L176: 833.0 | M176: 833.0 | N176: 833.0 | O176: 833.0 | P176: =SUM(D176:O176) -> 8,330.0 | BO176: =SUM(BC176:BN176) -> 0.0
B177: =B14 -> 2 | C177: Produktionskosten
B178: 19% | C178: Raummiete | D178: =D15*POWER((1+$B178),$D$167) -> 0.0 | E178: 0.0 | F178: 0.0 | G178: 0.0 | H178: 0.0 | I178: 0.0 | J178: 0.0 | K178: 0.0 | L178: 0.0 | M178: 0.0 | N178: 0.0 | O178: 0.0 | P178: =SUM(D178:O178) -> 0.0 | BO178: =SUM(BC178:BN178) -> 0.0
B179: 19% | C179: Strom, Wasser, Heizung, sonst. Nebenkosten | D179: =D16*POWER((1+$B179),$D$167) -> 0.0 | E179: 0.0 | F179: 0.0 | G179: 0.0 | H179: 0.0 | I179: 0.0 | J179: 0.0 | K179: 0.0 | L179: 0.0 | M179: 0.0 | N179: 0.0 | O179: 0.0 | P179: 0.0 | BO179: 0.0
B180: 19% | C180: Materialaufwand zur Produktion (19%) | D180: =D17*POWER((1+$B180),$D$167) -> 0.0 | E180: 0.0 | F180: 833.0 | G180: 904.4 | H180: 975.8 | I180: 1,047.2 | J180: 880.6 | K180: 952.0 | L180: 2,023.0 | M180: 1,094.8 | N180: 1,166.2 | O180: 1,237.6 | P180: 11,114.6 | BO180: 0.0
B181: 7% | C181: Materialaufwand zur Produktion (7%) | D181: =D18*POWER((1+$B181),$D$167) -> 0.0 | E181: 0.0 | F181: 0.0 | G181: 0.0 | H181: 0.0 | I181: 0.0 | J181: 0.0 | K181: 0.0 | L181: 0.0 | M181: 0.0 | N181: 0.0 | O181: 0.0 | P181: 0.0 | BO181: 0.0
B182: 19% | C182: Produktionsbedarf, geringwertige Wirtschaftsgüter | D182: =D19*POWER((1+$B182),$D$167) -> 0.0 | E182: 0.0 | F182: 119.0 | G182: 119.0 | H182: 119.0 | I182: 119.0 | J182: 119.0 | K182: 119.0 | L182: 119.0 | M182: 119.0 | N182: 119.0 | O182: 119.0 | P182: 1,190.0 | BO182: 0.0
B183: 19% | C183: Leasingraten für Produktionsanlagen, -maschinen | D183: =D20*POWER((1+$B183),$D$167) -> 0.0 | E183: 0.0 | F183: 0.0 | G183: 0.0 | H183: 0.0 | I183: 0.0 | J183: 0.0 | K183: 0.0 | L183: 0.0 | M183: 0.0 | N183: 0.0 | O183: 0.0 | P183: 0.0 | BO183: 0.0
B184: 19% | C184: Instandhaltung und Reparaturen | D184: =D21*POWER((1+$B184),$D$167) -> 0.0 | E184: 0.0 | F184: 238.0 | G184: 238.0 | H184: 238.0 | I184: 238.0 | J184: 238.0 | K184: 238.0 | L184: 238.0 | M184: 238.0 | N184: 238.0 | O184: 238.0 | P184: 2,380.0 | BO184: 0.0
B185: 19% | C185: Verbrauchsmaterialien Studio 5.000 Euro, Büro 2000 | D185: =D22*POWER((1+$B185),$D$167) -> 0.0 | E185: 0.0 | F185: 0.0 | G185: 0.0 | H185: 0.0 | I185: 0.0 | J185: 0.0 | K185: 0.0 | L185: 0.0 | M185: 0.0 | N185: 0.0 | O185: 0.0 | P185: =SUM(D185:O185) -> 0.0 | BO185: 0.0
C186: Summe Produktionskosten | D186: =SUM(D178:D185) -> 0.0 | E186: =SUM(E178:E185) -> 0.0 | F186: 1,190.0 | G186: 1,261.4 | H186: 1,332.8 | I186: 1,404.2 | J186: 1,237.6 | K186: 1,309.0 | L186: 2,380.0 | M186: 1,451.8 | N186: 1,523.2 | O186: 1,594.6 | P186: 14,684.6 | BO186: 0.0
B187: 3 | C187: Personalkosten (nur Angestellte)
B188: 0% | C188: Löhne, Gehälter mit Nebenkosten (s. Nebenrechnung) | D188: =D25*POWER((1+$B188),$D$167) -> 0.0 | E188: 0.0 | F188: 1,740.0 | G188: 1,740.0 | H188: 1,740.0 | I188: 1,740.0 | J188: 1,740.0 | K188: 1,740.0 | L188: 1,740.0 | M188: 1,740.0 | N188: 1,740.0 | O188: 1,740.0 | P188: 17,400.0 | BO188: 0.0
B189: 19% | C189: Sonstiges | D189: =D26*POWER((1+$B189),$D$167) -> 0.0 | E189: 0.0 | F189: 0.0 | G189: 0.0 | H189: 0.0 | I189: 0.0 | J189: 0.0 | K189: 0.0 | L189: 0.0 | M189: 0.0 | N189: 0.0 | O189: 0.0 | P189: 0.0 | BO189: 0.0
C190: Summe Personalkosten | D190: =SUM(D188:D189) -> 0.0 | E190: 0.0 | F190: 1,740.0 | G190: 1,740.0 | H190: 1,740.0 | I190: 1,740.0 | J190: 1,740.0 | K190: 1,740.0 | L190: 1,740.0 | M190: 1,740.0 | N190: 1,740.0 | O190: =SUM(O188:O189) -> 1,740.0 | P190: 17,400.0 | BO190: 0.0
B191: 4 | C191: Reisekosten
B192: 19% | C192: Fahrtkosten | D192: =D29*POWER((1+$B192),$D$167) -> 0.0 | E192: =E29*POWER((1+$B192),$D$167) -> 0.0 | F192: 119.0 | G192: 119.0 | H192: 119.0 | I192: 119.0 | J192: 119.0 | K192: 119.0 | L192: 119.0 | M192: 119.0 | N192: 119.0 | O192: 119.0 | P192: =SUM(D192:O192) -> 1,190.0 | BO192: =SUM(BC192:BN192) -> 0.0
B193: 19% | C193: Reisekostenpauschalen | D193: =D30*POWER((1+$B193),$D$167) -> 0.0 | E193: =E30*POWER((1+$B193),$D$167) -> 0.0 | F193: 0.0 | G193: 0.0 | H193: 0.0 | I193: 0.0 | J193: 0.0 | K193: 0.0 | L193: 0.0 | M193: 0.0 | N193: 0.0 | O193: 0.0 | P193: =SUM(D193:O193) -> 0.0 | BO193: =SUM(BC193:BN193) -> 0.0
B194: 7% | C194: Übernachtungen | D194: =D31*POWER((1+$B194),$D$167) -> 0.0 | E194: 0.0 | F194: 0.0 | G194: 0.0 | H194: 0.0 | I194: 0.0 | J194: 0.0 | K194: 0.0 | L194: 0.0 | M194: 0.0 | N194: 0.0 | O194: 0.0 | P194: =SUM(D194:O194) -> 0.0 | BO194: =SUM(BC194:BN194) -> 0.0
B195: 19% | C195: Kosten für Ausbelichtungen u. Foto-Dienstleiustungen | D195: =D32*POWER((1+$B195),$D$167) -> 0.0 | E195: 0.0 | F195: 0.0 | G195: 0.0 | H195: 0.0 | I195: 0.0 | J195: 0.0 | K195: 0.0 | L195: 0.0 | M195: 0.0 | N195: 0.0 | O195: 0.0 | P195: =SUM(D195:O195) -> 0.0 | BO195: =SUM(BC195:BN195) -> 0.0
C196: Summe Reisekosten | D196: =SUM(D192:D195) -> 0.0 | E196: =SUM(E192:E195) -> 0.0 | F196: 119.0 | G196: 119.0 | H196: 119.0 | I196: 119.0 | J196: 119.0 | K196: 119.0 | L196: 119.0 | M196: 119.0 | N196: 119.0 | O196: =SUM(O192:O195) -> 119.0 | P196: =SUM(D196:O196) -> 1,190.0 | BO196: =SUM(BC196:BN196) -> 0.0
B197: 5 | C197: Versicherungen und Beiträge (betrieblich!)
B198: 19% | C198: Haftpflicht | D198: =D35*POWER((1+$B198),$D$167) -> 0.0 | E198: 0.0 | F198: 0.0 | G198: 0.0 | H198: 0.0 | I198: 0.0 | J198: 0.0 | K198: 0.0 | L198: 0.0 | M198: 0.0 | N198: 0.0 | O198: 0.0 | P198: =SUM(D198:O198) -> 0.0 | BO198: =SUM(BC198:BN198) -> 0.0
B199: 19% | C199: Rechtschutzversicherung | D199: =D36*POWER((1+$B199),$D$167) -> 0.0 | E199: 0.0 | F199: 119.0 | G199: 119.0 | H199: 119.0 | I199: 119.0 | J199: 119.0 | K199: 119.0 | L199: 119.0 | M199: 119.0 | N199: 119.0 | O199: 119.0 | P199: =SUM(D199:O199) -> 1,190.0 | BO199: =SUM(BC199:BN199) -> 0.0
B200: 19% | C200: Beiträge (IHK, Berufsverbände, ...) | D200: =D37*POWER((1+$B200),$D$167) -> 0.0 | E200: 0.0 | F200: 0.0 | G200: 0.0 | H200: 0.0 | I200: 0.0 | J200: 0.0 | K200: 0.0 | L200: 0.0 | M200: 0.0 | N200: 0.0 | O200: 0.0 | P200: =SUM(D200:O200) -> 0.0 | BO200: =SUM(BC200:BN200) -> 0.0
B201: 19% | C201: Sonstiges | D201: =D38*POWER((1+$B201),$D$167) -> 0.0 | E201: 0.0 | F201: 0.0 | G201: 0.0 | H201: 0.0 | I201: 0.0 | J201: 0.0 | K201: 0.0 | L201: 0.0 | M201: 0.0 | N201: 0.0 | O201: 0.0 | P201: =SUM(D201:O201) -> 0.0 | BO201: =SUM(BC201:BN201) -> 0.0
C202: Summe Versicherungen und Beiträge (betrieblich!) | D202: =SUM(D198:D201) -> 0.0 | E202: 0.0 | F202: 119.0 | G202: 119.0 | H202: 119.0 | I202: 119.0 | J202: 119.0 | K202: 119.0 | L202: 119.0 | M202: 119.0 | N202: 119.0 | O202: =SUM(O198:O201) -> 119.0 | P202: =SUM(D202:O202) -> 1,190.0 | BO202: =SUM(BC202:BN202) -> 0.0
B203: 6 | C203: KFZ Kosten / Betriebliche Nutzung
B204: 19% | C204: Leasingraten Kfz | D204: =D41*POWER((1+$B204),$D$167) -> 0.0 | E204: 0.0 | F204: 119.0 | G204: 119.0 | H204: 119.0 | I204: 119.0 | J204: 119.0 | K204: 119.0 | L204: 119.0 | M204: 119.0 | N204: 119.0 | O204: 119.0 | P204: =SUM(D204:O204) -> 1,190.0 | BO204: =SUM(BC204:BN204) -> 0.0
B205: 19% | C205: Versicherungen/Kfz-Steuer | D205: =D42*POWER((1+$B205),$D$167) -> 0.0 | E205: 0.0 | F205: 119.0 | G205: 119.0 | H205: 119.0 | I205: 119.0 | J205: 119.0 | K205: 119.0 | L205: 119.0 | M205: 119.0 | N205: 119.0 | O205: 119.0 | P205: 1,190.0 | BO205: 0.0
B206: 19% | C206: Fahrzeugkosten (Tanken und Reparatur) | D206: =D43*POWER((1+$B206),$D$167) -> 0.0 | E206: 0.0 | F206: 0.0 | G206: 0.0 | H206: 0.0 | I206: 0.0 | J206: 0.0 | K206: 0.0 | L206: 0.0 | M206: 0.0 | N206: 0.0 | O206: 0.0 | P206: 0.0 | BO206: 0.0
B207: 0% | C207: Abrechenbare Kilometerkosten | D207: =D44*POWER((1+$B207),$D$167) -> 0.0 | E207: 0.0 | F207: 0.0 | G207: 0.0 | H207: 0.0 | I207: 0.0 | J207: 0.0 | K207: 0.0 | L207: 0.0 | M207: 0.0 | N207: 0.0 | O207: 0.0 | P207: 0.0 | BO207: 0.0
B208: 19% | C208: Fahrtkosten | D208: =D45*POWER((1+$B208),$D$167) -> 0.0 | E208: 0.0 | F208: 0.0 | G208: 0.0 | H208: 0.0 | I208: 0.0 | J208: 0.0 | K208: 0.0 | L208: 0.0 | M208: 0.0 | N208: 0.0 | O208: 0.0 | P208: 0.0 | BO208: 0.0
C209: Summe KFZ Kosten / Betriebliche Nutzung | D209: =SUM(D204:D208) -> 0.0 | E209: =SUM(E204:E208) -> 0.0 | F209: 238.0 | G209: 238.0 | H209: 238.0 | I209: 238.0 | J209: 238.0 | K209: 238.0 | L209: 238.0 | M209: 238.0 | N209: 238.0 | O209: =SUM(O204:O208) -> 238.0 | P209: 2,380.0 | BO209: 0.0
B210: 7 | C210: Marketing u. Werbung
B211: 19% | C211: Marktforschung | D211: =D48*POWER((1+$B211),$D$167) -> 0.0 | E211: 0.0 | F211: 0.0 | G211: 0.0 | H211: 0.0 | I211: 5,950.0 | J211: 0.0 | K211: 0.0 | L211: 0.0 | M211: 0.0 | N211: 0.0 | O211: 0.0 | P211: =SUM(D211:O211) -> 5,950.0 | BO211: =SUM(BC211:BN211) -> 0.0
B212: 19% | C212: Briefpapier, Visitenkarte, Stempel | D212: =D49*POWER((1+$B212),$D$167) -> 0.0 | E212: 0.0 | F212: 0.0 | G212: 0.0 | H212: 0.0 | I212: 0.0 | J212: 0.0 | K212: 0.0 | L212: 0.0 | M212: 0.0 | N212: 0.0 | O212: 0.0 | P212: 0.0 | BO212: 0.0
B213: 19% | C213: Webseite, lfd. Webseitenpflege | D213: =D50*POWER((1+$B213),$D$167) -> 0.0 | E213: 0.0 | F213: 119.0 | G213: 119.0 | H213: 119.0 | I213: 119.0 | J213: 119.0 | K213: 119.0 | L213: 119.0 | M213: 119.0 | N213: 119.0 | O213: 119.0 | P213: 1,190.0 | BO213: 0.0
B214: 19% | C214: Flyer, Prospekte, Broschüren, Anzeigen | D214: =D51*POWER((1+$B214),$D$167) -> 0.0 | E214: 0.0 | F214: 0.0 | G214: 0.0 | H214: 0.0 | I214: 0.0 | J214: 0.0 | K214: 0.0 | L214: 0.0 | M214: 0.0 | N214: 0.0 | O214: 0.0 | P214: 0.0 | BO214: 0.0
B215: 19% | C215: Bewirtungskosten | D215: =D52*POWER((1+$B215),$D$167) -> 0.0 | E215: 0.0 | F215: 0.0 | G215: 0.0 | H215: 0.0 | I215: 0.0 | J215: 0.0 | K215: 0.0 | L215: 0.0 | M215: 0.0 | N215: 0.0 | O215: 0.0 | P215: 0.0 | BO215: 0.0
B216: 19% | C216: Werbung | D216: =D53*POWER((1+$B216),$D$167) -> 0.0 | E216: 0.0 | F216: 0.0 | G216: 0.0 | H216: 0.0 | I216: 0.0 | J216: 0.0 | K216: 0.0 | L216: 0.0 | M216: 0.0 | N216: 0.0 | O216: 0.0 | P216: 0.0 | BO216: 0.0
... 95 more rows

Sheet 4 Betriebskosten|Operation Ex (hidden)
A2: =IF(C2="English","Choose VAT","Auswahl MwSt") -> Auswahl MwSt | C2: ='Deckblatt Gruender|Data Founder'!$D$8 -> Deutsch | Q2: 19% | T2: Aufgaben und/oder Kommentar | CW2: Zeilen | CX2: Steuersatz | DA2: Zeilen | DB2: Steuersatz | DI2: Jan. | DJ2: Febr. | DK2: März | DL2: April | DM2: Mai | DN2: Juni | DO2: Juli | DP2: Aug. | DQ2: Sept. | DR2: Okt. | DS2: Nov. | DT2: Dez. | DU2: ="Jahr "&'1 Pers.Ausgaben|Pers Expenses'!$C$4 -> Jahr 2016 | DV2: ="Jahr "&'1 Pers.Ausgaben|Pers Expenses'!$C$4+1 -> Jahr 2017
B3: =IF($C$2="English",CZ3,CY3) -> 4a-1 Betriebskosten für das Jahr 2016 in EUR (ohne MwSt) | Q3: 7% | T3: To Do list / Comments | U3: =IF($C$2="English",CV5,CU5) -> Nebenrechung Personalkosten | CW3: Original | CY3: ="4a-1 Betriebskosten für das Jahr " &'1 Pers.Ausgaben|Pers Expenses'!$C$4&" in EUR" & " (" & IF(OR($D$4=1,$D$4=2),"mit MwSt","ohne MwSt")& ") " -> 4a-1 Betriebskosten für das Jahr 2016 in EUR (ohne MwSt) | CZ3: ="4a-1 Operating Cost for Year " &'1 Pers.Ausgaben|Pers Expenses'!$C$4&" in EUR" & " (" &IF(OR($D$4=1,$D$4=2),"incl. VAT","w/o VAT")& ") " -> 4a-1 Operating Cost for Year 2016 in EUR (w/o VAT) | DA3: DATEV | DI3: Jan | DJ3: Feb | DK3: Mar | DL3: Apr | DM3: May | DN3: June | DO3: July | DP3: Aug | DQ3: Sept | DR3: Oct | DS3: Nov | DT3: Dec | DU3: ="Year "&'1 Pers.Ausgaben|Pers Expenses'!$C$4 -> Year 2016 | DV3: ="Year "&'1 Pers.Ausgaben|Pers Expenses'!$C$4+1 -> Year 2017
B4: =IF($C$2="English",CZ4,CY4) -> ┌ MwSt-Satz der jeweiligen Kostenart | D4: ='Deckblatt Gruender|Data Founder'!M1 -> 0 | Q4: 0% | CY4: =IF($D$4=-1,""," ┌ MwSt-Satz der jeweiligen Kostenart") -> ┌ MwSt-Satz der jeweiligen Kostenart | CZ4: =IF($D$4=-1,""," ┌ VAT for Cost Type") -> ┌ VAT for Cost Type
B5: No. | C5: =IF($C$2="Deutsch",CY5,IF($C$2="English",CZ5,DB5)) -> Kostenart | D5: =IF($C$2="English",DI3,DI2) -> Jan. | E5: Febr. | F5: März | G5: April | H5: Mai | I5: Juni | J5: Juli | K5: Aug. | L5: Sept. | M5: Okt. | N5: Nov. | O5: Dez. | P5: Jahr 2016 | S5: =IF(C2="English",T3,T2) -> Aufgaben und/oder Kommentar | U5: =D153 -> 2016 | V5: =D5 -> Jan. | W5: Febr. | X5: März | Y5: April | Z5: Mai | AA5: Juni | AB5: Juli | AC5: Aug. | AD5: Sept. | AE5: Okt. | AF5: Nov. | AG5: Dez. | BA5: No. | BB5: ="MwSt "&$Q$2*100&"%" -> MwSt 19% | BC5: Jan. | BD5: Febr. | BE5: März | BF5: April | BG5: Mai | BH5: Juni | BI5: Juli | BJ5: Aug. | BK5: Sept. | BL5: Okt. | BM5: Nov. | BN5: Dez. | BO5: =IF($C$2="English",FN3,FN2) -> 0 | BR5: No. | BS5: ="MwSt "&$Q$3*100&"%" -> MwSt 7% | BT5: Jan. | BU5: Febr. | BV5: März | BW5: April | BX5: Mai | BY5: Juni | BZ5: Juli | CA5: Aug. | CB5: Sept. | CC5: Okt. | CD5: Nov. | CE5: Dez. | CF5: =IF($C$2="English",GE3,GE2) -> 0 | CU5: Nebenrechung Personalkosten | CV5: Ancillary: Account for Personal Costs | CY5: Kostenart | CZ5: Cost Type | DC5: Nebenrechung Personalkosten | DD5: Ancillary Account for Personal Costs
B6: 1 | C6: Bürokosten | U6: =IF($C$2="English",CV6,CU6) -> Anzahl Mitarbeiter | BA6: 1 | BB6: Bürokosten | BR6: 1 | BS6: Bürokosten | CU6: Anzahl Mitarbeiter | CV6: No of Employees | CW6: 1 | CY6: Bürokosten | CZ6: Office expences | DA6: 1 | DB6: =VLOOKUP(DA6,$CW$6:$CZ$66,2,FALSE) -> 0% | DC6: =VLOOKUP(DA6,$CW$6:$CZ$66,3,FALSE) -> Bürokosten | DD6: =VLOOKUP(DA6,$CW$6:$CZ$66,4,FALSE) -> Office expences
A7: =$Q$2 -> 19% | B7: =IF($D$4<>1, A7,"") -> 19% | C7: Raummiete | D7: 100 | E7: 100 | F7: 100 | G7: 100 | H7: 100 | I7: 100 | J7: 100 | K7: 100 | L7: 100 | M7: 100 | N7: 100 | O7: 100 | P7: =SUM(D7:O7) -> 1,200 | U7: Gehalt1 | BA7: 19% | BB7: Raummiete | BC7: =IF($A7=$Q$2,D7*IF(OR($D$4=0,$D$4=3),$A7,$A7/(1+$A7)),0) -> 19 | BD7: 19 | BE7: 19 | BF7: 19 | BG7: 19 | BH7: 19 | BI7: 19 | BJ7: 19 | BK7: 19 | BL7: 19 | BM7: 19 | BN7: 19 | BO7: =SUM(BC7:BN7) -> 228 | BR7: 19% | BS7: Raummiete | BT7: =IF($A7=$Q$3,D7*IF(OR($D$4=0,$D$4=3),$A7,$A7/(1+$A7)),0) -> 0 | BU7: 0 | BV7: 0 | BW7: 0 | BX7: 0 | BY7: 0 | BZ7: 0 | CA7: 0 | CB7: 0 | CC7: 0 | CD7: 0 | CE7: 0 | CF7: =SUM(BT7:CE7) -> 0 | CU7: Gehalt1 | CV7: Salary1 | CW7: 2 | CX7: =$Q$2 -> 19% | CY7: Raummiete | CZ7: Room rental | DA7: 2 | DB7: =VLOOKUP(DA7,$CW$6:$CZ$66,2,FALSE) -> 19% | DC7: =VLOOKUP(DA7,$CW$6:$CZ$66,3,FALSE) -> Raummiete | DD7: =VLOOKUP(DA7,$CW$6:$CZ$66,4,FALSE) -> Room rental
A8: =$Q$2 -> 19% | B8: 19% | C8: Strom, Wasser, Heizung, sonst. Nebenkosten | P8: 0 | U8: =IF($C$2="English",CV8,CU8) -> Anzahl Mitarbeiter | BA8: 19% | BB8: Strom, Wasser, Heizung, sonst. Nebenkosten | BC8: 0 | BD8: 0 | BE8: 0 | BF8: 0 | BG8: 0 | BH8: 0 | BI8: 0 | BJ8: 0 | BK8: 0 | BL8: 0 | BM8: 0 | BN8: 0 | BO8: 0 | BR8: 19% | BS8: Strom, Wasser, Heizung, sonst. Nebenkosten | BT8: 0 | BU8: 0 | BV8: 0 | BW8: 0 | BX8: 0 | BY8: 0 | BZ8: 0 | CA8: 0 | CB8: 0 | CC8: 0 | CD8: 0 | CE8: 0 | CF8: 0 | CU8: Anzahl Mitarbeiter | CV8: No of Employees | CW8: 3 | CX8: 19% | CY8: Strom, Wasser, Heizung, sonst. Nebenkosten | CZ8: Electricity, water, heating, other costs | DA8: 3 | DB8: 19% | DC8: Strom, Wasser, Heizung, sonst. Nebenkosten | DD8: Electricity, water, heating, other costs
A9: =$Q$2 -> 19% | B9: 19% | C9: Telefon, Fax, Internet, Porto | P9: 0 | U9: Gehalt2 | BA9: 19% | BB9: Telefon, Fax, Internet, Porto | BC9: 0 | BD9: 0 | BE9: 0 | BF9: 0 | BG9: 0 | BH9: 0 | BI9: 0 | BJ9: 0 | BK9: 0 | BL9: 0 | BM9: 0 | BN9: 0 | BO9: 0 | BR9: 19% | BS9: Telefon, Fax, Internet, Porto | BT9: 0 | BU9: 0 | BV9: 0 | BW9: 0 | BX9: 0 | BY9: 0 | BZ9: 0 | CA9: 0 | CB9: 0 | CC9: 0 | CD9: 0 | CE9: 0 | CF9: 0 | CU9: Gehalt2 | CV9: Salary2 | CW9: 4 | CX9: 19% | CY9: Telefon, Fax, Internet, Porto | CZ9: Phone, fax, internet, postage | DA9: 5 | DB9: 19% | DC9: Geringw. Wirtschaftsgüter (Büromöbel, Einrichtungen,...) | DD9: Low value assets (office furniture, facilities, ...)
A10: =$Q$2 -> 19% | B10: 19% | C10: Geringw. Wirtschaftsgüter (Büromöbel, Einrichtungen,...) | P10: 0 | U10: Anzahl Mitarbeiter | BA10: 19% | BB10: Geringw. Wirtschaftsgüter (Büromöbel, Einrichtungen,...) | BC10: 0 | BD10: 0 | BE10: 0 | BF10: 0 | BG10: 0 | BH10: 0 | BI10: 0 | BJ10: 0 | BK10: 0 | BL10: 0 | BM10: 0 | BN10: 0 | BO10: 0 | BR10: 19% | BS10: Geringw. Wirtschaftsgüter (Büromöbel, Einrichtungen,...) | BT10: 0 | BU10: 0 | BV10: 0 | BW10: 0 | BX10: 0 | BY10: 0 | BZ10: 0 | CA10: 0 | CB10: 0 | CC10: 0 | CD10: 0 | CE10: 0 | CF10: 0 | CU10: Anzahl Mitarbeiter | CV10: No of Employees | CW10: 5 | CX10: 19% | CY10: Geringw. Wirtschaftsgüter (Büromöbel, Einrichtungen,...) | CZ10: Low value assets (office furniture, facilities, ...) | DA10: 4 | DB10: 19% | DC10: Telefon, Fax, Internet, Porto | DD10: Phone, fax, internet, postage
A11: =$Q$2 -> 19% | B11: 19% | C11: IT (Lizenzen, Windows, Office, Wartung) | P11: 0 | U11: Gehalt3 | BA11: 19% | BB11: IT (Lizenzen, Windows, Office, Wartung) | BC11: 0 | BD11: 0 | BE11: 0 | BF11: 0 | BG11: 0 | BH11: 0 | BI11: 0 | BJ11: 0 | BK11: 0 | BL11: 0 | BM11: 0 | BN11: 0 | BO11: 0 | BR11: 19% | BS11: IT (Lizenzen, Windows, Office, Wartung) | BT11: 0 | BU11: 0 | BV11: 0 | BW11: 0 | BX11: 0 | BY11: 0 | BZ11: 0 | CA11: 0 | CB11: 0 | CC11: 0 | CD11: 0 | CE11: 0 | CF11: 0 | CU11: Gehalt3 | CV11: Salery3 | CW11: 6 | CX11: 19% | CY11: IT (Lizenzen, Windows, Office, Wartung) | CZ11: IT (licenses, windows, office, maintenace, ...) | DA11: 6 | DB11: 19% | DC11: IT (Lizenzen, Windows, Office, Wartung) | DD11: IT (licenses, windows, office, maintenace, ...)
A12: 19% | B12: 19% | C12: Sonstiges | D12: 100 | E12: 100 | F12: 100 | G12: 100 | H12: 100 | I12: 100 | J12: 100 | K12: 100 | L12: 100 | M12: 100 | N12: 100 | O12: 100 | P12: 1,200 | U12: Nebenkosten (%) | BB12: Sonstiges | BC12: 19 | BD12: 19 | BE12: 19 | BF12: 19 | BG12: 19 | BH12: 19 | BI12: 19 | BJ12: 19 | BK12: 19 | BL12: 19 | BM12: 19 | BN12: 19 | BO12: 228 | BS12: Sonstiges | BT12: 0 | BU12: 0 | BV12: 0 | BW12: 0 | BX12: 0 | BY12: 0 | BZ12: 0 | CA12: 0 | CB12: 0 | CC12: 0 | CD12: 0 | CE12: 0 | CF12: 0 | CU12: Nebenkosten (%) | CV12: Additional Expenses (%) | CW12: 7 | CX12: 19% | CY12: Sonstiges | CZ12: Others | DA12: 7 | DB12: 19% | DC12: Sonstiges | DD12: Others
C13: Summe Bürokosten | D13: =SUM(D7:D12) -> 200 | E13: =SUM(E7:E12) -> 200 | F13: 200 | G13: 200 | H13: 200 | I13: 200 | J13: 200 | K13: 200 | L13: 200 | M13: 200 | N13: 200 | O13: 200 | P13: =SUM(D13:O13) -> 2,400 | U13: Gehaltssumme | V13: =((V6*V7)+(V8*V9)+(V10*V11))*(1+V12) -> 0 | W13: =((W6*W7)+(W8*W9)+(W10*W11))*(1+W12) -> 0 | X13: 0 | Y13: 0 | Z13: 0 | AA13: 0 | AB13: 0 | AC13: 0 | AD13: 0 | AE13: 0 | AF13: 0 | AG13: 0 | AH13: =SUM(V13:AG13) -> 0 | BB13: Summe Bürokosten | BC13: =SUM(BC7:BC12) -> 38 | BD13: =SUM(BD7:BD12) -> 38 | BE13: 38 | BF13: 38 | BG13: 38 | BH13: 38 | BI13: 38 | BJ13: 38 | BK13: 38 | BL13: 38 | BM13: 38 | BN13: 38 | BO13: =SUM(BC13:BN13) -> 456 | BS13: Summe Bürokosten | BT13: =SUM(BT7:BT12) -> 0 | BU13: =SUM(BU7:BU12) -> 0 | BV13: 0 | BW13: 0 | BX13: 0 | BY13: 0 | BZ13: 0 | CA13: 0 | CB13: 0 | CC13: 0 | CD13: 0 | CE13: 0 | CF13: =SUM(BT13:CE13) -> 0 | CU13: Gehaltssumme | CV13: Payroll | CW13: 8 | CY13: ="Summe " &CY6 -> Summe Bürokosten | CZ13: Sum office expences | DA13: 8 | DB13: 0% | DC13: Summe Bürokosten | DD13: Sum office expences
B14: 2 | C14: Produktionskosten | BA14: 2 | BB14: Produktionskosten | BR14: 2 | BS14: Produktionskosten | CW14: 9 | CY14: Produktionskosten | CZ14: Production costs | DA14: 9 | DB14: 0% | DC14: Produktionskosten | DD14: Production costs
A15: =$Q$2 -> 19% | B15: =IF($D$4<>1, A15,"") -> 19% | C15: Raummiete | P15: =SUM(D15:O15) -> 0 | BA15: 19% | BB15: Raummiete | BC15: =IF($A15=$Q$2,D15*IF(OR($D$4=0,$D$4=3),$A15,$A15/(1+$A15)),0) -> 0 | BD15: 0 | BE15: 0 | BF15: 0 | BG15: 0 | BH15: 0 | BI15: 0 | BJ15: 0 | BK15: 0 | BL15: 0 | BM15: 0 | BN15: 0 | BO15: =SUM(BC15:BN15) -> 0 | BR15: 19% | BS15: Raummiete | BT15: =IF($A15=$Q$3,D15*IF(OR($D$4=0,$D$4=3),$A15,$A15/(1+$A15)),0) -> 0 | BU15: 0 | BV15: 0 | BW15: 0 | BX15: 0 | BY15: 0 | BZ15: 0 | CA15: 0 | CB15: 0 | CC15: 0 | CD15: 0 | CE15: 0 | CF15: =SUM(BT15:CE15) -> 0 | CW15: 10 | CX15: =$Q$2 -> 19% | CY15: Raummiete | CZ15: Room rental | DA15: 10 | DB15: 19% | DC15: Raummiete | DD15: Room rental
A16: =$Q$2 -> 19% | B16: 19% | C16: Strom, Wasser, Heizung, sonst. Nebenkosten | P16: 0 | BA16: 19% | BB16: Strom, Wasser, Heizung, sonst. Nebenkosten | BC16: 0 | BD16: 0 | BE16: 0 | BF16: 0 | BG16: 0 | BH16: 0 | BI16: 0 | BJ16: 0 | BK16: 0 | BL16: 0 | BM16: 0 | BN16: 0 | BO16: 0 | BR16: 19% | BS16: Strom, Wasser, Heizung, sonst. Nebenkosten | BT16: 0 | BU16: 0 | BV16: 0 | BW16: 0 | BX16: 0 | BY16: 0 | BZ16: 0 | CA16: 0 | CB16: 0 | CC16: 0 | CD16: 0 | CE16: 0 | CF16: 0 | CW16: 11 | CX16: =$Q$2 -> 19% | CY16: Strom, Wasser, Heizung, sonst. Nebenkosten | CZ16: Electricity, water, heating, other costs | DA16: 11 | DB16: 19% | DC16: Strom, Wasser, Heizung, sonst. Nebenkosten | DD16: Electricity, water, heating, other costs
A17: =$Q$2 -> 19% | B17: 19% | C17: Materialaufwand zur Produktion (19%) | D17: 740 | E17: 1,520 | F17: 2,380 | G17: 3,320 | H17: 4,340 | I17: 5,440 | J17: 6,120 | K17: 6,880 | L17: 7,720 | M17: 8,640 | N17: 9,640 | O17: 10,720 | P17: =SUM(D17:O17) -> 67,460 | U17: =E153 -> 2017 | V17: =V5 -> Jan. | W17: Febr. | X17: März | Y17: April | Z17: Mai | AA17: Juni | AB17: Juli | AC17: Aug. | AD17: Sept. | AE17: Okt. | AF17: Nov. | AG17: Dez. | BA17: 19% | BB17: Materialaufwand zur Produktion (19%) | BC17: 141 | BD17: 289 | BE17: 452 | BF17: 631 | BG17: 825 | BH17: 1,034 | BI17: 1,163 | BJ17: 1,307 | BK17: 1,467 | BL17: 1,642 | BM17: 1,832 | BN17: 2,037 | BO17: =SUM(BC17:BN17) -> 12,817 | BR17: 19% | BS17: Materialaufwand zur Produktion (19%) | BT17: 0 | BU17: 0 | BV17: 0 | BW17: 0 | BX17: 0 | BY17: 0 | BZ17: 0 | CA17: 0 | CB17: 0 | CC17: 0 | CD17: 0 | CE17: 0 | CF17: 0 | CW17: 12 | CX17: =$Q$2 -> 19% | CY17: ="Materialaufwand zur Produktion ("&$Q$2*100 &"%)" -> Materialaufwand zur Produktion (19%) | CZ17: ="Cost of production material ("&$Q$2*100 &"%)" -> Cost of production material (19%) | DA17: 12 | DB17: 19% | DC17: Materialaufwand zur Produktion (19%) | DD17: Cost of production material (19%)
A18: =$Q$3 -> 7% | B18: 7% | C18: Materialaufwand zur Produktion (7%) | P18: 0 | U18: =U6 -> Anzahl Mitarbeiter | BA18: 7% | BB18: Materialaufwand zur Produktion (7%) | BC18: 0 | BD18: 0 | BE18: 0 | BF18: 0 | BG18: 0 | BH18: 0 | BI18: 0 | BJ18: 0 | BK18: 0 | BL18: 0 | BM18: 0 | BN18: 0 | BO18: 0 | BR18: 7% | BS18: Materialaufwand zur Produktion (7%) | BT18: 0 | BU18: 0 | BV18: 0 | BW18: 0 | BX18: 0 | BY18: 0 | BZ18: 0 | CA18: 0 | CB18: 0 | CC18: 0 | CD18: 0 | CE18: 0 | CF18: 0 | CW18: 13 | CX18: =$Q$3 -> 7% | CY18: ="Materialaufwand zur Produktion ("&$Q$3*100 &"%)" -> Materialaufwand zur Produktion (7%) | CZ18: ="Cost for materials for production ("&$Q$3*100 &"%)" -> Cost for materials for production (7%) | DA18: 13 | DB18: 7% | DC18: Materialaufwand zur Produktion (7%) | DD18: Cost for materials for production (7%)
A19: =$Q$2 -> 19% | B19: 19% | C19: =IF($C$2="Deutsch",CY19,IF($C$2="English",CZ19,DB19)) -> Produktionsbedarf, geringwertige Wirtschaftsgüter | D19: 100 | E19: 100 | F19: 100 | G19: 100 | H19: 100 | I19: 100 | J19: 100 | K19: 100 | L19: 100 | M19: 100 | N19: 100 | O19: 100 | P19: 1,200 | U19: Gehalt1 | BA19: 19% | BB19: Produktionsbedarf, geringwertige Wirtschaftsgüter | BC19: 19 | BD19: 19 | BE19: 19 | BF19: 19 | BG19: 19 | BH19: 19 | BI19: 19 | BJ19: 19 | BK19: 19 | BL19: 19 | BM19: 19 | BN19: 19 | BO19: 228 | BR19: 19% | BS19: Produktionsbedarf, geringwertige Wirtschaftsgüter | BT19: 0 | BU19: 0 | BV19: 0 | BW19: 0 | BX19: 0 | BY19: 0 | BZ19: 0 | CA19: 0 | CB19: 0 | CC19: 0 | CD19: 0 | CE19: 0 | CF19: 0 | CW19: 14 | CX19: =$Q$2 -> 19% | CY19: Produktionsbedarf, geringwertige Wirtschaftsgüter | CZ19: Production need, low value assets | DA19: 14 | DB19: 19% | DC19: Produktionsbedarf, geringwertige Wirtschaftsgüter | DD19: Production need, low value assets
A20: =$Q$2 -> 19% | B20: 19% | C20: Leasingraten für Produktionsanlagen, -maschinen | P20: 0 | U20: Anzahl Mitarbeiter | BA20: 19% | BB20: Leasingraten für Produktionsanlagen, -maschinen | BC20: 0 | BD20: 0 | BE20: 0 | BF20: 0 | BG20: 0 | BH20: 0 | BI20: 0 | BJ20: 0 | BK20: 0 | BL20: 0 | BM20: 0 | BN20: 0 | BO20: 0 | BR20: 19% | BS20: Leasingraten für Produktionsanlagen, -maschinen | BT20: 0 | BU20: 0 | BV20: 0 | BW20: 0 | BX20: 0 | BY20: 0 | BZ20: 0 | CA20: 0 | CB20: 0 | CC20: 0 | CD20: 0 | CE20: 0 | CF20: 0 | CW20: 15 | CX20: =$Q$2 -> 19% | CY20: Leasingraten für Produktionsanlagen, -maschinen | CZ20: Leasing rate for production facityties , -machines | DA20: 15 | DB20: 19% | DC20: Leasingraten für Produktionsanlagen, -maschinen | DD20: Leasing rate for production facityties , -machines
A21: =$Q$2 -> 19% | B21: 19% | C21: Instandhaltung und Reparaturen | P21: 0 | U21: Gehalt2 | BA21: 19% | BB21: Instandhaltung und Reparaturen | BC21: 0 | BD21: 0 | BE21: 0 | BF21: 0 | BG21: 0 | BH21: 0 | BI21: 0 | BJ21: 0 | BK21: 0 | BL21: 0 | BM21: 0 | BN21: 0 | BO21: 0 | BR21: 19% | BS21: Instandhaltung und Reparaturen | BT21: 0 | BU21: 0 | BV21: 0 | BW21: 0 | BX21: 0 | BY21: 0 | BZ21: 0 | CA21: 0 | CB21: 0 | CC21: 0 | CD21: 0 | CE21: 0 | CF21: 0 | CW21: 16 | CX21: =$Q$2 -> 19% | CY21: Instandhaltung und Reparaturen | CZ21: Maintenace and repairs | DA21: 16 | DB21: 19% | DC21: Instandhaltung und Reparaturen | DD21: Maintenace and repairs
A22: 19% | B22: 19% | C22: Sonstiges | P22: 0 | U22: Anzahl Mitarbeiter | BB22: Sonstiges | BC22: 0 | BD22: 0 | BE22: 0 | BF22: 0 | BG22: 0 | BH22: 0 | BI22: 0 | BJ22: 0 | BK22: 0 | BL22: 0 | BM22: 0 | BN22: 0 | BO22: 0 | BS22: Sonstiges | BT22: 0 | BU22: 0 | BV22: 0 | BW22: 0 | BX22: 0 | BY22: 0 | BZ22: 0 | CA22: 0 | CB22: 0 | CC22: 0 | CD22: 0 | CE22: 0 | CF22: 0 | CW22: 17 | CX22: =$Q$2 -> 19% | CY22: Sonstiges | CZ22: Others | DA22: 17 | DB22: 19% | DC22: Sonstiges | DD22: Others
C23: Summe Produktionskosten | D23: =SUM(D15:D22) -> 840 | E23: =SUM(E15:E22) -> 1,620 | F23: =SUM(F15:F22) -> 2,480 | G23: 3,420 | H23: 4,440 | I23: 5,540 | J23: 6,220 | K23: 6,980 | L23: 7,820 | M23: 8,740 | N23: 9,740 | O23: 10,820 | P23: =SUM(D23:O23) -> 68,660 | U23: Gehalt3 | BB23: Summe Produktionskosten | BC23: =SUM(BC15:BC22) -> 160 | BD23: =SUM(BD15:BD22) -> 308 | BE23: 471 | BF23: 650 | BG23: 844 | BH23: 1,053 | BI23: 1,182 | BJ23: 1,326 | BK23: 1,486 | BL23: 1,661 | BM23: 1,851 | BN23: 2,056 | BO23: =SUM(BC23:BN23) -> 13,045 | BS23: Summe Produktionskosten | BT23: =SUM(BT15:BT22) -> 0 | BU23: =SUM(BU15:BU22) -> 0 | BV23: 0 | BW23: 0 | BX23: 0 | BY23: 0 | BZ23: 0 | CA23: 0 | CB23: 0 | CC23: 0 | CD23: 0 | CE23: 0 | CF23: 0 | CW23: 18 | CY23: ="Summe "&CY14 -> Summe Produktionskosten | CZ23: Sum production costs | DA23: 18 | DB23: 0% | DC23: Summe Produktionskosten | DD23: Sum production costs
B24: 3 | C24: Personalkosten (nur Angestellte) | U24: Nebenkosten (%) | BA24: 3 | BB24: Personalkosten (nur Angestellte) | BR24: 3 | BS24: Personalkosten (nur Angestellte) | CW24: 19 | CY24: Personalkosten (nur Angestellte) | CZ24: Personnel costs (salery personel only) | DA24: 19 | DB24: 0% | DC24: Personalkosten (nur Angestellte) | DD24: Personnel costs (salery personel only)
A25: 0% | B25: =IF($D$4<>1, A25,"") -> 0% | C25: Löhne, Gehälter mit Nebenkosten (s. Nebenrechnung) | D25: 0 | E25: 0 | F25: 0 | G25: 0 | H25: 0 | I25: 0 | J25: 540 | K25: 540 | L25: 540 | M25: 540 | N25: 540 | O25: 540 | P25: =SUM(D25:O25) -> 3,240 | U25: Gehaltssumme | V25: =((V18*V19)+(V20*V21)+(V22*V23))*(1+V24) -> 0 | W25: =((W18*W19)+(W20*W21)+(W22*W23))*(1+W24) -> 0 | X25: 0 | Y25: 0 | Z25: 0 | AA25: 0 | AB25: 0 | AC25: 0 | AD25: 0 | AE25: 0 | AF25: 0 | AG25: 0 | AH25: =SUM(V25:AG25) -> 0 | BA25: 0% | BB25: Löhne, Gehälter mit Nebenkosten (s. Nebenrechnung) | BC25: =IF($A25=$Q$2,D25*IF(OR($D$4=0,$D$4=3),$A25,$A25/(1+$A25)),0) -> 0 | BD25: 0 | BE25: 0 | BF25: 0 | BG25: 0 | BH25: 0 | BI25: 0 | BJ25: 0 | BK25: 0 | BL25: 0 | BM25: 0 | BN25: 0 | BO25: =SUM(BC25:BN25) -> 0 | BR25: 0% | BS25: Löhne, Gehälter mit Nebenkosten (s. Nebenrechnung) | BT25: =IF($A25=$Q$3,D25*IF(OR($D$4=0,$D$4=3),$A25,$A25/(1+$A25)),0) -> 0 | BU25: 0 | BV25: 0 | BW25: 0 | BX25: 0 | BY25: 0 | BZ25: 0 | CA25: 0 | CB25: 0 | CC25: 0 | CD25: 0 | CE25: 0 | CF25: =SUM(BT25:CE25) -> 0 | CW25: 20 | CX25: 0% | CY25: Löhne, Gehälter mit Nebenkosten (s. Nebenrechnung) | CZ25: Wages, saleries with additional costs (s. ancillary account) | DA25: 20 | DB25: 0% | DC25: Löhne, Gehälter mit Nebenkosten (s. Nebenrechnung) | DD25: Wages, saleries with additional costs (s. ancillary account)
A26: 19% | B26: =IF($D$4<>1, A26,"") -> 19% | C26: Sonstiges | P26: =SUM(D26:O26) -> 0 | BB26: Sonstiges | BC26: 0 | BD26: 0 | BE26: 0 | BF26: 0 | BG26: 0 | BH26: 0 | BI26: 0 | BJ26: 0 | BK26: 0 | BL26: 0 | BM26: 0 | BN26: 0 | BO26: =SUM(BC26:BN26) -> 0 | BS26: Sonstiges | BT26: 0 | BU26: 0 | BV26: 0 | BW26: 0 | BX26: 0 | BY26: 0 | BZ26: 0 | CA26: 0 | CB26: 0 | CC26: 0 | CD26: 0 | CE26: 0 | CF26: =SUM(BT26:CE26) -> 0 | CW26: 21 | CX26: =$Q$2 -> 19% | CY26: Sonstiges | CZ26: Others | DA26: 21 | DB26: 19% | DC26: Sonstiges | DD26: Others
C27: Summe Personalkosten | D27: =SUM(D25:D26) -> 0 | E27: =SUM(E25:E26) -> 0 | F27: 0 | G27: 0 | H27: 0 | I27: 0 | J27: 540 | K27: 540 | L27: 540 | M27: 540 | N27: 540 | O27: 540 | P27: =SUM(D27:O27) -> 3,240 | BB27: Summe Personalkosten | BC27: =SUM(BC25:BC26) -> 0 | BD27: =SUM(BD25:BD26) -> 0 | BE27: 0 | BF27: 0 | BG27: 0 | BH27: 0 | BI27: 0 | BJ27: 0 | BK27: 0 | BL27: 0 | BM27: 0 | BN27: 0 | BO27: =SUM(BC27:BN27) -> 0 | BS27: Summe Personalkosten | BT27: =SUM(BT25:BT26) -> 0 | BU27: =SUM(BU25:BU26) -> 0 | BV27: 0 | BW27: 0 | BX27: 0 | BY27: 0 | BZ27: 0 | CA27: 0 | CB27: 0 | CC27: 0 | CD27: 0 | CE27: 0 | CF27: =SUM(BT27:CE27) -> 0 | CW27: 22 | CY27: Summe Personalkosten | CZ27: Sum personal costs | DA27: 22 | DB27: 0% | DC27: Summe Personalkosten | DD27: Sum personal costs
B28: 4 | C28: Reisekosten | BA28: 4 | BB28: Reisekosten | BR28: 4 | BS28: Reisekosten | CW28: 23 | CY28: Reisekosten | CZ28: Travel expenses | DA28: 23 | DB28: 0% | DC28: Reisekosten | DD28: Travel expenses
A29: =$Q$2 -> 19% | B29: =IF($D$4<>1, A29,"") -> 19% | C29: Fahrtkosten | D29: 100 | E29: 100 | F29: 100 | G29: 100 | H29: 100 | I29: 100 | J29: 100 | K29: 100 | L29: 100 | M29: 100 | N29: 100 | O29: 100 | P29: =SUM(D29:O29) -> 1,200 | U29: =F153 -> 2018 | V29: =V17 -> Jan. | W29: Febr. | X29: März | Y29: April | Z29: Mai | AA29: Juni | AB29: Juli | AC29: Aug. | AD29: Sept. | AE29: Okt. | AF29: Nov. | AG29: Dez. | BA29: 19% | BB29: Fahrtkosten | BC29: =IF($A29=$Q$2,D29*IF(OR($D$4=0,$D$4=3),$A29,$A29/(1+$A29)),0) -> 19 | BD29: 19 | BE29: 19 | BF29: 19 | BG29: 19 | BH29: 19 | BI29: 19 | BJ29: 19 | BK29: 19 | BL29: 19 | BM29: 19 | BN29: 19 | BO29: =SUM(BC29:BN29) -> 228 | BR29: 19% | BS29: Fahrtkosten | BT29: =IF($A29=$Q$3,D29*IF(OR($D$4=0,$D$4=3),$A29,$A29/(1+$A29)),0) -> 0 | BU29: 0 | BV29: 0 | BW29: 0 | BX29: 0 | BY29: 0 | BZ29: 0 | CA29: 0 | CB29: 0 | CC29: 0 | CD29: 0 | CE29: 0 | CF29: =SUM(BT29:CE29) -> 0 | CW29: 24 | CX29: =$Q$2 -> 19% | CY29: Fahrtkosten | CZ29: Travel expenses | DA29: 24 | DB29: 19% | DC29: Fahrtkosten | DD29: Travel expenses
A30: =$Q$2 -> 19% | B30: =IF($D$4<>1, A30,"") -> 19% | C30: Reisekostenpauschalen | P30: =SUM(D30:O30) -> 0 | U30: =U6 -> Anzahl Mitarbeiter | BA30: 19% | BB30: Reisekostenpauschalen | BC30: 0 | BD30: 0 | BE30: 0 | BF30: 0 | BG30: 0 | BH30: 0 | BI30: 0 | BJ30: 0 | BK30: 0 | BL30: 0 | BM30: 0 | BN30: 0 | BO30: =SUM(BC30:BN30) -> 0 | BR30: 19% | BS30: Reisekostenpauschalen | BT30: 0 | BU30: 0 | BV30: 0 | BW30: 0 | BX30: 0 | BY30: 0 | BZ30: 0 | CA30: 0 | CB30: 0 | CC30: 0 | CD30: 0 | CE30: 0 | CF30: =SUM(BT30:CE30) -> 0 | CW30: 25 | CX30: =$Q$2 -> 19% | CY30: Reisekostenpauschalen | CZ30: Travelling allowances | DA30: 25 | DB30: 19% | DC30: Reisekostenpauschalen | DD30: Travelling allowances
A31: =$Q$3 -> 7% | B31: =IF($D$4<>1, A31,"") -> 7% | C31: Übernachtungen | P31: =SUM(D31:O31) -> 0 | U31: Gehalt1 | BA31: 7% | BB31: Übernachtungen | BC31: 0 | BD31: 0 | BE31: 0 | BF31: 0 | BG31: 0 | BH31: 0 | BI31: 0 | BJ31: 0 | BK31: 0 | BL31: 0 | BM31: 0 | BN31: 0 | BO31: =SUM(BC31:BN31) -> 0 | BR31: 7% | BS31: Übernachtungen | BT31: 0 | BU31: 0 | BV31: 0 | BW31: 0 | BX31: 0 | BY31: 0 | BZ31: 0 | CA31: 0 | CB31: 0 | CC31: 0 | CD31: 0 | CE31: 0 | CF31: =SUM(BT31:CE31) -> 0 | CW31: 26 | CX31: =$Q$3 -> 7% | CY31: Übernachtungen | CZ31: Accomodations | DA31: 26 | DB31: 7% | DC31: Übernachtungen | DD31: Accomodations
A32: 19% | B32: =IF($D$4<>1, A32,"") -> 19% | C32: Sonstiges | P32: =SUM(D32:O32) -> 0 | U32: Anzahl Mitarbeiter | BB32: Sonstiges | BC32: 0 | BD32: 0 | BE32: 0 | BF32: 0 | BG32: 0 | BH32: 0 | BI32: 0 | BJ32: 0 | BK32: 0 | BL32: 0 | BM32: 0 | BN32: 0 | BO32: =SUM(BC32:BN32) -> 0 | BS32: Sonstiges | BT32: 0 | BU32: 0 | BV32: 0 | BW32: 0 | BX32: 0 | BY32: 0 | BZ32: 0 | CA32: 0 | CB32: 0 | CC32: 0 | CD32: 0 | CE32: 0 | CF32: =SUM(BT32:CE32) -> 0 | CW32: 27 | CX32: =$Q$2 -> 19% | CY32: Sonstiges | CZ32: Others | DA32: 27 | DB32: 19% | DC32: Sonstiges | DD32: Others
C33: Summe Reisekosten | D33: =SUM(D29:D32) -> 100 | E33: =SUM(E29:E32) -> 100 | F33: 100 | G33: 100 | H33: 100 | I33: 100 | J33: 100 | K33: 100 | L33: 100 | M33: 100 | N33: 100 | O33: =SUM(O29:O32) -> 100 | P33: =SUM(D33:O33) -> 1,200 | U33: Gehalt2 | BB33: Summe Reisekosten | BC33: =SUM(BC29:BC32) -> 19 | BD33: =SUM(BD29:BD32) -> 19 | BE33: 19 | BF33: 19 | BG33: 19 | BH33: 19 | BI33: 19 | BJ33: 19 | BK33: 19 | BL33: 19 | BM33: 19 | BN33: 19 | BO33: =SUM(BC33:BN33) -> 228 | BS33: Summe Reisekosten | BT33: =SUM(BT29:BT32) -> 0 | BU33: =SUM(BU29:BU32) -> 0 | BV33: 0 | BW33: 0 | BX33: 0 | BY33: 0 | BZ33: 0 | CA33: 0 | CB33: 0 | CC33: 0 | CD33: 0 | CE33: 0 | CF33: =SUM(BT33:CE33) -> 0 | CW33: 28 | CY33: ="Summe " &CY28 -> Summe Reisekosten | CZ33: Sum travel expenses | DA33: 28 | DB33: 0% | DC33: Summe Reisekosten | DD33: Sum travel expenses
B34: 5 | C34: Versicherungen und Beiträge (betrieblich!) | U34: Anzahl Mitarbeiter | BA34: 5 | BB34: Versicherungen und Beiträge (betrieblich!) | BR34: 5 | BS34: Versicherungen und Beiträge (betrieblich!) | CW34: 29 | CY34: Versicherungen und Beiträge (betrieblich!) | CZ34: Insurances and Contributions | DA34: 29 | DB34: 0% | DC34: Versicherungen und Beiträge (betrieblich!) | DD34: Insurances and Contributions
A35: =$Q$2 -> 19% | B35: =IF($D$4<>1, A35,"") -> 19% | C35: Haftpflicht | P35: =SUM(D35:O35) -> 0 | U35: Gehalt3 | BA35: 19% | BB35: Haftpflicht | BC35: =IF($A35=$Q$2,D35*IF(OR($D$4=0,$D$4=3),$A35,$A35/(1+$A35)),0) -> 0 | BD35: 0 | BE35: 0 | BF35: 0 | BG35: 0 | BH35: 0 | BI35: 0 | BJ35: 0 | BK35: 0 | BL35: 0 | BM35: 0 | BN35: 0 | BO35: =SUM(BC35:BN35) -> 0 | BR35: 19% | BS35: Haftpflicht | BT35: =IF($A35=$Q$3,D35*IF(OR($D$4=0,$D$4=3),$A35,$A35/(1+$A35)),0) -> 0 | BU35: 0 | BV35: 0 | BW35: 0 | BX35: 0 | BY35: 0 | BZ35: 0 | CA35: 0 | CB35: 0 | CC35: 0 | CD35: 0 | CE35: 0 | CF35: =SUM(BT35:CE35) -> 0 | CW35: 30 | CX35: =$Q$2 -> 19% | CY35: Haftpflicht | CZ35: Insurance | DA35: 30 | DB35: 19% | DC35: Haftpflicht | DD35: Insurance
A36: =$Q$2 -> 19% | B36: =IF($D$4<>1, A36,"") -> 19% | C36: Rechtschutzversicherung | D36: 100 | E36: 100 | F36: 100 | G36: 100 | H36: 100 | I36: 100 | J36: 100 | K36: 100 | L36: 100 | M36: 100 | N36: 100 | O36: 100 | P36: =SUM(D36:O36) -> 1,200 | U36: Nebenkosten (%) | BA36: 19% | BB36: Rechtschutzversicherung | BC36: 19 | BD36: 19 | BE36: 19 | BF36: 19 | BG36: 19 | BH36: 19 | BI36: 19 | BJ36: 19 | BK36: 19 | BL36: 19 | BM36: 19 | BN36: 19 | BO36: =SUM(BC36:BN36) -> 228 | BR36: 19% | BS36: Rechtschutzversicherung | BT36: 0 | BU36: 0 | BV36: 0 | BW36: 0 | BX36: 0 | BY36: 0 | BZ36: 0 | CA36: 0 | CB36: 0 | CC36: 0 | CD36: 0 | CE36: 0 | CF36: =SUM(BT36:CE36) -> 0 | CW36: 31 | CX36: =$Q$2 -> 19% | CY36: Rechtschutzversicherung | CZ36: Legal costs insurance | DA36: 31 | DB36: 19% | DC36: Rechtschutzversicherung | DD36: Legal costs insurance
A37: =$Q$2 -> 19% | B37: =IF($D$4<>1, A37,"") -> 19% | C37: Beiträge (IHK, Berufsverbände, ...) | P37: =SUM(D37:O37) -> 0 | U37: Gehaltssumme | V37: =((V30*V31)+(V32*V33)+(V34*V35))*(1+V36) -> 0 | W37: 0 | X37: 0 | Y37: 0 | Z37: 0 | AA37: 0 | AB37: 0 | AC37: 0 | AD37: 0 | AE37: 0 | AF37: 0 | AG37: 0 | AH37: =SUM(V37:AG37) -> 0 | BA37: 19% | BB37: Beiträge (IHK, Berufsverbände, ...) | BC37: 0 | BD37: 0 | BE37: 0 | BF37: 0 | BG37: 0 | BH37: 0 | BI37: 0 | BJ37: 0 | BK37: 0 | BL37: 0 | BM37: 0 | BN37: 0 | BO37: =SUM(BC37:BN37) -> 0 | BR37: 19% | BS37: Beiträge (IHK, Berufsverbände, ...) | BT37: 0 | BU37: 0 | BV37: 0 | BW37: 0 | BX37: 0 | BY37: 0 | BZ37: 0 | CA37: 0 | CB37: 0 | CC37: 0 | CD37: 0 | CE37: 0 | CF37: =SUM(BT37:CE37) -> 0 | CW37: 32 | CX37: =$Q$2 -> 19% | CY37: Beiträge (IHK, Berufsverbände, ...) | CZ37: Conributions (IHK, trade organizations, ...) | DA37: 32 | DB37: 19% | DC37: Beiträge (IHK, Berufsverbände, ...) | DD37: Conributions (IHK, trade organizations, ...)
A38: 19% | B38: =IF($D$4<>1, A38,"") -> 19% | C38: Sonstiges | P38: =SUM(D38:O38) -> 0 | BB38: Sonstiges | BC38: 0 | BD38: 0 | BE38: 0 | BF38: 0 | BG38: 0 | BH38: 0 | BI38: 0 | BJ38: 0 | BK38: 0 | BL38: 0 | BM38: 0 | BN38: 0 | BO38: =SUM(BC38:BN38) -> 0 | BS38: Sonstiges | BT38: 0 | BU38: 0 | BV38: 0 | BW38: 0 | BX38: 0 | BY38: 0 | BZ38: 0 | CA38: 0 | CB38: 0 | CC38: 0 | CD38: 0 | CE38: 0 | CF38: =SUM(BT38:CE38) -> 0 | CW38: 33 | CX38: =$Q$2 -> 19% | CY38: Sonstiges | CZ38: Others | DA38: 33 | DB38: 19% | DC38: Sonstiges | DD38: Others
C39: Summe Versicherungen und Beiträge (betrieblich!) | D39: =SUM(D35:D38) -> 100 | E39: =SUM(E35:E38) -> 100 | F39: 100 | G39: 100 | H39: 100 | I39: 100 | J39: 100 | K39: 100 | L39: 100 | M39: 100 | N39: 100 | O39: 100 | P39: =SUM(D39:O39) -> 1,200 | BB39: Summe Versicherungen und Beiträge (betrieblich!) | BC39: =SUM(BC35:BC38) -> 19 | BD39: =SUM(BD35:BD38) -> 19 | BE39: 19 | BF39: 19 | BG39: 19 | BH39: 19 | BI39: 19 | BJ39: 19 | BK39: 19 | BL39: 19 | BM39: 19 | BN39: 19 | BO39: =SUM(BC39:BN39) -> 228 | BS39: Summe Versicherungen und Beiträge (betrieblich!) | BT39: =SUM(BT35:BT38) -> 0 | BU39: =SUM(BU35:BU38) -> 0 | BV39: 0 | BW39: 0 | BX39: 0 | BY39: 0 | BZ39: 0 | CA39: 0 | CB39: 0 | CC39: 0 | CD39: 0 | CE39: 0 | CF39: =SUM(BT39:CE39) -> 0 | CW39: 34 | CY39: ="Summe "&CY34 -> Summe Versicherungen und Beiträge (betrieblich!) | CZ39: Sum insurances (operational) | DA39: 34 | DB39: 0% | DC39: Summe Versicherungen und Beiträge (betrieblich!) | DD39: Sum insurances (operational)
B40: 6 | C40: KFZ Kosten / Betriebliche Nutzung | BA40: 6 | BB40: KFZ Kosten / Betriebliche Nutzung | BR40: 6 | BS40: KFZ Kosten / Betriebliche Nutzung | CW40: 35 | CY40: KFZ Kosten / Betriebliche Nutzung | CZ40: Vehicle expenses for operational use | DA40: 35 | DB40: 0% | DC40: KFZ Kosten / Betriebliche Nutzung | DD40: Vehicle expenses for operational use
A41: =$Q$2 -> 19% | B41: =IF($D$4<>1, A41,"") -> 19% | C41: Leasingraten Kfz | D41: 100 | E41: 100 | F41: 100 | G41: 100 | H41: 100 | I41: 100 | J41: 100 | K41: 100 | L41: 100 | M41: 100 | N41: 100 | O41: 100 | P41: =SUM(D41:O41) -> 1,200 | U41: =G153 -> 2019 | V41: =V5 -> Jan. | W41: Febr. | X41: März | Y41: April | Z41: Mai | AA41: Juni | AB41: Juli | AC41: Aug. | AD41: Sept. | AE41: Okt. | AF41: Nov. | AG41: Dez. | BA41: 19% | BB41: Leasingraten Kfz | BC41: =IF($A41=$Q$2,D41*IF(OR($D$4=0,$D$4=3),$A41,$A41/(1+$A41)),0) -> 19 | BD41: 19 | BE41: 19 | BF41: 19 | BG41: 19 | BH41: 19 | BI41: 19 | BJ41: 19 | BK41: 19 | BL41: 19 | BM41: 19 | BN41: 19 | BO41: =SUM(BC41:BN41) -> 228 | BR41: 19% | BS41: Leasingraten Kfz | BT41: =IF($A41=$Q$3,D41*IF(OR($D$4=0,$D$4=3),$A41,$A41/(1+$A41)),0) -> 0 | BU41: 0 | BV41: 0 | BW41: 0 | BX41: 0 | BY41: 0 | BZ41: 0 | CA41: 0 | CB41: 0 | CC41: 0 | CD41: 0 | CE41: 0 | CF41: =SUM(BT41:CE41) -> 0 | CW41: 36 | CX41: =$Q$2 -> 19% | CY41: Leasingraten Kfz | CZ41: Vehicle leasing rates | DA41: 36 | DB41: 19% | DC41: Leasingraten Kfz | DD41: Vehicle leasing rates
A42: 19% | B42: =IF($D$4<>1, A42,"") -> 19% | C42: Versicherungen/Kfz-Steuer | D42: 100 | E42: 100 | F42: 100 | G42: 100 | H42: 100 | I42: 100 | J42: 100 | K42: 100 | L42: 100 | M42: 100 | N42: 100 | O42: 100 | P42: 1,200 | U42: =U30 -> Anzahl Mitarbeiter | BA42: 19% | BB42: Versicherungen/Kfz-Steuer | BC42: 19 | BD42: 19 | BE42: 19 | BF42: 19 | BG42: 19 | BH42: 19 | BI42: 19 | BJ42: 19 | BK42: 19 | BL42: 19 | BM42: 19 | BN42: 19 | BO42: =SUM(BC42:BN42) -> 228 | BR42: 19% | BS42: Versicherungen/Kfz-Steuer | BT42: 0 | BU42: 0 | BV42: 0 | BW42: 0 | BX42: 0 | BY42: 0 | BZ42: 0 | CA42: 0 | CB42: 0 | CC42: 0 | CD42: 0 | CE42: 0 | CF42: =SUM(BT42:CE42) -> 0 | CW42: 37 | CX42: 19% | CY42: Versicherungen/Kfz-Steuer | CZ42: Insurances / tax on cars | DA42: 37 | DB42: 19% | DC42: Versicherungen/Kfz-Steuer | DD42: Insurances / tax on cars
